Workbook

Sheet Table of content
B3: =Title -> 
C7: This model was developed by WifOR research institute in commission from Novartis. The aim of the model is to estimate the Societal Impact of early intensified treatment in type 2 diabetic patients.
B13: 1 | C13: Introduction | D13: Overview
B15: 2 | C15: Model Structure
B17: 3 | C17: Results | D17: Results and Sensitivity Analyses
B19: 4 | C19: Graphs
B21: 5 | C21: DSA simulation
B23: 6 | C23: PSA simulation
B25: 7 | C25: Settings | D25: Data inputs
B27: 8 | C27: Clinical inputs
B29: 9 | C29: Event probabilities
B31: 10 | C31: Socioeconomic inputs
B33: 11 | C33: Employment characteristics
B35: 14 | C35: 1st treatment failure
B37: 15 | C37: 2nd treatment failure
B39: 16 | C39: Death rates
B41: 17 | C41: Age-gender distribution
B43: 18 | C43: Engine M+V | D43: Model calculations
B45: 19 | C45: Engine M+P
B47: 20 | C47: Engine M+V single patient
B49: 21 | C49: Engine M+P single patient
B51: 22 | C51: Health Outcome_Population
B53: 23 | C53: Health Outcome_Single Patient
B55: 24 | C55: Societal Impact_Population
B57: 25 | C57: Societal Impact_Single Patient
P58: MLR ID: 232665

Sheet Introduction
A5: The Societal Impact of early intensified treatment in type 2 diabetic patients
A6: Introduction | C6: Table of content | D6: Results
B8: Objective
B9: The objective of this model is to present a societal impact evaluation of early intensified treatment in type 2 diabetes mellitus (T2DM) patients.
B10: General model settings
B11: Target Population: The population modelled is patients aged 20-69 years old with T2DM. The model is designed to consider specific age and gender subgroups.
B12: Time Horizon: The model is capable of calculating the clinical benefits, resource use and costs over three different time horizons: 5;10; and 15 years.
B13: Cycle Length: The cycle length of the model is set to 6 months.
B14: Comparators
B15: The model is designed to compare the following strategies of treatment in T2DM:
B16: Treatment Strategy | C16: Description
B17: Early intensified treatment group | C17: Patients start with early intensified treatment (vildagliptin+metformin) until 1st treatment failure and remain on the same medication until the point in time of a 2nd treatment failure
B18: The stepwise approach group | C18: Patients start their treatment with metformin monotherapy until 1st treatment failure. Then, they transit to a combination therapy of metformin plus vildagliptin until they experience a 2nd treatment failure.
B19: Once patients had a 2nd treatment failure, we assume that 40% receive insulin and 60% sulfonylureas (SU) in both scenarios.
B20: Model Overview
B21: First, a survival analysis was conducted to estimate the time to treatment failure. That is, the probabilities of patients experiencing a 1st and 2nd treatment failure. The analysis was peformed using patient-level data from the VERIFY study. Second, a 4-state markov model was built to simulate (and compare) the individual disease progression in both treatment groups. Further, the 5-year incidence rates of diabetic complication events were converted into 6 month-event probabilities, to estimate the number of events per period in both treatment groups. Third, to simulate the health effects, and thus the societal impact within the target population of early intensified treatment, we built a static population model. Based on the results of the population model, we draw correlations between occuring number of events in the target population and potential productivity and activity impairments in the society. These impairments were translated into avoided paid and unpaid hours lost. We finally monetised these avoided losses using wages as a proxy for an individual's marginal productivity.
B22: Model Outcomes
B23: 1st Health Outcomes: Incremental difference in number of occuring complication events due to T2DM.
B24: 2nd societal impact: Monetized number of avoided paid and unpaid productivity losses due to T2DM complication events.

Sheet Model structure
A5: The Societal Impact of early intensified treatment in type 2 diabetic patients
A6: The Model | C6: Table of content | D6: Results
B8: Model Structure
B10: The present study is designed to quantify the societal impact of early itensified antidiabetes treatment in TD2M patients in Mexico. The applied methodology consists of two consecutive steps: the calculation of the health and socioeconomic footprint. The health footprint addresses the question to what extent patients are positively affected by an improvement in therapeutic approach, such as early intensified antidiabetic treatment, when compared to the current standard therapy. The potential health benefit of early intenified treatment, i.e., positive incremental difference in the number of vascular events, is then used to answer the question on how severely the productivity and activity of a patient is impaired by the events. Finally, the quantified productivity and activity losses are translated into monetary values to depict the societal impact. In the current model, the health footprint consists of a survival analysis, a Markov model and a population model. The socioeconomic footprint consists of the avoided productivity and activity impairment induced by complication events with early intensified treatment, and the monetization of those avoided impairments.
B22: Survival analysis
B24: We conduct a survival analysis using patient-level data from the VERIFY clinical trial. The aim of the analysis is first to extrapolate the observed time to treatment failure beyond the study’s time horizon and second, to derive transition probabilities (of having a treatment failure) which are fed into the Markov model. In accordance with the VERIFY trial, the current study defines treatment failure as loss of glycemic control, that is not maintaining HBA1c levels below 7%. By conducting the survival analysis, we assess five standard statistical distributions (exponential, Weibull, logLogistic, logNormal and Gomplertz) to parametrize the reported Kaplan Meier (KM) curves, that is the observerd time to treatment failure in the VERIFY trial. We evaluate these parametric models according to their statistical performance. Specifically, we evaluate the goodness-of-fit (i.e., best fit to the observed survival data) visually and by using Akaike information criterion (AIC) and the Bayesian information criterion (BIC). The model that exhibits the lowest AIC and BIC is chosen as the best fit. As a result, we are first able to identify the most suitable parametric model for extrapoling the observed survival data, and second, based on the fitted parametric distributions, we derive transition probabilities for the Markov model.
B38: Markov model
B40: Once patients are diagnosed with T2DM, we evaluate two different treatment scenarios. In the comparator scenario patients start their treatment with metformin monotherapy until the 1st treatment failure (period 1). Then, they transit to a combination therapy of metformin plus vildagliptin until they experience a 2nd treatment failure (period 2). In the VERIFY study, 1st treatment failure was the primary endpoint, and it was defined as having HbA1c levels at least 7% at two consecutive scheduled visits 13 weeks apart from randomization. One of the secondary endpoints in the clinical trial was the 2nd treatment failure, which represents the progression of HbA1c after experiencing a 1st treatment failure assessed by threshold (HbA1c being at least 7%). In accordance with the VERIFY study, treatment failure is defined as loss of glycemic control, i.e., not maintaining HBA1c levels below 7%. After the 2nd treatment failure patients are either treated with insulin or SU. Once patients have a 2nd treatment failure, we assume that 40% receive insulin and 60% SU . In contrast, in the innovation scenario, patients start with early intensified treatment (vildagliptin+metformin) until the 1st treatment failure (period 1) and remain on the same medication until the point in time of a 2nd treatment failure (period 2). Similarly, to the comparator scenario, 40% of the patients are treated with insulin and 60% with SU after a 2nd treatment failure. In both scenarios and in all treatment states patients have a diabetes-adjusted probability to die. Each treatment state includes the probability of experiencing complication events. The complication events considered include stroke, myocardial infarction (MI), heart failure (HF), neuropathy and nephropathy.
B45: Static cohort model
B47: To populate the model we consider epidemiological evidence and relevant population characteristics. We consider 10 subcohorts, namely male and female patients between an age of 20 and 29 years, 30 and 39 years, 40 and 49 years, 50 and 59 years and male and female patients between an age of 60 and 69 years.
B49: Figure: Schematic representaion of the Markov model
B92: Socioeconomic Valuation
B94: To quantify the Societal Impact, we consider both paid and unpaid work activities. Hereby, the overarching question is to what extent individuals contribute to the wealth of an economy and how this contribution might be negatively affected by productivity and activity impairments due to poor health. Our methodology follows an interdependent calculation approach of paid work time loss, unpaid work time loss, and the monetary value from societal perspective associated with it. Based on the simulated outcomes of the health footprint model (i.e., the number of avoided complication events), we evaluate the avoided productivity losses, by drawing correlations between the number of avoided events and productivity/activity impairments. Thus, we consider the following productivity/ activity dimensions: • Absenteeism (i.e., being absent from work) after complication events. • Presenteeism (i.e., being present at work but with reduced work ability) after complication events. • Reduced labour force participation after complication events due to no return to work. • Activity Restriction (i.e., reduced ability to perform unpaid work activities) after complication events.
B101: We finally monetize the avoided productivity and activity losses using wages to derive the Societal Impact.

Sheet Results
A1: The Societal Impact of early intensified treatment in type 2 diabetic patients
A2: Results | C2: Table of content | D2: Results
B4: User Setting
B6: Select time horizon | C6: 10 years
B7: Select discounting | C7: no
B9: Patients alive per age group over time
B11: Cycle | C11: Months | D11: Years | E11: 20-29 | F11: 30-39 | G11: 40-49 | H11: 50-59 | I11: >60 | J11: Total
C12: 0 | D12: 0 | E12: =SUM('Engine M+V'!S4:U4)+SUM('Engine M+V'!S169:U169) -> 2485.179967 | F12: =SUM('Engine M+V'!S37:U37)+SUM('Engine M+V'!S202:U202) -> 30584.45426 | G12: =SUM('Engine M+V'!S70:U70)+SUM('Engine M+V'!S235:U235) -> 134510.4764 | H12: =SUM('Engine M+V'!S103:U103)+SUM('Engine M+V'!S268:U268) -> 214170.4715 | I12: =SUM('Engine M+V'!S136:U136)+SUM('Engine M+V'!S301:U301) -> 124048.3253 | J12: =SUM(E12:I12) -> 505798.9075
B13: 1 | C13: 6 | D13: 0.5 | E13: =SUM('Engine M+V'!S5:U5)+SUM('Engine M+V'!S170:U170) -> 2483.936856 | F13: =SUM('Engine M+V'!S38:U38)+SUM('Engine M+V'!S203:U203) -> 30562.73523 | G13: =SUM('Engine M+V'!S71:U71)+SUM('Engine M+V'!S236:U236) -> 134337.8359 | H13: =SUM('Engine M+V'!S104:U104)+SUM('Engine M+V'!S269:U269) -> 213618.5702 | I13: =SUM('Engine M+V'!S137:U137)+SUM('Engine M+V'!S302:U302) -> 123356.9811 | J13: =SUM(E13:I13) -> 504360.0592
B14: 2 | C14: 12 | D14: 1 | E14: =SUM('Engine M+V'!S6:U6)+SUM('Engine M+V'!S171:U171) -> 2481.452228 | F14: =SUM('Engine M+V'!S39:U39)+SUM('Engine M+V'!S204:U204) -> 30519.33697 | G14: =SUM('Engine M+V'!S72:U72)+SUM('Engine M+V'!S237:U237) -> 133993.0804 | H14: =SUM('Engine M+V'!S105:U105)+SUM('Engine M+V'!S270:U270) -> 212517.8766 | I14: =SUM('Engine M+V'!S138:U138)+SUM('Engine M+V'!S303:U303) -> 121982.3528 | J14: 501494.0991
B15: 3 | C15: 18 | D15: 1.5 | E15: =SUM('Engine M+V'!S7:U7)+SUM('Engine M+V'!S172:U172) -> 2478.970789 | F15: =SUM('Engine M+V'!S40:U40)+SUM('Engine M+V'!S205:U205) -> 30476.01828 | G15: =SUM('Engine M+V'!S73:U73)+SUM('Engine M+V'!S238:U238) -> 133649.3747 | H15: =SUM('Engine M+V'!S106:U106)+SUM('Engine M+V'!S271:U271) -> 211423.3823 | I15: =SUM('Engine M+V'!S139:U139)+SUM('Engine M+V'!S304:U304) -> 120623.7469 | J15: 498651.4929
B16: 4 | C16: 24 | D16: 2 | E16: =SUM('Engine M+V'!S8:U8)+SUM('Engine M+V'!S173:U173) -> 2476.492533 | F16: =SUM('Engine M+V'!S41:U41)+SUM('Engine M+V'!S206:U206) -> 30432.77897 | G16: =SUM('Engine M+V'!S74:U74)+SUM('Engine M+V'!S239:U239) -> 133306.7149 | H16: =SUM('Engine M+V'!S107:U107)+SUM('Engine M+V'!S272:U272) -> 210335.0497 | I16: =SUM('Engine M+V'!S140:U140)+SUM('Engine M+V'!S305:U305) -> 119280.9687 | J16: 495832.0048
B17: 5 | C17: 30 | D17: 2.5 | E17: =SUM('Engine M+V'!S9:U9)+SUM('Engine M+V'!S174:U174) -> 2474.017457 | F17: =SUM('Engine M+V'!S42:U42)+SUM('Engine M+V'!S207:U207) -> 30389.61889 | G17: =SUM('Engine M+V'!S75:U75)+SUM('Engine M+V'!S240:U240) -> 132965.0977 | H17: =SUM('Engine M+V'!S108:U108)+SUM('Engine M+V'!S273:U273) -> 209252.8415 | I17: =SUM('Engine M+V'!S141:U141)+SUM('Engine M+V'!S306:U306) -> 117953.8262 | J17: 493035.4018
B18: 6 | C18: 36 | D18: 3 | E18: =SUM('Engine M+V'!S10:U10)+SUM('Engine M+V'!S175:U175) -> 2471.545554 | F18: =SUM('Engine M+V'!S43:U43)+SUM('Engine M+V'!S208:U208) -> 30346.53786 | G18: =SUM('Engine M+V'!S76:U76)+SUM('Engine M+V'!S241:U241) -> 132624.5194 | H18: =SUM('Engine M+V'!S109:U109)+SUM('Engine M+V'!S274:U274) -> 208176.7207 | I18: =SUM('Engine M+V'!S142:U142)+SUM('Engine M+V'!S307:U307) -> 116642.1297 | J18: 490261.4532
B19: 7 | C19: 42 | D19: 3.5 | E19: =SUM('Engine M+V'!S11:U11)+SUM('Engine M+V'!S176:U176) -> 2469.076821 | F19: =SUM('Engine M+V'!S44:U44)+SUM('Engine M+V'!S209:U209) -> 30303.53573 | G19: =SUM('Engine M+V'!S77:U77)+SUM('Engine M+V'!S242:U242) -> 132284.9766 | H19: =SUM('Engine M+V'!S110:U110)+SUM('Engine M+V'!S275:U275) -> 207106.6504 | I19: =SUM('Engine M+V'!S143:U143)+SUM('Engine M+V'!S308:U308) -> 115345.6919 | J19: 487509.9314
B20: 8 | C20: 48 | D20: 4 | E20: =SUM('Engine M+V'!S12:U12)+SUM('Engine M+V'!S177:U177) -> 2466.611254 | F20: =SUM('Engine M+V'!S45:U45)+SUM('Engine M+V'!S210:U210) -> 30260.61232 | G20: =SUM('Engine M+V'!S78:U78)+SUM('Engine M+V'!S243:U243) -> 131946.4656 | H20: =SUM('Engine M+V'!S111:U111)+SUM('Engine M+V'!S276:U276) -> 206042.594 | I20: =SUM('Engine M+V'!S144:U144)+SUM('Engine M+V'!S309:U309) -> 114064.3277 | J20: 484780.611
B21: 9 | C21: 54 | D21: 4.5 | E21: =SUM('Engine M+V'!S13:U13)+SUM('Engine M+V'!S178:U178) -> 2464.148846 | F21: =SUM('Engine M+V'!S46:U46)+SUM('Engine M+V'!S211:U211) -> 30217.76748 | G21: =SUM('Engine M+V'!S79:U79)+SUM('Engine M+V'!S244:U244) -> 131608.9831 | H21: =SUM('Engine M+V'!S112:U112)+SUM('Engine M+V'!S277:U277) -> 204984.5153 | I21: =SUM('Engine M+V'!S145:U145)+SUM('Engine M+V'!S310:U310) -> 112797.8547 | J21: 482073.2693
B22: 10 | C22: 60 | D22: 5 | E22: =SUM('Engine M+V'!S14:U14)+SUM('Engine M+V'!S179:U179) -> 2461.408712 | F22: =SUM('Engine M+V'!S47:U47)+SUM('Engine M+V'!S212:U212) -> 30168.59749 | G22: =SUM('Engine M+V'!S80:U80)+SUM('Engine M+V'!S245:U245) -> 131216.964 | H22: =SUM('Engine M+V'!S113:U113)+SUM('Engine M+V'!S278:U278) -> 203679.392 | I22: =SUM('Engine M+V'!S146:U146)+SUM('Engine M+V'!S311:U311) -> 111189.2095 | J22: 478715.5718
B23: 11 | C23: 66 | D23: 5.5 | E23: =SUM('Engine M+V'!S15:U15)+SUM('Engine M+V'!S180:U180) -> 2458.391685 | F23: =SUM('Engine M+V'!S48:U48)+SUM('Engine M+V'!S213:U213) -> 30113.126 | G23: =SUM('Engine M+V'!S81:U81)+SUM('Engine M+V'!S246:U246) -> 130770.7587 | H23: =SUM('Engine M+V'!S114:U114)+SUM('Engine M+V'!S279:U279) -> 202130.5546 | I23: =SUM('Engine M+V'!S147:U147)+SUM('Engine M+V'!S312:U312) -> 109248.7272 | J23: 474721.5583
B24: 12 | C24: 72 | D24: 6 | E24: =SUM('Engine M+V'!S16:U16)+SUM('Engine M+V'!S181:U181) -> 2455.379482 | F24: =SUM('Engine M+V'!S49:U49)+SUM('Engine M+V'!S214:U214) -> 30057.7801 | G24: =SUM('Engine M+V'!S82:U82)+SUM('Engine M+V'!S247:U247) -> 130326.2768 | H24: =SUM('Engine M+V'!S115:U115)+SUM('Engine M+V'!S280:U280) -> 200594.2834 | I24: =SUM('Engine M+V'!S148:U148)+SUM('Engine M+V'!S313:U313) -> 107343.3825 | J24: 470777.1023
B25: 13 | C25: 78 | D25: 6.5 | E25: =SUM('Engine M+V'!S17:U17)+SUM('Engine M+V'!S182:U182) -> 2452.372092 | F25: =SUM('Engine M+V'!S50:U50)+SUM('Engine M+V'!S215:U215) -> 30002.55947 | G25: =SUM('Engine M+V'!S83:U83)+SUM('Engine M+V'!S248:U248) -> 129883.5109 | H25: =SUM('Engine M+V'!S116:U116)+SUM('Engine M+V'!S281:U281) -> 199070.4704 | I25: =SUM('Engine M+V'!S149:U149)+SUM('Engine M+V'!S314:U314) -> 105472.5168 | J25: 466881.4297
B26: 14 | C26: 84 | D26: 7 | E26: =SUM('Engine M+V'!S18:U18)+SUM('Engine M+V'!S183:U183) -> 2449.369507 | F26: =SUM('Engine M+V'!S51:U51)+SUM('Engine M+V'!S216:U216) -> 29947.46378 | G26: =SUM('Engine M+V'!S84:U84)+SUM('Engine M+V'!S249:U249) -> 129442.4538 | H26: =SUM('Engine M+V'!S117:U117)+SUM('Engine M+V'!S282:U282) -> 197559.0087 | I26: =SUM('Engine M+V'!S150:U150)+SUM('Engine M+V'!S315:U315) -> 103635.4842 | J26: 463033.78
B27: 15 | C27: 90 | D27: 7.5 | E27: =SUM('Engine M+V'!S19:U19)+SUM('Engine M+V'!S184:U184) -> 2446.371719 | F27: =SUM('Engine M+V'!S52:U52)+SUM('Engine M+V'!S217:U217) -> 29892.49272 | G27: =SUM('Engine M+V'!S85:U85)+SUM('Engine M+V'!S250:U250) -> 129003.0982 | H27: =SUM('Engine M+V'!S118:U118)+SUM('Engine M+V'!S283:U283) -> 196059.7925 | I27: =SUM('Engine M+V'!S151:U151)+SUM('Engine M+V'!S316:U316) -> 101831.6512 | J27: 459233.4063
B28: 16 | C28: 96 | D28: 8 | E28: =SUM('Engine M+V'!S20:U20)+SUM('Engine M+V'!S185:U185) -> 2443.378719 | F28: =SUM('Engine M+V'!S53:U53)+SUM('Engine M+V'!S218:U218) -> 29837.64596 | G28: =SUM('Engine M+V'!S86:U86)+SUM('Engine M+V'!S251:U251) -> 128565.4369 | H28: =SUM('Engine M+V'!S119:U119)+SUM('Engine M+V'!S284:U284) -> 194572.7166 | I28: =SUM('Engine M+V'!S152:U152)+SUM('Engine M+V'!S317:U317) -> 100060.3967 | J28: 455479.5748
B29: 17 | C29: 102 | D29: 8.5 | E29: =SUM('Engine M+V'!S21:U21)+SUM('Engine M+V'!S186:U186) -> 2440.390497 | F29: =SUM('Engine M+V'!S54:U54)+SUM('Engine M+V'!S219:U219) -> 29782.9232 | G29: =SUM('Engine M+V'!S87:U87)+SUM('Engine M+V'!S252:U252) -> 128129.4627 | H29: =SUM('Engine M+V'!S120:U120)+SUM('Engine M+V'!S285:U285) -> 193097.677 | I29: =SUM('Engine M+V'!S153:U153)+SUM('Engine M+V'!S318:U318) -> 98321.11135 | J29: 451771.5648
B30: 18 | C30: 108 | D30: 9 | E30: =SUM('Engine M+V'!S22:U22)+SUM('Engine M+V'!S187:U187) -> 2437.407046 | F30: =SUM('Engine M+V'!S55:U55)+SUM('Engine M+V'!S220:U220) -> 29728.32411 | G30: =SUM('Engine M+V'!S88:U88)+SUM('Engine M+V'!S253:U253) -> 127695.1685 | H30: =SUM('Engine M+V'!S121:U121)+SUM('Engine M+V'!S286:U286) -> 191634.5706 | I30: =SUM('Engine M+V'!S154:U154)+SUM('Engine M+V'!S319:U319) -> 96613.19779 | J30: 448108.6681
B31: 19 | C31: 114 | D31: 9.5 | E31: =SUM('Engine M+V'!S23:U23)+SUM('Engine M+V'!S188:U188) -> 2434.428356 | F31: =SUM('Engine M+V'!S56:U56)+SUM('Engine M+V'!S221:U221) -> 29673.84837 | G31: =SUM('Engine M+V'!S89:U89)+SUM('Engine M+V'!S254:U254) -> 127262.5471 | H31: =SUM('Engine M+V'!S122:U122)+SUM('Engine M+V'!S287:U287) -> 190183.2953 | I31: =SUM('Engine M+V'!S155:U155)+SUM('Engine M+V'!S320:U320) -> 94936.07002 | J31: 444490.1891
B32: 20 | C32: 120 | D32: 10 | E32: =SUM('Engine M+V'!S24:U24)+SUM('Engine M+V'!S189:U189) -> 2431.223253 | F32: =SUM('Engine M+V'!S57:U57)+SUM('Engine M+V'!S222:U222) -> 29608.84925 | G32: =SUM('Engine M+V'!S90:U90)+SUM('Engine M+V'!S255:U255) -> 126721.5143 | H32: =SUM('Engine M+V'!S123:U123)+SUM('Engine M+V'!S288:U288) -> 188412.3912 | I32: =SUM('Engine M+V'!S156:U156)+SUM('Engine M+V'!S321:U321) -> 92920.78787 | J32: 440094.7659
B33: 21 | C33: 126 | D33: 10.5 | E33: =SUM('Engine M+V'!S25:U25)+SUM('Engine M+V'!S190:U190) -> 2427.792493 | F33: =SUM('Engine M+V'!S25:U25)+SUM('Engine M+V'!S190:U190) -> 2427.792493 | G33: =SUM('Engine M+V'!S58:U58)+SUM('Engine M+V'!S223:U223) -> 29533.37962 | H33: =SUM('Engine M+V'!S91:U91)+SUM('Engine M+V'!S256:U256) -> 126073.0559 | I33: =SUM('Engine M+V'!S124:U124)+SUM('Engine M+V'!S289:U289)+SUM('Engine M+V'!S157:U157)+SUM('Engine M+V'!S322:U322) -> 276910.7972 | J33: =SUM(E33:I33) -> 437372.8177
B34: 22 | C34: 132 | D34: 11 | E34: =SUM('Engine M+V'!S26:U26)+SUM('Engine M+V'!S191:U191) -> 2424.367999 | F34: =SUM('Engine M+V'!S26:U26)+SUM('Engine M+V'!S191:U191) -> 2424.367999 | G34: =SUM('Engine M+V'!S59:U59)+SUM('Engine M+V'!S224:U224) -> 29458.13859 | H34: =SUM('Engine M+V'!S92:U92)+SUM('Engine M+V'!S257:U257) -> 125428.2275 | I34: =SUM('Engine M+V'!S125:U125)+SUM('Engine M+V'!S290:U290)+SUM('Engine M+V'!S158:U158)+SUM('Engine M+V'!S323:U323) -> 272572.9094 | J34: 432308.0114
B35: 23 | C35: 138 | D35: 11.5 | E35: =SUM('Engine M+V'!S27:U27)+SUM('Engine M+V'!S192:U192) -> 2420.949755 | F35: =SUM('Engine M+V'!S27:U27)+SUM('Engine M+V'!S192:U192) -> 2420.949755 | G35: =SUM('Engine M+V'!S60:U60)+SUM('Engine M+V'!S225:U225) -> 29383.12537 | H35: =SUM('Engine M+V'!S93:U93)+SUM('Engine M+V'!S258:U258) -> 124787.007 | I35: =SUM('Engine M+V'!S126:U126)+SUM('Engine M+V'!S291:U291)+SUM('Engine M+V'!S159:U159)+SUM('Engine M+V'!S324:U324) -> 268317.6263 | J35: 427329.6582
B36: 24 | C36: 144 | D36: 12 | E36: =SUM('Engine M+V'!S28:U28)+SUM('Engine M+V'!S193:U193) -> 2417.53775 | F36: =SUM('Engine M+V'!S28:U28)+SUM('Engine M+V'!S193:U193) -> 2417.53775 | G36: =SUM('Engine M+V'!S61:U61)+SUM('Engine M+V'!S226:U226) -> 29308.33919 | H36: =SUM('Engine M+V'!S94:U94)+SUM('Engine M+V'!S259:U259) -> 124149.3729 | I36: =SUM('Engine M+V'!S127:U127)+SUM('Engine M+V'!S292:U292)+SUM('Engine M+V'!S160:U160)+SUM('Engine M+V'!S325:U325) -> 264143.1053 | J36: 422435.8929
B37: 25 | C37: 150 | D37: 12.5 | E37: =SUM('Engine M+V'!S29:U29)+SUM('Engine M+V'!S194:U194) -> 2414.131971 | F37: =SUM('Engine M+V'!S29:U29)+SUM('Engine M+V'!S194:U194) -> 2414.131971 | G37: =SUM('Engine M+V'!S62:U62)+SUM('Engine M+V'!S227:U227) -> 29233.77927 | H37: =SUM('Engine M+V'!S95:U95)+SUM('Engine M+V'!S260:U260) -> 123515.3034 | I37: =SUM('Engine M+V'!S128:U128)+SUM('Engine M+V'!S293:U293)+SUM('Engine M+V'!S161:U161)+SUM('Engine M+V'!S326:U326) -> 260047.5497 | J37: 417624.8963
B38: 26 | C38: 156 | D38: 13 | E38: =SUM('Engine M+V'!S30:U30)+SUM('Engine M+V'!S195:U195) -> 2410.732403 | F38: =SUM('Engine M+V'!S30:U30)+SUM('Engine M+V'!S195:U195) -> 2410.732403 | G38: =SUM('Engine M+V'!S63:U63)+SUM('Engine M+V'!S228:U228) -> 29159.44486 | H38: =SUM('Engine M+V'!S96:U96)+SUM('Engine M+V'!S261:U261) -> 122884.7772 | I38: =SUM('Engine M+V'!S129:U129)+SUM('Engine M+V'!S294:U294)+SUM('Engine M+V'!S162:U162)+SUM('Engine M+V'!S327:U327) -> 256029.2071 | J38: 412894.8939
B39: 27 | C39: 162 | D39: 13.5 | E39: =SUM('Engine M+V'!S31:U31)+SUM('Engine M+V'!S196:U196) -> 2407.339035 | F39: =SUM('Engine M+V'!S31:U31)+SUM('Engine M+V'!S196:U196) -> 2407.339035 | G39: =SUM('Engine M+V'!S64:U64)+SUM('Engine M+V'!S229:U229) -> 29085.33519 | H39: =SUM('Engine M+V'!S97:U97)+SUM('Engine M+V'!S262:U262) -> 122257.7729 | I39: =SUM('Engine M+V'!S130:U130)+SUM('Engine M+V'!S295:U295)+SUM('Engine M+V'!S163:U163)+SUM('Engine M+V'!S328:U328) -> 252086.3685 | J39: 408244.1546
B40: 28 | C40: 168 | D40: 14 | E40: =SUM('Engine M+V'!S32:U32)+SUM('Engine M+V'!S197:U197) -> 2403.951853 | F40: =SUM('Engine M+V'!S32:U32)+SUM('Engine M+V'!S197:U197) -> 2403.951853 | G40: =SUM('Engine M+V'!S65:U65)+SUM('Engine M+V'!S230:U230) -> 29011.44949 | H40: =SUM('Engine M+V'!S98:U98)+SUM('Engine M+V'!S263:U263) -> 121634.2693 | I40: =SUM('Engine M+V'!S131:U131)+SUM('Engine M+V'!S296:U296)+SUM('Engine M+V'!S164:U164)+SUM('Engine M+V'!S329:U329) -> 248217.3671 | J40: 403670.9896
B41: 29 | C41: 174 | D41: 14.5 | E41: =SUM('Engine M+V'!S33:U33)+SUM('Engine M+V'!S198:U198) -> 2400.570844 | F41: =SUM('Engine M+V'!S33:U33)+SUM('Engine M+V'!S198:U198) -> 2400.570844 | G41: =SUM('Engine M+V'!S66:U66)+SUM('Engine M+V'!S231:U231) -> 28937.787 | H41: =SUM('Engine M+V'!S99:U99)+SUM('Engine M+V'!S264:U264) -> 121014.2454 | I41: =SUM('Engine M+V'!S132:U132)+SUM('Engine M+V'!S297:U297)+SUM('Engine M+V'!S165:U165)+SUM('Engine M+V'!S330:U330) -> 244420.5772 | J41: 399173.7513
B42: 30 | C42: 180 | D42: 15 | E42: =SUM('Engine M+V'!S34:U34)+SUM('Engine M+V'!S199:U199) -> 2396.689037 | F42: =SUM('Engine M+V'!S34:U34)+SUM('Engine M+V'!S199:U199) -> 2396.689037 | G42: =SUM('Engine M+V'!S67:U67)+SUM('Engine M+V'!S232:U232) -> 28852.16579 | H42: =SUM('Engine M+V'!S100:U100)+SUM('Engine M+V'!S265:U265) -> 120248.9028 | I42: =SUM('Engine M+V'!S133:U133)+SUM('Engine M+V'!S298:U298)+SUM('Engine M+V'!S166:U166)+SUM('Engine M+V'!S331:U331) -> 239618.7917 | J42: 393513.2384
B44: Incremental difference in no of events per treatment period | Population | R44: Incremental difference in number of events per treatment period | Average patient
B46: Table 1a: Incremental difference in number of complication events | C46: Both sexes | R46: Table 1b: Incremental difference in number of complication events | S46: Average female patient | W46: Average male patient
C47: Period 1 | D47: Period 2 | E47: Insulin | F47: SU | G47: Total per complication | S47: Period 1 | T47: Period 2 | W47: Period 1 | X47: Period 2
C48: M+V | D48: M+V | S48: M+V | T48: M+V | U48: Insulin | V48: SU | Y48: Insulin | Z48: SU
B49: Stroke | C49: =IF($C$6="5 years",SUM('Health Outcome_Population'!X400:X410),IF($C$6="10 years",SUM('Health Outcome_Population'!X400:X420),SUM('Health Outcome_Population'!X400:X430)))*-1 -> 1011.08847 | D49: =IF($C$6="5 years",SUM('Health Outcome_Population'!AD400:AD410),IF($C$6="10 years",SUM('Health Outcome_Population'!AD400:AD420),SUM('Health Outcome_Population'!AD400:AD430)))*-1 -> 425.794965 | E49: =IF($C$6="5 years",SUM('Health Outcome_Population'!AJ400:AJ410),IF($C$6="10 years",SUM('Health Outcome_Population'!AJ400:AJ420),SUM('Health Outcome_Population'!AJ400:AJ430)))*-1 -> 178.8776098 | F49: =IF($C$6="5 years",SUM('Health Outcome_Population'!AP400:AP410),IF($C$6="10 years",SUM('Health Outcome_Population'!AP400:AP420),SUM('Health Outcome_Population'!AP400:AP430)))*-1 -> 268.3164148 | G49: =SUM($C$49:$F$49) -> 1884.077459 | R49: Stroke | S49: =IF($C$6="5 years",SUM('Health Outcome_Single Patient'!X4:X14),IF($C$6="10 years",SUM('Health Outcome_Single Patient'!X4:X24),SUM('Health Outcome_Single Patient'!X4:X34)))*-1 -> 0.002002263632 | T49: =IF($C$6="5 years",SUM('Health Outcome_Single Patient'!AD4:AD14),IF($C$6="10 years",SUM('Health Outcome_Single Patient'!AD4:AD24),SUM('Health Outcome_Single Patient'!AD4:AD34)))*-1 -> 0.0008433265522 | U49: =IF($C$6="5 years",SUM('Health Outcome_Single Patient'!AJ4:AJ14),IF($C$6="10 years",SUM('Health Outcome_Single Patient'!AJ4:AJ24),SUM('Health Outcome_Single Patient'!AJ4:AJ34)))*-1 -> 0.0003543139295 | V49: =IF($C$6="5 years",SUM('Health Outcome_Single Patient'!AP4:AP14),IF($C$6="10 years",SUM('Health Outcome_Single Patient'!AP4:AP24),SUM('Health Outcome_Single Patient'!AP4:AP34)))*-1 -> 0.0005314708943 | W49: =IF($C$6="5 years",SUM('Health Outcome_Single Patient'!X37:X47),IF($C$6="10 years",SUM('Health Outcome_Single Patient'!X37:X57),SUM('Health Outcome_Single Patient'!X37:X67)))*-1 -> 0.001950489846 | X49: =IF($C$6="5 years",SUM('Health Outcome_Single Patient'!AD37:AD47),IF($C$6="10 years",SUM('Health Outcome_Single Patient'!AD37:AD57),SUM('Health Outcome_Single Patient'!AD37:AD67)))*-1 -> 0.0008094353634 | Y49: =IF($C$6="5 years",SUM('Health Outcome_Single Patient'!AJ37:AJ47),IF($C$6="10 years",SUM('Health Outcome_Single Patient'!AJ37:AJ57),SUM('Health Outcome_Single Patient'!AJ37:AJ67)))*-1 -> 0.0003363259456 | Z49: =IF($C$6="5 years",SUM('Health Outcome_Single Patient'!AP37:AP47),IF($C$6="10 years",SUM('Health Outcome_Single Patient'!AP37:AP57),SUM('Health Outcome_Single Patient'!AP37:AP67)))*-1 -> 0.0005044889185
B50: MI | C50: =IF($C$6="5 years",SUM('Health Outcome_Population'!Y400:Y410),IF($C$6="10 years",SUM('Health Outcome_Population'!Y400:Y420),SUM('Health Outcome_Population'!Y400:Y430)))*-1 -> -1145.203508 | D50: =IF($C$6="5 years",SUM('Health Outcome_Population'!AE400:AE410),IF($C$6="10 years",SUM('Health Outcome_Population'!AE400:AE420),SUM('Health Outcome_Population'!AE400:AE430)))*-1 -> 1772.721959 | E50: =IF($C$6="5 years",SUM('Health Outcome_Population'!AK400:AK410),IF($C$6="10 years",SUM('Health Outcome_Population'!AK400:AK420),SUM('Health Outcome_Population'!AK400:AK430)))*-1 -> 1119.149941 | F50: =IF($C$6="5 years",SUM('Health Outcome_Population'!AQ400:AQ410),IF($C$6="10 years",SUM('Health Outcome_Population'!AQ400:AQ420),SUM('Health Outcome_Population'!AQ400:AQ430)))*-1 -> 403.0318344 | G50: =SUM($C$50:$F$50) -> 2149.700227 | R50: MI | S50: =IF($C$6="5 years",SUM('Health Outcome_Single Patient'!Y4:Y14),IF($C$6="10 years",SUM('Health Outcome_Single Patient'!Y4:Y24),SUM('Health Outcome_Single Patient'!Y4:Y34)))*-1 -> -0.002268092389 | T50: =IF($C$6="5 years",SUM('Health Outcome_Single Patient'!AE4:AE14),IF($C$6="10 years",SUM('Health Outcome_Single Patient'!AE4:AE24),SUM('Health Outcome_Single Patient'!AE4:AE34)))*-1 -> 0.003511179302 | U50: =IF($C$6="5 years",SUM('Health Outcome_Single Patient'!AK4:AK14),IF($C$6="10 years",SUM('Health Outcome_Single Patient'!AK4:AK24),SUM('Health Outcome_Single Patient'!AK4:AK34)))*-1 -> 0.002216769409 | V50: =IF($C$6="5 years",SUM('Health Outcome_Single Patient'!AQ4:AQ14),IF($C$6="10 years",SUM('Health Outcome_Single Patient'!AQ4:AQ24),SUM('Health Outcome_Single Patient'!AQ4:AQ34)))*-1 -> 0.0007983100462 | W50: =IF($C$6="5 years",SUM('Health Outcome_Single Patient'!Y37:Y47),IF($C$6="10 years",SUM('Health Outcome_Single Patient'!Y37:Y57),SUM('Health Outcome_Single Patient'!Y37:Y67)))*-1 -> -0.002175256894 | X50: =IF($C$6="5 years",SUM('Health Outcome_Single Patient'!AE37:AE47),IF($C$6="10 years",SUM('Health Outcome_Single Patient'!AE37:AE57),SUM('Health Outcome_Single Patient'!AE37:AE67)))*-1 -> 0.003362008611 | Y50: =IF($C$6="5 years",SUM('Health Outcome_Single Patient'!AK37:AK47),IF($C$6="10 years",SUM('Health Outcome_Single Patient'!AK37:AK57),SUM('Health Outcome_Single Patient'!AK37:AK67)))*-1 -> 0.002104227369 | Z50: =IF($C$6="5 years",SUM('Health Outcome_Single Patient'!AQ37:AQ47),IF($C$6="10 years",SUM('Health Outcome_Single Patient'!AQ37:AQ57),SUM('Health Outcome_Single Patient'!AQ37:AQ67)))*-1 -> 0.000757781049
B51: HF | C51: =IF($C$6="5 years",SUM('Health Outcome_Population'!Z400:Z410),IF($C$6="10 years",SUM('Health Outcome_Population'!Z400:Z420),SUM('Health Outcome_Population'!Z400:Z430)))*-1 -> -4946.982883 | D51: =IF($C$6="5 years",SUM('Health Outcome_Population'!AF400:AF410),IF($C$6="10 years",SUM('Health Outcome_Population'!AF400:AF420),SUM('Health Outcome_Population'!AF400:AF430)))*-1 -> 1411.841521 | E51: =IF($C$6="5 years",SUM('Health Outcome_Population'!AL400:AL410),IF($C$6="10 years",SUM('Health Outcome_Population'!AL400:AL420),SUM('Health Outcome_Population'!AL400:AL430)))*-1 -> 1897.867624 | F51: =IF($C$6="5 years",SUM('Health Outcome_Population'!AR400:AR410),IF($C$6="10 years",SUM('Health Outcome_Population'!AR400:AR420),SUM('Health Outcome_Population'!AR400:AR430)))*-1 -> 2423.041821 | G51: =SUM($C$51:$F$51) -> 785.7680823 | R51: HF | S51: =IF($C$6="5 years",SUM('Health Outcome_Single Patient'!Z4:Z14),IF($C$6="10 years",SUM('Health Outcome_Single Patient'!Z4:Z24),SUM('Health Outcome_Single Patient'!Z4:Z34)))*-1 -> -0.009797004844 | T51: =IF($C$6="5 years",SUM('Health Outcome_Single Patient'!AF4:AF14),IF($C$6="10 years",SUM('Health Outcome_Single Patient'!AF4:AF24),SUM('Health Outcome_Single Patient'!AF4:AF34)))*-1 -> 0.002796393818 | U51: =IF($C$6="5 years",SUM('Health Outcome_Single Patient'!AL4:AL14),IF($C$6="10 years",SUM('Health Outcome_Single Patient'!AL4:AL24),SUM('Health Outcome_Single Patient'!AL4:AL34)))*-1 -> 0.003759223617 | V51: =IF($C$6="5 years",SUM('Health Outcome_Single Patient'!AR4:AR14),IF($C$6="10 years",SUM('Health Outcome_Single Patient'!AR4:AR24),SUM('Health Outcome_Single Patient'!AR4:AR34)))*-1 -> 0.004799468585 | W51: =IF($C$6="5 years",SUM('Health Outcome_Single Patient'!Z37:Z47),IF($C$6="10 years",SUM('Health Outcome_Single Patient'!Z37:Z57),SUM('Health Outcome_Single Patient'!Z37:Z67)))*-1 -> -0.009476814105 | X51: =IF($C$6="5 years",SUM('Health Outcome_Single Patient'!AF37:AF47),IF($C$6="10 years",SUM('Health Outcome_Single Patient'!AF37:AF57),SUM('Health Outcome_Single Patient'!AF37:AF67)))*-1 -> 0.002677590429 | Y51: =IF($C$6="5 years",SUM('Health Outcome_Single Patient'!AL37:AL47),IF($C$6="10 years",SUM('Health Outcome_Single Patient'!AL37:AL57),SUM('Health Outcome_Single Patient'!AL37:AL67)))*-1 -> 0.003568373503 | Z51: =IF($C$6="5 years",SUM('Health Outcome_Single Patient'!AR37:AR47),IF($C$6="10 years",SUM('Health Outcome_Single Patient'!AR37:AR57),SUM('Health Outcome_Single Patient'!AR37:AR67)))*-1 -> 0.004555806803
B52: Neuropathy | C52: =IF($C$6="5 years",SUM('Health Outcome_Population'!AA400:AA410),IF($C$6="10 years",SUM('Health Outcome_Population'!AA400:AA420),SUM('Health Outcome_Population'!AA400:AA430)))*-1 -> -6573.178903 | D52: =IF($C$6="5 years",SUM('Health Outcome_Population'!AG400:AG410),IF($C$6="10 years",SUM('Health Outcome_Population'!AG400:AG420),SUM('Health Outcome_Population'!AG400:AG430)))*-1 -> 2945.335242 | E52: =IF($C$6="5 years",SUM('Health Outcome_Population'!AM400:AM410),IF($C$6="10 years",SUM('Health Outcome_Population'!AM400:AM420),SUM('Health Outcome_Population'!AM400:AM430)))*-1 -> 6210.231865 | F52: =IF($C$6="5 years",SUM('Health Outcome_Population'!AS400:AS410),IF($C$6="10 years",SUM('Health Outcome_Population'!AS400:AS420),SUM('Health Outcome_Population'!AS400:AS430)))*-1 -> 4825.701486 | G52: =SUM($C$52:$F$52) -> 7408.089691 | R52: Neuropathy | S52: =IF($C$6="5 years",SUM('Health Outcome_Single Patient'!AA4:AA14),IF($C$6="10 years",SUM('Health Outcome_Single Patient'!AA4:AA24),SUM('Health Outcome_Single Patient'!AA4:AA34)))*-1 -> -0.01301777519 | T52: =IF($C$6="5 years",SUM('Health Outcome_Single Patient'!AG4:AG14),IF($C$6="10 years",SUM('Health Outcome_Single Patient'!AG4:AG24),SUM('Health Outcome_Single Patient'!AG4:AG34)))*-1 -> 0.005833536072 | U52: =IF($C$6="5 years",SUM('Health Outcome_Single Patient'!AM4:AM14),IF($C$6="10 years",SUM('Health Outcome_Single Patient'!AM4:AM24),SUM('Health Outcome_Single Patient'!AM4:AM34)))*-1 -> 0.01230098981 | V52: =IF($C$6="5 years",SUM('Health Outcome_Single Patient'!AS4:AS14),IF($C$6="10 years",SUM('Health Outcome_Single Patient'!AS4:AS24),SUM('Health Outcome_Single Patient'!AS4:AS34)))*-1 -> 0.009558564975 | W52: =IF($C$6="5 years",SUM('Health Outcome_Single Patient'!AA37:AA47),IF($C$6="10 years",SUM('Health Outcome_Single Patient'!AA37:AA57),SUM('Health Outcome_Single Patient'!AA37:AA67)))*-1 -> -0.01255646792 | X52: =IF($C$6="5 years",SUM('Health Outcome_Single Patient'!AG37:AG47),IF($C$6="10 years",SUM('Health Outcome_Single Patient'!AG37:AG57),SUM('Health Outcome_Single Patient'!AG37:AG67)))*-1 -> 0.005597613836 | Y52: =IF($C$6="5 years",SUM('Health Outcome_Single Patient'!AM37:AM47),IF($C$6="10 years",SUM('Health Outcome_Single Patient'!AM37:AM57),SUM('Health Outcome_Single Patient'!AM37:AM67)))*-1 -> 0.01167648711 | Z52: =IF($C$6="5 years",SUM('Health Outcome_Single Patient'!AS37:AS47),IF($C$6="10 years",SUM('Health Outcome_Single Patient'!AS37:AS57),SUM('Health Outcome_Single Patient'!AS37:AS67)))*-1 -> 0.009073291046
B53: Nephropathy | C53: =IF($C$6="5 years",SUM('Health Outcome_Population'!AB400:AB410),IF($C$6="10 years",SUM('Health Outcome_Population'!AB400:AB420),SUM('Health Outcome_Population'!AB400:AB430)))*-1 -> 293.9807921 | D53: =IF($C$6="5 years",SUM('Health Outcome_Population'!AH400:AH410),IF($C$6="10 years",SUM('Health Outcome_Population'!AH400:AH420),SUM('Health Outcome_Population'!AH400:AH430)))*-1 -> -843.0417261 | E53: =IF($C$6="5 years",SUM('Health Outcome_Population'!AN400:AN410),IF($C$6="10 years",SUM('Health Outcome_Population'!AN400:AN420),SUM('Health Outcome_Population'!AN400:AN430)))*-1 -> 660.7684365 | F53: =IF($C$6="5 years",SUM('Health Outcome_Population'!AT400:AT410),IF($C$6="10 years",SUM('Health Outcome_Population'!AT400:AT420),SUM('Health Outcome_Population'!AT400:AT430)))*-1 -> 1127.89008 | G53: =SUM($C$53:$F$53) -> 1239.597582 | R53: Nephropathy | S53: =IF($C$6="5 years",SUM('Health Outcome_Single Patient'!AB4:AB14),IF($C$6="10 years",SUM('Health Outcome_Single Patient'!AB4:AB24),SUM('Health Outcome_Single Patient'!AB4:AB34)))*-1 -> 0.0005820917894 | T53: =IF($C$6="5 years",SUM('Health Outcome_Single Patient'!AH4:AH14),IF($C$6="10 years",SUM('Health Outcome_Single Patient'!AH4:AH24),SUM('Health Outcome_Single Patient'!AH4:AH34)))*-1 -> -0.001669888542 | U53: =IF($C$6="5 years",SUM('Health Outcome_Single Patient'!AN4:AN14),IF($C$6="10 years",SUM('Health Outcome_Single Patient'!AN4:AN24),SUM('Health Outcome_Single Patient'!AN4:AN34)))*-1 -> 0.001308824852 | V53: =IF($C$6="5 years",SUM('Health Outcome_Single Patient'!AT4:AT14),IF($C$6="10 years",SUM('Health Outcome_Single Patient'!AT4:AT24),SUM('Health Outcome_Single Patient'!AT4:AT34)))*-1 -> 0.002234081541 | W53: =IF($C$6="5 years",SUM('Health Outcome_Single Patient'!AB37:AB47),IF($C$6="10 years",SUM('Health Outcome_Single Patient'!AB37:AB57),SUM('Health Outcome_Single Patient'!AB37:AB67)))*-1 -> 0.0005784141811 | X53: =IF($C$6="5 years",SUM('Health Outcome_Single Patient'!AH37:AH47),IF($C$6="10 years",SUM('Health Outcome_Single Patient'!AH37:AH57),SUM('Health Outcome_Single Patient'!AH37:AH67)))*-1 -> -0.00159311585 | Y53: =IF($C$6="5 years",SUM('Health Outcome_Single Patient'!AN37:AN47),IF($C$6="10 years",SUM('Health Outcome_Single Patient'!AN37:AN57),SUM('Health Outcome_Single Patient'!AN37:AN67)))*-1 -> 0.001242377788 | Z53: =IF($C$6="5 years",SUM('Health Outcome_Single Patient'!AT37:AT47),IF($C$6="10 years",SUM('Health Outcome_Single Patient'!AT37:AT57),SUM('Health Outcome_Single Patient'!AT37:AT67)))*-1 -> 0.00212066059
B54: Gross Total for both genders | C54: =SUM(C49:F53) -> 13467.23304 | G54: =SUM(G49:G53) -> 13467.23304 | R54: Total (for males and females separately) | S54: =SUM(S49:V53) -> 0.02667804786 | W54: =SUM(W49:Z53) -> 0.02511371761
R55: Gross total for both genders | S55: =S54+W54 -> 0.05179176547
B57: Incremental difference in working hours | Population | R57: Incremental difference in working hours | Average patient
B60: Table 2a: Incremental difference in working hours - Absenteeism | C60: Female | G60: Male | R60: Table 2b: Incremental difference in working hours - Absenteeism | S60: Female | W60: Male
C61: Period 1 | D61: Period 2 | E61: Insulin | F61: SU | G61: Period 1 | H61: Period 2 | I61: Insulin | J61: SU | S61: Period 1 | T61: Period 2 | U61: Insulin | V61: SU | W61: Period 1 | X61: Period 2 | Y61: Insulin | Z61: SU
B62: Stroke | C62: =IF($C$6="5 years",SUM('Societal Impact_Population'!H334:H344),IF($C$6="10 years",SUM('Societal Impact_Population'!H334:H354),SUM('Societal Impact_Population'!H334:H364)))*-1 -> 24533.47839 | D62: =IF($C$6="5 years",SUM('Societal Impact_Population'!N334:N344),IF($C$6="10 years",SUM('Societal Impact_Population'!N334:N354),SUM('Societal Impact_Population'!N334:N364)))*-1 -> 10349.08396 | E62: =IF($C$6="5 years",SUM('Societal Impact_Population'!T334:T344),IF($C$6="10 years",SUM('Societal Impact_Population'!T334:T354),SUM('Societal Impact_Population'!T334:T364)))*-1 -> 4297.78287 | F62: =IF($C$6="5 years",SUM('Societal Impact_Population'!Z334:Z344),IF($C$6="10 years",SUM('Societal Impact_Population'!Z334:Z354),SUM('Societal Impact_Population'!Z334:Z364)))*-1 -> 6446.674305 | G62: =IF($C$6="5 years",SUM('Societal Impact_Population'!H367:H377),IF($C$6="10 years",SUM('Societal Impact_Population'!H367:H387),SUM('Societal Impact_Population'!H367:H397)))*-1 -> 44999.07833 | H62: =IF($C$6="5 years",SUM('Societal Impact_Population'!N367:N377),IF($C$6="10 years",SUM('Societal Impact_Population'!N367:N387),SUM('Societal Impact_Population'!N367:N397)))*-1 -> 18788.72357 | I62: =IF($C$6="5 years",SUM('Societal Impact_Population'!T367:T377),IF($C$6="10 years",SUM('Societal Impact_Population'!T367:T387),SUM('Societal Impact_Population'!T367:T397)))*-1 -> 7766.612576 | J62: =IF($C$6="5 years",SUM('Societal Impact_Population'!Z367:Z377),IF($C$6="10 years",SUM('Societal Impact_Population'!Z367:Z387),SUM('Societal Impact_Population'!Z367:Z397)))*-1 -> 11649.91886 | R62: Stroke | S62: =IF($C$6="5 years",SUM('Societal Impact_Single Patient'!H4:H14),IF($C$6="10 years",SUM('Societal Impact_Single Patient'!H4:H24),SUM('Societal Impact_Single Patient'!H4:H34)))*-1 -> 0.08590348812 | T62: =IF($C$6="5 years",SUM('Societal Impact_Single Patient'!N4:N14),IF($C$6="10 years",SUM('Societal Impact_Single Patient'!N4:N24),SUM('Societal Impact_Single Patient'!N4:N34)))*-1 -> 0.02977872851 | U62: =IF($C$6="5 years",SUM('Societal Impact_Single Patient'!T4:T14),IF($C$6="10 years",SUM('Societal Impact_Single Patient'!T4:T24),SUM('Societal Impact_Single Patient'!T4:T34)))*-1 -> 0.009205161316 | V62: =IF($C$6="5 years",SUM('Societal Impact_Single Patient'!Z4:Z14),IF($C$6="10 years",SUM('Societal Impact_Single Patient'!Z4:Z24),SUM('Societal Impact_Single Patient'!Z4:Z34)))*-1 -> 0.01380774197 | W62: =IF($C$6="5 years",SUM('Societal Impact_Single Patient'!H37:H47),IF($C$6="10 years",SUM('Societal Impact_Single Patient'!H37:H57),SUM('Societal Impact_Single Patient'!H37:H67)))*-1 -> 0.194831674 | X62: =IF($C$6="5 years",SUM('Societal Impact_Single Patient'!N37:N47),IF($C$6="10 years",SUM('Societal Impact_Single Patient'!N37:N57),SUM('Societal Impact_Single Patient'!N37:N67)))*-1 -> 0.06952667984 | Y62: =IF($C$6="5 years",SUM('Societal Impact_Single Patient'!T37:T47),IF($C$6="10 years",SUM('Societal Impact_Single Patient'!T37:T57),SUM('Societal Impact_Single Patient'!T37:T67)))*-1 -> 0.02298076985 | Z62: =IF($C$6="5 years",SUM('Societal Impact_Single Patient'!Z37:Z47),IF($C$6="10 years",SUM('Societal Impact_Single Patient'!Z37:Z57),SUM('Societal Impact_Single Patient'!Z37:Z67)))*-1 -> 0.03447115478
B63: MI | C63: =IF($C$6="5 years",SUM('Societal Impact_Population'!I334:I344),IF($C$6="10 years",SUM('Societal Impact_Population'!I334:I354),SUM('Societal Impact_Population'!I334:I364)))*-1 -> -9758.774954 | D63: =IF($C$6="5 years",SUM('Societal Impact_Population'!O334:O344),IF($C$6="10 years",SUM('Societal Impact_Population'!O334:O354),SUM('Societal Impact_Population'!O334:O364)))*-1 -> 15114.94293 | E63: =IF($C$6="5 years",SUM('Societal Impact_Population'!U334:U344),IF($C$6="10 years",SUM('Societal Impact_Population'!U334:U354),SUM('Societal Impact_Population'!U334:U364)))*-1 -> 9449.906853 | F63: =IF($C$6="5 years",SUM('Societal Impact_Population'!AA334:AA344),IF($C$6="10 years",SUM('Societal Impact_Population'!AA334:AA354),SUM('Societal Impact_Population'!AA334:AA364)))*-1 -> 3403.130495 | G63: =IF($C$6="5 years",SUM('Societal Impact_Population'!I367:I377),IF($C$6="10 years",SUM('Societal Impact_Population'!I367:I387),SUM('Societal Impact_Population'!I367:I397)))*-1 -> -17718.29689 | H63: =IF($C$6="5 years",SUM('Societal Impact_Population'!O367:O377),IF($C$6="10 years",SUM('Societal Impact_Population'!O367:O387),SUM('Societal Impact_Population'!O367:O397)))*-1 -> 27409.24922 | I63: =IF($C$6="5 years",SUM('Societal Impact_Population'!U367:U377),IF($C$6="10 years",SUM('Societal Impact_Population'!U367:U387),SUM('Societal Impact_Population'!U367:U397)))*-1 -> 17077.1227 | J63: =IF($C$6="5 years",SUM('Societal Impact_Population'!AA367:AA377),IF($C$6="10 years",SUM('Societal Impact_Population'!AA367:AA387),SUM('Societal Impact_Population'!AA367:AA397)))*-1 -> 6149.867711 | R63: MI | S63: =IF($C$6="5 years",SUM('Societal Impact_Single Patient'!I4:I14),IF($C$6="10 years",SUM('Societal Impact_Single Patient'!I4:I24),SUM('Societal Impact_Single Patient'!I4:I34)))*-1 -> -0.02722466658 | T63: =IF($C$6="5 years",SUM('Societal Impact_Single Patient'!O4:O14),IF($C$6="10 years",SUM('Societal Impact_Single Patient'!O4:O24),SUM('Societal Impact_Single Patient'!O4:O34)))*-1 -> 0.04134059437 | U63: =IF($C$6="5 years",SUM('Societal Impact_Single Patient'!U4:U14),IF($C$6="10 years",SUM('Societal Impact_Single Patient'!U4:U24),SUM('Societal Impact_Single Patient'!U4:U34)))*-1 -> 0.02024018421 | V63: =IF($C$6="5 years",SUM('Societal Impact_Single Patient'!AA4:AA14),IF($C$6="10 years",SUM('Societal Impact_Single Patient'!AA4:AA24),SUM('Societal Impact_Single Patient'!AA4:AA34)))*-1 -> 0.007288959479 | W63: =IF($C$6="5 years",SUM('Societal Impact_Single Patient'!I37:I47),IF($C$6="10 years",SUM('Societal Impact_Single Patient'!I37:I57),SUM('Societal Impact_Single Patient'!I37:I67)))*-1 -> -0.06401753144 | X63: =IF($C$6="5 years",SUM('Societal Impact_Single Patient'!O37:O47),IF($C$6="10 years",SUM('Societal Impact_Single Patient'!O37:O57),SUM('Societal Impact_Single Patient'!O37:O67)))*-1 -> 0.09750030552 | Y63: =IF($C$6="5 years",SUM('Societal Impact_Single Patient'!U37:U47),IF($C$6="10 years",SUM('Societal Impact_Single Patient'!U37:U57),SUM('Societal Impact_Single Patient'!U37:U67)))*-1 -> 0.05052980597 | Z63: =IF($C$6="5 years",SUM('Societal Impact_Single Patient'!AA37:AA47),IF($C$6="10 years",SUM('Societal Impact_Single Patient'!AA37:AA57),SUM('Societal Impact_Single Patient'!AA37:AA67)))*-1 -> 0.01819695435
B64: HF | C64: =IF($C$6="5 years",SUM('Societal Impact_Population'!J334:J344),IF($C$6="10 years",SUM('Societal Impact_Population'!J334:J354),SUM('Societal Impact_Population'!J334:J364)))*-1 -> -71443.56336 | D64: =IF($C$6="5 years",SUM('Societal Impact_Population'!P334:P344),IF($C$6="10 years",SUM('Societal Impact_Population'!P334:P354),SUM('Societal Impact_Population'!P334:P364)))*-1 -> 20393.57049 | E64: =IF($C$6="5 years",SUM('Societal Impact_Population'!V334:V344),IF($C$6="10 years",SUM('Societal Impact_Population'!V334:V354),SUM('Societal Impact_Population'!V334:V364)))*-1 -> 27148.54755 | F64: =IF($C$6="5 years",SUM('Societal Impact_Population'!AB334:AB344),IF($C$6="10 years",SUM('Societal Impact_Population'!AB334:AB354),SUM('Societal Impact_Population'!AB334:AB364)))*-1 -> 34661.04024 | G64: =IF($C$6="5 years",SUM('Societal Impact_Population'!J367:J377),IF($C$6="10 years",SUM('Societal Impact_Population'!J367:J387),SUM('Societal Impact_Population'!J367:J397)))*-1 -> -130440.8975 | H64: =IF($C$6="5 years",SUM('Societal Impact_Population'!P367:P377),IF($C$6="10 years",SUM('Societal Impact_Population'!P367:P387),SUM('Societal Impact_Population'!P367:P397)))*-1 -> 36981.44668 | I64: =IF($C$6="5 years",SUM('Societal Impact_Population'!V367:V377),IF($C$6="10 years",SUM('Societal Impact_Population'!V367:V387),SUM('Societal Impact_Population'!V367:V397)))*-1 -> 49060.70343 | J64: =IF($C$6="5 years",SUM('Societal Impact_Population'!AB367:AB377),IF($C$6="10 years",SUM('Societal Impact_Population'!AB367:AB387),SUM('Societal Impact_Population'!AB367:AB397)))*-1 -> 62636.68481 | R64: HF | S64: =IF($C$6="5 years",SUM('Societal Impact_Single Patient'!J4:J14),IF($C$6="10 years",SUM('Societal Impact_Single Patient'!J4:J24),SUM('Societal Impact_Single Patient'!J4:J34)))*-1 -> -0.22714596 | T64: =IF($C$6="5 years",SUM('Societal Impact_Single Patient'!P4:P14),IF($C$6="10 years",SUM('Societal Impact_Single Patient'!P4:P24),SUM('Societal Impact_Single Patient'!P4:P34)))*-1 -> 0.05577806871 | U64: =IF($C$6="5 years",SUM('Societal Impact_Single Patient'!V4:V14),IF($C$6="10 years",SUM('Societal Impact_Single Patient'!V4:V24),SUM('Societal Impact_Single Patient'!V4:V34)))*-1 -> 0.05814783278 | V64: =IF($C$6="5 years",SUM('Societal Impact_Single Patient'!AB4:AB14),IF($C$6="10 years",SUM('Societal Impact_Single Patient'!AB4:AB24),SUM('Societal Impact_Single Patient'!AB4:AB34)))*-1 -> 0.07423838673 | W64: =IF($C$6="5 years",SUM('Societal Impact_Single Patient'!J37:J47),IF($C$6="10 years",SUM('Societal Impact_Single Patient'!J37:J57),SUM('Societal Impact_Single Patient'!J37:J67)))*-1 -> -0.5226988236 | X64: =IF($C$6="5 years",SUM('Societal Impact_Single Patient'!P37:P47),IF($C$6="10 years",SUM('Societal Impact_Single Patient'!P37:P57),SUM('Societal Impact_Single Patient'!P37:P67)))*-1 -> 0.1315505697 | Y64: =IF($C$6="5 years",SUM('Societal Impact_Single Patient'!V37:V47),IF($C$6="10 years",SUM('Societal Impact_Single Patient'!V37:V57),SUM('Societal Impact_Single Patient'!V37:V67)))*-1 -> 0.1451665991 | Z64: =IF($C$6="5 years",SUM('Societal Impact_Single Patient'!AB37:AB47),IF($C$6="10 years",SUM('Societal Impact_Single Patient'!AB37:AB57),SUM('Societal Impact_Single Patient'!AB37:AB67)))*-1 -> 0.185336815
B65: Neuropathy | C65: =IF($C$6="5 years",SUM('Societal Impact_Population'!K334:K344),IF($C$6="10 years",SUM('Societal Impact_Population'!K334:K354),SUM('Societal Impact_Population'!K334:K364)))*-1 -> -413184.1808 | D65: =IF($C$6="5 years",SUM('Societal Impact_Population'!Q334:Q344),IF($C$6="10 years",SUM('Societal Impact_Population'!Q334:Q354),SUM('Societal Impact_Population'!Q334:Q364)))*-1 -> 185499.5962 | E65: =IF($C$6="5 years",SUM('Societal Impact_Population'!W334:W344),IF($C$6="10 years",SUM('Societal Impact_Population'!W334:W354),SUM('Societal Impact_Population'!W334:W364)))*-1 -> 386714.3867 | F65: =IF($C$6="5 years",SUM('Societal Impact_Population'!AC334:AC344),IF($C$6="10 years",SUM('Societal Impact_Population'!AC334:AC354),SUM('Societal Impact_Population'!AC334:AC364)))*-1 -> 300498.9557 | G65: =IF($C$6="5 years",SUM('Societal Impact_Population'!K367:K377),IF($C$6="10 years",SUM('Societal Impact_Population'!K367:K387),SUM('Societal Impact_Population'!K367:K397)))*-1 -> -752985.6932 | H65: =IF($C$6="5 years",SUM('Societal Impact_Population'!Q367:Q377),IF($C$6="10 years",SUM('Societal Impact_Population'!Q367:Q387),SUM('Societal Impact_Population'!Q367:Q397)))*-1 -> 336730.4915 | I65: =IF($C$6="5 years",SUM('Societal Impact_Population'!W367:W377),IF($C$6="10 years",SUM('Societal Impact_Population'!W367:W387),SUM('Societal Impact_Population'!W367:W397)))*-1 -> 698839.59 | J65: =IF($C$6="5 years",SUM('Societal Impact_Population'!AC367:AC377),IF($C$6="10 years",SUM('Societal Impact_Population'!AC367:AC387),SUM('Societal Impact_Population'!AC367:AC397)))*-1 -> 543037.8963 | R65: Neuropathy | S65: =IF($C$6="5 years",SUM('Societal Impact_Single Patient'!K4:K14),IF($C$6="10 years",SUM('Societal Impact_Single Patient'!K4:K24),SUM('Societal Impact_Single Patient'!K4:K34)))*-1 -> -1.259931813 | T65: =IF($C$6="5 years",SUM('Societal Impact_Single Patient'!Q4:Q14),IF($C$6="10 years",SUM('Societal Impact_Single Patient'!Q4:Q24),SUM('Societal Impact_Single Patient'!Q4:Q34)))*-1 -> 0.5308360439 | U65: =IF($C$6="5 years",SUM('Societal Impact_Single Patient'!W4:W14),IF($C$6="10 years",SUM('Societal Impact_Single Patient'!W4:W24),SUM('Societal Impact_Single Patient'!W4:W34)))*-1 -> 0.8282801668 | V65: =IF($C$6="5 years",SUM('Societal Impact_Single Patient'!AC4:AC14),IF($C$6="10 years",SUM('Societal Impact_Single Patient'!AC4:AC24),SUM('Societal Impact_Single Patient'!AC4:AC34)))*-1 -> 0.6436205472 | W65: =IF($C$6="5 years",SUM('Societal Impact_Single Patient'!K37:K47),IF($C$6="10 years",SUM('Societal Impact_Single Patient'!K37:K57),SUM('Societal Impact_Single Patient'!K37:K67)))*-1 -> -2.918654522 | X65: =IF($C$6="5 years",SUM('Societal Impact_Single Patient'!Q37:Q47),IF($C$6="10 years",SUM('Societal Impact_Single Patient'!Q37:Q57),SUM('Societal Impact_Single Patient'!Q37:Q67)))*-1 -> 1.240715067 | Y65: =IF($C$6="5 years",SUM('Societal Impact_Single Patient'!W37:W47),IF($C$6="10 years",SUM('Societal Impact_Single Patient'!W37:W57),SUM('Societal Impact_Single Patient'!W37:W67)))*-1 -> 2.067809051 | Z65: =IF($C$6="5 years",SUM('Societal Impact_Single Patient'!AC37:AC47),IF($C$6="10 years",SUM('Societal Impact_Single Patient'!AC37:AC57),SUM('Societal Impact_Single Patient'!AC37:AC67)))*-1 -> 1.606804613
B66: Nephropathy | C66: =IF($C$6="5 years",SUM('Societal Impact_Population'!L334:L344),IF($C$6="10 years",SUM('Societal Impact_Population'!L334:L354),SUM('Societal Impact_Population'!L334:L364)))*-1 -> 12791.26349 | D66: =IF($C$6="5 years",SUM('Societal Impact_Population'!R334:R344),IF($C$6="10 years",SUM('Societal Impact_Population'!R334:R354),SUM('Societal Impact_Population'!R334:R364)))*-1 -> -36541.98869 | E66: =IF($C$6="5 years",SUM('Societal Impact_Population'!X334:X344),IF($C$6="10 years",SUM('Societal Impact_Population'!X334:X354),SUM('Societal Impact_Population'!X334:X364)))*-1 -> 28442.20934 | F66: =IF($C$6="5 years",SUM('Societal Impact_Population'!AD334:AD344),IF($C$6="10 years",SUM('Societal Impact_Population'!AD334:AD354),SUM('Societal Impact_Population'!AD334:AD364)))*-1 -> 48549.05892 | G66: =IF($C$6="5 years",SUM('Societal Impact_Population'!L367:L377),IF($C$6="10 years",SUM('Societal Impact_Population'!L367:L387),SUM('Societal Impact_Population'!L367:L397)))*-1 -> 23768.84915 | H66: =IF($C$6="5 years",SUM('Societal Impact_Population'!R367:R377),IF($C$6="10 years",SUM('Societal Impact_Population'!R367:R387),SUM('Societal Impact_Population'!R367:R397)))*-1 -> -66147.15112 | I66: =IF($C$6="5 years",SUM('Societal Impact_Population'!X367:X377),IF($C$6="10 years",SUM('Societal Impact_Population'!X367:X387),SUM('Societal Impact_Population'!X367:X397)))*-1 -> 51398.50648 | J66: =IF($C$6="5 years",SUM('Societal Impact_Population'!AD367:AD377),IF($C$6="10 years",SUM('Societal Impact_Population'!AD367:AD387),SUM('Societal Impact_Population'!AD367:AD397)))*-1 -> 87734.01144 | R66: Nephropathy | S66: =IF($C$6="5 years",SUM('Societal Impact_Single Patient'!L4:L14),IF($C$6="10 years",SUM('Societal Impact_Single Patient'!L4:L24),SUM('Societal Impact_Single Patient'!L4:L34)))*-1 -> 0.05656749262 | T66: =IF($C$6="5 years",SUM('Societal Impact_Single Patient'!R4:R14),IF($C$6="10 years",SUM('Societal Impact_Single Patient'!R4:R24),SUM('Societal Impact_Single Patient'!R4:R34)))*-1 -> -0.09200461253 | U66: =IF($C$6="5 years",SUM('Societal Impact_Single Patient'!X4:X14),IF($C$6="10 years",SUM('Societal Impact_Single Patient'!X4:X24),SUM('Societal Impact_Single Patient'!X4:X34)))*-1 -> 0.06091864876 | V66: =IF($C$6="5 years",SUM('Societal Impact_Single Patient'!AD4:AD14),IF($C$6="10 years",SUM('Societal Impact_Single Patient'!AD4:AD24),SUM('Societal Impact_Single Patient'!AD4:AD34)))*-1 -> 0.1039842944 | W66: =IF($C$6="5 years",SUM('Societal Impact_Single Patient'!L37:L47),IF($C$6="10 years",SUM('Societal Impact_Single Patient'!L37:L57),SUM('Societal Impact_Single Patient'!L37:L67)))*-1 -> 0.1244449831 | X66: =IF($C$6="5 years",SUM('Societal Impact_Single Patient'!R37:R47),IF($C$6="10 years",SUM('Societal Impact_Single Patient'!R37:R57),SUM('Societal Impact_Single Patient'!R37:R67)))*-1 -> -0.220791783 | Y66: =IF($C$6="5 years",SUM('Societal Impact_Single Patient'!X37:X47),IF($C$6="10 years",SUM('Societal Impact_Single Patient'!X37:X57),SUM('Societal Impact_Single Patient'!X37:X67)))*-1 -> 0.1520839667 | Z66: =IF($C$6="5 years",SUM('Societal Impact_Single Patient'!AD37:AD47),IF($C$6="10 years",SUM('Societal Impact_Single Patient'!AD37:AD57),SUM('Societal Impact_Single Patient'!AD37:AD67)))*-1 -> 0.2595977468
B67: Total per period | C67: =SUM(C62:C66) -> -457061.7772 | D67: =SUM(D62:D66) -> 194815.2049 | E67: 456052.8333 | F67: 393558.8597 | G67: -832376.9601 | H67: 353762.7599 | I67: 824142.5352 | J67: 711208.3791 | R67: Total per period | S67: =SUM(S62:S66) -> -1.371831459 | T67: =SUM(T62:T66) -> 0.565728823 | U67: =SUM(U62:U66) -> 0.9767919939 | V67: =SUM(V62:V66) -> 0.8429399298 | W67: =SUM(W62:W66) -> -3.18609422 | X67: =SUM(X62:X66) -> 1.318500839 | Y67: =SUM(Y62:Y66) -> 2.438570193 | Z67: =SUM(Z62:Z66) -> 2.104407284
B68: Total (for females and males separately) | C68: =SUM(C62:F66) -> 587365.1206 | G68: =SUM(G62:J66) -> 1056736.714 | R68: Total (for males and females separately) | S68: =SUM(S62:V66) -> 1.013629288 | W68: =SUM(W62:Z66) -> 2.675384096
B69: Gross Total for both genders | C69: =C68+G68 -> 1644101.835 | R69: Gross total for both genders | S69: =S68+W68 -> 3.689013384
B71: Table 3a: Incremental difference in working hours - Presenteeism | C71: Female | G71: Male | R71: Table 3b: Incremental difference in working hours - Presenteeism | S71: Female | W71: Male
C72: Period 1 | D72: Period 2 | E72: Insulin | F72: SU | G72: Period 1 | H72: Period 2 | I72: Insulin | J72: SU | S72: Period 1 | T72: Period 2 | U72: Insulin | V72: SU | W72: Period 1 | X72: Period 2 | Y72: Insulin | Z72: SU
B73: Stroke | C73: =IF($C$6="5 years",SUM('Societal Impact_Population'!AF334:AF344),IF($C$6="10 years",SUM('Societal Impact_Population'!AF334:AF354),SUM('Societal Impact_Population'!AF334:AF364)))*-1 -> 2960.937047 | D73: =IF($C$6="5 years",SUM('Societal Impact_Population'!AL334:AL344),IF($C$6="10 years",SUM('Societal Impact_Population'!AL334:AL354),SUM('Societal Impact_Population'!AL334:AL364)))*-1 -> 1249.027374 | E73: =IF($C$6="5 years",SUM('Societal Impact_Population'!AR334:AR344),IF($C$6="10 years",SUM('Societal Impact_Population'!AR334:AR354),SUM('Societal Impact_Population'!AR334:AR364)))*-1 -> 518.6979326 | F73: =IF($C$6="5 years",SUM('Societal Impact_Population'!AX334:AX344),IF($C$6="10 years",SUM('Societal Impact_Population'!AX334:AX354),SUM('Societal Impact_Population'!AX334:AX364)))*-1 -> 778.0468989 | G73: =IF($C$6="5 years",SUM('Societal Impact_Population'!AF367:AF377),IF($C$6="10 years",SUM('Societal Impact_Population'!AF367:AF387),SUM('Societal Impact_Population'!AF367:AF397)))*-1 -> 5430.923246 | H73: =IF($C$6="5 years",SUM('Societal Impact_Population'!AL367:AL377),IF($C$6="10 years",SUM('Societal Impact_Population'!AL367:AL387),SUM('Societal Impact_Population'!AL367:AL397)))*-1 -> 2267.604569 | I73: =IF($C$6="5 years",SUM('Societal Impact_Population'!AR367:AR377),IF($C$6="10 years",SUM('Societal Impact_Population'!AR367:AR387),SUM('Societal Impact_Population'!AR367:AR397)))*-1 -> 937.3497936 | J73: =IF($C$6="5 years",SUM('Societal Impact_Population'!AX367:AX377),IF($C$6="10 years",SUM('Societal Impact_Population'!AX367:AX387),SUM('Societal Impact_Population'!AX367:AX397)))*-1 -> 1406.02469 | R73: Stroke | S73: =IF($C$6="5 years",SUM('Societal Impact_Single Patient'!AF4:AF14),IF($C$6="10 years",SUM('Societal Impact_Single Patient'!AF4:AF24),SUM('Societal Impact_Single Patient'!AF4:AF34)))*-1 -> 0.01036766236 | T73: =IF($C$6="5 years",SUM('Societal Impact_Single Patient'!AL4:AL14),IF($C$6="10 years",SUM('Societal Impact_Single Patient'!AL4:AL24),SUM('Societal Impact_Single Patient'!AL4:AL34)))*-1 -> 0.003593984475 | U73: =IF($C$6="5 years",SUM('Societal Impact_Single Patient'!AR4:AR14),IF($C$6="10 years",SUM('Societal Impact_Single Patient'!AR4:AR24),SUM('Societal Impact_Single Patient'!AR4:AR34)))*-1 -> 0.001110967745 | V73: =IF($C$6="5 years",SUM('Societal Impact_Single Patient'!AX4:AX14),IF($C$6="10 years",SUM('Societal Impact_Single Patient'!AX4:AX24),SUM('Societal Impact_Single Patient'!AX4:AX34)))*-1 -> 0.001666451618 | W73: =IF($C$6="5 years",SUM('Societal Impact_Single Patient'!AF37:AF47),IF($C$6="10 years",SUM('Societal Impact_Single Patient'!AF37:AF57),SUM('Societal Impact_Single Patient'!AF37:AF67)))*-1 -> 0.02351416755 | X73: =IF($C$6="5 years",SUM('Societal Impact_Single Patient'!AL37:AL47),IF($C$6="10 years",SUM('Societal Impact_Single Patient'!AL37:AL57),SUM('Societal Impact_Single Patient'!AL37:AL67)))*-1 -> 0.008391151015 | Y73: =IF($C$6="5 years",SUM('Societal Impact_Single Patient'!AR37:AR47),IF($C$6="10 years",SUM('Societal Impact_Single Patient'!AR37:AR57),SUM('Societal Impact_Single Patient'!AR37:AR67)))*-1 -> 0.002773541189 | Z73: =IF($C$6="5 years",SUM('Societal Impact_Single Patient'!AX37:AX47),IF($C$6="10 years",SUM('Societal Impact_Single Patient'!AX37:AX57),SUM('Societal Impact_Single Patient'!AX37:AX67)))*-1 -> 0.004160311784
B74: MI | C74: =IF($C$6="5 years",SUM('Societal Impact_Population'!AG334:AG344),IF($C$6="10 years",SUM('Societal Impact_Population'!AG334:AG354),SUM('Societal Impact_Population'!AG334:AG364)))*-1 -> -30181.22945 | D74: =IF($C$6="5 years",SUM('Societal Impact_Population'!AM334:AM344),IF($C$6="10 years",SUM('Societal Impact_Population'!AM334:AM354),SUM('Societal Impact_Population'!AM334:AM364)))*-1 -> 46746.39622 | E74: =IF($C$6="5 years",SUM('Societal Impact_Population'!AS334:AS344),IF($C$6="10 years",SUM('Societal Impact_Population'!AS334:AS354),SUM('Societal Impact_Population'!AS334:AS364)))*-1 -> 29225.98465 | F74: =IF($C$6="5 years",SUM('Societal Impact_Population'!AY334:AY344),IF($C$6="10 years",SUM('Societal Impact_Population'!AY334:AY354),SUM('Societal Impact_Population'!AY334:AY364)))*-1 -> 10524.9545 | G74: =IF($C$6="5 years",SUM('Societal Impact_Population'!AG367:AG377),IF($C$6="10 years",SUM('Societal Impact_Population'!AG367:AG387),SUM('Societal Impact_Population'!AG367:AG397)))*-1 -> -54797.86001 | H74: =IF($C$6="5 years",SUM('Societal Impact_Population'!AM367:AM377),IF($C$6="10 years",SUM('Societal Impact_Population'!AM367:AM387),SUM('Societal Impact_Population'!AM367:AM397)))*-1 -> 84769.33259 | I74: =IF($C$6="5 years",SUM('Societal Impact_Population'!AS367:AS377),IF($C$6="10 years",SUM('Societal Impact_Population'!AS367:AS387),SUM('Societal Impact_Population'!AS367:AS397)))*-1 -> 52814.88311 | J74: =IF($C$6="5 years",SUM('Societal Impact_Population'!AY367:AY377),IF($C$6="10 years",SUM('Societal Impact_Population'!AY367:AY387),SUM('Societal Impact_Population'!AY367:AY397)))*-1 -> 19019.86359 | R74: MI | S74: =IF($C$6="5 years",SUM('Societal Impact_Single Patient'!AG4:AG14),IF($C$6="10 years",SUM('Societal Impact_Single Patient'!AG4:AG24),SUM('Societal Impact_Single Patient'!AG4:AG34)))*-1 -> -0.08419846882 | T74: =IF($C$6="5 years",SUM('Societal Impact_Single Patient'!AM4:AM14),IF($C$6="10 years",SUM('Societal Impact_Single Patient'!AM4:AM24),SUM('Societal Impact_Single Patient'!AM4:AM34)))*-1 -> 0.1278551837 | U74: =IF($C$6="5 years",SUM('Societal Impact_Single Patient'!AS4:AS14),IF($C$6="10 years",SUM('Societal Impact_Single Patient'!AS4:AS24),SUM('Societal Impact_Single Patient'!AS4:AS34)))*-1 -> 0.06259736972 | V74: =IF($C$6="5 years",SUM('Societal Impact_Single Patient'!AY4:AY14),IF($C$6="10 years",SUM('Societal Impact_Single Patient'!AY4:AY24),SUM('Societal Impact_Single Patient'!AY4:AY34)))*-1 -> 0.02254276377 | W74: =IF($C$6="5 years",SUM('Societal Impact_Single Patient'!AG37:AG47),IF($C$6="10 years",SUM('Societal Impact_Single Patient'!AG37:AG57),SUM('Societal Impact_Single Patient'!AG37:AG67)))*-1 -> -0.1979887654 | X74: =IF($C$6="5 years",SUM('Societal Impact_Single Patient'!AM37:AM47),IF($C$6="10 years",SUM('Societal Impact_Single Patient'!AM37:AM57),SUM('Societal Impact_Single Patient'!AM37:AM67)))*-1 -> 0.301541854 | Y74: =IF($C$6="5 years",SUM('Societal Impact_Single Patient'!AS37:AS47),IF($C$6="10 years",SUM('Societal Impact_Single Patient'!AS37:AS57),SUM('Societal Impact_Single Patient'!AS37:AS67)))*-1 -> 0.156274909 | Z74: =IF($C$6="5 years",SUM('Societal Impact_Single Patient'!AY37:AY47),IF($C$6="10 years",SUM('Societal Impact_Single Patient'!AY37:AY57),SUM('Societal Impact_Single Patient'!AY37:AY67)))*-1 -> 0.05627821699
B75: HF | C75: =IF($C$6="5 years",SUM('Societal Impact_Population'!AH334:AH344),IF($C$6="10 years",SUM('Societal Impact_Population'!AH334:AH354),SUM('Societal Impact_Population'!AH334:AH364)))*-1 -> -181559.0048 | D75: =IF($C$6="5 years",SUM('Societal Impact_Population'!AN334:AN344),IF($C$6="10 years",SUM('Societal Impact_Population'!AN334:AN354),SUM('Societal Impact_Population'!AN334:AN364)))*-1 -> 51826.03146 | E75: =IF($C$6="5 years",SUM('Societal Impact_Population'!AT334:AT344),IF($C$6="10 years",SUM('Societal Impact_Population'!AT334:AT354),SUM('Societal Impact_Population'!AT334:AT364)))*-1 -> 68992.40523 | F75: =IF($C$6="5 years",SUM('Societal Impact_Population'!AZ334:AZ344),IF($C$6="10 years",SUM('Societal Impact_Population'!AZ334:AZ354),SUM('Societal Impact_Population'!AZ334:AZ364)))*-1 -> 88083.84795 | G75: =IF($C$6="5 years",SUM('Societal Impact_Population'!AH367:AH377),IF($C$6="10 years",SUM('Societal Impact_Population'!AH367:AH387),SUM('Societal Impact_Population'!AH367:AH397)))*-1 -> -331488.4984 | H75: =IF($C$6="5 years",SUM('Societal Impact_Population'!AN367:AN377),IF($C$6="10 years",SUM('Societal Impact_Population'!AN367:AN387),SUM('Societal Impact_Population'!AN367:AN397)))*-1 -> 93980.67985 | I75: =IF($C$6="5 years",SUM('Societal Impact_Population'!AT367:AT377),IF($C$6="10 years",SUM('Societal Impact_Population'!AT367:AT387),SUM('Societal Impact_Population'!AT367:AT397)))*-1 -> 124677.6066 | J75: =IF($C$6="5 years",SUM('Societal Impact_Population'!AZ367:AZ377),IF($C$6="10 years",SUM('Societal Impact_Population'!AZ367:AZ387),SUM('Societal Impact_Population'!AZ367:AZ397)))*-1 -> 159178.1488 | R75: HF | S75: =IF($C$6="5 years",SUM('Societal Impact_Single Patient'!AH4:AH14),IF($C$6="10 years",SUM('Societal Impact_Single Patient'!AH4:AH24),SUM('Societal Impact_Single Patient'!AH4:AH34)))*-1 -> -0.5772443662 | T75: =IF($C$6="5 years",SUM('Societal Impact_Single Patient'!AN4:AN14),IF($C$6="10 years",SUM('Societal Impact_Single Patient'!AN4:AN24),SUM('Societal Impact_Single Patient'!AN4:AN34)))*-1 -> 0.1417483979 | U75: =IF($C$6="5 years",SUM('Societal Impact_Single Patient'!AT4:AT14),IF($C$6="10 years",SUM('Societal Impact_Single Patient'!AT4:AT24),SUM('Societal Impact_Single Patient'!AT4:AT34)))*-1 -> 0.147770662 | V75: =IF($C$6="5 years",SUM('Societal Impact_Single Patient'!AZ4:AZ14),IF($C$6="10 years",SUM('Societal Impact_Single Patient'!AZ4:AZ24),SUM('Societal Impact_Single Patient'!AZ4:AZ34)))*-1 -> 0.188661469 | W75: =IF($C$6="5 years",SUM('Societal Impact_Single Patient'!AH37:AH47),IF($C$6="10 years",SUM('Societal Impact_Single Patient'!AH37:AH57),SUM('Societal Impact_Single Patient'!AH37:AH67)))*-1 -> -1.328330696 | X75: =IF($C$6="5 years",SUM('Societal Impact_Single Patient'!AN37:AN47),IF($C$6="10 years",SUM('Societal Impact_Single Patient'!AN37:AN57),SUM('Societal Impact_Single Patient'!AN37:AN67)))*-1 -> 0.3343085002 | Y75: =IF($C$6="5 years",SUM('Societal Impact_Single Patient'!AT37:AT47),IF($C$6="10 years",SUM('Societal Impact_Single Patient'!AT37:AT57),SUM('Societal Impact_Single Patient'!AT37:AT67)))*-1 -> 0.3689108161 | Z75: =IF($C$6="5 years",SUM('Societal Impact_Single Patient'!AZ37:AZ47),IF($C$6="10 years",SUM('Societal Impact_Single Patient'!AZ37:AZ57),SUM('Societal Impact_Single Patient'!AZ37:AZ67)))*-1 -> 0.4709950918
B76: Neuropathy | C76: =IF($C$6="5 years",SUM('Societal Impact_Population'!AI334:AI344),IF($C$6="10 years",SUM('Societal Impact_Population'!AI334:AI354),SUM('Societal Impact_Population'!AI334:AI364)))*-1 -> -700019.3682 | D76: =IF($C$6="5 years",SUM('Societal Impact_Population'!AO334:AO344),IF($C$6="10 years",SUM('Societal Impact_Population'!AO334:AO354),SUM('Societal Impact_Population'!AO334:AO364)))*-1 -> 314274.6411 | E76: =IF($C$6="5 years",SUM('Societal Impact_Population'!AU334:AU344),IF($C$6="10 years",SUM('Societal Impact_Population'!AU334:AU354),SUM('Societal Impact_Population'!AU334:AU364)))*-1 -> 655174.0683 | F76: =IF($C$6="5 years",SUM('Societal Impact_Population'!BA334:BA344),IF($C$6="10 years",SUM('Societal Impact_Population'!BA334:BA354),SUM('Societal Impact_Population'!BA334:BA364)))*-1 -> 509107.3157 | G76: =IF($C$6="5 years",SUM('Societal Impact_Population'!AI367:AI377),IF($C$6="10 years",SUM('Societal Impact_Population'!AI367:AI387),SUM('Societal Impact_Population'!AI367:AI397)))*-1 -> -1275713.335 | H76: =IF($C$6="5 years",SUM('Societal Impact_Population'!AO367:AO377),IF($C$6="10 years",SUM('Societal Impact_Population'!AO367:AO387),SUM('Societal Impact_Population'!AO367:AO397)))*-1 -> 570491.0229 | I76: =IF($C$6="5 years",SUM('Societal Impact_Population'!AU367:AU377),IF($C$6="10 years",SUM('Societal Impact_Population'!AU367:AU387),SUM('Societal Impact_Population'!AU367:AU397)))*-1 -> 1183978.649 | J76: =IF($C$6="5 years",SUM('Societal Impact_Population'!BA367:BA377),IF($C$6="10 years",SUM('Societal Impact_Population'!BA367:BA387),SUM('Societal Impact_Population'!BA367:BA397)))*-1 -> 920018.3908 | R76: Neuropathy | S76: =IF($C$6="5 years",SUM('Societal Impact_Single Patient'!AI4:AI14),IF($C$6="10 years",SUM('Societal Impact_Single Patient'!AI4:AI24),SUM('Societal Impact_Single Patient'!AI4:AI34)))*-1 -> -2.134584799 | T76: =IF($C$6="5 years",SUM('Societal Impact_Single Patient'!AO4:AO14),IF($C$6="10 years",SUM('Societal Impact_Single Patient'!AO4:AO24),SUM('Societal Impact_Single Patient'!AO4:AO34)))*-1 -> 0.8993459319 | U76: =IF($C$6="5 years",SUM('Societal Impact_Single Patient'!AU4:AU14),IF($C$6="10 years",SUM('Societal Impact_Single Patient'!AU4:AU24),SUM('Societal Impact_Single Patient'!AU4:AU34)))*-1 -> 1.40327773 | V76: =IF($C$6="5 years",SUM('Societal Impact_Single Patient'!BA4:BA14),IF($C$6="10 years",SUM('Societal Impact_Single Patient'!BA4:BA24),SUM('Societal Impact_Single Patient'!BA4:BA34)))*-1 -> 1.090426182 | W76: =IF($C$6="5 years",SUM('Societal Impact_Single Patient'!AI37:AI47),IF($C$6="10 years",SUM('Societal Impact_Single Patient'!AI37:AI57),SUM('Societal Impact_Single Patient'!AI37:AI67)))*-1 -> -4.94480377 | X76: =IF($C$6="5 years",SUM('Societal Impact_Single Patient'!AO37:AO47),IF($C$6="10 years",SUM('Societal Impact_Single Patient'!AO37:AO57),SUM('Societal Impact_Single Patient'!AO37:AO67)))*-1 -> 2.102027661 | Y76: =IF($C$6="5 years",SUM('Societal Impact_Single Patient'!AU37:AU47),IF($C$6="10 years",SUM('Societal Impact_Single Patient'!AU37:AU57),SUM('Societal Impact_Single Patient'!AU37:AU67)))*-1 -> 3.503295753 | Z76: =IF($C$6="5 years",SUM('Societal Impact_Single Patient'!BA37:BA47),IF($C$6="10 years",SUM('Societal Impact_Single Patient'!BA37:BA57),SUM('Societal Impact_Single Patient'!BA37:BA67)))*-1 -> 2.722258989
B77: Nephropathy | C77: =IF($C$6="5 years",SUM('Societal Impact_Population'!AJ334:AJ344),IF($C$6="10 years",SUM('Societal Impact_Population'!AJ334:AJ354),SUM('Societal Impact_Population'!AJ334:AJ364)))*-1 -> 16898.68033 | D77: =IF($C$6="5 years",SUM('Societal Impact_Population'!AP334:AP344),IF($C$6="10 years",SUM('Societal Impact_Population'!AP334:AP354),SUM('Societal Impact_Population'!AP334:AP364)))*-1 -> -48276.02728 | E77: =IF($C$6="5 years",SUM('Societal Impact_Population'!AV334:AV344),IF($C$6="10 years",SUM('Societal Impact_Population'!AV334:AV354),SUM('Societal Impact_Population'!AV334:AV364)))*-1 -> 37575.31878 | F77: =IF($C$6="5 years",SUM('Societal Impact_Population'!BB334:BB344),IF($C$6="10 years",SUM('Societal Impact_Population'!BB334:BB354),SUM('Societal Impact_Population'!BB334:BB364)))*-1 -> 64138.70117 | G77: =IF($C$6="5 years",SUM('Societal Impact_Population'!AJ367:AJ377),IF($C$6="10 years",SUM('Societal Impact_Population'!AJ367:AJ387),SUM('Societal Impact_Population'!AJ367:AJ397)))*-1 -> 31401.29071 | H77: =IF($C$6="5 years",SUM('Societal Impact_Population'!AP367:AP377),IF($C$6="10 years",SUM('Societal Impact_Population'!AP367:AP387),SUM('Societal Impact_Population'!AP367:AP397)))*-1 -> -87387.73631 | I77: =IF($C$6="5 years",SUM('Societal Impact_Population'!AV367:AV377),IF($C$6="10 years",SUM('Societal Impact_Population'!AV367:AV387),SUM('Societal Impact_Population'!AV367:AV397)))*-1 -> 67903.13801 | J77: =IF($C$6="5 years",SUM('Societal Impact_Population'!BB367:BB377),IF($C$6="10 years",SUM('Societal Impact_Population'!BB367:BB387),SUM('Societal Impact_Population'!BB367:BB397)))*-1 -> 115906.3773 | R77: Nephropathy | S77: =IF($C$6="5 years",SUM('Societal Impact_Single Patient'!AJ4:AJ14),IF($C$6="10 years",SUM('Societal Impact_Single Patient'!AJ4:AJ24),SUM('Societal Impact_Single Patient'!AJ4:AJ34)))*-1 -> 0.07473194303 | T77: =IF($C$6="5 years",SUM('Societal Impact_Single Patient'!AP4:AP14),IF($C$6="10 years",SUM('Societal Impact_Single Patient'!AP4:AP24),SUM('Societal Impact_Single Patient'!AP4:AP34)))*-1 -> -0.1215483159 | U77: =IF($C$6="5 years",SUM('Societal Impact_Single Patient'!AV4:AV14),IF($C$6="10 years",SUM('Societal Impact_Single Patient'!AV4:AV24),SUM('Societal Impact_Single Patient'!AV4:AV34)))*-1 -> 0.08048030376 | V77: =IF($C$6="5 years",SUM('Societal Impact_Single Patient'!BB4:BB14),IF($C$6="10 years",SUM('Societal Impact_Single Patient'!BB4:BB24),SUM('Societal Impact_Single Patient'!BB4:BB34)))*-1 -> 0.1373748067 | W77: =IF($C$6="5 years",SUM('Societal Impact_Single Patient'!AJ37:AJ47),IF($C$6="10 years",SUM('Societal Impact_Single Patient'!AJ37:AJ57),SUM('Societal Impact_Single Patient'!AJ37:AJ67)))*-1 -> 0.1644056499 | X77: =IF($C$6="5 years",SUM('Societal Impact_Single Patient'!AP37:AP47),IF($C$6="10 years",SUM('Societal Impact_Single Patient'!AP37:AP57),SUM('Societal Impact_Single Patient'!AP37:AP67)))*-1 -> -0.2916904777 | Y77: =IF($C$6="5 years",SUM('Societal Impact_Single Patient'!AV37:AV47),IF($C$6="10 years",SUM('Societal Impact_Single Patient'!AV37:AV57),SUM('Societal Impact_Single Patient'!AV37:AV67)))*-1 -> 0.2009198182 | Z77: =IF($C$6="5 years",SUM('Societal Impact_Single Patient'!BB37:BB47),IF($C$6="10 years",SUM('Societal Impact_Single Patient'!BB37:BB57),SUM('Societal Impact_Single Patient'!BB37:BB67)))*-1 -> 0.3429574678
B78: Total per period | C78: =SUM(C73:C77) -> -891899.9851 | D78: =SUM(D73:D77) -> 365820.0689 | E78: =SUM(E73:E77) -> 791486.4749 | F78: =SUM(F73:F77) -> 672632.8662 | G78: =SUM(G73:G77) -> -1625167.48 | H78: =SUM(H73:H77) -> 664120.9036 | I78: =SUM(I73:I77) -> 1430311.627 | J78: =SUM(J73:J77) -> 1215528.805 | R78: Total per period | S78: =SUM(S73:S77) -> -2.710928029 | T78: =SUM(T73:T77) -> 1.050995182 | U78: =SUM(U73:U77) -> 1.695237033 | V78: =SUM(V73:V77) -> 1.440671673 | W78: =SUM(W73:W77) -> -6.283203413 | X78: =SUM(X73:X77) -> 2.454578689 | Y78: =SUM(Y73:Y77) -> 4.232174837 | Z78: =SUM(Z73:Z77) -> 3.596650077
B79: Total (for females and males separately) | C79: =SUM(C73:F77) -> 938039.4248 | G79: =SUM(G73:J77) -> 1684793.856 | R79: Total (for males and females separately) | S79: =SUM(S73:V77) -> 1.475975859 | W79: =SUM(W73:Z77) -> 4.00020019
B80: Gross Total for both genders | C80: =C79+G79 -> 2622833.281 | R80: Gross total for both genders | S80: =S79+W79 -> 5.476176049
B82: Table 4a: Incremental difference in working hours - No return to work | C82: Female | G82: Male | R82: Table 4b: Incremental difference in working hours - No return to work | S82: Female | W82: Male
C83: Period 1 | D83: Period 2 | E83: Insulin | F83: SU | G83: Period 1 | H83: Period 2 | I83: Insulin | J83: SU | S83: Period 1 | T83: Period 2 | U83: Insulin | V83: SU | W83: Period 1 | X83: Period 2 | Y83: Insulin | Z83: SU
B84: Stroke | C84: =IF($C$6="5 years",SUM('Societal Impact_Population'!BE334:BE344),IF($C$6="10 years",SUM('Societal Impact_Population'!BE334:BE354),SUM('Societal Impact_Population'!BE334:BE364)))*-1 -> 137697.4253 | D84: =IF($C$6="5 years",SUM('Societal Impact_Population'!BK334:BK344),IF($C$6="10 years",SUM('Societal Impact_Population'!BK334:BK354),SUM('Societal Impact_Population'!BK334:BK364)))*-1 -> 58919.39604 | E84: =IF($C$6="5 years",SUM('Societal Impact_Population'!BQ334:BQ344),IF($C$6="10 years",SUM('Societal Impact_Population'!BQ334:BQ354),SUM('Societal Impact_Population'!BQ334:BQ364)))*-1 -> 25373.3078 | F84: =IF($C$6="5 years",SUM('Societal Impact_Population'!BW334:BW344),IF($C$6="10 years",SUM('Societal Impact_Population'!BW334:BW354),SUM('Societal Impact_Population'!BW334:BW364)))*-1 -> 38059.96169 | G84: =IF($C$6="5 years",SUM('Societal Impact_Population'!BE367:BE377),IF($C$6="10 years",SUM('Societal Impact_Population'!BE367:BE387),SUM('Societal Impact_Population'!BE367:BE397)))*-1 -> 250809.9099 | H84: =IF($C$6="5 years",SUM('Societal Impact_Population'!BK367:BK377),IF($C$6="10 years",SUM('Societal Impact_Population'!BK367:BK387),SUM('Societal Impact_Population'!BK367:BK397)))*-1 -> 104722.1019 | I84: =IF($C$6="5 years",SUM('Societal Impact_Population'!BQ367:BQ377),IF($C$6="10 years",SUM('Societal Impact_Population'!BQ367:BQ387),SUM('Societal Impact_Population'!BQ367:BQ397)))*-1 -> 43288.51774 | J84: =IF($C$6="5 years",SUM('Societal Impact_Population'!BW367:BW377),IF($C$6="10 years",SUM('Societal Impact_Population'!BW367:BW387),SUM('Societal Impact_Population'!BW367:BW397)))*-1 -> 64932.77661 | R84: Stroke | S84: =IF($C$6="5 years",SUM('Societal Impact_Single Patient'!BE4:BE14),IF($C$6="10 years",SUM('Societal Impact_Single Patient'!BE4:BE24),SUM('Societal Impact_Single Patient'!BE4:BE34)))*-1 -> 0.4787974981 | T84: =IF($C$6="5 years",SUM('Societal Impact_Single Patient'!BK4:BK14),IF($C$6="10 years",SUM('Societal Impact_Single Patient'!BK4:BK24),SUM('Societal Impact_Single Patient'!BK4:BK34)))*-1 -> 0.1659767376 | U84: =IF($C$6="5 years",SUM('Societal Impact_Single Patient'!BQ4:BQ14),IF($C$6="10 years",SUM('Societal Impact_Single Patient'!BQ4:BQ24),SUM('Societal Impact_Single Patient'!BQ4:BQ34)))*-1 -> 0.05130651041 | V84: =IF($C$6="5 years",SUM('Societal Impact_Single Patient'!BW4:BW14),IF($C$6="10 years",SUM('Societal Impact_Single Patient'!BW4:BW24),SUM('Societal Impact_Single Patient'!BW4:BW34)))*-1 -> 0.07695976561 | W84: =IF($C$6="5 years",SUM('Societal Impact_Single Patient'!BE37:BE47),IF($C$6="10 years",SUM('Societal Impact_Single Patient'!BE37:BE57),SUM('Societal Impact_Single Patient'!BE37:BE67)))*-1 -> 0.4688323883 | X84: =IF($C$6="5 years",SUM('Societal Impact_Single Patient'!BK37:BK47),IF($C$6="10 years",SUM('Societal Impact_Single Patient'!BK37:BK57),SUM('Societal Impact_Single Patient'!BK37:BK67)))*-1 -> 0.160709322 | Y84: =IF($C$6="5 years",SUM('Societal Impact_Single Patient'!BQ37:BQ47),IF($C$6="10 years",SUM('Societal Impact_Single Patient'!BQ37:BQ57),SUM('Societal Impact_Single Patient'!BQ37:BQ67)))*-1 -> 0.04911857436 | Z84: =IF($C$6="5 years",SUM('Societal Impact_Single Patient'!BW37:BW47),IF($C$6="10 years",SUM('Societal Impact_Single Patient'!BW37:BW57),SUM('Societal Impact_Single Patient'!BW37:BW67)))*-1 -> 0.07367786153
B85: MI | C85: =IF($C$6="5 years",SUM('Societal Impact_Population'!BF334:BF344),IF($C$6="10 years",SUM('Societal Impact_Population'!BF334:BF354),SUM('Societal Impact_Population'!BF334:BF364)))*-1 -> -101653.5969 | D85: =IF($C$6="5 years",SUM('Societal Impact_Population'!BL334:BL344),IF($C$6="10 years",SUM('Societal Impact_Population'!BL334:BL354),SUM('Societal Impact_Population'!BL334:BL364)))*-1 -> 157558.6913 | E85: =IF($C$6="5 years",SUM('Societal Impact_Population'!BR334:BR344),IF($C$6="10 years",SUM('Societal Impact_Population'!BR334:BR354),SUM('Societal Impact_Population'!BR334:BR364)))*-1 -> 101485.5899 | F85: =IF($C$6="5 years",SUM('Societal Impact_Population'!BX334:BX344),IF($C$6="10 years",SUM('Societal Impact_Population'!BX334:BX354),SUM('Societal Impact_Population'!BX334:BX364)))*-1 -> 36547.31324 | G85: =IF($C$6="5 years",SUM('Societal Impact_Population'!BF367:BF377),IF($C$6="10 years",SUM('Societal Impact_Population'!BF367:BF387),SUM('Societal Impact_Population'!BF367:BF397)))*-1 -> -179641.7526 | H85: =IF($C$6="5 years",SUM('Societal Impact_Population'!BL367:BL377),IF($C$6="10 years",SUM('Societal Impact_Population'!BL367:BL387),SUM('Societal Impact_Population'!BL367:BL397)))*-1 -> 277896.098 | I85: =IF($C$6="5 years",SUM('Societal Impact_Population'!BR367:BR377),IF($C$6="10 years",SUM('Societal Impact_Population'!BR367:BR387),SUM('Societal Impact_Population'!BR367:BR397)))*-1 -> 173141.0344 | J85: =IF($C$6="5 years",SUM('Societal Impact_Population'!BX367:BX377),IF($C$6="10 years",SUM('Societal Impact_Population'!BX367:BX387),SUM('Societal Impact_Population'!BX367:BX397)))*-1 -> 62352.0997 | R85: MI | S85: =IF($C$6="5 years",SUM('Societal Impact_Single Patient'!BF4:BF14),IF($C$6="10 years",SUM('Societal Impact_Single Patient'!BF4:BF24),SUM('Societal Impact_Single Patient'!BF4:BF34)))*-1 -> -0.2760246569 | T85: =IF($C$6="5 years",SUM('Societal Impact_Single Patient'!BL4:BL14),IF($C$6="10 years",SUM('Societal Impact_Single Patient'!BL4:BL24),SUM('Societal Impact_Single Patient'!BL4:BL34)))*-1 -> 0.4191428146 | U85: =IF($C$6="5 years",SUM('Societal Impact_Single Patient'!BR4:BR14),IF($C$6="10 years",SUM('Societal Impact_Single Patient'!BR4:BR24),SUM('Societal Impact_Single Patient'!BR4:BR34)))*-1 -> 0.2052105904 | V85: =IF($C$6="5 years",SUM('Societal Impact_Single Patient'!BX4:BX14),IF($C$6="10 years",SUM('Societal Impact_Single Patient'!BX4:BX24),SUM('Societal Impact_Single Patient'!BX4:BX34)))*-1 -> 0.07390109016 | W85: =IF($C$6="5 years",SUM('Societal Impact_Single Patient'!BF37:BF47),IF($C$6="10 years",SUM('Societal Impact_Single Patient'!BF37:BF57),SUM('Societal Impact_Single Patient'!BF37:BF67)))*-1 -> -0.2671449271 | X85: =IF($C$6="5 years",SUM('Societal Impact_Single Patient'!BL37:BL47),IF($C$6="10 years",SUM('Societal Impact_Single Patient'!BL37:BL57),SUM('Societal Impact_Single Patient'!BL37:BL67)))*-1 -> 0.4050448849 | Y85: =IF($C$6="5 years",SUM('Societal Impact_Single Patient'!BR37:BR47),IF($C$6="10 years",SUM('Societal Impact_Single Patient'!BR37:BR57),SUM('Societal Impact_Single Patient'!BR37:BR67)))*-1 -> 0.1964595051 | Z85: =IF($C$6="5 years",SUM('Societal Impact_Single Patient'!BX37:BX47),IF($C$6="10 years",SUM('Societal Impact_Single Patient'!BX37:BX57),SUM('Societal Impact_Single Patient'!BX37:BX67)))*-1 -> 0.0707496215
B86: HF | C86: =IF($C$6="5 years",SUM('Societal Impact_Population'!BG334:BG344),IF($C$6="10 years",SUM('Societal Impact_Population'!BG334:BG354),SUM('Societal Impact_Population'!BG334:BG364)))*-1 -> -328309.4569 | D86: =IF($C$6="5 years",SUM('Societal Impact_Population'!BM334:BM344),IF($C$6="10 years",SUM('Societal Impact_Population'!BM334:BM354),SUM('Societal Impact_Population'!BM334:BM364)))*-1 -> 94813.88304 | E86: =IF($C$6="5 years",SUM('Societal Impact_Population'!BS334:BS344),IF($C$6="10 years",SUM('Societal Impact_Population'!BS334:BS354),SUM('Societal Impact_Population'!BS334:BS364)))*-1 -> 130036.7972 | F86: =IF($C$6="5 years",SUM('Societal Impact_Population'!BY334:BY344),IF($C$6="10 years",SUM('Societal Impact_Population'!BY334:BY354),SUM('Societal Impact_Population'!BY334:BY364)))*-1 -> 166020.324 | G86: =IF($C$6="5 years",SUM('Societal Impact_Population'!BG367:BG377),IF($C$6="10 years",SUM('Societal Impact_Population'!BG367:BG387),SUM('Societal Impact_Population'!BG367:BG397)))*-1 -> -589850.4284 | H86: =IF($C$6="5 years",SUM('Societal Impact_Population'!BM367:BM377),IF($C$6="10 years",SUM('Societal Impact_Population'!BM367:BM387),SUM('Societal Impact_Population'!BM367:BM397)))*-1 -> 167229.1634 | I86: =IF($C$6="5 years",SUM('Societal Impact_Population'!BS367:BS377),IF($C$6="10 years",SUM('Societal Impact_Population'!BS367:BS387),SUM('Societal Impact_Population'!BS367:BS397)))*-1 -> 221851.2559 | J86: =IF($C$6="5 years",SUM('Societal Impact_Population'!BY367:BY377),IF($C$6="10 years",SUM('Societal Impact_Population'!BY367:BY387),SUM('Societal Impact_Population'!BY367:BY397)))*-1 -> 283241.4992 | R86: HF | S86: =IF($C$6="5 years",SUM('Societal Impact_Single Patient'!BG4:BG14),IF($C$6="10 years",SUM('Societal Impact_Single Patient'!BG4:BG24),SUM('Societal Impact_Single Patient'!BG4:BG34)))*-1 -> -1.027148267 | T86: =IF($C$6="5 years",SUM('Societal Impact_Single Patient'!BM4:BM14),IF($C$6="10 years",SUM('Societal Impact_Single Patient'!BM4:BM24),SUM('Societal Impact_Single Patient'!BM4:BM34)))*-1 -> 0.2522270113 | U86: =IF($C$6="5 years",SUM('Societal Impact_Single Patient'!BS4:BS14),IF($C$6="10 years",SUM('Societal Impact_Single Patient'!BS4:BS24),SUM('Societal Impact_Single Patient'!BS4:BS34)))*-1 -> 0.2629430242 | V86: =IF($C$6="5 years",SUM('Societal Impact_Single Patient'!BY4:BY14),IF($C$6="10 years",SUM('Societal Impact_Single Patient'!BY4:BY24),SUM('Societal Impact_Single Patient'!BY4:BY34)))*-1 -> 0.3357041009 | W86: =IF($C$6="5 years",SUM('Societal Impact_Single Patient'!BG37:BG47),IF($C$6="10 years",SUM('Societal Impact_Single Patient'!BG37:BG57),SUM('Societal Impact_Single Patient'!BG37:BG67)))*-1 -> -1.001137889 | X86: =IF($C$6="5 years",SUM('Societal Impact_Single Patient'!BM37:BM47),IF($C$6="10 years",SUM('Societal Impact_Single Patient'!BM37:BM57),SUM('Societal Impact_Single Patient'!BM37:BM67)))*-1 -> 0.243743319 | Y86: =IF($C$6="5 years",SUM('Societal Impact_Single Patient'!BS37:BS47),IF($C$6="10 years",SUM('Societal Impact_Single Patient'!BS37:BS57),SUM('Societal Impact_Single Patient'!BS37:BS67)))*-1 -> 0.2517299731 | Z86: =IF($C$6="5 years",SUM('Societal Impact_Single Patient'!BY37:BY47),IF($C$6="10 years",SUM('Societal Impact_Single Patient'!BY37:BY57),SUM('Societal Impact_Single Patient'!BY37:BY67)))*-1 -> 0.3213881964
B87: Neuropathy | C87: =IF($C$6="5 years",SUM('Societal Impact_Population'!BH334:BH344),IF($C$6="10 years",SUM('Societal Impact_Population'!BH334:BH354),SUM('Societal Impact_Population'!BH334:BH364)))*-1 -> 0 | D87: =IF($C$6="5 years",SUM('Societal Impact_Population'!BN334:BN344),IF($C$6="10 years",SUM('Societal Impact_Population'!BN334:BN354),SUM('Societal Impact_Population'!BN334:BN364)))*-1 -> 0 | E87: =IF($C$6="5 years",SUM('Societal Impact_Population'!BT334:BT344),IF($C$6="10 years",SUM('Societal Impact_Population'!BT334:BT354),SUM('Societal Impact_Population'!BT334:BT364)))*-1 -> 0 | F87: =IF($C$6="5 years",SUM('Societal Impact_Population'!BZ334:BZ344),IF($C$6="10 years",SUM('Societal Impact_Population'!BZ334:BZ354),SUM('Societal Impact_Population'!BZ334:BZ364)))*-1 -> 0 | G87: =IF($C$6="5 years",SUM('Societal Impact_Population'!BH367:BH377),IF($C$6="10 years",SUM('Societal Impact_Population'!BH367:BH387),SUM('Societal Impact_Population'!BH367:BH397)))*-1 -> 0 | H87: =IF($C$6="5 years",SUM('Societal Impact_Population'!BN367:BN377),IF($C$6="10 years",SUM('Societal Impact_Population'!BN367:BN387),SUM('Societal Impact_Population'!BN367:BN397)))*-1 -> 0 | I87: =IF($C$6="5 years",SUM('Societal Impact_Population'!BT367:BT377),IF($C$6="10 years",SUM('Societal Impact_Population'!BT367:BT387),SUM('Societal Impact_Population'!BT367:BT397)))*-1 -> 0 | J87: =IF($C$6="5 years",SUM('Societal Impact_Population'!BZ367:BZ377),IF($C$6="10 years",SUM('Societal Impact_Population'!BZ367:BZ387),SUM('Societal Impact_Population'!BZ367:BZ397)))*-1 -> 0 | R87: Neuropathy | S87: =IF($C$6="5 years",SUM('Societal Impact_Single Patient'!BH4:BH14),IF($C$6="10 years",SUM('Societal Impact_Single Patient'!BH4:BH24),SUM('Societal Impact_Single Patient'!BH4:BH34)))*-1 -> 0 | T87: =IF($C$6="5 years",SUM('Societal Impact_Single Patient'!BN4:BN14),IF($C$6="10 years",SUM('Societal Impact_Single Patient'!BN4:BN24),SUM('Societal Impact_Single Patient'!BN4:BN34)))*-1 -> 0 | U87: =IF($C$6="5 years",SUM('Societal Impact_Single Patient'!BT4:BT14),IF($C$6="10 years",SUM('Societal Impact_Single Patient'!BT4:BT24),SUM('Societal Impact_Single Patient'!BT4:BT34)))*-1 -> 0 | V87: =IF($C$6="5 years",SUM('Societal Impact_Single Patient'!BZ4:BZ14),IF($C$6="10 years",SUM('Societal Impact_Single Patient'!BZ4:BZ24),SUM('Societal Impact_Single Patient'!BZ4:BZ34)))*-1 -> 0 | W87: =IF($C$6="5 years",SUM('Societal Impact_Single Patient'!BH37:BH47),IF($C$6="10 years",SUM('Societal Impact_Single Patient'!BH37:BH57),SUM('Societal Impact_Single Patient'!BH37:BH67)))*-1 -> 0 | X87: =IF($C$6="5 years",SUM('Societal Impact_Single Patient'!BN37:BN47),IF($C$6="10 years",SUM('Societal Impact_Single Patient'!BN37:BN57),SUM('Societal Impact_Single Patient'!BN37:BN67)))*-1 -> 0 | Y87: =IF($C$6="5 years",SUM('Societal Impact_Single Patient'!BT37:BT47),IF($C$6="10 years",SUM('Societal Impact_Single Patient'!BT37:BT57),SUM('Societal Impact_Single Patient'!BT37:BT67)))*-1 -> 0 | Z87: =IF($C$6="5 years",SUM('Societal Impact_Single Patient'!BZ37:BZ47),IF($C$6="10 years",SUM('Societal Impact_Single Patient'!BZ37:BZ57),SUM('Societal Impact_Single Patient'!BZ37:BZ67)))*-1 -> 0
B88: Nephropathy | C88: =IF($C$6="5 years",SUM('Societal Impact_Population'!BI334:BI344),IF($C$6="10 years",SUM('Societal Impact_Population'!BI334:BI354),SUM('Societal Impact_Population'!BI334:BI364)))*-1 -> 0 | D88: =IF($C$6="5 years",SUM('Societal Impact_Population'!BO334:BO344),IF($C$6="10 years",SUM('Societal Impact_Population'!BO334:BO354),SUM('Societal Impact_Population'!BO334:BO364)))*-1 -> 0 | E88: =IF($C$6="5 years",SUM('Societal Impact_Population'!BU334:BU344),IF($C$6="10 years",SUM('Societal Impact_Population'!BU334:BU354),SUM('Societal Impact_Population'!BU334:BU364)))*-1 -> 0 | F88: =IF($C$6="5 years",SUM('Societal Impact_Population'!CA334:CA344),IF($C$6="10 years",SUM('Societal Impact_Population'!CA334:CA354),SUM('Societal Impact_Population'!CA334:CA364)))*-1 -> 0 | G88: =IF($C$6="5 years",SUM('Societal Impact_Population'!BI367:BI377),IF($C$6="10 years",SUM('Societal Impact_Population'!BI367:BI387),SUM('Societal Impact_Population'!BI367:BI397)))*-1 -> 0 | H88: =IF($C$6="5 years",SUM('Societal Impact_Population'!BO367:BO377),IF($C$6="10 years",SUM('Societal Impact_Population'!BO367:BO387),SUM('Societal Impact_Population'!BO367:BO397)))*-1 -> 0 | I88: =IF($C$6="5 years",SUM('Societal Impact_Population'!BU367:BU377),IF($C$6="10 years",SUM('Societal Impact_Population'!BU367:BU387),SUM('Societal Impact_Population'!BU367:BU397)))*-1 -> 0 | J88: =IF($C$6="5 years",SUM('Societal Impact_Population'!CA367:CA377),IF($C$6="10 years",SUM('Societal Impact_Population'!CA367:CA387),SUM('Societal Impact_Population'!CA367:CA397)))*-1 -> 0 | R88: Nephropathy | S88: =IF($C$6="5 years",SUM('Societal Impact_Single Patient'!BI4:BI14),IF($C$6="10 years",SUM('Societal Impact_Single Patient'!BI4:BI24),SUM('Societal Impact_Single Patient'!BI4:BI34)))*-1 -> 0 | T88: =IF($C$6="5 years",SUM('Societal Impact_Single Patient'!BO4:BO14),IF($C$6="10 years",SUM('Societal Impact_Single Patient'!BO4:BO24),SUM('Societal Impact_Single Patient'!BO4:BO34)))*-1 -> 0 | U88: =IF($C$6="5 years",SUM('Societal Impact_Single Patient'!BU4:BU14),IF($C$6="10 years",SUM('Societal Impact_Single Patient'!BU4:BU24),SUM('Societal Impact_Single Patient'!BU4:BU34)))*-1 -> 0 | V88: =IF($C$6="5 years",SUM('Societal Impact_Single Patient'!CA4:CA14),IF($C$6="10 years",SUM('Societal Impact_Single Patient'!CA4:CA24),SUM('Societal Impact_Single Patient'!CA4:CA34)))*-1 -> 0 | W88: =IF($C$6="5 years",SUM('Societal Impact_Single Patient'!BI37:BI47),IF($C$6="10 years",SUM('Societal Impact_Single Patient'!BI37:BI57),SUM('Societal Impact_Single Patient'!BI37:BI67)))*-1 -> 0 | X88: =IF($C$6="5 years",SUM('Societal Impact_Single Patient'!BO37:BO47),IF($C$6="10 years",SUM('Societal Impact_Single Patient'!BO37:BO57),SUM('Societal Impact_Single Patient'!BO37:BO67)))*-1 -> 0 | Y88: =IF($C$6="5 years",SUM('Societal Impact_Single Patient'!BU37:BU47),IF($C$6="10 years",SUM('Societal Impact_Single Patient'!BU37:BU57),SUM('Societal Impact_Single Patient'!BU37:BU67)))*-1 -> 0 | Z88: =IF($C$6="5 years",SUM('Societal Impact_Single Patient'!CA37:CA47),IF($C$6="10 years",SUM('Societal Impact_Single Patient'!CA37:CA57),SUM('Societal Impact_Single Patient'!CA37:CA67)))*-1 -> 0
B89: Total per period | R89: Total per period | S89: =SUM(S84:S88) -> -0.824375426 | T89: =SUM(T84:T88) -> 0.8373465634 | U89: 0.5194601251 | V89: 0.4865649567 | W89: -0.7994504278 | X89: =SUM(X84:X88) -> 0.8094975259 | Y89: =SUM(Y84:Y88) -> 0.4973080526 | Z89: =SUM(Z84:Z88) -> 0.4658156794
B90: Total (for females and males separately) | C90: =SUM(C84:F88) -> 516549.6357 | G90: =SUM(G84:J88) -> 879972.2758 | R90: Total for males and females separately | S90: =+W90 -> 0.9731708301 | W90: =SUM(W84:Z88) -> 0.9731708301
B91: Gross Total for both genders | C91: =C90+G90 -> 1396521.912 | R91: Gross total for both genders | S91: =S90+W90 -> 1.94634166
B93: Table 5a: Incremental difference in working hours - Activity Restriction | C93: Female | G93: Male | R93: Table 5b: Incremental difference in working hours - Activity Restriction | S93: Female | W93: Male
C94: Period 1 | D94: Period 2 | E94: Insulin | F94: SU | G94: Period 1 | H94: Period 2 | I94: Insulin | J94: SU | S94: Period 1 | T94: Period 2 | U94: Insulin | V94: SU | W94: Period 1 | X94: Period 2 | Y94: Insulin | Z94: SU
B95: Stroke | C95: =IF($C$6="5 years",SUM('Societal Impact_Population'!CD334:CD344),IF($C$6="10 years",SUM('Societal Impact_Population'!CD334:CD354),SUM('Societal Impact_Population'!CD334:CD364)))*-1 -> 469808.424 | D95: =IF($C$6="5 years",SUM('Societal Impact_Population'!CJ334:CJ344),IF($C$6="10 years",SUM('Societal Impact_Population'!CJ334:CJ354),SUM('Societal Impact_Population'!CJ334:CJ364)))*-1 -> 198728.9071 | E95: =IF($C$6="5 years",SUM('Societal Impact_Population'!CP334:CP344),IF($C$6="10 years",SUM('Societal Impact_Population'!CP334:CP354),SUM('Societal Impact_Population'!CP334:CP364)))*-1 -> 83433.83473 | F95: =IF($C$6="5 years",SUM('Societal Impact_Population'!CV334:CV344),IF($C$6="10 years",SUM('Societal Impact_Population'!CV334:CV354),SUM('Societal Impact_Population'!CV334:CV364)))*-1 -> 125150.7521 | G95: =IF($C$6="5 years",SUM('Societal Impact_Population'!CD367:CD377),IF($C$6="10 years",SUM('Societal Impact_Population'!CD367:CD387),SUM('Societal Impact_Population'!CD367:CD397)))*-1 -> 151617.4893 | H95: =IF($C$6="5 years",SUM('Societal Impact_Population'!CJ367:CJ377),IF($C$6="10 years",SUM('Societal Impact_Population'!CJ367:CJ387),SUM('Societal Impact_Population'!CJ367:CJ397)))*-1 -> 63432.28901 | I95: =IF($C$6="5 years",SUM('Societal Impact_Population'!CP367:CP377),IF($C$6="10 years",SUM('Societal Impact_Population'!CP367:CP387),SUM('Societal Impact_Population'!CP367:CP397)))*-1 -> 26532.36755 | J95: =IF($C$6="5 years",SUM('Societal Impact_Population'!CV367:CV377),IF($C$6="10 years",SUM('Societal Impact_Population'!CV367:CV387),SUM('Societal Impact_Population'!CV367:CV397)))*-1 -> 39798.55133 | R95: Stroke | S95: =IF($C$6="5 years",SUM('Societal Impact_Single Patient'!CD4:CD14),IF($C$6="10 years",SUM('Societal Impact_Single Patient'!CD4:CD24),SUM('Societal Impact_Single Patient'!CD4:CD34)))*-1 -> 1.609794017 | T95: =IF($C$6="5 years",SUM('Societal Impact_Single Patient'!CJ4:CJ14),IF($C$6="10 years",SUM('Societal Impact_Single Patient'!CJ4:CJ24),SUM('Societal Impact_Single Patient'!CJ4:CJ34)))*-1 -> 0.6517470933 | U95: =IF($C$6="5 years",SUM('Societal Impact_Single Patient'!CP4:CP14),IF($C$6="10 years",SUM('Societal Impact_Single Patient'!CP4:CP24),SUM('Societal Impact_Single Patient'!CP4:CP34)))*-1 -> 0.2602560979 | V95: =IF($C$6="5 years",SUM('Societal Impact_Single Patient'!CV4:CV14),IF($C$6="10 years",SUM('Societal Impact_Single Patient'!CV4:CV24),SUM('Societal Impact_Single Patient'!CV4:CV34)))*-1 -> 0.3903841468 | W95: =IF($C$6="5 years",SUM('Societal Impact_Single Patient'!CD37:CD47),IF($C$6="10 years",SUM('Societal Impact_Single Patient'!CD37:CD57),SUM('Societal Impact_Single Patient'!CD37:CD67)))*-1 -> 0.6150381535 | X95: =IF($C$6="5 years",SUM('Societal Impact_Single Patient'!CJ37:CJ47),IF($C$6="10 years",SUM('Societal Impact_Single Patient'!CJ37:CJ57),SUM('Societal Impact_Single Patient'!CJ37:CJ67)))*-1 -> 0.264418346 | Y95: =IF($C$6="5 years",SUM('Societal Impact_Single Patient'!CP37:CP47),IF($C$6="10 years",SUM('Societal Impact_Single Patient'!CP37:CP57),SUM('Societal Impact_Single Patient'!CP37:CP67)))*-1 -> 0.1146576145 | Z95: =IF($C$6="5 years",SUM('Societal Impact_Single Patient'!CV37:CV47),IF($C$6="10 years",SUM('Societal Impact_Single Patient'!CV37:CV57),SUM('Societal Impact_Single Patient'!CV37:CV67)))*-1 -> 0.1719864217
B96: MI | C96: =IF($C$6="5 years",SUM('Societal Impact_Population'!CE334:CE344),IF($C$6="10 years",SUM('Societal Impact_Population'!CE334:CE354),SUM('Societal Impact_Population'!CE334:CE364)))*-1 -> -320524.8433 | D96: =IF($C$6="5 years",SUM('Societal Impact_Population'!CK334:CK344),IF($C$6="10 years",SUM('Societal Impact_Population'!CK334:CK354),SUM('Societal Impact_Population'!CK334:CK364)))*-1 -> 496460.6896 | E96: =IF($C$6="5 years",SUM('Societal Impact_Population'!CQ334:CQ344),IF($C$6="10 years",SUM('Societal Impact_Population'!CQ334:CQ354),SUM('Societal Impact_Population'!CQ334:CQ364)))*-1 -> 313202.8809 | F96: =IF($C$6="5 years",SUM('Societal Impact_Population'!CW334:CW344),IF($C$6="10 years",SUM('Societal Impact_Population'!CW334:CW354),SUM('Societal Impact_Population'!CW334:CW364)))*-1 -> 112791.6171 | G96: =IF($C$6="5 years",SUM('Societal Impact_Population'!CE367:CE377),IF($C$6="10 years",SUM('Societal Impact_Population'!CE367:CE387),SUM('Societal Impact_Population'!CE367:CE397)))*-1 -> -102339.4999 | H96: =IF($C$6="5 years",SUM('Societal Impact_Population'!CK367:CK377),IF($C$6="10 years",SUM('Societal Impact_Population'!CK367:CK387),SUM('Societal Impact_Population'!CK367:CK397)))*-1 -> 158299.0346 | I96: =IF($C$6="5 years",SUM('Societal Impact_Population'!CQ367:CQ377),IF($C$6="10 years",SUM('Societal Impact_Population'!CQ367:CQ387),SUM('Societal Impact_Population'!CQ367:CQ397)))*-1 -> 99600.04815 | J96: =IF($C$6="5 years",SUM('Societal Impact_Population'!CW367:CW377),IF($C$6="10 years",SUM('Societal Impact_Population'!CW367:CW387),SUM('Societal Impact_Population'!CW367:CW397)))*-1 -> 35868.28595 | R96: MI | S96: =IF($C$6="5 years",SUM('Societal Impact_Single Patient'!CE4:CE14),IF($C$6="10 years",SUM('Societal Impact_Single Patient'!CE4:CE24),SUM('Societal Impact_Single Patient'!CE4:CE34)))*-1 -> -1.045250567 | T96: =IF($C$6="5 years",SUM('Societal Impact_Single Patient'!CK4:CK14),IF($C$6="10 years",SUM('Societal Impact_Single Patient'!CK4:CK24),SUM('Societal Impact_Single Patient'!CK4:CK34)))*-1 -> 1.612485156 | U96: =IF($C$6="5 years",SUM('Societal Impact_Single Patient'!CQ4:CQ14),IF($C$6="10 years",SUM('Societal Impact_Single Patient'!CQ4:CQ24),SUM('Societal Impact_Single Patient'!CQ4:CQ34)))*-1 -> 0.9769772647 | V96: =IF($C$6="5 years",SUM('Societal Impact_Single Patient'!CW4:CW14),IF($C$6="10 years",SUM('Societal Impact_Single Patient'!CW4:CW24),SUM('Societal Impact_Single Patient'!CW4:CW34)))*-1 -> 0.3518321582 | W96: =IF($C$6="5 years",SUM('Societal Impact_Single Patient'!CE37:CE47),IF($C$6="10 years",SUM('Societal Impact_Single Patient'!CE37:CE57),SUM('Societal Impact_Single Patient'!CE37:CE67)))*-1 -> -0.4286345443 | X96: =IF($C$6="5 years",SUM('Societal Impact_Single Patient'!CK37:CK47),IF($C$6="10 years",SUM('Societal Impact_Single Patient'!CK37:CK57),SUM('Societal Impact_Single Patient'!CK37:CK67)))*-1 -> 0.6644816709 | Y96: =IF($C$6="5 years",SUM('Societal Impact_Single Patient'!CQ37:CQ47),IF($C$6="10 years",SUM('Societal Impact_Single Patient'!CQ37:CQ57),SUM('Societal Impact_Single Patient'!CQ37:CQ67)))*-1 -> 0.4304140555 | Z96: =IF($C$6="5 years",SUM('Societal Impact_Single Patient'!CW37:CW47),IF($C$6="10 years",SUM('Societal Impact_Single Patient'!CW37:CW57),SUM('Societal Impact_Single Patient'!CW37:CW67)))*-1 -> 0.1550020779
B97: HF | C97: =IF($C$6="5 years",SUM('Societal Impact_Population'!CF334:CF344),IF($C$6="10 years",SUM('Societal Impact_Population'!CF334:CF354),SUM('Societal Impact_Population'!CF334:CF364)))*-1 -> -1839750.644 | D97: =IF($C$6="5 years",SUM('Societal Impact_Population'!CL334:CL344),IF($C$6="10 years",SUM('Societal Impact_Population'!CL334:CL354),SUM('Societal Impact_Population'!CL334:CL364)))*-1 -> 526498.4682 | E97: =IF($C$6="5 years",SUM('Societal Impact_Population'!CR334:CR344),IF($C$6="10 years",SUM('Societal Impact_Population'!CR334:CR354),SUM('Societal Impact_Population'!CR334:CR364)))*-1 -> 707245.6897 | F97: =IF($C$6="5 years",SUM('Societal Impact_Population'!CX334:CX344),IF($C$6="10 years",SUM('Societal Impact_Population'!CX334:CX354),SUM('Societal Impact_Population'!CX334:CX364)))*-1 -> 902953.3263 | G97: =IF($C$6="5 years",SUM('Societal Impact_Population'!CF367:CF377),IF($C$6="10 years",SUM('Societal Impact_Population'!CF367:CF387),SUM('Societal Impact_Population'!CF367:CF397)))*-1 -> -590860.8925 | H97: =IF($C$6="5 years",SUM('Societal Impact_Population'!CL367:CL377),IF($C$6="10 years",SUM('Societal Impact_Population'!CL367:CL387),SUM('Societal Impact_Population'!CL367:CL397)))*-1 -> 167876.7342 | I97: =IF($C$6="5 years",SUM('Societal Impact_Population'!CR367:CR377),IF($C$6="10 years",SUM('Societal Impact_Population'!CR367:CR387),SUM('Societal Impact_Population'!CR367:CR397)))*-1 -> 224907.5888 | J97: =IF($C$6="5 years",SUM('Societal Impact_Population'!CX367:CX377),IF($C$6="10 years",SUM('Societal Impact_Population'!CX367:CX387),SUM('Societal Impact_Population'!CX367:CX397)))*-1 -> 287143.5745 | R97: HF | S97: =IF($C$6="5 years",SUM('Societal Impact_Single Patient'!CF4:CF14),IF($C$6="10 years",SUM('Societal Impact_Single Patient'!CF4:CF24),SUM('Societal Impact_Single Patient'!CF4:CF34)))*-1 -> -6.165798446 | T97: =IF($C$6="5 years",SUM('Societal Impact_Single Patient'!CL4:CL14),IF($C$6="10 years",SUM('Societal Impact_Single Patient'!CL4:CL24),SUM('Societal Impact_Single Patient'!CL4:CL34)))*-1 -> 1.710046701 | U97: =IF($C$6="5 years",SUM('Societal Impact_Single Patient'!CR4:CR14),IF($C$6="10 years",SUM('Societal Impact_Single Patient'!CR4:CR24),SUM('Societal Impact_Single Patient'!CR4:CR34)))*-1 -> 2.206119424 | V97: =IF($C$6="5 years",SUM('Societal Impact_Single Patient'!CX4:CX14),IF($C$6="10 years",SUM('Societal Impact_Single Patient'!CX4:CX24),SUM('Societal Impact_Single Patient'!CX4:CX34)))*-1 -> 2.816592453 | W97: =IF($C$6="5 years",SUM('Societal Impact_Single Patient'!CF37:CF47),IF($C$6="10 years",SUM('Societal Impact_Single Patient'!CF37:CF57),SUM('Societal Impact_Single Patient'!CF37:CF67)))*-1 -> -2.431973706 | X97: =IF($C$6="5 years",SUM('Societal Impact_Single Patient'!CL37:CL47),IF($C$6="10 years",SUM('Societal Impact_Single Patient'!CL37:CL57),SUM('Societal Impact_Single Patient'!CL37:CL67)))*-1 -> 0.7046853643 | Y97: =IF($C$6="5 years",SUM('Societal Impact_Single Patient'!CR37:CR47),IF($C$6="10 years",SUM('Societal Impact_Single Patient'!CR37:CR57),SUM('Societal Impact_Single Patient'!CR37:CR67)))*-1 -> 0.9719210903 | Z97: =IF($C$6="5 years",SUM('Societal Impact_Single Patient'!CX37:CX47),IF($C$6="10 years",SUM('Societal Impact_Single Patient'!CX37:CX57),SUM('Societal Impact_Single Patient'!CX37:CX67)))*-1 -> 1.240869183
B98: Neuropathy | C98: =IF($C$6="5 years",SUM('Societal Impact_Population'!CG334:CG344),IF($C$6="10 years",SUM('Societal Impact_Population'!CG334:CG354),SUM('Societal Impact_Population'!CG334:CG364)))*-1 -> -2921983.86 | D98: =IF($C$6="5 years",SUM('Societal Impact_Population'!CM334:CM344),IF($C$6="10 years",SUM('Societal Impact_Population'!CM334:CM354),SUM('Societal Impact_Population'!CM334:CM364)))*-1 -> 1311870.509 | E98: =IF($C$6="5 years",SUM('Societal Impact_Population'!CS334:CS344),IF($C$6="10 years",SUM('Societal Impact_Population'!CS334:CS354),SUM('Societal Impact_Population'!CS334:CS364)))*-1 -> 2764306.19 | F98: =IF($C$6="5 years",SUM('Societal Impact_Population'!CY334:CY344),IF($C$6="10 years",SUM('Societal Impact_Population'!CY334:CY354),SUM('Societal Impact_Population'!CY334:CY364)))*-1 -> 2148022.293 | G98: =IF($C$6="5 years",SUM('Societal Impact_Population'!CG367:CG377),IF($C$6="10 years",SUM('Societal Impact_Population'!CG367:CG387),SUM('Societal Impact_Population'!CG367:CG397)))*-1 -> -936601.6166 | H98: =IF($C$6="5 years",SUM('Societal Impact_Population'!CM367:CM377),IF($C$6="10 years",SUM('Societal Impact_Population'!CM367:CM387),SUM('Societal Impact_Population'!CM367:CM397)))*-1 -> 418687.2482 | I98: =IF($C$6="5 years",SUM('Societal Impact_Population'!CS367:CS377),IF($C$6="10 years",SUM('Societal Impact_Population'!CS367:CS387),SUM('Societal Impact_Population'!CS367:CS397)))*-1 -> 879062.89 | J98: =IF($C$6="5 years",SUM('Societal Impact_Population'!CY367:CY377),IF($C$6="10 years",SUM('Societal Impact_Population'!CY367:CY387),SUM('Societal Impact_Population'!CY367:CY397)))*-1 -> 683081.596 | R98: Neuropathy | S98: =IF($C$6="5 years",SUM('Societal Impact_Single Patient'!CG4:CG14),IF($C$6="10 years",SUM('Societal Impact_Single Patient'!CG4:CG24),SUM('Societal Impact_Single Patient'!CG4:CG34)))*-1 -> -9.704535091 | T98: =IF($C$6="5 years",SUM('Societal Impact_Single Patient'!CM4:CM14),IF($C$6="10 years",SUM('Societal Impact_Single Patient'!CM4:CM24),SUM('Societal Impact_Single Patient'!CM4:CM34)))*-1 -> 4.297779559 | U98: =IF($C$6="5 years",SUM('Societal Impact_Single Patient'!CS4:CS14),IF($C$6="10 years",SUM('Societal Impact_Single Patient'!CS4:CS24),SUM('Societal Impact_Single Patient'!CS4:CS34)))*-1 -> 8.622731351 | V98: =IF($C$6="5 years",SUM('Societal Impact_Single Patient'!CY4:CY14),IF($C$6="10 years",SUM('Societal Impact_Single Patient'!CY4:CY24),SUM('Societal Impact_Single Patient'!CY4:CY34)))*-1 -> 6.700350067 | W98: =IF($C$6="5 years",SUM('Societal Impact_Single Patient'!CG37:CG47),IF($C$6="10 years",SUM('Societal Impact_Single Patient'!CG37:CG57),SUM('Societal Impact_Single Patient'!CG37:CG67)))*-1 -> -3.877613927 | X98: =IF($C$6="5 years",SUM('Societal Impact_Single Patient'!CM37:CM47),IF($C$6="10 years",SUM('Societal Impact_Single Patient'!CM37:CM57),SUM('Societal Impact_Single Patient'!CM37:CM67)))*-1 -> 1.746655279 | Y98: =IF($C$6="5 years",SUM('Societal Impact_Single Patient'!CS37:CS47),IF($C$6="10 years",SUM('Societal Impact_Single Patient'!CS37:CS57),SUM('Societal Impact_Single Patient'!CS37:CS67)))*-1 -> 3.798803621 | Z98: =IF($C$6="5 years",SUM('Societal Impact_Single Patient'!CY37:CY47),IF($C$6="10 years",SUM('Societal Impact_Single Patient'!CY37:CY57),SUM('Societal Impact_Single Patient'!CY37:CY67)))*-1 -> 2.95188532
B99: Nephropathy | C99: =IF($C$6="5 years",SUM('Societal Impact_Population'!CH334:CH344),IF($C$6="10 years",SUM('Societal Impact_Population'!CH334:CH354),SUM('Societal Impact_Population'!CH334:CH364)))*-1 -> 113732.8853 | D99: =IF($C$6="5 years",SUM('Societal Impact_Population'!CN334:CN344),IF($C$6="10 years",SUM('Societal Impact_Population'!CN334:CN354),SUM('Societal Impact_Population'!CN334:CN364)))*-1 -> -329332.7504 | E99: =IF($C$6="5 years",SUM('Societal Impact_Population'!CT334:CT344),IF($C$6="10 years",SUM('Societal Impact_Population'!CT334:CT354),SUM('Societal Impact_Population'!CT334:CT364)))*-1 -> 257916.4452 | F99: =IF($C$6="5 years",SUM('Societal Impact_Population'!CZ334:CZ344),IF($C$6="10 years",SUM('Societal Impact_Population'!CZ334:CZ354),SUM('Societal Impact_Population'!CZ334:CZ364)))*-1 -> 440247.1182 | G99: =IF($C$6="5 years",SUM('Societal Impact_Population'!CH367:CH377),IF($C$6="10 years",SUM('Societal Impact_Population'!CH367:CH387),SUM('Societal Impact_Population'!CH367:CH397)))*-1 -> 37214.92831 | H99: =IF($C$6="5 years",SUM('Societal Impact_Population'!CN367:CN377),IF($C$6="10 years",SUM('Societal Impact_Population'!CN367:CN387),SUM('Societal Impact_Population'!CN367:CN397)))*-1 -> -104841.8496 | I99: =IF($C$6="5 years",SUM('Societal Impact_Population'!CT367:CT377),IF($C$6="10 years",SUM('Societal Impact_Population'!CT367:CT387),SUM('Societal Impact_Population'!CT367:CT397)))*-1 -> 82018.69117 | J99: =IF($C$6="5 years",SUM('Societal Impact_Population'!CZ367:CZ377),IF($C$6="10 years",SUM('Societal Impact_Population'!CZ367:CZ387),SUM('Societal Impact_Population'!CZ367:CZ397)))*-1 -> 140000.737 | R99: Nephropathy | S99: =IF($C$6="5 years",SUM('Societal Impact_Single Patient'!CH4:CH14),IF($C$6="10 years",SUM('Societal Impact_Single Patient'!CH4:CH24),SUM('Societal Impact_Single Patient'!CH4:CH34)))*-1 -> 0.4143086639 | T99: =IF($C$6="5 years",SUM('Societal Impact_Single Patient'!CN4:CN14),IF($C$6="10 years",SUM('Societal Impact_Single Patient'!CN4:CN24),SUM('Societal Impact_Single Patient'!CN4:CN34)))*-1 -> -1.053839687 | U99: =IF($C$6="5 years",SUM('Societal Impact_Single Patient'!CT4:CT14),IF($C$6="10 years",SUM('Societal Impact_Single Patient'!CT4:CT24),SUM('Societal Impact_Single Patient'!CT4:CT34)))*-1 -> 0.8045216648 | V99: =IF($C$6="5 years",SUM('Societal Impact_Single Patient'!CZ4:CZ14),IF($C$6="10 years",SUM('Societal Impact_Single Patient'!CZ4:CZ24),SUM('Societal Impact_Single Patient'!CZ4:CZ34)))*-1 -> 1.373267781 | W99: =IF($C$6="5 years",SUM('Societal Impact_Single Patient'!CH37:CH47),IF($C$6="10 years",SUM('Societal Impact_Single Patient'!CH37:CH57),SUM('Societal Impact_Single Patient'!CH37:CH67)))*-1 -> 0.1447018374 | X99: =IF($C$6="5 years",SUM('Societal Impact_Single Patient'!CN37:CN47),IF($C$6="10 years",SUM('Societal Impact_Single Patient'!CN37:CN57),SUM('Societal Impact_Single Patient'!CN37:CN67)))*-1 -> -0.4447390982 | Y99: =IF($C$6="5 years",SUM('Societal Impact_Single Patient'!CT37:CT47),IF($C$6="10 years",SUM('Societal Impact_Single Patient'!CT37:CT57),SUM('Societal Impact_Single Patient'!CT37:CT67)))*-1 -> 0.3544375545 | Z99: =IF($C$6="5 years",SUM('Societal Impact_Single Patient'!CZ37:CZ47),IF($C$6="10 years",SUM('Societal Impact_Single Patient'!CZ37:CZ57),SUM('Societal Impact_Single Patient'!CZ37:CZ67)))*-1 -> 0.6050025689
B100: Total per period | C100: =SUM(C95:C99) -> -4498718.038 | D100: =SUM(D95:D99) -> 2204225.823 | E100: =SUM(E95:E99) -> 4126105.041 | F100: =SUM(F95:F99) -> 3729165.106 | G100: =SUM(G95:G99) -> -1440969.591 | H100: =SUM(H95:H99) -> 703453.4564 | I100: =SUM(I95:I99) -> 1312121.586 | J100: =SUM(J95:J99) -> 1185892.745 | R100: Total per period | S100: =SUM(S95:S99) -> -14.89148142 | T100: =SUM(T95:T99) -> 7.218218822 | U100: =SUM(U95:U99) -> 12.8706058 | V100: =SUM(V95:V99) -> 11.63242661 | W100: =SUM(W95:W99) -> -5.978482187 | X100: =SUM(X95:X99) -> 2.935501561 | Y100: =SUM(Y95:Y99) -> 5.670233936 | Z100: =SUM(Z95:Z99) -> 5.124745572
B101: Total (for males and females separately) | C101: =SUM(C95:F99) -> 5560777.933 | G101: =SUM(G95:J99) -> 1760498.195 | R101: Total (for males and females separately) | S101: =SUM(S95:V99) -> 16.82976981 | W101: =SUM(W95:Z99) -> 7.751998882
B102: Gross Total for both genders | C102: =C101+G101 -> 7321276.128 | R102: Gross total for both genders | S102: =S101+W101 -> 24.58176869
B104: Table 6a: Summary of results for each gender and per productivity parameter | C104: Abesenteeism | D104: Presenteeism | E104: No return to work | F104: Activity restriction | H104: SUM | R104: Table 6b: Summary of results for each gender and per productivity parameter | S104: Abesenteeism | T104: Presenteeism | U104: No return to work | V104: Activity restriction | X104: SUM
B105: Female | C105: =C68 -> 587365.1206 | D105: =C79 -> 938039.4248 | E105: =C90 -> 516549.6357 | F105: =C101 -> 5560777.933 | H105: =SUM(C105:F105) -> 7602732.114 | R105: Female | S105: =S68 -> 1.013629288 | T105: =S79 -> 1.475975859 | U105: =S90 -> 0.9731708301 | V105: =S101 -> 16.82976981 | X105: =SUM(S105:V105) -> 20.29254579
B106: Male | C106: =G68 -> 1056736.714 | D106: =G79 -> 1684793.856 | E106: =G90 -> 879972.2758 | F106: =G101 -> 1760498.195 | H106: =SUM(C106:F106) -> 5382001.042 | R106: Male | S106: =W68 -> 2.675384096 | T106: =W79 -> 4.00020019 | U106: =W90 -> 0.9731708301 | V106: =W101 -> 7.751998882 | X106: =SUM(S106:V106) -> 15.400754
G107: Gross total for both genders | H107: =SUM(H105:H106) -> 12984733.16 | W107: Gross total for both genders | X107: =SUM(X105:X106) -> 35.69329978
B108: Table 7a: Summary of results for each gender and per paid/unpaid activity | C108: Paid Work | D108: Unpaid Work | F108: SUM | R108: Table 7b: Summary of results for each gender and per paid/unpaid activity | S108: Paid Work | T108: Unpaid Work | V108: SUM
B109: Female | C109: =(C68+C79+C90) -> 2041954.181 | D109: =C101 -> 5560777.933 | F109: =C109+D109 -> 7602732.114 | R109: Female | S109: =(S68+S79+S90) -> 3.462775978 | T109: =S101 -> 16.82976981 | V109: =S109+T109 -> 20.29254579
B110: Male | C110: =(G68+G79+G90) -> 3621502.846 | D110: =G101 -> 1760498.195 | F110: =C110+D110 -> 5382001.042 | G110: Gross total for both genders | H110: =F109+F110 -> 12984733.16 | R110: Male | S110: =(W68+W79+W90) -> 7.648755116 | T110: =W101 -> 7.751998882 | V110: =S110+T110 -> 15.400754 | W110: Gross total for both genders | X110: =V109+V110 -> 35.69329978
B112: Monetized avoided productivity and activity loss | Population | R112: Monetized avoided productivity and activity loss | Average patient
B114: Table 8a: Monetized avoided productivity loss - Absenteeism and Presenteeism | C114: Female | G114: Male | R114: Table 8b: Monetized avoided productivity loss - Absenteeism and Presenteeism | S114: Female | W114: Male
C115: Period 1 | D115: Period 2 | E115: Insulin | F115: SU | G115: Period 1 | H115: Period 2 | I115: Insulin | J115: SU | S115: Period 1 | T115: Period 2 | U115: Insulin | V115: SU | W115: Period 1 | X115: Period 2 | Y115: Insulin | Z115: SU
B116: Stroke | C116: =(C62+C73)*'Socioeconomic inputs'!$I$99 -> 215773.9079 | D116: =(D62+D73)*'Socioeconomic inputs'!$I$99 -> 91021.02251 | E116: =(E62+E73)*'Socioeconomic inputs'!$I$99 -> 37799.34466 | F116: =(F62+F73)*'Socioeconomic inputs'!$I$99 -> 56699.01699 | G116: =(G62+G73)*'Socioeconomic inputs'!$I$99 -> 395770.499 | H116: =(H62+H73)*'Socioeconomic inputs'!$I$99 -> 165248.3291 | I116: =(I62+I73)*'Socioeconomic inputs'!$I$99 -> 68307.97983 | J116: =(J62+J73)*'Socioeconomic inputs'!$I$99 -> 102461.9697 | R116: Stroke | S116: =(S62+S73)*'Socioeconomic inputs'!$I$99 -> 0.7555280603 | T116: =(T62+T73)*'Socioeconomic inputs'!$I$99 -> 0.2619063029 | U116: =(U62+U73)*'Socioeconomic inputs'!$I$99 -> 0.08096013125 | V116: =(V62+V73)*'Socioeconomic inputs'!$I$99 -> 0.1214401969 | W116: =(W62+W73)*'Socioeconomic inputs'!$I$99 -> 1.713560182 | X116: =(X62+X73)*'Socioeconomic inputs'!$I$99 -> 0.6114927194 | Y116: =(Y62+Y73)*'Socioeconomic inputs'!$I$99 -> 0.202117712 | Z116: =(Z62+Z73)*'Socioeconomic inputs'!$I$99 -> 0.3031765679
B117: MI | C117: =(C63+C74)*'Socioeconomic inputs'!$I$99 -> -313445.8652 | D117: =(D63+D74)*'Socioeconomic inputs'!$I$99 -> 485482.6949 | E117: =(E63+E74)*'Socioeconomic inputs'!$I$99 -> 303525.2112 | F117: =(F63+F74)*'Socioeconomic inputs'!$I$99 -> 109306.4639 | G117: =(G63+G74)*'Socioeconomic inputs'!$I$99 -> -569100.827 | H117: =(H63+H74)*'Socioeconomic inputs'!$I$99 -> 880368.2712 | I117: =(I63+I74)*'Socioeconomic inputs'!$I$99 -> 548506.7054 | J117: =(J63+J74)*'Socioeconomic inputs'!$I$99 -> 197529.9783 | R117: MI | S117: =(S63+S74)*'Socioeconomic inputs'!$I$99 -> -0.87443959 | T117: =(T63+T74)*'Socioeconomic inputs'!$I$99 -> 1.327834531 | U117: =(U63+U74)*'Socioeconomic inputs'!$I$99 -> 0.6501023009 | V117: =(V63+V74)*'Socioeconomic inputs'!$I$99 -> 0.2341169072 | W117: =(W63+W74)*'Socioeconomic inputs'!$I$99 -> -2.056203839 | X117: =(X63+X74)*'Socioeconomic inputs'!$I$99 -> 3.131650003 | Y117: =(Y63+Y74)*'Socioeconomic inputs'!$I$99 -> 1.622986371 | Z117: =(Z63+Z74)*'Socioeconomic inputs'!$I$99 -> 0.584475011
B118: HF | C118: =(C64+C75)*'Socioeconomic inputs'!$I$99 -> -1985543.318 | D118: =(D64+D75)*'Socioeconomic inputs'!$I$99 -> 566773.4882 | E118: =(E64+E75)*'Socioeconomic inputs'!$I$99 -> 754506.2794 | F118: =(F64+F75)*'Socioeconomic inputs'!$I$99 -> 963291.7734 | G118: =(G64+G75)*'Socioeconomic inputs'!$I$99 -> -3625183.855 | H118: =(H64+H75)*'Socioeconomic inputs'!$I$99 -> 1027779.983 | I118: =(I64+I75)*'Socioeconomic inputs'!$I$99 -> 1363483.949 | J118: =(J64+J75)*'Socioeconomic inputs'!$I$99 -> 1740784.546 | R118: HF | S118: =(S64+S75)*'Socioeconomic inputs'!$I$99 -> -6.312789032 | T118: =(T64+T75)*'Socioeconomic inputs'!$I$99 -> 1.550171442 | U118: =(U64+U75)*'Socioeconomic inputs'!$I$99 -> 1.616031388 | V118: =(V64+V75)*'Socioeconomic inputs'!$I$99 -> 2.063216416 | W118: =(W64+W75)*'Socioeconomic inputs'!$I$99 -> -14.52672722 | X118: =(X64+X75)*'Socioeconomic inputs'!$I$99 -> 3.656023613 | Y118: =(Y64+Y75)*'Socioeconomic inputs'!$I$99 -> 4.034437216 | Z118: =(Z64+Z75)*'Socioeconomic inputs'!$I$99 -> 5.15083875
B119: Neuropathy | C119: =(C65+C76)*'Socioeconomic inputs'!$I$99 -> -8736329.771 | D119: =(D65+D76)*'Socioeconomic inputs'!$I$99 -> 3922187.054 | E119: =(E65+E76)*'Socioeconomic inputs'!$I$99 -> 8176654.786 | F119: =(F65+F76)*'Socioeconomic inputs'!$I$99 -> 6353723.34 | G119: =(G65+G76)*'Socioeconomic inputs'!$I$99 -> -15921062.89 | H119: =(H65+H76)*'Socioeconomic inputs'!$I$99 -> 7119799.728 | I119: =(I65+I76)*'Socioeconomic inputs'!$I$99 -> 14776202.48 | J119: =(J65+J76)*'Socioeconomic inputs'!$I$99 -> 11481945.25 | R119: Neuropathy | S119: =(S65+S76)*'Socioeconomic inputs'!$I$99 -> -26.6398868 | T119: =(T65+T76)*'Socioeconomic inputs'!$I$99 -> 11.22395036 | U119: =(U65+U76)*'Socioeconomic inputs'!$I$99 -> 17.51308258 | V119: =(V65+V76)*'Socioeconomic inputs'!$I$99 -> 13.60865592 | W119: =(W65+W76)*'Socioeconomic inputs'!$I$99 -> -61.71177305 | X119: =(X65+X76)*'Socioeconomic inputs'!$I$99 -> 26.23356963 | Y119: =(Y65+Y76)*'Socioeconomic inputs'!$I$99 -> 43.72157167 | Z119: =(Z65+Z76)*'Socioeconomic inputs'!$I$99 -> 33.97413461
B120: Nephropathy | C120: =(C66+C77)*'Socioeconomic inputs'!$I$99 -> 233004.2339 | D120: =(D66+D77)*'Socioeconomic inputs'!$I$99 -> -665644.8039 | E120: =(E66+E77)*'Socioeconomic inputs'!$I$99 -> 518100.1236 | F120: =(F66+F77)*'Socioeconomic inputs'!$I$99 -> 884364.2604 | G120: =(G66+G77)*'Socioeconomic inputs'!$I$99 -> 432970.7139 | H120: =(H66+H77)*'Socioeconomic inputs'!$I$99 -> -1204929.152 | I120: =(I66+I77)*'Socioeconomic inputs'!$I$99 -> 936269.4805 | J120: =(J66+J77)*'Socioeconomic inputs'!$I$99 -> 1598153 | R120: Nephropathy | S120: =(S66+S77)*'Socioeconomic inputs'!$I$99 -> 1.030427157 | T120: =(T66+T77)*'Socioeconomic inputs'!$I$99 -> -1.675945794 | U120: =(U66+U77)*'Socioeconomic inputs'!$I$99 -> 1.109687334 | V120: =(V66+V77)*'Socioeconomic inputs'!$I$99 -> 1.894166347 | W120: =(W66+W77)*'Socioeconomic inputs'!$I$99 -> 2.266875978 | X120: =(X66+X77)*'Socioeconomic inputs'!$I$99 -> -4.021918575 | Y120: =(Y66+Y77)*'Socioeconomic inputs'!$I$99 -> 2.770344631 | Z120: =(Z66+Z77)*'Socioeconomic inputs'!$I$99 -> 4.728803699
B121: Total per period | C121: =SUM(C116:C120) -> -10586540.81 | D121: =SUM(D116:D120) -> 4399819.455 | E121: =SUM(E116:E120) -> 9790585.745 | F121: =SUM(F116:F120) -> 8367384.855 | G121: =SUM(G116:G120) -> -19286606.36 | H121: =SUM(H116:H120) -> 7988267.16 | I121: =SUM(I116:I120) -> 17692770.59 | J121: =SUM(J116:J120) -> 15120874.74 | R121: Total per period | S121: =SUM(S116:S120) -> -32.04116021 | T121: 12.68791684 | U121: 20.96986374 | V121: 17.92159579 | W121: -74.31426795 | X121: 29.61081739 | Y121: 52.3514576 | Z121: 44.74142864
B122: Total (for females and males separately) | C122: =SUM(C116:F120) -> 11971249.24 | G122: =SUM(G116:J120) -> 21515306.13 | R122: Total (for females and males separately) | S122: =SUM(S116:V120) -> 19.53821616 | W122: =SUM(W116:Z120) -> 52.38943568
B123: Gross Total for both genders | C123: =C122+G122 -> 33486555.37 | R123: Gross Total for both genders | S123: =S122+W122 -> 71.92765184
B125: Table 9a: Monetized avoided productivity loss - No return to work | C125: Female | G125: Male | R125: Table 9b: Monetzied avoided productivity loss - No return to work | S125: Female | W125: Male
C126: Period 1 | D126: Period 2 | E126: Insulin | F126: SU | G126: Period 1 | H126: Period 2 | I126: Insulin | J126: SU | S126: Period 1 | T126: Period 2 | U126: Insulin | V126: SU | W126: Period 1 | X126: Period 2 | Y126: Insulin | Z126: SU
B127: Stroke | C127: =C84*'Socioeconomic inputs'!$I$99 -> 1080638.054 | D127: =D84*'Socioeconomic inputs'!$I$99 -> 462394.5676 | E127: =E84*'Socioeconomic inputs'!$I$99 -> 199127.6299 | F127: =F84*'Socioeconomic inputs'!$I$99 -> 298691.4448 | G127: =G84*'Socioeconomic inputs'!$I$99 -> 1968335.517 | H127: =H84*'Socioeconomic inputs'!$I$99 -> 821850.4312 | I127: =I84*'Socioeconomic inputs'!$I$99 -> 339724.7221 | J127: =J84*'Socioeconomic inputs'!$I$99 -> 509587.0831 | R127: Stroke | S127: =S84*'Socioeconomic inputs'!$I$99 -> 3.757563332 | T127: =T84*'Socioeconomic inputs'!$I$99 -> 1.302571767 | U127: =U84*'Socioeconomic inputs'!$I$99 -> 0.4026492682 | V127: =V84*'Socioeconomic inputs'!$I$99 -> 0.6039739022 | W127: =W84*'Socioeconomic inputs'!$I$99 -> 3.679357971 | X127: =X84*'Socioeconomic inputs'!$I$99 -> 1.261233523 | Y127: =Y84*'Socioeconomic inputs'!$I$99 -> 0.3854785262 | Z127: =Z84*'Socioeconomic inputs'!$I$99 -> 0.5782177893
B128: MI | C128: =C85*'Socioeconomic inputs'!$I$99 -> -797769.0563 | D128: =D85*'Socioeconomic inputs'!$I$99 -> 1236507.633 | E128: =E85*'Socioeconomic inputs'!$I$99 -> 796450.5514 | F128: =F85*'Socioeconomic inputs'!$I$99 -> 286820.3043 | G128: =G85*'Socioeconomic inputs'!$I$99 -> -1409813.68 | H128: =H85*'Socioeconomic inputs'!$I$99 -> 2180905.69 | I128: =I85*'Socioeconomic inputs'!$I$99 -> 1358796.579 | J128: =J85*'Socioeconomic inputs'!$I$99 -> 489334.1433 | R128: MI | S128: =S85*'Socioeconomic inputs'!$I$99 -> -2.166218774 | T128: =T85*'Socioeconomic inputs'!$I$99 -> 3.289398289 | U128: =U85*'Socioeconomic inputs'!$I$99 -> 1.610475813 | V128: =V85*'Socioeconomic inputs'!$I$99 -> 0.5799696692 | W128: =W85*'Socioeconomic inputs'!$I$99 -> -2.096531386 | X128: =X85*'Socioeconomic inputs'!$I$99 -> 3.178758898 | Y128: =Y85*'Socioeconomic inputs'!$I$99 -> 1.541798016 | Z128: =Z85*'Socioeconomic inputs'!$I$99 -> 0.5552372027
B129: HF | C129: =C86*'Socioeconomic inputs'!$I$99 -> -2576545.579 | D129: =D86*'Socioeconomic inputs'!$I$99 -> 744091.5454 | E129: =E86*'Socioeconomic inputs'!$I$99 -> 1020518.074 | F129: =F86*'Socioeconomic inputs'!$I$99 -> 1302913.829 | G129: =G86*'Socioeconomic inputs'!$I$99 -> -4629097.583 | H129: =H86*'Socioeconomic inputs'!$I$99 -> 1312400.702 | I129: =I86*'Socioeconomic inputs'!$I$99 -> 1741070.385 | J129: =J86*'Socioeconomic inputs'!$I$99 -> 2222855.959 | R129: HF | S129: =S86*'Socioeconomic inputs'!$I$99 -> -8.060975006 | T129: =T86*'Socioeconomic inputs'!$I$99 -> 1.979456811 | U129: =U86*'Socioeconomic inputs'!$I$99 -> 2.063555199 | V129: =V86*'Socioeconomic inputs'!$I$99 -> 2.634578136 | W129: =W86*'Socioeconomic inputs'!$I$99 -> -7.856847701 | X129: =X86*'Socioeconomic inputs'!$I$99 -> 1.912877493 | Y129: =Y86*'Socioeconomic inputs'!$I$99 -> 1.975556097 | Z129: =Z86*'Socioeconomic inputs'!$I$99 -> 2.522228096
B130: Neuropathy | C130: =C87*'Socioeconomic inputs'!$I$99 -> 0 | D130: =D87*'Socioeconomic inputs'!$I$99 -> 0 | E130: =E87*'Socioeconomic inputs'!$I$99 -> 0 | F130: =F87*'Socioeconomic inputs'!$I$99 -> 0 | G130: =G87*'Socioeconomic inputs'!$I$99 -> 0 | H130: =H87*'Socioeconomic inputs'!$I$99 -> 0 | I130: =I87*'Socioeconomic inputs'!$I$99 -> 0 | J130: =J87*'Socioeconomic inputs'!$I$99 -> 0 | R130: Neuropathy | S130: =S87*'Socioeconomic inputs'!$I$99 -> 0 | T130: =T87*'Socioeconomic inputs'!$I$99 -> 0 | U130: =U87*'Socioeconomic inputs'!$I$99 -> 0 | V130: =V87*'Socioeconomic inputs'!$I$99 -> 0 | W130: =W87*'Socioeconomic inputs'!$I$99 -> 0 | X130: =X87*'Socioeconomic inputs'!$I$99 -> 0 | Y130: =Y87*'Socioeconomic inputs'!$I$99 -> 0 | Z130: =Z87*'Socioeconomic inputs'!$I$99 -> 0
B131: Nephropathy | C131: =C88*'Socioeconomic inputs'!$I$99 -> 0 | D131: =D88*'Socioeconomic inputs'!$I$99 -> 0 | E131: =E88*'Socioeconomic inputs'!$I$99 -> 0 | F131: =F88*'Socioeconomic inputs'!$I$99 -> 0 | G131: =G88*'Socioeconomic inputs'!$I$99 -> 0 | H131: =H88*'Socioeconomic inputs'!$I$99 -> 0 | I131: =I88*'Socioeconomic inputs'!$I$99 -> 0 | J131: =J88*'Socioeconomic inputs'!$I$99 -> 0 | R131: Nephropathy | S131: =S88*'Socioeconomic inputs'!$I$99 -> 0 | T131: =T88*'Socioeconomic inputs'!$I$99 -> 0 | U131: =U88*'Socioeconomic inputs'!$I$99 -> 0 | V131: =V88*'Socioeconomic inputs'!$I$99 -> 0 | W131: =W88*'Socioeconomic inputs'!$I$99 -> 0 | X131: =X88*'Socioeconomic inputs'!$I$99 -> 0 | Y131: =Y88*'Socioeconomic inputs'!$I$99 -> 0 | Z131: =Z88*'Socioeconomic inputs'!$I$99 -> 0
B132: Total per period | C132: =SUM(C127:C131) -> -2293676.581 | D132: 2442993.746 | E132: 2016096.256 | F132: 1888425.579 | G132: -4070575.746 | H132: 4315156.823 | I132: 3439591.686 | J132: 3221777.185 | R132: Total per period | S132: =SUM(S127:S131) -> -6.469630449 | T132: 6.571426867 | U132: 4.07668028 | V132: 3.818521707 | W132: -6.274021116 | X132: 6.352869914 | Y132: 3.90283264 | Z132: 3.655683088
B133: Total (for females and males separately) | C133: =SUM(C127:F131) -> 4053838.999 | G133: =SUM(G127:J131) -> 6905949.948 | R133: Total (for males and females separately) | S133: =SUM(S127:V131) -> 7.996998405 | W133: =SUM(W127:Z131) -> 7.637364526
B134: Gross Total for both genders | C134: =C133+G133 -> 10959788.95 | R134: Gross total for both genders | S134: =S133+W133 -> 15.63436293
B136: Table 10a: Monetized avoided activity loss - Unpaid Work | C136: Female | G136: Male | R136: Table 1-b: Monetized avoided activity loss - Unpaid Work | S136: Female | W136: Male
C137: Period 1 | D137: Period 2 | E137: Insulin | F137: SU | G137: Period 1 | H137: Period 2 | I137: Insulin | J137: SU | S137: Period 1 | T137: Period 2 | U137: Insulin | V137: SU | W137: Period 1 | X137: Period 2 | Y137: Insulin | Z137: SU
B138: Stroke | C138: =C95*'Socioeconomic inputs'!$I$100 -> 582562.4457 | D138: =D95*'Socioeconomic inputs'!$I$100 -> 246423.8448 | E138: =E95*'Socioeconomic inputs'!$I$100 -> 103457.9551 | F138: =F95*'Socioeconomic inputs'!$I$100 -> 155186.9326 | G138: =G95*'Socioeconomic inputs'!$I$100 -> 188005.6867 | H138: =H95*'Socioeconomic inputs'!$I$100 -> 78656.03838 | I138: =I95*'Socioeconomic inputs'!$I$100 -> 32900.13577 | J138: =J95*'Socioeconomic inputs'!$I$100 -> 49350.20365 | R138: Stroke | S138: =S95*'Socioeconomic inputs'!$I$100 -> 1.996144581 | T138: =T95*'Socioeconomic inputs'!$I$100 -> 0.8081663957 | U138: =U95*'Socioeconomic inputs'!$I$100 -> 0.3227175614 | V138: =V95*'Socioeconomic inputs'!$I$100 -> 0.484076342 | W138: =W95*'Socioeconomic inputs'!$I$100 -> 0.7626473103 | X138: =X95*'Socioeconomic inputs'!$I$100 -> 0.327878749 | Y138: =Y95*'Socioeconomic inputs'!$I$100 -> 0.1421754419 | Z138: =Z95*'Socioeconomic inputs'!$I$100 -> 0.2132631629
B139: MI | C139: =C96*'Socioeconomic inputs'!$I$100 -> -397450.8057 | D139: =D96*'Socioeconomic inputs'!$I$100 -> 615611.2551 | E139: =E96*'Socioeconomic inputs'!$I$100 -> 388371.5724 | F139: =F96*'Socioeconomic inputs'!$I$100 -> 139861.6052 | G139: =G96*'Socioeconomic inputs'!$I$100 -> -126900.9799 | H139: =H96*'Socioeconomic inputs'!$I$100 -> 196290.8029 | I139: =I96*'Socioeconomic inputs'!$I$100 -> 123504.0597 | J139: =J96*'Socioeconomic inputs'!$I$100 -> 44476.67458 | R139: MI | S139: =S96*'Socioeconomic inputs'!$I$100 -> -1.296110704 | T139: =T96*'Socioeconomic inputs'!$I$100 -> 1.999481593 | U139: =U96*'Socioeconomic inputs'!$I$100 -> 1.211451808 | V139: =V96*'Socioeconomic inputs'!$I$100 -> 0.4362718762 | W139: =W96*'Socioeconomic inputs'!$I$100 -> -0.5315068349 | X139: =X96*'Socioeconomic inputs'!$I$100 -> 0.823957272 | Y139: =Y96*'Socioeconomic inputs'!$I$100 -> 0.5337134289 | Z139: =Z96*'Socioeconomic inputs'!$I$100 -> 0.1922025766
B140: HF | C140: =C97*'Socioeconomic inputs'!$I$100 -> -2281290.799 | D140: =D97*'Socioeconomic inputs'!$I$100 -> 652858.1006 | E140: =E97*'Socioeconomic inputs'!$I$100 -> 876984.6552 | F140: =F97*'Socioeconomic inputs'!$I$100 -> 1119662.125 | G140: =G97*'Socioeconomic inputs'!$I$100 -> -732667.5066 | H140: =H97*'Socioeconomic inputs'!$I$100 -> 208167.1504 | I140: =I97*'Socioeconomic inputs'!$I$100 -> 278885.4101 | J140: =J97*'Socioeconomic inputs'!$I$100 -> 356058.0324 | R140: HF | S140: =S97*'Socioeconomic inputs'!$I$100 -> -7.645590073 | T140: =T97*'Socioeconomic inputs'!$I$100 -> 2.120457909 | U140: =U97*'Socioeconomic inputs'!$I$100 -> 2.735588086 | V140: =V97*'Socioeconomic inputs'!$I$100 -> 3.492574642 | W140: =W97*'Socioeconomic inputs'!$I$100 -> -3.015647396 | X140: =X97*'Socioeconomic inputs'!$I$100 -> 0.8738098517 | Y140: =Y97*'Socioeconomic inputs'!$I$100 -> 1.205182152 | Z140: =Z97*'Socioeconomic inputs'!$I$100 -> 1.538677787
B141: Neuropathy | C141: =C98*'Socioeconomic inputs'!$I$100 -> -3623259.986 | D141: =D98*'Socioeconomic inputs'!$I$100 -> 1626719.431 | E141: =E98*'Socioeconomic inputs'!$I$100 -> 3427739.676 | F141: =F98*'Socioeconomic inputs'!$I$100 -> 2663547.643 | G141: =G98*'Socioeconomic inputs'!$I$100 -> -1161386.005 | H141: =H98*'Socioeconomic inputs'!$I$100 -> 519172.1877 | I141: =I98*'Socioeconomic inputs'!$I$100 -> 1090037.984 | J141: =J98*'Socioeconomic inputs'!$I$100 -> 847021.1791 | R141: Neuropathy | S141: =S98*'Socioeconomic inputs'!$I$100 -> -12.03362351 | T141: =T98*'Socioeconomic inputs'!$I$100 -> 5.329246653 | U141: =U98*'Socioeconomic inputs'!$I$100 -> 10.69218688 | V141: =V98*'Socioeconomic inputs'!$I$100 -> 8.308434083 | W141: =W98*'Socioeconomic inputs'!$I$100 -> -4.80824127 | X141: =X98*'Socioeconomic inputs'!$I$100 -> 2.165852545 | Y141: =Y98*'Socioeconomic inputs'!$I$100 -> 4.71051649 | Z141: =Z98*'Socioeconomic inputs'!$I$100 -> 3.660337797
B142: Nephropathy | C142: =C99*'Socioeconomic inputs'!$I$100 -> 141028.7777 | D142: =D99*'Socioeconomic inputs'!$I$100 -> -408372.6105 | E142: =E99*'Socioeconomic inputs'!$I$100 -> 319816.3921 | F142: =F99*'Socioeconomic inputs'!$I$100 -> 545906.4265 | G142: =G99*'Socioeconomic inputs'!$I$100 -> 46146.5111 | H142: =H99*'Socioeconomic inputs'!$I$100 -> -130003.8935 | I142: =I99*'Socioeconomic inputs'!$I$100 -> 101703.177 | J142: =J99*'Socioeconomic inputs'!$I$100 -> 173600.9139 | R142: Nephropathy | S142: =S99*'Socioeconomic inputs'!$I$100 -> 0.5137427432 | T142: =T99*'Socioeconomic inputs'!$I$100 -> -1.306761212 | U142: =U99*'Socioeconomic inputs'!$I$100 -> 0.9976068643 | V142: =V99*'Socioeconomic inputs'!$I$100 -> 1.702852048 | W142: =W99*'Socioeconomic inputs'!$I$100 -> 0.1794302784 | X142: =X99*'Socioeconomic inputs'!$I$100 -> -0.5514764818 | Y142: =Y99*'Socioeconomic inputs'!$I$100 -> 0.4395025676 | Z142: =Z99*'Socioeconomic inputs'!$I$100 -> 0.7502031855
B143: Total per period | C143: =SUM(C138:C142) -> -5578410.367 | D143: =SUM(D138:D142) -> 2733240.021 | E143: =SUM(E138:E142) -> 5116370.251 | F143: =SUM(F138:F142) -> 4624164.732 | G143: =SUM(G138:G142) -> -1786802.293 | H143: =SUM(H138:H142) -> 872282.2859 | I143: =SUM(I138:I142) -> 1627030.766 | J143: =SUM(J138:J142) -> 1470507.004 | R143: Total per period | S143: =SUM(S138:S142) -> -18.46543696 | T143: 8.950591339 | U143: 15.9595512 | V143: 14.42420899 | W143: -7.413317912 | X143: 3.640021936 | Y143: 7.03109008 | Z143: 6.354684509
B144: Total (for females and males separately) | C144: =SUM(C138:F142) -> 6895364.637 | G144: =SUM(G138:J142) -> 2183017.762 | R144: Total (for males and females separately) | S144: =SUM(S138:V142) -> 20.86891456 | W144: =SUM(W138:Z142) -> 9.612478613
B145: Gross Total for both genders | C145: =C144+G144 -> 9078382.399 | R145: Gross total for both genders | S145: =S144+W144 -> 30.48139318
B147: Table 11a: Total Societal Impact per gender and activity | C147: Paid Work | D147: Unpaid Work | F147: Total Societal Impact per gender and per treatment period | G147: Period 1 | H147: Period 2 | I147: Insulin/SU | R147: Table 11b: Total Societal Impact per gender and activity | S147: Paid Work | T147: Unpaid Work | V147: Total Societal Impact per gender and per treatment period | W147: Period 1 | X147: Period 2 | Y147: Insulin / SU
B148: Female | C148: =(C122+C133) -> 16025088.24 | D148: =C144 -> 6895364.637 | E148: =C148+D148 -> 22920452.88 | F148: Female | G148: =C121+C132+C143 -> -18458627.76 | H148: =D121+D132+D143 -> 9576053.222 | I148: =E121+F121+E132+F132+E143+F143 -> 31803027.42 | R148: Female | S148: =(S122+S133) -> 27.53521456 | T148: =S144 -> 20.86891456 | U148: =S148+T148 -> 48.40412913 | V148: Female | W148: =S121+S132+S143 -> -56.97622762 | X148: =T121+T132+T143 -> 28.20993505 | Y148: =U121+V121+U132+V132+U143+V143 -> 77.1704217
B149: Male | C149: =(G122+G133) -> 28421256.07 | D149: =G144 -> 2183017.762 | E149: =C149+D149 -> 30604273.84 | F149: Male | G149: =G121+G132+G143 -> -25143984.4 | H149: =H121+H132+H143 -> 13175706.27 | I149: =I121+J121+I132+J132+I143+J143 -> 42572551.97 | R149: Male | S149: =(W122+W133) -> 60.02680021 | T149: =W144 -> 9.612478613 | U149: =S149+T149 -> 69.63927882 | V149: Male | W149: =W121+W132+W143 -> -88.00160698 | X149: =X121+X132+X143 -> 39.60370924 | Y149: =Y121+Z121+Y132+Z132+Y143+Z143 -> 118.0371766
C150: =SUM(C148:C149) -> 44446344.32 | D150: =SUM(D148:D149) -> 9078382.399 | S150: =SUM(S148:S149) -> 87.56201477 | T150: =SUM(T148:T149) -> 30.48139318
B151: Total societal impact | C151: =SUM(C150:D150) -> 53524726.71 | R151: Total Societal Impact | S151: =SUM(S150:T150) -> 118.0434079
B153: Incremental difference in complicaton costs | Population | R153: Incremental difference in complication costs | Average patient
B155: Table 12a: Incremental difference in complication costs | R155: Table 12b: Incremental difference in complication costs | S155: Female | W155: Male | AD155: SUM Total
C156: Period 1 | D156: Period 2 | E156: M+Insulin | F156: M+SU | G156: SUM Total | S156: Period 1 | T156: Period 2 | U156: Insulin | V156: SU | W156: Period 1 | X156: Period 2 | Y156: Insulin | Z156: SU | AC156: Stroke | AD156: =SUM($C$157:$F$157) -> 5768053.439
B157: Stroke | C157: =C49*'Clinical inputs'!$I100 -> 3095420.677 | D157: =D49*'Clinical inputs'!$I100 -> 1303560.053 | E157: =E49*'Clinical inputs'!$I100 -> 547629.0837 | F157: =F49*'Clinical inputs'!$I100 -> 821443.6256 | G157: =SUM($C$157:$F$157) -> 5768053.439 | R157: Stroke | S157: =S49*'Clinical inputs'!$I100 -> 6.129877291 | T157: =T49*'Clinical inputs'!$I100 -> 2.581821993 | U157: =U49*'Clinical inputs'!$I100 -> 1.084722748 | V157: =V49*'Clinical inputs'!$I100 -> 1.627084123 | W157: =W49*'Clinical inputs'!$I100 -> 5.97137321 | X157: =X49*'Clinical inputs'!$I100 -> 2.478065012 | Y157: =Y49*'Clinical inputs'!$I100 -> 1.02965301 | Z157: =Z49*'Clinical inputs'!$I100 -> 1.544479515 | AC157: MI | AD157: =SUM($C$158:$F$158) -> 6607153.692
B158: MI | C158: =C50*'Clinical inputs'!$I101 -> -3519809.641 | D158: =D50*'Clinical inputs'!$I101 -> 5448502.21 | E158: =E50*'Clinical inputs'!$I101 -> 3439733.398 | F158: =F50*'Clinical inputs'!$I101 -> 1238727.726 | G158: =SUM($C$158:$F$158) -> 6607153.692 | R158: MI | S158: =S50*'Clinical inputs'!$I101 -> -6.971034759 | T158: =T50*'Clinical inputs'!$I101 -> 10.79169133 | U158: =U50*'Clinical inputs'!$I101 -> 6.813292384 | V158: =V50*'Clinical inputs'!$I101 -> 2.453624512 | W158: =W50*'Clinical inputs'!$I101 -> -6.685702705 | X158: =X50*'Clinical inputs'!$I101 -> 10.33321173 | Y158: =Y50*'Clinical inputs'!$I101 -> 6.467391805 | Z158: =Z50*'Clinical inputs'!$I101 -> 2.329057695 | AC158: HF | AD158: =SUM($C$159:$F$159) -> 1592391.982
B159: HF | C159: =C51*'Clinical inputs'!$I102 -> -10025268.34 | D159: =D51*'Clinical inputs'!$I102 -> 2861156.069 | E159: =E51*'Clinical inputs'!$I102 -> 3846108.355 | F159: =F51*'Clinical inputs'!$I102 -> 4910395.897 | G159: =SUM($C$159:$F$159) -> 1592391.982 | R159: HF | S159: =S51*'Clinical inputs'!$I102 -> -19.8540413 | T159: =T51*'Clinical inputs'!$I102 -> 5.667009381 | U159: =U51*'Clinical inputs'!$I102 -> 7.61822436 | V159: =V51*'Clinical inputs'!$I102 -> 9.726324426 | W159: =W51*'Clinical inputs'!$I102 -> -19.20516134 | X159: =X51*'Clinical inputs'!$I102 -> 5.42624933 | Y159: =Y51*'Clinical inputs'!$I102 -> 7.231458598 | Z159: =Z51*'Clinical inputs'!$I102 -> 9.232533602 | AC159: Neuropathy | AD159: =SUM($C$160:$F$160) -> 13773013.68
B160: Neuropathy | C160: =C52*'Clinical inputs'!$I103 -> -12220759.56 | D160: =D52*'Clinical inputs'!$I103 -> 5475924.87 | E160: =E52*'Clinical inputs'!$I103 -> 11545973.66 | F160: =F52*'Clinical inputs'!$I103 -> 8971874.712 | G160: =SUM($C$160:$F$160) -> 13773013.68 | R160: Neuropathy | S160: =S52*'Clinical inputs'!$I103 -> -24.20246018 | T160: =T52*'Clinical inputs'!$I103 -> 10.84562626 | U160: =U52*'Clinical inputs'!$I103 -> 22.86982312 | V160: =V52*'Clinical inputs'!$I103 -> 17.77114636 | W160: =W52*'Clinical inputs'!$I103 -> -23.34480435 | X160: =X52*'Clinical inputs'!$I103 -> 10.40700304 | Y160: =Y52*'Clinical inputs'!$I103 -> 21.70875669 | Z160: =Z52*'Clinical inputs'!$I103 -> 16.86893206 | AC160: Nephropathy | AD160: =SUM($C$161:$F$161) -> 23656535.84
B161: Nephropathy | C161: =C53*'Clinical inputs'!$I104 -> 5610342.618 | D161: =D53*'Clinical inputs'!$I104 -> -16088646.1 | E161: =E53*'Clinical inputs'!$I104 -> 12610134.47 | F161: =F53*'Clinical inputs'!$I104 -> 21524704.85 | G161: =SUM($C$161:$F$161) -> 23656535.84 | R161: Nephropathy | S161: =S53*'Clinical inputs'!$I104 -> 11.10866581 | T161: =T53*'Clinical inputs'!$I104 -> -31.86822781 | U161: =U53*'Clinical inputs'!$I104 -> 24.97767217 | V161: =V53*'Clinical inputs'!$I104 -> 42.6353123 | W161: =W53*'Clinical inputs'!$I104 -> 11.03848217 | X161: =X53*'Clinical inputs'!$I104 -> -30.40309432 | Y161: =Y53*'Clinical inputs'!$I104 -> 23.70959342 | Z161: =Z53*'Clinical inputs'!$I104 -> 40.47078179 | AC161: Gross Total | AD161: =SUM($C$162:$F$162) -> 51397148.63
B162: Total per Period | C162: =SUM(C157:C161) -> -17060074.25 | D162: =SUM(D157:D161) -> -999502.9016 | E162: =SUM(E157:E161) -> 31989578.96 | F162: =SUM(F157:F161) -> 37467146.81 | G162: =SUM($C$162:$F$162) -> 51397148.63 | R162: Total per Period | S162: =SUM(S157:S161) -> -33.78899314 | T162: -1.98207885 | U162: 63.36373478 | V162: 74.21349172 | W162: -32.22581301 | X162: -1.758565208 | Y162: 60.14685352 | Z162: 70.44578466
B163: Gross Total | C163: =SUM(C157:F161) -> 51397148.63 | R163: Total (for males and females separately) | S163: =SUM(S157:V161) -> 101.8061545 | W163: =SUM(W157:Z161) -> 96.60825996
R164: Gross total for both genders | S164: =S163+W163 -> 198.4144145
B165: Incremental difference in drug acquisition costs | Population | R165: Drug acquisition costs | Average patient
B167: Table 13a: Incremental difference in drug acquisition costs | C167: Drug acquisition costs | R167: Table 13b: Incremental difference in drug acquisition costs | S167: Females | T167: Males
B168: 1st period | C168: =IF($C$6="5 years",SUM('Engine M+V'!AV400:AV410)-SUM('Engine M+P'!AV400:AV410),IF($C$6="10 years",SUM('Engine M+V'!AV400:AV420)-SUM('Engine M+P'!AV400:AV420),SUM('Engine M+V'!AV400:AV430)-SUM('Engine M+P'!AV400:AV430)))*-1 -> -1159092031 | R168: Period 1_M+V | S168: =IF($C$6="5 years",SUM('Engine M+V_Single Patient'!AV4:AV14)-SUM('Engine M+P_Single Patient'!AV4:AV14),IF($C$6="10 years",SUM('Engine M+V_Single Patient'!AV4:AV24)-SUM('Engine M+P_Single Patient'!AV4:AV24),SUM('Engine M+V_Single Patient'!AV4:AV34)-SUM('Engine M+P_Single Patient'!AV4:AV34)))*-1 -> -2295.458856 | T168: =IF($C$6="5 years",SUM('Engine M+V_Single Patient'!AV37:AV47)-SUM('Engine M+P_Single Patient'!AV37:AV47),IF($C$6="10 years",SUM('Engine M+V_Single Patient'!AV37:AV57)-SUM('Engine M+P_Single Patient'!AV37:AV57),SUM('Engine M+V_Single Patient'!AV37:AV67)-SUM('Engine M+P_Single Patient'!AV37:AV67)))*-1 -> -2221.432506
B169: 2nd period | C169: =IF($C$6="5 years",SUM('Engine M+V'!AW400:AW410)-SUM('Engine M+P'!AW400:AW410),IF($C$6="10 years",SUM('Engine M+V'!AW400:AW420)-SUM('Engine M+P'!AW400:AW420),SUM('Engine M+V'!AW400:AW430)-SUM('Engine M+P'!AW400:AW430)))*-1 -> 170661878.4 | R169: Period 2_M+V | S169: =IF($C$6="5 years",SUM('Engine M+V_Single Patient'!AW4:AW14)-SUM('Engine M+P_Single Patient'!AW4:AW14),IF($C$6="10 years",SUM('Engine M+V_Single Patient'!AW4:AW24)-SUM('Engine M+P_Single Patient'!AW4:AW24),SUM('Engine M+V_Single Patient'!AW4:AW34)-SUM('Engine M+P_Single Patient'!AW4:AW34)))*-1 -> 337.9469104 | T169: =IF($C$6="5 years",SUM('Engine M+V_Single Patient'!AW37:AW47)-SUM('Engine M+P_Single Patient'!AW37:AW47),IF($C$6="10 years",SUM('Engine M+V_Single Patient'!AW37:AW57)-SUM('Engine M+P_Single Patient'!AW37:AW57),SUM('Engine M+V_Single Patient'!AW37:AW67)-SUM('Engine M+P_Single Patient'!AW37:AW67)))*-1 -> 328.1405054
B170: M+Insulin | C170: =IF($C$6="5 years",SUM('Engine M+V'!AX400:AX410)-SUM('Engine M+P'!AX400:AX410),IF($C$6="10 years",SUM('Engine M+V'!AX400:AX420)-SUM('Engine M+P'!AX400:AX420),SUM('Engine M+V'!AX400:AX430)-SUM('Engine M+P'!AX400:AX430)))*-1 -> 144514990 | R170: M+Insulin | S170: =IF($C$6="5 years",SUM('Engine M+V_Single Patient'!AX4:AX14)-SUM('Engine M+P_Single Patient'!AX4:AX14),IF($C$6="10 years",SUM('Engine M+V_Single Patient'!AX4:AX24)-SUM('Engine M+P_Single Patient'!AX4:AX24),SUM('Engine M+V_Single Patient'!AX4:AX34)-SUM('Engine M+P_Single Patient'!AX4:AX34)))*-1 -> 286.2497662 | T170: =IF($C$6="5 years",SUM('Engine M+V_Single Patient'!AX37:AX47)-SUM('Engine M+P_Single Patient'!AX37:AX47),IF($C$6="10 years",SUM('Engine M+V_Single Patient'!AX37:AX57)-SUM('Engine M+P_Single Patient'!AX37:AX57),SUM('Engine M+V_Single Patient'!AX37:AX67)-SUM('Engine M+P_Single Patient'!AX37:AX67)))*-1 -> 271.7172972
B171: M+SU | C171: =IF($C$6="5 years",SUM('Engine M+V'!AY400:AY410)-SUM('Engine M+P'!AY400:AY410),IF($C$6="10 years",SUM('Engine M+V'!AY400:AY420)-SUM('Engine M+P'!AY400:AY420),SUM('Engine M+V'!AY400:AY430)-SUM('Engine M+P'!AY400:AY430)))*-1 -> 38623474.15 | R171: M+SU | S171: =IF($C$6="5 years",SUM('Engine M+V_Single Patient'!AY4:AY14)-SUM('Engine M+P_Single Patient'!AY4:AY14),IF($C$6="10 years",SUM('Engine M+V_Single Patient'!AY4:AY24)-SUM('Engine M+P_Single Patient'!AY4:AY24),SUM('Engine M+V_Single Patient'!AY4:AY34)-SUM('Engine M+P_Single Patient'!AY4:AY34)))*-1 -> 76.50390068 | T171: =IF($C$6="5 years",SUM('Engine M+V_Single Patient'!AY37:AY47)-SUM('Engine M+P_Single Patient'!AY37:AY47),IF($C$6="10 years",SUM('Engine M+V_Single Patient'!AY37:AY57)-SUM('Engine M+P_Single Patient'!AY37:AY57),SUM('Engine M+V_Single Patient'!AY37:AY67)-SUM('Engine M+P_Single Patient'!AY37:AY67)))*-1 -> 72.61991301
B172: Total | C172: =SUM(C168:C171) -> -805291688 | R172: Total (for males and females separately) | S172: =SUM(S168:S171) -> -1594.758279 | T172: =SUM(T168:T171) -> -1548.954791
R173: Gross total for both genders | S173: =S172+T172 -> -3143.71307
B174: Societal impact in relation to direct costs | Population | R174: Societal impact in relation to direct costs | Average patient
B177: Avoided productivity Loss | C177: =C123+C134 -> 44446344.32 | R177: Avoided productivity loss | S177: =S123+S134 -> 87.56201477
B178: Avoided activity loss | C178: =C145 -> 9078382.399 | R178: Avoided activity loss | S178: =S145 -> 30.48139318
B179: Total Societal Impact | C179: =SUM(C177:C178) -> 53524726.71 | R179: Societal Impact | S179: =SUM(S177:S178) -> 118.0434079
B181: Complication costs | C181: =C163 -> 51397148.63 | R181: Complication costs | S181: =S164 -> 198.4144145
B182: Drug acquisition costs | C182: =C172 -> -805291688 | R182: Drug acquisition costs | S182: =S173 -> -3143.71307
B183: Direct Medical costs | C183: =C181+C182 -> -753894539.4 | R183: Direct medical costs | S183: =S182+S181 -> -2945.298655

Sheet Graphs
A1: The Societal Impact of early intensified treatment in type 2 diabetic patients
A2: Graphs | C2: Table of content | D2: Results
B4: Graph 1: Health States over time
B35: Graph 2: Probability of events
B65: Graph 3: Share of patients per gender and age
B95: Graph 4: Patients alive per age group over time
B125: Graph 5: Incremental difference in number of events per complication
B128: Stroke | C128: =Results!G49 -> 1884.077459
B129: MI | C129: =Results!G50 -> 2149.700227
B130: HF | C130: =Results!G51 -> 785.7680823
B131: Neuropathy | C131: =Results!G52 -> 7408.089691
B132: Nephropathy | C132: =Results!G53 -> 1239.597582
B133: Gross Total | C133: =Results!G54 -> 13467.23304
B153: Graph 6: Productivity and activity impairment
N155: Return to work_stroke | O155: Absenteeism_stroke | P155: Presenteeism_stroke | Q155: Activity restriction_stroke | R155: Return to work_MI | S155: Absenteeism_MI | T155: Presenteeism_MI | U155: Activity restriction_MI | V155: Return to work_HF | W155: Absenteeism_HF | X155: Presenteeism_HF | Y155: Activity restriction_HF | Z155: Return to work_Neuropathy | AA155: Absenteeism_Neuropathy | AB155: Presenteeism_Neuropathy | AC155: Activity restriction_Neuropathy | AD155: Return to work_Nephropathy | AE155: Absenteeism_Nephropathy | AF155: Presenteeism_Nephropathy | AG155: Activity restriction_Nephropathy
M156: Auxilliary table for the graph | N156: ='Socioeconomic inputs'!C8 -> 0.44 | O156: ='Socioeconomic inputs'!C9 -> 0.2283464567 | P156: ='Socioeconomic inputs'!C10 -> 0.03571428571 | Q156: ='Socioeconomic inputs'!C11 -> 0.6333333333 | R156: ='Socioeconomic inputs'!C12 -> 0.642 | S156: ='Socioeconomic inputs'!C13 -> 0.055 | T156: ='Socioeconomic inputs'!C14 -> 0.18 | U156: ='Socioeconomic inputs'!C15 -> 0.38 | V156: ='Socioeconomic inputs'!C16 -> 0.7295 | W156: ='Socioeconomic inputs'!C17 -> 0.082 | X156: ='Socioeconomic inputs'!C18 -> 0.227 | Y156: ='Socioeconomic inputs'!C19 -> 0.506 | Z156: ='Socioeconomic inputs'!C20 -> 1 | AA156: ='Socioeconomic inputs'!C21 -> 0.2604 | AB156: ='Socioeconomic inputs'!C22 -> 0.5965 | AC156: ='Socioeconomic inputs'!C23 -> 0.6044 | AD156: ='Socioeconomic inputs'!C24 -> 1 | AE156: ='Socioeconomic inputs'!C25 -> 0.18 | AF156: ='Socioeconomic inputs'!C26 -> 0.29 | AG156: ='Socioeconomic inputs'!C27 -> 0.53
B182: Graph 7: Incremental difference in working hours
B211: Graph 8: Incremental difference by type of work and activity impairment in working hours
B240: Graph 9: Avoided productivity and activity loss
B269: Graph 10: Incremental difference in complicaton costs
B272: Auxilliary results for the graph
C273: Sum Total
B274: Stroke | C274: =Results!G157 -> 5768053.439
B275: MI | C275: =Results!G158 -> 6607153.692
B276: HF | C276: =Results!G159 -> 1592391.982
B277: Neuropathy | C277: =Results!G160 -> 13773013.68
B278: Nephropathy | C278: =Results!G161 -> 23656535.84
B279: Gross total | C279: =Results!G162 -> 51397148.63
B298: Graph 11: Incremental difference in drug acquisition costs

Sheet DSA simulation
A1: The Societal Impact of early intensified treatment in type 2 diabetic patients
A2: Graphs | C2: Table of content | E2: Results
Y6: Sensitivity Table
Z8: M+V Market Share | AA8: Return to work_stroke | AB8: Absenteeism_stroke | AC8: Presenteeism_stroke | AD8: Activity restriction_stroke | AE8: Return to work_MI | AF8: Absenteeism_MI | AG8: Presenteeism_MI | AH8: Activity restriction_MI | AI8: Return to work_HF | AJ8: Absenteeism_HF | AK8: Presenteeism_HF | AL8: Activity restriction_HF | AM8: Absenteeism_Neuropathy | AN8: Presenteeism_Neuropathy | AO8: Activity restriction_Neuropathy | AP8: Absenteeism_Nephropathy | AQ8: Presenteeism_Nephropathy | AR8: Activity restriction_Nephropathy | AS8: Working_Hours | AT8: Activity_Hours
Y9: lower bound | Z9: 43033880.28 | AA9: 54177416.44 | AB9: 53333636.78 | AC9: 53500809.97 | AD9: 53542905.19 | AE9: 54658446.15 | AF9: 53401694.24 | AG9: 53324323.25 | AH9: 53488026.59 | AI9: 53968410.02 | AJ9: 53426185.38 | AK9: 53395949.37 | AL9: 53505296.44 | AM9: 52230701.97 | AN9: 49957673.24 | AO9: 52705034.3 | AP9: 53360915.01 | AQ9: 53219919.01 | AR9: 53369920.88 | AS9: 44813243.23 | AT9: 51745363.76
Y10: base case | Z10: 53524726.71 | AA10: 53524726.71 | AB10: 53524726.71 | AC10: 53524726.71 | AD10: 53524726.71 | AE10: 53524726.71 | AF10: 53524726.71 | AG10: 53524726.71 | AH10: 53524726.71 | AI10: 53524726.71 | AJ10: 53524726.71 | AK10: 53524726.71 | AL10: 53524726.71 | AM10: 53524726.71 | AN10: 53524726.71 | AO10: 53524726.71 | AP10: 53524726.71 | AQ10: 53524726.71 | AR10: 53524726.71 | AS10: 53524726.71 | AT10: 53524726.71
Y11: upper bound | Z11: 64015573.15 | AA11: 52872036.99 | AB11: 53715816.65 | AC11: 53548643.46 | AD11: 53506958.62 | AE11: 52391007.28 | AF11: 53647759.19 | AG11: 53725130.18 | AH11: 53561426.84 | AI11: 53081043.41 | AJ11: 53623268.05 | AK11: 53653504.06 | AL11: 53544156.98 | AM11: 54818751.46 | AN11: 57091780.18 | AO11: 54344419.13 | AP11: 53688538.42 | AQ11: 53829534.42 | AR11: 53679532.55 | AS11: 62236210.2 | AT11: 55304089.67
Y13: Adjusted Sensitivity Table
Z15: M+V Market Share | AA15: Return to work_stroke | AB15: Absenteeism_stroke | AC15: Presenteeism_stroke | AD15: Activity restriction_stroke | AE15: Return to work_MI | AF15: Absenteeism_MI | AG15: Presenteeism_MI | AH15: Activity restriction_MI | AI15: Return to work_HF | AJ15: Absenteeism_HF | AK15: Presenteeism_HF | AL15: Activity restriction_HF | AM15: Absenteeism_Neuropathy | AN15: Presenteeism_Neuropathy | AO15: Activity restriction_Neuropathy | AP15: Absenteeism_Nephropathy | AQ15: Presenteeism_Nephropathy | AR15: Activity restriction_Nephropathy | AS15: Working_Hours | AT15: Activity_Hours
Y16: lower | Z16: =Z9-Z$10 -> -10490846.44 | AA16: =AA9-AA$10 -> 652689.7295 | AB16: -191089.9331 | AC16: -23916.74769 | AD16: 18178.47831 | AE16: =AE9-AE$10 -> 1133719.431 | AF16: -123032.4792 | AG16: -200403.4629 | AH16: -36700.12374 | AI16: 443683.3051 | AJ16: -98541.33056 | AK16: -128777.342 | AL16: -19430.27003 | AM16: -1294024.745 | AN16: -3567053.47 | AO16: -819692.4183 | AP16: -163811.7091 | AQ16: -304807.7028 | AR16: -154805.8361 | AS16: -8711483.486 | AT16: -1779362.95
Y17: base | Z17: =Z10-Z$10 -> 0 | AA17: 0 | AB17: 0 | AC17: 0 | AD17: =AD10-AD$10 -> 0 | AE17: 0 | AF17: 0 | AG17: 0 | AH17: 0 | AI17: 0 | AJ17: 0 | AK17: 0 | AL17: 0 | AM17: 0 | AN17: 0 | AO17: 0 | AP17: 0 | AQ17: 0 | AR17: 0 | AS17: 0 | AT17: 0
Y18: upper | Z18: 10490846.44 | AA18: -652689.7295 | AB18: 191089.9331 | AC18: 23916.74769 | AD18: =AD11-AD$10 -> -17768.09783 | AE18: -1133719.431 | AF18: 123032.4792 | AG18: 200403.4629 | AH18: 36700.12374 | AI18: -443683.3051 | AJ18: 98541.33056 | AK18: 128777.342 | AL18: 19430.27003 | AM18: 1294024.745 | AN18: 3567053.47 | AO18: 819692.4183 | AP18: 163811.7091 | AQ18: 304807.7028 | AR18: 154805.8361 | AS18: 8711483.486 | AT18: 1779362.95
Y20: Range | Z20: =ABS(Z18-Z16) -> 20981692.87 | AA20: =ABS(AA18-AA16) -> 1305379.459 | AB20: 382179.8661 | AC20: 47833.49538 | AD20: 35946.57613 | AE20: 2267438.863 | AF20: 246064.9584 | AG20: 400806.9259 | AH20: 73400.24749 | AI20: 887366.6101 | AJ20: 197082.6611 | AK20: 257554.684 | AL20: 38860.54006 | AM20: 2588049.49 | AN20: 7134106.94 | AO20: 1639384.837 | AP20: 327623.4182 | AQ20: 609615.4056 | AR20: 309611.6722 | AS20: 17422966.97 | AT20: 3558725.9
Y21: Rank | Z21: =_xlfn.RANK.AVG(Z20,$Z$20:$AT$20) -> 1 | AA21: =_xlfn.RANK.AVG(AA20,$Z$20:$AT$20) -> 8 | AB21: 12 | AC21: 19 | AD21: 21 | AE21: 6 | AF21: 16 | AG21: 11 | AH21: 18 | AI21: 9 | AJ21: 17 | AK21: 15 | AL21: 20 | AM21: 5 | AN21: 3 | AO21: 7 | AP21: 13 | AQ21: 10 | AR21: 14 | AS21: 2 | AT21: 4
Y23: Recorded Sensitivity Table
Z25: =INDEX($Z15:$AT15,MATCH(1,$Z$21:$AT$21,0)) -> M+V Market Share | AA25: =INDEX($Z15:$AT15,MATCH(2,$Z$21:$AT$21,0)) -> Working_Hours | AB25: =INDEX($Z15:$AT15,MATCH(3,$Z$21:$AT$21,0)) -> Presenteeism_Neuropathy | AC25: =INDEX($Z15:$AT15,MATCH(4,$Z$21:$AT$21,0)) -> Activity_Hours | AD25: =INDEX($Z15:$AT15,MATCH(5,$Z$21:$AT$21,0)) -> Absenteeism_Neuropathy | AE25: =INDEX($Z15:$AT15,MATCH(6,$Z$21:$AT$21,0)) -> Return to work_MI | AF25: =INDEX($Z15:$AT15,MATCH(7,$Z$21:$AT$21,0)) -> Activity restriction_Neuropathy | AG25: =INDEX($Z15:$AT15,MATCH(8,$Z$21:$AT$21,0)) -> Return to work_stroke | AH25: =INDEX($Z15:$AT15,MATCH(9,$Z$21:$AT$21,0)) -> Return to work_HF | AI25: =INDEX($Z15:$AT15,MATCH(10,$Z$21:$AT$21,0)) -> Presenteeism_Nephropathy | AJ25: =INDEX($Z15:$AT15,MATCH(11,$Z$21:$AT$21,0)) -> Presenteeism_MI | AK25: =INDEX($Z15:$AT15,MATCH(12,$Z$21:$AT$21,0)) -> Absenteeism_stroke | AL25: =INDEX($Z15:$AT15,MATCH(13,$Z$21:$AT$21,0)) -> Absenteeism_Nephropathy | AM25: =INDEX($Z15:$AT15,MATCH(14,$Z$21:$AT$21,0)) -> Activity restriction_Nephropathy | AN25: =INDEX($Z15:$AT15,MATCH(15,$Z$21:$AT$21,0)) -> Presenteeism_HF | AO25: =INDEX($Z15:$AT15,MATCH(16,$Z$21:$AT$21,0)) -> Absenteeism_MI | AP25: =INDEX($Z15:$AT15,MATCH(17,$Z$21:$AT$21,0)) -> Absenteeism_HF | AQ25: =INDEX($Z15:$AT15,MATCH(18,$Z$21:$AT$21,0)) -> Activity restriction_MI | AR25: =INDEX($Z15:$AT15,MATCH(19,$Z$21:$AT$21,0)) -> Presenteeism_stroke | AS25: =INDEX($Z15:$AT15,MATCH(20,$Z$21:$AT$21,0)) -> Activity restriction_HF | AT25: =INDEX($Z15:$AT15,MATCH(21,$Z$21:$AT$21,0)) -> Activity restriction_stroke
Y26: Lower | Z26: =INDEX($Z16:$AT16,MATCH(1,$Z$21:$AT$21,0)) -> -10490846.44 | AA26: =INDEX($Z16:$AT16,MATCH(2,$Z$21:$AT$21,0)) -> -8711483.486 | AB26: =INDEX($Z16:$AT16,MATCH(3,$Z$21:$AT$21,0)) -> -3567053.47 | AC26: =INDEX($Z16:$AT16,MATCH(4,$Z$21:$AT$21,0)) -> -1779362.95 | AD26: =INDEX($Z16:$AT16,MATCH(5,$Z$21:$AT$21,0)) -> -1294024.745 | AE26: =INDEX($Z16:$AT16,MATCH(6,$Z$21:$AT$21,0)) -> 1133719.431 | AF26: =INDEX($Z16:$AT16,MATCH(7,$Z$21:$AT$21,0)) -> -819692.4183 | AG26: =INDEX($Z16:$AT16,MATCH(8,$Z$21:$AT$21,0)) -> 652689.7295 | AH26: =INDEX($Z16:$AT16,MATCH(9,$Z$21:$AT$21,0)) -> 443683.3051 | AI26: =INDEX($Z16:$AT16,MATCH(10,$Z$21:$AT$21,0)) -> -304807.7028 | AJ26: =INDEX($Z16:$AT16,MATCH(11,$Z$21:$AT$21,0)) -> -200403.4629 | AK26: =INDEX($Z16:$AT16,MATCH(12,$Z$21:$AT$21,0)) -> -191089.9331 | AL26: =INDEX($Z16:$AT16,MATCH(13,$Z$21:$AT$21,0)) -> -163811.7091 | AM26: =INDEX($Z16:$AT16,MATCH(14,$Z$21:$AT$21,0)) -> -154805.8361 | AN26: =INDEX($Z16:$AT16,MATCH(15,$Z$21:$AT$21,0)) -> -128777.342 | AO26: =INDEX($Z16:$AT16,MATCH(16,$Z$21:$AT$21,0)) -> -123032.4792 | AP26: =INDEX($Z16:$AT16,MATCH(17,$Z$21:$AT$21,0)) -> -98541.33056 | AQ26: =INDEX($Z16:$AT16,MATCH(18,$Z$21:$AT$21,0)) -> -36700.12374 | AR26: =INDEX($Z16:$AT16,MATCH(19,$Z$21:$AT$21,0)) -> -23916.74769 | AS26: =INDEX($Z16:$AT16,MATCH(20,$Z$21:$AT$21,0)) -> -19430.27003 | AT26: =INDEX($Z16:$AT16,MATCH(21,$Z$21:$AT$21,0)) -> 18178.47831
Y27: Upper | Z27: =INDEX($Z18:$AT18,MATCH(1,$Z$21:$AT$21,0)) -> 10490846.44 | AA27: =INDEX($Z18:$AT18,MATCH(2,$Z$21:$AT$21,0)) -> 8711483.486 | AB27: =INDEX($Z18:$AT18,MATCH(3,$Z$21:$AT$21,0)) -> 3567053.47 | AC27: =INDEX($Z18:$AT18,MATCH(4,$Z$21:$AT$21,0)) -> 1779362.95 | AD27: =INDEX($Z18:$AT18,MATCH(5,$Z$21:$AT$21,0)) -> 1294024.745 | AE27: =INDEX($Z18:$AT18,MATCH(6,$Z$21:$AT$21,0)) -> -1133719.431 | AF27: =INDEX($Z18:$AT18,MATCH(7,$Z$21:$AT$21,0)) -> 819692.4183 | AG27: =INDEX($Z18:$AT18,MATCH(8,$Z$21:$AT$21,0)) -> -652689.7295 | AH27: =INDEX($Z18:$AT18,MATCH(9,$Z$21:$AT$21,0)) -> -443683.3051 | AI27: =INDEX($Z18:$AT18,MATCH(10,$Z$21:$AT$21,0)) -> 304807.7028 | AJ27: =INDEX($Z18:$AT18,MATCH(11,$Z$21:$AT$21,0)) -> 200403.4629 | AK27: =INDEX($Z18:$AT18,MATCH(12,$Z$21:$AT$21,0)) -> 191089.9331 | AL27: =INDEX($Z18:$AT18,MATCH(13,$Z$21:$AT$21,0)) -> 163811.7091 | AM27: =INDEX($Z18:$AT18,MATCH(14,$Z$21:$AT$21,0)) -> 154805.8361 | AN27: =INDEX($Z18:$AT18,MATCH(15,$Z$21:$AT$21,0)) -> 128777.342 | AO27: =INDEX($Z18:$AT18,MATCH(16,$Z$21:$AT$21,0)) -> 123032.4792 | AP27: =INDEX($Z18:$AT18,MATCH(17,$Z$21:$AT$21,0)) -> 98541.33056 | AQ27: =INDEX($Z18:$AT18,MATCH(18,$Z$21:$AT$21,0)) -> 36700.12374 | AR27: =INDEX($Z18:$AT18,MATCH(19,$Z$21:$AT$21,0)) -> 23916.74769 | AS27: =INDEX($Z18:$AT18,MATCH(20,$Z$21:$AT$21,0)) -> 19430.27003 | AT27: =INDEX($Z18:$AT18,MATCH(21,$Z$21:$AT$21,0)) -> -17768.09783
E120: 43033880.28

Sheet PSA simulation
A1: The Societal Impact of early intensified treatment in type 2 diabetic patients
A2: Probabilistic Sensitivity Analysis | C2: Table of content | D2: Results
A6: Parameter | B6: RR | C6: Event rates no treatment failure in M+V | H6: Event probabilities in 1st treatment failure M+V | U6: Event rates no treatment failure M+P | Z6: Event rates 1st treatment failure M+P | AN6: Acquisition costs | AR6: Complication costs | AX6: RESULTS | BD6: PSA results
A7: Base case | B7: RR type 2 diabetes mortality | C7: No TF_M+V_Stroke | D7: No TF_M+V_MI | E7: No TF_M+V_Heart Failure | F7: No TF_M+V_Neuropathy | G7: No TF_M+V_Nephropathy | H7: 1st TF_M+V_Stroke | I7: 1st TF_M+V_Neuropathy | J7: 1st TF_M+V_Nephropathy | K7: 2nd TF_I_Stroke | L7: 2nd TF_I_MI | M7: 2nd TF_I_Heart Failure | N7: 2nd TF_I_Neuropathy | O7: 2nd TF_I_Nephropathy | P7: 2nd TF_SU_Stroke | Q7: 2nd TF_SU_MI | R7: 2nd TF_SU_Heart Failure | S7: 2nd TF_SU_Neuropathy | T7: 2nd TF_SU_Nephropathy | U7: No TF_M+P_Stroke | V7: No TF_M+P_MI | W7: No TF_M+P_Heart Failure | X7: No TF_M+P_Neuropathy | Y7: No TF_M+P_Nephropathy | Z7: 1st TF_M+P_Stroke | AA7: 1st TF_M+P_MI | AB7: 1st TF_M+P_Heart Failure | AC7: 1st TF_M+P_Neuropathy | AD7: 2nd TF_I_Stroke | AE7: 2nd TF_I_MI | AF7: 2nd TF_I_Heart Failure | AG7: 2nd TF_I_Neuropathy | AH7: 2nd TF_I_Nephropathy | AI7: 2nd TF_SU_Stroke | AJ7: 2nd TF_SU_MI | AK7: 2nd TF_SU_Heart Failure | AL7: 2nd TF_SU_Neuropathy | AM7: 2nd TF_SU_Nephropathy | AN7: M | AO7: M+V | AP7: M+Insulin | AQ7: M+SU | AR7: Stroke | AS7: MI | AT7: Heart Failure | AU7: Neuropathy | AV7: Nephropathy | AX7: Avoided events | AY7: Avoided working hours lost | AZ7: Societal Impact | BA7: Complication costs | BB7: Direct medical costs | BE7: Avoided events | BF7: Avoided working hours lost | BG7: Societal Impact | BH7: Avoided complication costs | BI7: Direct medical costs
A8: Trials | B8: =relative_risk -> 1.85 | C8: =NoTF_stroke_combo -> 0.00010024561 | D8: =NoTF_MI_combo -> 0.0007036265368 | E8: =NoTF_HF_combo -> 0.001107709724 | F8: =NoTF_neuro_combo -> 0.002328864509 | G8: =NoTF_nephro_combo -> 0.0003010086031 | H8: =firstTF_stroke_combo -> 0.0001003462027 | I8: =firstTF_neuro_combo -> 0.000617095429 | J8: =firstTF_nephro_combo -> 0.0003019174011 | K8: =secTF_ins_stroke_combo -> 0.000501380294 | L8: =secTF_ins_MI_combo -> 0.003136891907 | M8: =secTF_ins_HF_combo -> 0.005319578163 | N8: =secTF_ins_neuro_combo -> 0.01740680615 | O8: =secTF_ins_nephro_combo -> 0.001852083518 | P8: =secTF_SU_stroke_combo -> 0.000501380294 | Q8: =secTF_SU_MI_combo -> 0.0007531116566 | R8: =secTF_SU_HF_combo -> 0.004527734249 | S8: =secTF_ins_neuro_combo -> 0.01740680615 | T8: =secTF_SU_nephro_combo -> 0.002107593232 | U8: =No_TF_stroke_mono -> 0.0004003207856 | V8: =NoTF_MI_mono -> 0.0007015110918 | W8: =NoTF_HF_mono -> 0.0003001052598 | X8: =NoTF_neuro_mono -> 0.001610016345 | Y8: =NoTF_nephro_mono -> 0.0005006268176 | Z8: =firstTF_stroke_mono -> 0.0002007831207 | AA8: =firstTF_MI_mono -> 0.0005041603718 | AB8: =firstTF_HF_mono -> 0.0004015263322 | AC8: =firstTF_neuro_mono -> 0.001327701495 | AD8: =secTF_ins_stroke_mono -> 0.000501380294 | AE8: =secTF_ins_MI_mono -> 0.003136891907 | AF8: =secTF_ins_HF_mono -> 0.005319578163 | AG8: =secTF_ins_neuro_mono -> 0.01740680615 | AH8: =secTF_ins_nephro_mono -> 0.001852083518 | AI8: =secTF_SU_stroke_mono -> 0.000501380294 | AJ8: =secTF_SU_MI_mono -> 0.0007531116566 | AK8: =secTF_SU_HF_mono -> 0.004527734249 | AL8: =secTF_SU_neuro_mono -> 0.009017382078 | AM8: =secTF_ins_nephro_mono -> 0.001852083518 | AN8: =cost_M -> 36.7005483 | AO8: =cost_MplusV -> 235.7553345 | AP8: =cost_Mplusinsulin -> 405.0644921 | AQ8: =cost_MplusSU -> 72.17243433 | AR8: =compl_cost_stroke -> 3061.47362 | AS8: =compl_cost_MI -> 3073.52328 | AT8: =compl_cost_hf -> 2026.54195 | AU8: =compl_cost_neuro -> 1859.1856 | AV8: =compl_cost_nephro -> 19084.04484 | AX8: =results_avoided_events -> 13467.23304 | AY8: =results_avoided_prod_loss -> 12984733.16 | AZ8: =results_SI -> 53524726.71 | BA8: =results_compl_costs -> 51397148.63 | BB8: =results_acqui_costs -> -805291688 | BD8: Average | BE8: =AVERAGE(AX9:AX1008) -> 13174.58468 | BF8: =AVERAGE(AY9:AY1008) -> 12698641.05 | BG8: =AVERAGE(AZ9:AZ1008) -> 52331827.91 | BH8: =AVERAGE(BA9:BA1008) -> 50862339.5 | BI8: =AVERAGE(BB9:BB1008) -> -802124009.7
A9: 1 | B9: 1.829803868 | C9: 9.681706066e-05 | D9: 0.0006887154267 | E9: 0.001290271285 | F9: 0.00207050464 | G9: 0.0002538762053 | H9: 9.235755846e-05 | I9: 0.0006186562449 | J9: 0.0003017370328 | K9: 0.0005405615478 | L9: 0.003377049832 | M9: 0.004811482467 | N9: 0.01520107015 | O9: 0.001860164453 | P9: 0.0005242990167 | Q9: 0.0006851871799 | R9: 0.004096539336 | S9: 0.01520107015 | T9: 0.001995331676 | U9: 0.0003678057397 | V9: 0.0007009102348 | W9: 0.0003011520703 | X9: 0.001619074073 | Y9: 0.0004194186945 | Z9: 0.00016790425 | AA9: 0.0004802543403 | AB9: 0.0004306350714 | AC9: 0.001382894981 | AD9: 0.0005139524743 | AE9: 0.003140440945 | AF9: 0.005829995436 | AG9: 0.01908489599 | AH9: 0.001844780986 | AI9: 0.0005366762506 | AJ9: 0.0007167030711 | AK9: 0.004701570657 | AL9: 0.008882998596 | AM9: 0.001844780986 | AN9: 40.31921109 | AO9: 249.2030123 | AP9: 366.2318785 | AQ9: 80.1806187 | AR9: 2589.073466 | AS9: 2908.935621 | AT9: 1958.580372 | AU9: 1766.73795 | AV9: 17674.21812 | AX9: 17703.06418 | AY9: 17452422.48 | AZ9: 72199228.09 | BA9: 57114186 | BB9: -852040330.7 | BD9: SD | BE9: =_xlfn.STDEV.S(AX9:AX1008) -> 2436.467117 | BF9: =_xlfn.STDEV.S(AY9:AY1008) -> 2447578.865 | BG9: =_xlfn.STDEV.S(AZ9:AZ1008) -> 10178333.2 | BH9: =_xlfn.STDEV.S(BA9:BA1008) -> 9053430.298 | BI9: =_xlfn.STDEV.S(BB9:BB1008) -> 111686121.7
A10: 2 | B10: 1.857469209 | C10: 0.0001060773606 | D10: 0.000760738541 | E10: 0.00118751258 | F10: 0.0025128563 | G10: 0.0003579207124 | H10: 0.0001017879186 | I10: 0.0005868914117 | J10: 0.0002672226751 | K10: 0.0004874751249 | L10: 0.003128677325 | M10: 0.005364585673 | N10: 0.01770677804 | O10: 0.001831761847 | P10: 0.0004662049755 | Q10: 0.0006465619041 | R10: 0.004414081474 | S10: 0.00794040453 | T10: 0.002087988907 | U10: 0.0003703239264 | V10: 0.0007626733223 | W10: 0.0003328558189 | X10: 0.001784189453 | Y10: 0.0004462750102 | Z10: 0.0001649212175 | AA10: 0.0004631454815 | AB10: 0.0003528952385 | AC10: 0.001278933452 | AD10: 0.0005028482753 | AF10: 0.005079776127 | AG10: 0.01860796084 | AH10: 0.001801183572 | AI10: 0.0005002605517 | AJ10: 0.0006850532938 | AK10: 0.004625807203 | AL10: 0.008151774544 | AM10: 0.002084971147 | AN10: 37.20132587 | AO10: 224.1537585 | AP10: 419.8753551 | AQ10: 75.27044675 | AR10: 3124.452715 | AS10: 2172.151995 | AT10: 2172.699598 | AU10: 1839.092872 | AV10: 22430.30249 | AX10: 11348.31438 | AY10: 11024416.65 | AZ10: 45598063.85 | BA10: 38735303.27 | BB10: -731147962
A11: 3 | B11: 1.84937099 | C11: 0.0001053345282 | D11: 0.0006153720144 | E11: 0.001346340795 | F11: 0.002275147138 | G11: 0.0002922922746 | H11: 8.67818205e-05 | I11: 0.0007480618351 | J11: 0.0002781542984 | K11: 0.0004617851235 | L11: 0.003083777544 | M11: 0.006644680793 | N11: 0.01678507105 | O11: 0.001819235138 | P11: 0.0005984891474 | Q11: 0.0009354600998 | R11: 0.005207752712 | S11: 0.008892558099 | T11: 0.002098258144 | U11: 0.0004272373966 | V11: 0.0007228261456 | W11: 0.0003142938872 | X11: 0.001435643921 | Y11: 0.0004768949124 | Z11: 0.0002066346126 | AA11: 0.0005840885276 | AB11: 0.0004202893641 | AC11: 0.001404494291 | AD11: 0.0004614265438 | AE11: 0.003134017921 | AF11: 0.005608047583 | AG11: 0.01778495028 | AH11: 0.002039319879 | AI11: 0.0005460344507 | AJ11: 0.0007947992145 | AK11: 0.005113455392 | AL11: 0.007819491378 | AM11: 0.002609544518 | AN11: 31.91850637 | AO11: 271.5643575 | AP11: 402.486183 | AQ11: 77.67584608 | AR11: 3180.565831 | AS11: 2385.908485 | AT11: 1530.55768 | AU11: 1776.277265 | AV11: 19150.96152 | AX11: 12139.58306 | AY11: 11297729.24 | AZ11: 46408010.9 | BA11: 60477010.88 | BB11: -986796797.2
A12: 4 | B12: 1.823388752 | C12: 8.733391783e-05 | D12: 0.0007915711066 | E12: 0.001094077589 | F12: 0.002124739155 | G12: 0.0002892111735 | H12: 9.949708337e-05 | I12: 0.0006548926725 | J12: 0.0003362662796 | K12: 0.0005127711069 | L12: 0.003175123793 | M12: 0.005776920857 | N12: 0.0163911717 | O12: 0.001918971353 | P12: 0.0005117235794 | Q12: 0.0008744657125 | R12: 0.004791948674 | S12: 0.008354113313 | T12: 0.002035817071 | U12: 0.0004162709944 | V12: 0.0006638282607 | W12: 0.0003018281434 | X12: 0.001617667895 | Y12: 0.000455215242 | Z12: 0.000255832071 | AA12: 0.0004430151773 | AB12: 0.000432950273 | AC12: 0.00118188876 | AD12: 0.0004745025844 | AE12: 0.003918615453 | AF12: 0.005473575877 | AG12: 0.0212019532 | AH12: 0.002176068469 | AI12: 0.0005081920138 | AJ12: 0.0007639075096 | AK12: 0.004302691161 | AL12: 0.0101374503 | AM12: 0.002051536329 | AN12: 35.73874412 | AO12: 229.5995353 | AP12: 422.3231375 | AQ12: 75.40210849 | AR12: 3233.258029 | AS12: 2849.903645 | AT12: 2031.744151 | AU12: 1914.236763 | AV12: 16825.19213 | AX12: 14356.9196 | AY12: 14345021.38 | AZ12: 59158594.74 | BA12: 48617010.65 | BB12: -762798135.7
A13: 5 | B13: 1.872332703 | C13: 0.0001037863097 | D13: 0.0006406729471 | E13: 0.001019797442 | F13: 0.002100827596 | G13: 0.0003277287089 | H13: 0.0001143344292 | I13: 0.0006059427479 | J13: 0.0003610266922 | K13: 0.0005318333414 | L13: 0.00359470719 | M13: 0.005332081823 | N13: 0.01656710657 | O13: 0.0020293933 | P13: 0.0004711083537 | Q13: 0.0008410234258 | R13: 0.003972904034 | S13: 0.01065682101 | T13: 0.001974541796 | U13: 0.0003734747969 | V13: 0.0008449991878 | W13: 0.0003065293084 | X13: 0.00134240569 | Y13: 0.0004928021324 | Z13: 0.0001899390808 | AA13: 0.0005534919475 | AB13: 0.0004147660432 | AC13: 0.00119471726 | AD13: 0.000514354261 | AE13: 0.003087633763 | AF13: 0.005642930516 | AG13: 0.01987653283 | AH13: 0.001799529394 | AI13: 0.0005491191322 | AJ13: 0.0006428502855 | AK13: 0.005102287278 | AL13: 0.008744131252 | AM13: 0.002072899879 | AN13: 39.68521742 | AO13: 253.1013818 | AP13: 360.0830654 | AQ13: 66.45048607 | AR13: 3171.177536 | AS13: 3094.326991 | AT13: 2095.311139 | AU13: 1723.719947 | AV13: 17686.45557 | AX13: 13570.08003 | AY13: 12431063.17 | AZ13: 51148384.58 | BA13: 48772316.36 | BB13: -888847437.8
A14: 6 | B14: 1.863047825 | C14: 9.715237191e-05 | D14: 0.0007336114741 | E14: 0.0008803087539 | F14: 0.002482100793 | G14: 0.0003202440406 | H14: 9.302260137e-05 | I14: 0.0006314494028 | J14: 0.0002869503413 | K14: 0.000500720335 | L14: 0.003010943861 | M14: 0.005650223454 | N14: 0.01576982846 | O14: 0.001780214798 | P14: 0.0004968775498 | Q14: 0.0008576269502 | R14: 0.005253741374 | S14: 0.00940455768 | T14: 0.001962612846 | U14: 0.0003653859729 | V14: 0.0007913411242 | W14: 0.0002713873669 | X14: 0.001571658963 | Y14: 0.0005018975672 | Z14: 0.000177057705 | AA14: 0.0004928090881 | AB14: 0.0003584781282 | AC14: 0.001124179361 | AD14: 0.0005296387334 | AE14: 0.002942394498 | AF14: 0.005367870407 | AG14: 0.01730013135 | AH14: 0.001828339203 | AI14: 0.000542418149 | AJ14: 0.0008776055893 | AK14: 0.004612002685 | AL14: 0.01006827756 | AM14: 0.002433707811 | AN14: 31.25912975 | AO14: 246.2830928 | AP14: 387.6274722 | AQ14: 73.98354001 | AR14: 3286.104075 | AS14: 2847.960872 | AT14: 1909.25306 | AU14: 1832.050896 | AV14: 17956.51949 | AX14: 13057.28237 | AY14: 12221371.64 | AZ14: 49978382.26 | BA14: 57658470.37 | BB14: -874770379
A15: 7 | B15: 1.80096544 | C15: 9.391357764e-05 | D15: 0.0006601749959 | E15: 0.001150624122 | F15: 0.002389598827 | G15: 0.0002956910388 | H15: 9.62995857e-05 | I15: 0.0005004658211 | J15: 0.0003926757168 | K15: 0.0004469776614 | L15: 0.003905985509 | M15: 0.004662264809 | N15: 0.02029842215 | O15: 0.001737676155 | P15: 0.0005161974777 | Q15: 0.0007744617234 | R15: 0.004062776197 | S15: 0.008718192788 | T15: 0.002343940062 | U15: 0.0004032405515 | V15: 0.0005455510234 | W15: 0.0003501323362 | X15: 0.001674794418 | Y15: 0.0005407403871 | Z15: 0.0001852520529 | AA15: 0.0004838891047 | AB15: 0.0004051526493 | AC15: 0.00126352234 | AD15: 0.0005590198147 | AE15: 0.002919518959 | AF15: 0.004930334196 | AG15: 0.01375104743 | AH15: 0.00188486795 | AI15: 0.0004646295749 | AJ15: 0.0007432305427 | AK15: 0.004181987013 | AL15: 0.008240319946 | AM15: 0.002181870976 | AN15: 29.35164995 | AO15: 202.6431557 | AP15: 388.6779676 | AQ15: 74.60408896 | AR15: 3795.637726 | AS15: 2971.426666 | AT15: 2076.668058 | AU15: 1908.018636 | AV15: 16958.23147 | AX15: 12727.38816 | AY15: 12424834.31 | AZ15: 51353155.91 | BA15: 46402189.48 | BB15: -671998873.5
A16: 8 | B16: 1.792318208 | C16: 0.0001105622932 | D16: 0.0008072253801 | E16: 0.001046491288 | F16: 0.002180590473 | G16: 0.0003134073611 | H16: 9.973493407e-05 | I16: 0.0006142442612 | J16: 0.0003070053207 | K16: 0.0005221463479 | L16: 0.003220965743 | M16: 0.005497803521 | N16: 0.01640643388 | O16: 0.001794646806 | P16: 0.000619640406 | Q16: 0.0008406549124 | R16: 0.004861484828 | S16: 0.009181184096 | T16: 0.002028103591 | U16: 0.0003843147865 | V16: 0.0006274267416 | W16: 0.0002678967891 | X16: 0.001495763085 | Y16: 0.000462985814 | Z16: 0.0001933802922 | AA16: 0.000504801184 | AB16: 0.0003606596122 | AC16: 0.001235440113 | AD16: 0.0005667572445 | AE16: 0.003148919129 | AF16: 0.005297366911 | AG16: 0.01827012013 | AH16: 0.00199463382 | AI16: 0.0004541019826 | AJ16: 0.0007495974415 | AK16: 0.004452387546 | AL16: 0.008210635357 | AM16: 0.002131640035 | AN16: 46.14570631 | AO16: 199.1953992 | AP16: 391.9126309 | AQ16: 84.78647799 | AR16: 2953.103057 | AS16: 3532.440225 | AT16: 2248.48734 | AU16: 1883.09238 | AV16: 18755.00816 | AX16: 10317.12069 | AY16: 10072952.68 | AZ16: 41377433.46 | BA16: 41021330.21 | BB16: -582893816.8
A17: 9 | B17: 1.803374232 | C17: 8.493075739e-05 | D17: 0.0006223802688 | E17: 0.001024217793 | F17: 0.00227474852 | G17: 0.0002763940758 | H17: 9.522407047e-05 | I17: 0.0005605487076 | J17: 0.00028507087 | K17: 0.0004919301368 | L17: 0.002932689567 | M17: 0.005826496961 | N17: 0.0149695779 | O17: 0.001551868397 | P17: 0.0005014911837 | Q17: 0.0007735591262 | R17: 0.004668626689 | S17: 0.01064879671 | T17: 0.001744662583 | U17: 0.0004083087271 | V17: 0.0007339846776 | W17: 0.0002727216352 | X17: 0.001707101683 | Y17: 0.0004884533895 | Z17: 0.0001395193456 | AA17: 0.0005663849375 | AB17: 0.0003821785137 | AC17: 0.001241444091 | AD17: 0.0005600402392 | AE17: 0.003417999848 | AF17: 0.005262301175 | AG17: 0.01913941705 | AH17: 0.001990807809 | AI17: 0.000452144675 | AJ17: 0.0007597692986 | AK17: 0.00472310511 | AL17: 0.009867463768 | AM17: 0.00219247893 | AN17: 35.8804426 | AO17: 226.6946284 | AP17: 363.8521585 | AQ17: 76.06437863 | AR17: 3087.041759 | AS17: 3224.9386 | AT17: 1843.657926 | AU17: 1894.768094 | AV17: 15526.71697 | AX17: 14395.84183 | AY17: 13497730.14 | AZ17: 55526738.71 | BA17: 60359382.44 | BB17: -771651969.2
A18: 10 | B18: 1.820721947 | C18: 9.134494946e-05 | D18: 0.0006840305685 | E18: 0.001042736556 | F18: 0.00220367782 | G18: 0.0003239241586 | H18: 9.625809939e-05 | I18: 0.0006143587338 | J18: 0.0003033751571 | K18: 0.0005977583076 | L18: 0.00334395006 | M18: 0.004918001233 | N18: 0.01799397453 | O18: 0.001909716192 | P18: 0.000523008396 | Q18: 0.0008246039047 | R18: 0.004503148851 | S18: 0.009159999176 | T18: 0.002191519906 | U18: 0.0004074824353 | V18: 0.0008324444465 | W18: 0.0002710083647 | X18: 0.001515537737 | Y18: 0.0004891046813 | Z18: 0.0002100424535 | AA18: 0.0004598646824 | AB18: 0.0004198176757 | AC18: 0.001365689339 | AD18: 0.0004179697991 | AE18: 0.00380530394 | AF18: 0.006186342933 | AG18: 0.01746001672 | AH18: 0.001833893507 | AI18: 0.0005496850843 | AJ18: 0.0007435552512 | AK18: 0.004277137419 | AL18: 0.00954175637 | AM18: 0.002269523192 | AN18: 36.35639422 | AO18: 226.7885053 | AP18: 409.9162378 | AQ18: 65.5637394 | AR18: 3239.531543 | AS18: 3060.170536 | AT18: 1717.308607 | AU18: 1696.260866 | AV18: 19061.7499 | AX18: 14987.29186 | AY18: 14487142.11 | AZ18: 59930923.34 | BA18: 54540096.19 | BB18: -756537510.4
A19: 11 | B19: 1.852871474 | C19: 9.671983224e-05 | D19: 0.0007346146675 | E19: 0.0009623243253 | F19: 0.002133681451 | G19: 0.000293387301 | H19: 0.0001046481179 | I19: 0.0005889296593 | J19: 0.0003011251157 | K19: 0.0004925460127 | L19: 0.002920772521 | M19: 0.004581864978 | N19: 0.01647781271 | O19: 0.001831807732 | P19: 0.00048948105 | Q19: 0.0006290075798 | R19: 0.004586292776 | S19: 0.008647651566 | T19: 0.001729077566 | U19: 0.0005226222312 | V19: 0.0006603434352 | W19: 0.000276937484 | X19: 0.001736548991 | Y19: 0.0005207866818 | Z19: 0.0002052045078 | AA19: 0.0004883220155 | AB19: 0.0003746917343 | AC19: 0.001318862953 | AD19: 0.0005430404688 | AE19: 0.003046171355 | AF19: 0.00475511198 | AG19: 0.01455486654 | AH19: 0.001763599773 | AI19: 0.0005255183451 | AJ19: 0.0008322607661 | AK19: 0.004191764954 | AL19: 0.007875045475 | AM19: 0.001951871118 | AN19: 36.53074888 | AO19: 254.5133587 | AP19: 369.7703915 | AQ19: 65.4388858 | AR19: 3410.79249 | AS19: 2901.72502 | AT19: 2146.265186 | AU19: 1484.974343 | AV19: 20512.11216 | AX19: 13732.47693 | AY19: 13390956.47 | AZ19: 55118508.43 | BA19: 55193156.96 | BB19: -905168779.3
A20: 12 | B20: 1.828082974 | C20: 8.99008092e-05 | D20: 0.000647705369 | E20: 0.001065812234 | F20: 0.002230477772 | G20: 0.0003081705854 | H20: 9.816526887e-05 | I20: 0.000706471608 | J20: 0.0002886180348 | K20: 0.0003914218611 | L20: 0.003226598859 | M20: 0.003972286965 | N20: 0.01689456716 | O20: 0.001696405212 | P20: 0.0005409256089 | Q20: 0.0006860677052 | R20: 0.004906891305 | S20: 0.008664928001 | T20: 0.00208866921 | U20: 0.0004039739006 | V20: 0.000881700449 | W20: 0.0003607530319 | X20: 0.001608191913 | Y20: 0.0004986834221 | Z20: 0.0001756249341 | AA20: 0.0005006559288 | AB20: 0.0004540742593 | AC20: 0.001443189879 | AD20: 0.0005291018436 | AE20: 0.00229575903 | AF20: 0.005116776893 | AG20: 0.01584137402 | AH20: 0.00188914827 | AI20: 0.0005024791611 | AJ20: 0.0008521404548 | AK20: 0.004612321377 | AL20: 0.009268756519 | AM20: 0.002557907243 | AN20: 34.6860978 | AO20: 238.0337498 | AP20: 429.4369821 | AQ20: 70.30025723 | AR20: 2772.329193 | AS20: 3183.852417 | AT20: 1770.975324 | AU20: 2033.73531 | AV20: 17103.98613 | AX20: 15943.24382 | AY20: 15077071.68 | AZ20: 62284910.75 | BA20: 65728273.39 | BB20: -807222513.1
A21: 13 | B21: 1.896612669 | C21: 0.0001240456592 | D21: 0.000721236662 | E21: 0.001104740438 | F21: 0.002216806616 | G21: 0.0002870138187 | H21: 0.0001192596509 | I21: 0.0006086447412 | J21: 0.0003056569335 | K21: 0.0005617622208 | L21: 0.002597744785 | M21: 0.005526941565 | N21: 0.01719499854 | O21: 0.001668052523 | P21: 0.0005088204424 | Q21: 0.0007839572418 | R21: 0.004972856465 | S21: 0.008487847542 | T21: 0.002004158206 | U21: 0.0004270793724 | V21: 0.0006610151562 | W21: 0.0002452666093 | X21: 0.001526190818 | Y21: 0.0005399145386 | Z21: 0.0001646197956 | AA21: 0.0004952955829 | AB21: 0.0003262732993 | AC21: 0.001333219276 | AD21: 0.0004921823627 | AE21: 0.00320256921 | AF21: 0.005479609043 | AG21: 0.0196747422 | AH21: 0.001774848905 | AI21: 0.0005086170403 | AJ21: 0.0007591241022 | AK21: 0.004543293027 | AL21: 0.009519978223 | AM21: 0.00170551775 | AN21: 37.94059327 | AO21: 213.9297748 | AP21: 473.5742048 | AQ21: 80.76670222 | AR21: 2976.584842 | AS21: 2786.241245 | AT21: 2066.772379 | AU21: 1950.190839 | AV21: 18464.87345 | AX21: 12799.38947 | AY21: 12708829.01 | AZ21: 52615463.61 | BA21: 44487261.51 | BB21: -654192241.4
A22: 14 | B22: 1.875893272 | C22: 0.000105584728 | D22: 0.0006396061292 | E22: 0.001188386171 | F22: 0.003175925081 | G22: 0.0002896606397 | H22: 0.000111468852 | I22: 0.0006634952309 | J22: 0.0002900133538 | K22: 0.0004809134044 | L22: 0.002982870446 | M22: 0.004771493363 | N22: 0.01411419294 | O22: 0.001778882848 | P22: 0.0004470468718 | Q22: 0.0007287898917 | R22: 0.004009712857 | S22: 0.008980559243 | T22: 0.002023628895 | U22: 0.0003751584671 | V22: 0.000671059902 | W22: 0.0002883264127 | X22: 0.001605576607 | Y22: 0.0005060558261 | Z22: 0.0001952924737 | AA22: 0.0005452542328 | AB22: 0.0004251984224 | AC22: 0.001283313229 | AD22: 0.0004455722218 | AE22: 0.003647353131 | AF22: 0.005441543923 | AG22: 0.01553093392 | AH22: 0.001869900828 | AI22: 0.0005406497667 | AJ22: 0.0007703576472 | AK22: 0.004177217897 | AL22: 0.008319817041 | AM22: 0.001951917633 | AN22: 40.47030149 | AO22: 241.0956083 | AP22: 438.8394614 | AQ22: 66.50445483 | AR22: 3363.11809 | AS22: 3061.399602 | AT22: 1908.491264 | AU22: 1907.171925 | AV22: 17113.44777 | AX22: 5744.335993 | AY22: 4854431.546 | AZ22: 19663654.22 | BA22: 36316091.12 | BB22: -796304474.6
A23: 15 | B23: 1.762216237 | C23: 8.994507446e-05 | D23: 0.000740198273 | E23: 0.001023964057 | F23: 0.00231932435 | G23: 0.000280434419 | H23: 0.0001011126735 | I23: 0.0005397804076 | J23: 0.0002808873497 | K23: 0.0005780910468 | L23: 0.003089030793 | M23: 0.005473759226 | N23: 0.01577836454 | O23: 0.001893412874 | P23: 0.0004742993358 | Q23: 0.000898896726 | R23: 0.004401732074 | S23: 0.007601778233 | T23: 0.002073580828 | U23: 0.0004117379728 | V23: 0.0006914100225 | W23: 0.0003721675424 | X23: 0.001456209149 | Y23: 0.0004511396024 | Z23: 0.0002093070878 | AA23: 0.0005459547328 | AB23: 0.000495115479 | AC23: 0.001454465035 | AD23: 0.0005740007219 | AE23: 0.003862797513 | AF23: 0.005132631955 | AG23: 0.01722535734 | AH23: 0.001891879306 | AI23: 0.0005035916478 | AJ23: 0.0007339313499 | AK23: 0.004692263691 | AL23: 0.008819664589 | AM23: 0.002478667275 | AN23: 40.93265674 | AO23: 212.5149442 | AP23: 387.1014552 | AQ23: 69.68715686 | AR23: 2551.613507 | AS23: 2899.860835 | AT23: 2003.372531 | AU23: 1893.1275 | AV23: 20995.57309 | AX23: 15372.35192 | AY23: 14628900.99 | AZ23: 59766823.33 | BA23: 63054949.62 | BB23: -677618434.5
A24: 16 | B24: 1.809478152 | C24: 0.0001071579106 | D24: 0.0006593622647 | E24: 0.001161223296 | F24: 0.002055303121 | G24: 0.0002534181054 | H24: 9.616223748e-05 | I24: 0.000569865649 | J24: 0.0003055358124 | K24: 0.0005249977333 | L24: 0.00334914172 | M24: 0.005688407096 | N24: 0.01877886725 | O24: 0.001445770411 | P24: 0.0004621341786 | Q24: 0.0009012045623 | R24: 0.004260713955 | S24: 0.008813637392 | T24: 0.001870331386 | U24: 0.0004163840525 | V24: 0.0008170500325 | W24: 0.0002386606645 | X24: 0.001814981865 | Y24: 0.0004282262593 | Z24: 0.0002114483408 | AA24: 0.000495498534 | AB24: 0.0003582726479 | AC24: 0.001576207248 | AD24: 0.0006020098836 | AE24: 0.002847957054 | AF24: 0.004572359845 | AG24: 0.01888379281 | AH24: 0.001948385583 | AI24: 0.000584813803 | AJ24: 0.0007917806157 | AK24: 0.004678574357 | AL24: 0.009912823495 | AM24: 0.002171709012 | AN24: 35.93831871 | AO24: 202.5347269 | AP24: 539.3394982 | AQ24: 69.18174972 | AR24: 2796.456593 | AS24: 3051.062445 | AT24: 2028.694248 | AU24: 1658.50146 | AV24: 18188.16957 | AX24: 19068.55245 | AY24: 18739602.74 | AZ24: 77789774.66 | BA24: 63851856.94 | BB24: -587659426.7
A25: 17 | B25: 1.82132812 | C25: 9.349909899e-05 | D25: 0.0006888201198 | E25: 0.00116749414 | F25: 0.002428933144 | G25: 0.000299817265 | H25: 0.0001051452107 | I25: 0.0006981017636 | J25: 0.0004094857268 | K25: 0.0004840561611 | L25: 0.002870427797 | M25: 0.005520083595 | N25: 0.01985473162 | O25: 0.001753029439 | P25: 0.0004730986104 | Q25: 0.0008032846336 | R25: 0.005080949662 | S25: 0.008420383385 | T25: 0.002097608405 | U25: 0.0003821728164 | V25: 0.0006885975218 | W25: 0.0002764697856 | X25: 0.001867708154 | Y25: 0.0004951021877 | Z25: 0.0001969060287 | AA25: 0.0005094177033 | AB25: 0.0003134212171 | AC25: 0.001341120714 | AD25: 0.0005302934568 | AE25: 0.002927990306 | AF25: 0.006347537988 | AG25: 0.01971853115 | AH25: 0.002102686336 | AI25: 0.0005482679771 | AJ25: 0.0007538232289 | AK25: 0.004357714794 | AL25: 0.009121861818 | AM25: 0.001864694369 | AN25: 37.80820432 | AO25: 260.6480911 | AP25: 339.7518417 | AQ25: 54.13531945 | AR25: 2661.30224 | AS25: 3267.419047 | AT25: 1931.863823 | AU25: 1925.314992 | AV25: 16448.01 | AX25: 12951.3093 | AY25: 12956048.79 | AZ25: 54027039.36 | BA25: 38952209.14 | BB25: -947947618.5
A26: 18 | B26: 1.817335916 | C26: 0.0001092859017 | D26: 0.000631420685 | E26: 0.001229888581 | F26: 0.00266085209 | G26: 0.0002737329441 | H26: 0.0001106557224 | I26: 0.0006003518321 | J26: 0.0002874263074 | K26: 0.0004836550572 | L26: 0.003511976373 | M26: 0.004750488489 | N26: 0.01554707881 | O26: 0.001759560749 | P26: 0.0005442325253 | Q26: 0.000792686285 | R26: 0.00435523673 | S26: 0.009296675738 | T26: 0.00280228316 | U26: 0.0004145004394 | V26: 0.0007106406331 | W26: 0.0003038427529 | X26: 0.001573945814 | Y26: 0.0005128964918 | Z26: 0.0001931744009 | AA26: 0.0004595381757 | AB26: 0.0004654110474 | AC26: 0.001309970503 | AD26: 0.000529766317 | AE26: 0.003524119067 | AF26: 0.005210728015 | AG26: 0.01953788527 | AH26: 0.002070682706 | AI26: 0.0005115967744 | AJ26: 0.0007814267508 | AK26: 0.004108837089 | AL26: 0.009658499427 | AM26: 0.002000135834 | AN26: 42.29209219 | AO26: 258.3808197 | AP26: 377.3788618 | AQ26: 82.32773976 | AR26: 2479.845824 | AS26: 3210.394872 | AT26: 2394.011858 | AU26: 1733.257379 | AV26: 21600.64935 | AX26: 10068.43992 | AY26: 9603647.525 | AZ26: 39873837.18 | BA26: 38224044.14 | BB26: -890727471
A27: 19 | B27: 1.83813157 | C27: 0.0001055792827 | D27: 0.0006523164018 | E27: 0.001080136086 | F27: 0.002637030502 | G27: 0.0003176331863 | H27: 9.205455816e-05 | I27: 0.0007086246369 | J27: 0.0002722786463 | K27: 0.0005754924302 | L27: 0.002597305233 | M27: 0.005754874854 | N27: 0.01615390361 | O27: 0.001667413313 | P27: 0.0004787277626 | Q27: 0.0007848584411 | R27: 0.005212847842 | S27: 0.008318853588 | T27: 0.002627637005 | U27: 0.0004384702104 | V27: 0.0006245831578 | W27: 0.0002922602074 | X27: 0.001744718464 | Y27: 0.0005705369974 | Z27: 0.0002291467795 | AA27: 0.0005018874099 | AB27: 0.0003886365625 | AC27: 0.001279754208 | AD27: 0.0006263883793 | AE27: 0.003106635256 | AF27: 0.005368763052 | AG27: 0.01473390611 | AH27: 0.001710445141 | AI27: 0.0004917030124 | AJ27: 0.0007673490809 | AK27: 0.004683051527 | AL27: 0.007711556357 | AM27: 0.002140677361 | AN27: 33.37962518 | AO27: 263.5419909 | AP27: 377.1259599 | AQ27: 82.66292486 | AR27: 3116.547394 | AS27: 3349.176792 | AT27: 2112.53206 | AU27: 2036.205074 | AV27: 17786.886 | AX27: 9942.525714 | AY27: 9402615.941 | AZ27: 38536374.35 | BA27: 42674038.48 | BB27: -950300574.1
A28: 20 | B28: 1.849558652 | C28: 8.711103636e-05 | D28: 0.0006295610551 | E28: 0.001196762459 | F28: 0.002715369204 | G28: 0.0003552332218 | H28: 9.537551017e-05 | I28: 0.0006810331904 | J28: 0.0002916667752 | K28: 0.0005550280746 | L28: 0.00316836357 | M28: 0.005589681594 | N28: 0.01604510364 | O28: 0.001834752948 | P28: 0.0004824184836 | Q28: 0.0009518561566 | R28: 0.004579216198 | S28: 0.009982690452 | T28: 0.002079584061 | U28: 0.0004088043231 | V28: 0.000698662109 | W28: 0.0002640094729 | X28: 0.0015421949 | Y28: 0.0005071180437 | Z28: 0.0001962471671 | AA28: 0.0004983261814 | AB28: 0.0004399822104 | AC28: 0.001435882278 | AD28: 0.0005128905476 | AE28: 0.003210763812 | AF28: 0.0057696315 | AG28: 0.01793823654 | AH28: 0.001708275071 | AI28: 0.0004561595888 | AJ28: 0.0007639382246 | AK28: 0.004473791266 | AL28: 0.008624602338 | AM28: 0.001995367449 | AN28: 37.70718683 | AO28: 237.6416746 | AP28: 387.1530964 | AQ28: 77.46820974 | AR28: 2755.404094 | AS28: 3336.937514 | AT28: 2135.407292 | AU28: 2109.215598 | AV28: 16512.05089 | AX28: 8840.613789 | AY28: 8233567.854 | AZ28: 33954310.5 | BA28: 36524119.38 | BB28: -806416410
A29: 21 | B29: 1.885313433 | C29: 0.0001009267238 | D29: 0.0006585943284 | E29: 0.001225691085 | F29: 0.002239463284 | G29: 0.0003072332738 | H29: 9.405509921e-05 | I29: 0.0006527771177 | J29: 0.0003165497321 | K29: 0.000494163268 | L29: 0.003034036295 | M29: 0.005466712555 | N29: 0.01517157702 | O29: 0.001875520119 | P29: 0.0005226469252 | Q29: 0.000792909683 | R29: 0.004185477591 | S29: 0.009354401025 | T29: 0.002163046656 | U29: 0.0003411572506 | V29: 0.0007210732231 | W29: 0.0003020682794 | X29: 0.001392433446 | Y29: 0.0004522328965 | Z29: 0.0002154436439 | AA29: 0.0005453618356 | AB29: 0.0004287779463 | AC29: 0.001310424381 | AD29: 0.0005070355242 | AE29: 0.003409888828 | AF29: 0.006170531686 | AG29: 0.01825592893 | AH29: 0.001997100132 | AI29: 0.0005285588951 | AJ29: 0.0008865558282 | AK29: 0.004548699225 | AL29: 0.01096538708 | AM29: 0.002187294285 | AN29: 29.98271497 | AO29: 213.0888736 | AP29: 385.5305715 | AQ29: 61.32979958 | AR29: 2843.697877 | AS29: 3271.113821 | AT29: 1745.051106 | AU29: 1811.297252 | AV29: 27108.73927 | AX29: 13990.45823 | AY29: 13466041.99 | AZ29: 55782779.09 | BA29: 49155669.14 | BB29: -726155194.1
A30: 22 | B30: 1.93752997 | C30: 0.0001116366825 | D30: 0.0006504952768 | E30: 0.001210205316 | F30: 0.002154017574 | G30: 0.0003388281639 | H30: 0.0001020671877 | I30: 0.0006944875013 | J30: 0.0003185590264 | K30: 0.0004694419297 | L30: 0.003353237258 | M30: 0.004738015798 | N30: 0.01799368267 | O30: 0.001882584847 | P30: 0.0005507741123 | Q30: 0.0007184316783 | R30: 0.003651585057 | S30: 0.007456505772 | T30: 0.002003480003 | U30: 0.0003637119956 | V30: 0.0006876392705 | W30: 0.0003190305495 | X30: 0.001611946354 | Y30: 0.0004582762584 | Z30: 0.0001900148213 | AA30: 0.000533561132 | AB30: 0.0003922273813 | AC30: 0.001413068363 | AD30: 0.0004423027935 | AE30: 0.003119375995 | AF30: 0.00682951608 | AG30: 0.01921213478 | AH30: 0.002057887963 | AI30: 0.0004686628046 | AJ30: 0.000785431724 | AK30: 0.004988932916 | AL30: 0.01088509807 | AM30: 0.00227959313 | AN30: 36.29339267 | AO30: 270.2581557 | AP30: 422.3243662 | AQ30: 74.54713459 | AR30: 3029.199795 | AS30: 2935.443826 | AT30: 1951.751859 | AU30: 1910.701337 | AV30: 19611.96424 | AX30: 18192.61047 | AY30: 17772669.09 | AZ30: 73625559.23 | BA30: 57850259.82 | BB30: -954693369.6
A31: 23 | B31: 1.84903723 | C31: 0.0001008945882 | D31: 0.0006805097476 | E31: 0.001111365542 | F31: 0.002345916585 | G31: 0.0003028514886 | H31: 0.000107515405 | I31: 0.0005752880246 | J31: 0.0003124919313 | K31: 0.0005345812583 | L31: 0.003197898798 | M31: 0.004709471446 | N31: 0.01724553073 | O31: 0.001669984071 | P31: 0.0004530477485 | Q31: 0.0007180368927 | R31: 0.00398275193 | S31: 0.008880008767 | T31: 0.001883449515 | U31: 0.0003671998825 | V31: 0.0007163545893 | W31: 0.0003196286657 | X31: 0.001646130762 | Y31: 0.0004083645362 | Z31: 0.0002175468572 | AA31: 0.0004536827268 | AB31: 0.0003483485036 | AC31: 0.001194743841 | AD31: 0.0005311960536 | AE31: 0.003164924757 | AF31: 0.005466576379 | AG31: 0.01502741515 | AH31: 0.001905202165 | AI31: 0.0004237301215 | AJ31: 0.0007586086763 | AK31: 0.005233618655 | AL31: 0.007990505567 | AM31: 0.001897600183 | AN31: 37.23866826 | AO31: 208.3185758 | AP31: 358.439315 | AQ31: 73.30394825 | AR31: 3409.590075 | AS31: 2671.589078 | AT31: 1780.746116 | AU31: 2075.1741 | AV31: 20278.52919 | AX31: 11929.25409 | AY31: 11296104.66 | AZ31: 46561142.04 | BA31: 38563330.33 | BB31: -680196258.9
A32: 24 | B32: 1.880024624 | C32: 0.0001132277433 | D32: 0.000694165417 | E32: 0.001063531953 | F32: 0.002495463824 | G32: 0.0002625447487 | H32: 8.997077433e-05 | I32: 0.0005303015021 | J32: 0.0003414425423 | K32: 0.0005899027758 | L32: 0.003463871677 | M32: 0.005929565432 | N32: 0.01509913955 | O32: 0.001775140459 | P32: 0.0005208397935 | Q32: 0.0007127589195 | R32: 0.004527699259 | S32: 0.007168653204 | T32: 0.002131159281 | U32: 0.0003987962197 | V32: 0.0008156133548 | W32: 0.0003050371602 | X32: 0.00204479602 | Y32: 0.0004792209952 | Z32: 0.0002360142911 | AA32: 0.000478948694 | AB32: 0.0004219862568 | AC32: 0.001260430177 | AD32: 0.0005007425598 | AE32: 0.002882388597 | AF32: 0.004484708914 | AG32: 0.01588940914 | AH32: 0.002002133253 | AI32: 0.0004481190092 | AJ32: 0.0007254266832 | AK32: 0.004494356331 | AL32: 0.00849060019 | AM32: 0.002208420177 | AN32: 30.38256061 | AO32: 279.1463961 | AP32: 375.9585109 | AQ32: 58.53019014 | AR32: 2743.866747 | AS32: 3243.006651 | AT32: 1755.467769 | AU32: 1875.217117 | AV32: 25934.64288 | AX32: 14958.42493 | AY32: 14268615.44 | AZ32: 58843934.85 | BA32: 56376166.54 | BB32: -1048456876
A33: 25 | B33: 1.871104913 | C33: 0.0001019193482 | D33: 0.0007364169898 | E33: 0.001071061709 | F33: 0.002253765327 | G33: 0.0003182159117 | H33: 9.02455998e-05 | I33: 0.0006797736066 | J33: 0.0003100328726 | K33: 0.000490920294 | L33: 0.003371740218 | M33: 0.005206106188 | N33: 0.01582888053 | O33: 0.001813837484 | P33: 0.0004906556062 | Q33: 0.0007588584423 | R33: 0.004732121514 | S33: 0.008803452667 | T33: 0.002016963025 | U33: 0.0003978337674 | V33: 0.0008287177886 | W33: 0.0002702501004 | X33: 0.0017433468 | Y33: 0.0004841400275 | Z33: 0.0001742179203 | AA33: 0.0005493382976 | AB33: 0.000377951401 | AC33: 0.001253444288 | AD33: 0.0005108998146 | AE33: 0.003164949346 | AF33: 0.005071052003 | AG33: 0.01833344767 | AH33: 0.001625944432 | AI33: 0.000492155007 | AJ33: 0.0006570689224 | AK33: 0.004611128771 | AL33: 0.01032402322 | AM33: 0.002227434713 | AN33: 35.50439042 | AO33: 207.9104141 | AP33: 377.2307056 | AQ33: 72.34406178 | AR33: 2920.423288 | AS33: 3718.373082 | AT33: 2062.432286 | AU33: 1753.970213 | AV33: 19555.53782 | AX33: 15164.80386 | AY33: 14670504.13 | AZ33: 60696249.27 | BA33: 54916795.03 | BB33: -677659110.9
A34: 26 | B34: 1.849145882 | C34: 0.0001023821444 | D34: 0.0007223670248 | E34: 0.001128522724 | F34: 0.00241638691 | G34: 0.0003271321369 | H34: 8.689553382e-05 | I34: 0.000564291994 | J34: 0.0002997970497 | K34: 0.000519037159 | L34: 0.002812181269 | M34: 0.004432134042 | N34: 0.01722594395 | O34: 0.001723780932 | P34: 0.0004206912028 | Q34: 0.0008206153022 | R34: 0.005140645235 | S34: 0.008440478046 | T34: 0.002263924832 | U34: 0.0003995868328 | V34: 0.0008430453766 | W34: 0.0002861925441 | X34: 0.001672716067 | Y34: 0.0005970327628 | Z34: 0.0001865873711 | AA34: 0.0004487807935 | AB34: 0.0004782820979 | AC34: 0.00157763919 | AD34: 0.0005454681248 | AE34: 0.00317511031 | AF34: 0.00519978169 | AG34: 0.01796182286 | AH34: 0.001778940884 | AI34: 0.0005667210352 | AJ34: 0.000650644964 | AK34: 0.004250916916 | AL34: 0.008953656093 | AM34: 0.001963483322 | AN34: 39.62340132 | AO34: 235.0166331 | AP34: 364.3053283 | AQ34: 72.9538634 | AR34: 2977.185161 | AS34: 3160.977348 | AT34: 2117.412072 | AU34: 1855.822492 | AV34: 20713.39343 | AX34: 13279.13231 | AY34: 13085882.35 | AZ34: 54243681.74 | BA34: 49269681.66 | BB34: -797492915.5
A35: 27 | B35: 1.887509059 | C35: 0.0001059092716 | D35: 0.000749778404 | E35: 0.001172756163 | F35: 0.002340440601 | G35: 0.000279381451 | H35: 9.96296985e-05 | I35: 0.0007356179654 | J35: 0.0002719698186 | K35: 0.0004675592427 | L35: 0.003381127793 | M35: 0.005625944827 | N35: 0.0159793346 | O35: 0.002199628189 | P35: 0.0005078028848 | Q35: 0.0006833822316 | R35: 0.00384941466 | S35: 0.008078144458 | T35: 0.002137143122 | U35: 0.0003400981276 | V35: 0.0007161294749 | W35: 0.000312914161 | X35: 0.00157555516 | Y35: 0.0005343437236 | Z35: 0.0002123543515 | AA35: 0.0006143948788 | AB35: 0.0004174716094 | AC35: 0.0013463028 | AD35: 0.0005580178981 | AE35: 0.002869993339 | AF35: 0.006010857204 | AG35: 0.02088486706 | AH35: 0.001637070936 | AI35: 0.0005069215335 | AJ35: 0.0007698514041 | AK35: 0.004839063474 | AL35: 0.008918135806 | AM35: 0.001971110224 | AN35: 42.30735435 | AO35: 271.1036005 | AP35: 409.3863928 | AQ35: 80.68416748 | AR35: 2715.645843 | AS35: 2886.709782 | AT35: 1732.303477 | AU35: 1997.143899 | AV35: 18342.60159 | AX35: 13816.11383 | AY35: 13019297.66 | AZ35: 53452763.28 | BA35: 56731653.36 | BB35: -938468722.3
A36: 28 | B36: 1.830643328 | C36: 9.626106458e-05 | D36: 0.0007633459529 | E36: 0.001182295136 | F36: 0.002423471826 | G36: 0.0002698004554 | H36: 9.924181207e-05 | I36: 0.00064421538 | J36: 0.000296325163 | K36: 0.0005310002393 | L36: 0.003502856263 | M36: 0.006237503208 | N36: 0.01924267704 | O36: 0.001854974212 | P36: 0.0005048030765 | Q36: 0.0007414246299 | R36: 0.004512755261 | S36: 0.01004733706 | T36: 0.002213097716 | U36: 0.0004080971719 | V36: 0.0007770305843 | W36: 0.0003006561051 | X36: 0.001384518343 | Y36: 0.0004305280789 | Z36: 0.0001830623384 | AA36: 0.0004938478758 | AB36: 0.000439881702 | AC36: 0.001301986872 | AD36: 0.0004543756159 | AE36: 0.003378842952 | AF36: 0.005568162745 | AG36: 0.01454001147 | AH36: 0.002176655323 | AI36: 0.0005966103137 | AJ36: 0.0007361032695 | AK36: 0.003757568988 | AL36: 0.008797822056 | AM36: 0.002327112274 | AN36: 34.5844862 | AO36: 207.4970534 | AP36: 475.8312683 | AQ36: 66.45819554 | AR36: 3564.495513 | AS36: 2966.829171 | AT36: 2251.358881 | AU36: 1673.625646 | AV36: 21020.64631 | AX36: 10699.53679 | AY36: 10242481.78 | AZ36: 42191346.01 | BA36: 47965166.24 | BB36: -643389983.9
A37: 29 | B37: 1.806853383 | C37: 9.475754845e-05 | D37: 0.0006979677678 | E37: 0.0009756124591 | F37: 0.002305279484 | G37: 0.0002753218483 | H37: 0.0001042583479 | I37: 0.0006161263341 | J37: 0.0003319430488 | K37: 0.0004279442024 | L37: 0.003657904131 | M37: 0.005013002417 | N37: 0.01802864273 | O37: 0.002020363633 | P37: 0.0004827573451 | Q37: 0.0006961686027 | R37: 0.005070394055 | S37: 0.008829515759 | T37: 0.002069653241 | U37: 0.0003815760842 | V37: 0.0007383509362 | W37: 0.0003050203427 | X37: 0.001523421237 | Y37: 0.0003717164611 | Z37: 0.0001863125407 | AA37: 0.0005792435495 | AB37: 0.00044067353 | AC37: 0.001339986925 | AD37: 0.000489990137 | AE37: 0.003217611764 | AF37: 0.004440037576 | AG37: 0.01912549968 | AH37: 0.001702044062 | AI37: 0.0006769936873 | AJ37: 0.0008507346058 | AK37: 0.004858920804 | AL37: 0.007684923998 | AM37: 0.001989603993 | AN37: 33.72650149 | AO37: 290.559606 | AP37: 453.3994405 | AQ37: 71.6834693 | AR37: 2911.481663 | AS37: 3261.952708 | AT37: 2221.965081 | AU37: 1999.380162 | AV37: 18321.94945 | AX37: 12983.59564 | AY37: 12167690.55 | AZ37: 50302101.6 | BA37: 42773767.44 | BB37: -1055042575
A38: 30 | B38: 1.796546052 | C38: 0.0001062426211 | D38: 0.0007090877286 | E38: 0.001110029729 | F38: 0.00213048837 | G38: 0.0003229761562 | H38: 8.838604122e-05 | I38: 0.0007018447486 | J38: 0.0002958270262 | K38: 0.0004481101442 | L38: 0.002989688159 | M38: 0.006437756372 | N38: 0.01853753327 | O38: 0.001590182059 | P38: 0.0006173514887 | Q38: 0.0008204625408 | R38: 0.003918694303 | S38: 0.009478138031 | T38: 0.002082763018 | U38: 0.0004014824606 | V38: 0.000654979988 | W38: 0.0003740058935 | X38: 0.001461265908 | Y38: 0.0004703250842 | Z38: 0.0001865405881 | AA38: 0.0005401420825 | AB38: 0.000367088189 | AC38: 0.001314609605 | AD38: 0.0005707805535 | AE38: 0.003209597549 | AF38: 0.005300649881 | AG38: 0.01794357753 | AH38: 0.001744344374 | AI38: 0.0005039726799 | AJ38: 0.0007392862685 | AK38: 0.004214484513 | AL38: 0.009344170834 | AM38: 0.00193080047 | AN38: 38.49532155 | AO38: 189.4336448 | AP38: 409.5490161 | AQ38: 69.45968731 | AR38: 2736.454896 | AS38: 2322.6778 | AT38: 1902.476109 | AU38: 1935.570159 | AV38: 18980.26695 | AX38: 13690.8068 | AY38: 13304818.28 | AZ38: 54978532 | BA38: 42437559.5 | BB38: -566213668.4
A39: 31 | B39: 1.869809341 | C39: 8.640652995e-05 | D39: 0.0006095911182 | E39: 0.001319749381 | F39: 0.002080661042 | G39: 0.0003176254069 | H39: 8.862591739e-05 | I39: 0.0006512931088 | J39: 0.0002922174932 | K39: 0.0005821371572 | L39: 0.00288464202 | M39: 0.006579090278 | N39: 0.01698916679 | O39: 0.002127634804 | P39: 0.0004630436463 | Q39: 0.0007497908186 | R39: 0.004654691497 | S39: 0.008899360149 | T39: 0.002394793341 | U39: 0.0004874541637 | V39: 0.0007464515301 | W39: 0.0002938617741 | X39: 0.001631436856 | Y39: 0.0004879179724 | Z39: 0.0002354164328 | AA39: 0.0005018748579 | AB39: 0.0004665868733 | AC39: 0.001136098961 | AD39: 0.0004844682384 | AE39: 0.003212900397 | AF39: 0.004746209614 | AG39: 0.0178632051 | AH39: 0.0018634132 | AI39: 0.0004304630137 | AJ39: 0.0007004330984 | AK39: 0.00409388606 | AL39: 0.008276197817 | AM39: 0.001984401859 | AN39: 38.88956145 | AO39: 216.400913 | AP39: 428.1916585 | AQ39: 81.18220066 | AR39: 3385.20135 | AS39: 3443.041294 | AT39: 1731.187204 | AU39: 1960.441069 | AV39: 15710.78816 | AX39: 12496.7989 | AY39: 12191323.63 | AZ39: 50739127.25 | BA39: 44173892.27 | BB39: -680698578.6
A40: 32 | B40: 1.776690507 | C40: 0.000111271294 | D40: 0.0005732459841 | E40: 0.001326326744 | F40: 0.002509854589 | G40: 0.0002744192836 | H40: 9.591056845e-05 | I40: 0.0007169035318 | J40: 0.0002734120677 | K40: 0.0005249693124 | L40: 0.003762077736 | M40: 0.00570108806 | N40: 0.01951181993 | O40: 0.002360809491 | P40: 0.000526635551 | Q40: 0.0007657557666 | R40: 0.003888460354 | S40: 0.008722895257 | T40: 0.002064481141 | U40: 0.0003729950296 | V40: 0.0005574877434 | W40: 0.0003091793641 | X40: 0.001662304802 | Y40: 0.0005342760505 | Z40: 0.000187545327 | AA40: 0.0004899861134 | AB40: 0.0003964836125 | AC40: 0.0013755104 | AD40: 0.0004546312361 | AE40: 0.003146821311 | AF40: 0.006097377696 | AG40: 0.02113319189 | AH40: 0.002002698816 | AI40: 0.0005358905962 | AJ40: 0.0008343882323 | AK40: 0.004380175256 | AL40: 0.008907219964 | AM40: 0.002159977505 | AN40: 35.27604654 | AO40: 214.8006058 | AP40: 446.337193 | AQ40: 81.89870611 | AR40: 3309.879864 | AS40: 3429.436325 | AT40: 1904.535546 | AU40: 1892.637407 | AV40: 20546.50786 | AX40: 13237.95314 | AY40: 12625155.13 | AZ40: 51988498.54 | BA40: 61921017.95 | BB40: -681156487.2
A41: 33 | B41: 1.743257875 | C41: 8.618492192e-05 | D41: 0.0006893263742 | E41: 0.001090277108 | F41: 0.002474903359 | G41: 0.0003028191034 | H41: 8.40207977e-05 | I41: 0.0006309131794 | J41: 0.0002944258356 | K41: 0.0005064204676 | L41: 0.00347570885 | M41: 0.005583605653 | N41: 0.0150103412 | O41: 0.002340159933 | P41: 0.000528457543 | Q41: 0.0008551916566 | R41: 0.003654419933 | S41: 0.008581476306 | T41: 0.00178861245 | U41: 0.0004058269593 | V41: 0.0007515102764 | W41: 0.0002844510915 | X41: 0.001721943188 | Y41: 0.0004570468828 | Z41: 0.0001714975053 | AA41: 0.0005494290817 | AB41: 0.0003053879482 | AC41: 0.001279747345 | AD41: 0.0005085153189 | AE41: 0.003265201127 | AF41: 0.005611720268 | AG41: 0.01500670662 | AH41: 0.00160983873 | AI41: 0.000488569712 | AJ41: 0.000775981295 | AK41: 0.004837319632 | AL41: 0.007125123538 | AM41: 0.002498040098 | AN41: 43.29292758 | AO41: 217.0549241 | AP41: 383.2741408 | AQ41: 63.5245532 | AR41: 3135.184235 | AS41: 3081.301149 | AT41: 2102.200942 | AU41: 1862.453043 | AV41: 17886.54717 | AX41: 11846.09815 | AY41: 10731401.24 | AZ41: 43667668.02 | BA41: 61254253.59 | BB41: -695099168.3
A42: 34 | B42: 1.884530223 | C42: 0.0001066620824 | D42: 0.0008392069874 | E42: 0.001241508639 | F42: 0.002060260563 | G42: 0.0002653622695 | H42: 0.0001186317752 | I42: 0.000562595869 | J42: 0.0003573435202 | K42: 0.000485381974 | L42: 0.002954970161 | M42: 0.005448356448 | N42: 0.01876751903 | O42: 0.001572750692 | P42: 0.0004714105084 | Q42: 0.0007491132631 | R42: 0.004151095688 | S42: 0.01022541654 | T42: 0.00216603152 | U42: 0.0004579227018 | V42: 0.0006287650424 | W42: 0.0002895634948 | X42: 0.0013087771 | Y42: 0.0004620329617 | Z42: 0.0001857419752 | AA42: 0.0003875430589 | AB42: 0.0004283668172 | AC42: 0.001339744247 | AD42: 0.0005063306202 | AE42: 0.00365135504 | AF42: 0.005040968434 | AG42: 0.01666245137 | AH42: 0.001864780347 | AI42: 0.000484804845 | AJ42: 0.0007137388631 | AK42: 0.004583672679 | AL42: 0.01038915504 | AM42: 0.001757221845 | AN42: 38.8992442 | AO42: 234.8909393 | AP42: 413.1411543 | AQ42: 77.02842441 | AR42: 2640.350814 | AS42: 3082.833815 | AT42: 1676.077587 | AU42: 1608.498911 | AV42: 18914.71114 | AX42: 12531.12104 | AY42: 12818916.33 | AZ42: 52968316.3 | BA42: 35978982.44 | BB42: -777593360.6
A43: 35 | B43: 1.848735203 | C43: 8.530409881e-05 | D43: 0.0007286306792 | E43: 0.001174439121 | F43: 0.00253070288 | G43: 0.0002402104383 | H43: 0.0001023521088 | I43: 0.0005815782509 | J43: 0.0002849121741 | K43: 0.0004246493921 | L43: 0.003622744373 | M43: 0.005266917631 | N43: 0.01671729681 | O43: 0.001620645084 | P43: 0.0005235658871 | Q43: 0.0008656114398 | R43: 0.003795533538 | S43: 0.007775246993 | T43: 0.001739618018 | U43: 0.000426655578 | V43: 0.0007462589044 | W43: 0.0003089781513 | X43: 0.001336496186 | Y43: 0.0004369309365 | Z43: 0.0001969990978 | AA43: 0.000435389514 | AB43: 0.0004338788319 | AC43: 0.001234252864 | AD43: 0.0004565632329 | AE43: 0.002757657073 | AF43: 0.005228777501 | AG43: 0.01614811759 | AH43: 0.002265466056 | AI43: 0.0005728062991 | AJ43: 0.000801738869 | AK43: 0.004711461597 | AL43: 0.01006300384 | AM43: 0.001918680587 | AN43: 37.77708203 | AO43: 229.9831383 | AP43: 443.6290455 | AQ43: 69.61112751 | AR43: 2914.404459 | AS43: 3750.032153 | AT43: 1837.026028 | AU43: 1566.988929 | AV43: 17459.66664 | AX43: 13383.81479 | AY43: 12776151.85 | AZ43: 52379560.74 | BA43: 52605723.83 | BB43: -750411885.6
A44: 36 | B44: 1.846966364 | C44: 9.972912628e-05 | D44: 0.0005450764252 | E44: 0.001173874191 | F44: 0.002583418621 | G44: 0.0003288640427 | H44: 9.021810698e-05 | I44: 0.0006531887225 | J44: 0.0003045422606 | K44: 0.0004983767483 | L44: 0.002607516468 | M44: 0.004762376313 | N44: 0.01928031735 | O44: 0.002030292817 | P44: 0.0004902227419 | Q44: 0.0006664125531 | R44: 0.005426133696 | S44: 0.008368888678 | T44: 0.00221679058 | U44: 0.0003753533796 | V44: 0.000710732436 | W44: 0.0003176504047 | X44: 0.001500316167 | Y44: 0.0004978232522 | Z44: 0.0001820653984 | AA44: 0.0005399012163 | AB44: 0.0004287825584 | AC44: 0.001436156949 | AD44: 0.0005611981082 | AE44: 0.003072549911 | AF44: 0.005047385987 | AG44: 0.01620451154 | AH44: 0.001537339057 | AI44: 0.0004656381909 | AJ44: 0.0008726191179 | AK44: 0.004074561457 | AL44: 0.009569579699 | AM44: 0.002124946961 | AN44: 31.78528093 | AO44: 207.7774793 | AP44: 434.8359638 | AQ44: 68.13804648 | AR44: 3165.266164 | AS44: 2949.873744 | AT44: 1781.742789 | AU44: 1785.778254 | AV44: 16806.64346 | AX44: 12579.45766 | AY44: 12104177 | AZ44: 50466410.77 | BA44: 47518806.33 | BB44: -671109491.8
A45: 37 | B45: 1.831071909 | C45: 0.0001184671027 | D45: 0.0007984694711 | E45: 0.001085226302 | F45: 0.002382659081 | G45: 0.0002390811675 | H45: 0.0001006102632 | I45: 0.0005345227849 | J45: 0.0003201408284 | K45: 0.000452563208 | L45: 0.003299780014 | M45: 0.005877629433 | N45: 0.01765911932 | O45: 0.002049799676 | P45: 0.0005708537487 | Q45: 0.0007273452607 | R45: 0.004390736955 | S45: 0.008938553098 | T45: 0.00220642971 | U45: 0.0004155788646 | V45: 0.000766302897 | W45: 0.0002791545663 | X45: 0.001700892317 | Y45: 0.0004609744922 | Z45: 0.0001787648428 | AA45: 0.0004919621367 | AB45: 0.0004098961304 | AC45: 0.001227081648 | AD45: 0.0004829555482 | AE45: 0.003540809682 | AF45: 0.004910568105 | AG45: 0.01814902111 | AH45: 0.001975119947 | AI45: 0.0005887872026 | AJ45: 0.0006032593009 | AK45: 0.004174617703 | AL45: 0.01002006824 | AM45: 0.002070602258 | AN45: 42.44528765 | AO45: 230.9989345 | AP45: 394.1185727 | AQ45: 66.8498482 | AR45: 3293.855729 | AS45: 3230.866764 | AT45: 2124.835388 | AU45: 1871.657895 | AV45: 19816.72364 | AX45: 14047.04435 | AY45: 13754143.78 | AZ45: 56658891.6 | BA45: 53277386.01 | BB45: -758336511.1
A46: 38 | B46: 1.832119859 | C46: 9.655754431e-05 | D46: 0.000668374799 | E46: 0.001023948446 | F46: 0.002044717525 | G46: 0.0002678708532 | H46: 0.0001056564084 | I46: 0.0006480683816 | J46: 0.0003281664014 | K46: 0.0006098438115 | L46: 0.002749233951 | M46: 0.005696091148 | N46: 0.01829266345 | O46: 0.00201580486 | P46: 0.0004170209366 | Q46: 0.0007325000174 | R46: 0.003913337657 | S46: 0.008045851929 | T46: 0.002185667045 | U46: 0.0003224249653 | V46: 0.0006674432441 | W46: 0.0002811653129 | X46: 0.001696055935 | Y46: 0.0005444701533 | Z46: 0.0001885785699 | AA46: 0.0005111338203 | AB46: 0.0004223070144 | AC46: 0.001443287016 | AD46: 0.0004358891376 | AE46: 0.003060494039 | AF46: 0.005195931163 | AG46: 0.02012039485 | AH46: 0.002002712805 | AI46: 0.0004953728969 | AJ46: 0.000866105073 | AK46: 0.005005046593 | AL46: 0.009802830145 | AM46: 0.002065685705 | AN46: 32.23014291 | AO46: 202.7815475 | AP46: 408.4464837 | AQ46: 67.90509254 | AR46: 2574.339691 | AS46: 3290.106565 | AT46: 2347.572494 | AU46: 1963.775023 | AV46: 16160.31717 | AX46: 19084.87744 | AY46: 18476271.69 | AZ46: 76102699.38 | BA46: 65813210.43 | BB46: -656124962.6
A47: 39 | B47: 1.866813908 | C47: 0.0001029051055 | D47: 0.0007794077378 | E47: 0.00116545697 | F47: 0.002110245413 | G47: 0.0002481128399 | H47: 9.842107694e-05 | I47: 0.0005281304165 | J47: 0.0002684838797 | K47: 0.0004960393696 | L47: 0.002967556738 | M47: 0.005627159662 | N47: 0.01761655194 | O47: 0.001782708102 | P47: 0.0004862667103 | Q47: 0.0007313161948 | R47: 0.004471164305 | S47: 0.008865487872 | T47: 0.002042116704 | U47: 0.0004362080551 | V47: 0.0006995226039 | W47: 0.0002918658032 | X47: 0.001917604318 | Y47: 0.000631781062 | Z47: 0.0001701461993 | AA47: 0.0004798072289 | AB47: 0.0004243936289 | AC47: 0.001443201074 | AD47: 0.0004497431839 | AE47: 0.00334953508 | AF47: 0.004602046547 | AG47: 0.01844845108 | AH47: 0.001562440526 | AI47: 0.0004769625075 | AJ47: 0.000814431308 | AK47: 0.004601147781 | AL47: 0.009553379859 | AM47: 0.002624163042 | AN47: 44.58950693 | AO47: 239.1971255 | AP47: 383.8557289 | AQ47: 88.40790675 | AR47: 3408.401662 | AS47: 3219.952144 | AT47: 2157.715372 | AU47: 2255.261202 | AV47: 18929.33051 | AX47: 18143.05092 | AY47: 17750606.79 | AZ47: 72728927.21 | BA47: 86012649 | BB47: -782477066.9
A48: 40 | B48: 1.855077763 | C48: 0.0001156435069 | D48: 0.0006603947786 | E48: 0.000991824531 | F48: 0.002607612831 | G48: 0.0003528524729 | H48: 9.041698982e-05 | I48: 0.0006236397156 | J48: 0.0003034525878 | K48: 0.0004105082541 | L48: 0.003046477976 | M48: 0.004775757339 | N48: 0.01762485238 | O48: 0.001695870763 | P48: 0.0004831044199 | Q48: 0.0009904783166 | R48: 0.004251318598 | S48: 0.008305313374 | T48: 0.002350912308 | U48: 0.0004295437806 | V48: 0.0008168830293 | W48: 0.0003649473196 | X48: 0.00186319201 | Y48: 0.0004954928123 | Z48: 0.000209200004 | AA48: 0.000584057536 | AB48: 0.0003847299486 | AC48: 0.001250458183 | AD48: 0.0004769838557 | AE48: 0.002799569215 | AF48: 0.005158310966 | AG48: 0.01833225712 | AH48: 0.002133571023 | AI48: 0.0004763542136 | AJ48: 0.0007487443229 | AK48: 0.004650569065 | AL48: 0.008746347071 | AM48: 0.002272108939 | AN48: 33.05321503 | AO48: 204.086116 | AP48: 433.136256 | AQ48: 60.89544707 | AR48: 3630.456474 | AS48: 3319.852437 | AT48: 1991.32184 | AU48: 1552.496044 | AV48: 19536.3019 | AX48: 14066.99584 | AY48: 13225962.23 | AZ48: 54586559.85 | BA48: 47665822 | BB48: -652326909.9
A49: 41 | B49: 1.877157492 | C49: 9.603415325e-05 | D49: 0.0006973287112 | E49: 0.001099590338 | F49: 0.002592317059 | G49: 0.0002727127812 | H49: 8.855223126e-05 | I49: 0.0005837866804 | J49: 0.000327127702 | K49: 0.0004981525965 | L49: 0.003157444737 | M49: 0.005038088612 | N49: 0.01804488634 | O49: 0.001644883419 | P49: 0.0004525372177 | Q49: 0.0008121666283 | R49: 0.004473992675 | S49: 0.008734361657 | T49: 0.002244632188 | U49: 0.0004544699747 | V49: 0.0006404354785 | W49: 0.0002921888418 | X49: 0.001521969798 | Y49: 0.0005301884135 | Z49: 0.000187507179 | AA49: 0.0005247650728 | AB49: 0.0003928509755 | AC49: 0.001334448526 | AD49: 0.0005210629934 | AE49: 0.002590773013 | AF49: 0.004853746881 | AG49: 0.01689505145 | AH49: 0.001806267473 | AI49: 0.0005191079113 | AJ49: 0.0007353517945 | AK49: 0.004821865377 | AL49: 0.009181325292 | AM49: 0.001751959669 | AN49: 52.4938746 | AO49: 233.5792994 | AP49: 340.4231764 | AQ49: 67.54690924 | AR49: 3307.113024 | AS49: 3097.655792 | AT49: 1851.197905 | AU49: 2032.574674 | AV49: 19567.51749 | AX49: 12083.83965 | AY49: 11646006.1 | AZ49: 47950317.43 | BA49: 41917994.95 | BB49: -751375339.9
A50: 42 | B50: 1.820526674 | C50: 0.0001035172808 | D50: 0.0007953060708 | E50: 0.000887649011 | F50: 0.00223074568 | G50: 0.0002820278237 | H50: 9.009230072e-05 | I50: 0.0005823030945 | J50: 0.0003033519789 | K50: 0.0005255383012 | L50: 0.003403332581 | M50: 0.005025865725 | N50: 0.02030159547 | O50: 0.001973368289 | P50: 0.0005154843889 | Q50: 0.0007349531476 | R50: 0.004261565381 | S50: 0.008369439328 | T50: 0.002064999862 | U50: 0.0003777844415 | V50: 0.0007297930156 | W50: 0.0002717540713 | X50: 0.001383342672 | Y50: 0.0005275003687 | Z50: 0.0002222160967 | AA50: 0.0005027408606 | AB50: 0.0004107911129 | AC50: 0.001377451296 | AD50: 0.0004504841539 | AE50: 0.00343485539 | AF50: 0.005774041166 | AG50: 0.0155751228 | AH50: 0.001788844739 | AI50: 0.0004967130695 | AJ50: 0.0008786781487 | AK50: 0.004562468098 | AL50: 0.007457965475 | AM50: 0.002170324398 | AN50: 40.88993502 | AO50: 209.2189546 | AP50: 479.1989196 | AQ50: 68.61699734 | AR50: 2986.215247 | AS50: 3335.318987 | AT50: 2019.563305 | AU50: 1914.297564 | AV50: 20208.278 | AX50: 14189.80633 | AY50: 13429528.81 | AZ50: 54906748.09 | BA50: 58713972.46 | BB50: -624575626.1
A51: 43 | B51: 1.822992331 | C51: 0.0001032259116 | D51: 0.0007439259743 | E51: 0.001046507508 | F51: 0.002161181113 | G51: 0.0002966711467 | H51: 0.0001088333917 | I51: 0.0005960649458 | J51: 0.0003088700315 | K51: 0.0004868006065 | L51: 0.003105347172 | M51: 0.006319156641 | N51: 0.01911248407 | O51: 0.00198944565 | P51: 0.0004557931906 | Q51: 0.0008451379407 | R51: 0.00361681295 | S51: 0.006609994028 | T51: 0.002428906992 | U51: 0.0003825684796 | V51: 0.0007244687549 | W51: 0.0002480811952 | X51: 0.001760371627 | Y51: 0.000538597693 | Z51: 0.000211108926 | AA51: 0.0003950950392 | AB51: 0.0003620514671 | AC51: 0.00139201418 | AD51: 0.0005870216484 | AE51: 0.002507749876 | AF51: 0.005196542234 | AG51: 0.0191686556 | AH51: 0.001717323711 | AI51: 0.0005088822719 | AJ51: 0.0006770425836 | AK51: 0.004562277063 | AL51: 0.008751873658 | AM51: 0.002497701843 | AN51: 36.45897241 | AO51: 242.0658977 | AP51: 459.8499986 | AQ51: 76.28684028 | AR51: 2996.624084 | AS51: 2945.170609 | AT51: 2341.029726 | AU51: 1824.957271 | AV51: 17731.7513 | AX51: 17727.94379 | AY51: 17389415.05 | AZ51: 71409044.43 | BA51: 66292013.56 | BB51: -804752924
A52: 44 | B52: 1.861664852 | C52: 7.721145533e-05 | D52: 0.0006723363894 | E52: 0.001129349393 | F52: 0.002231392939 | G52: 0.000344427637 | H52: 0.0001047026064 | I52: 0.0005624753335 | J52: 0.0002790777078 | K52: 0.0004587723518 | L52: 0.00359024586 | M52: 0.005991930336 | N52: 0.01525447663 | O52: 0.001694678751 | P52: 0.0005415657025 | Q52: 0.0006499358769 | R52: 0.004300063261 | S52: 0.008532501662 | T52: 0.002416576735 | U52: 0.0004386371334 | V52: 0.0006898979485 | W52: 0.0003800564313 | X52: 0.001782403397 | Y52: 0.0005077348355 | Z52: 0.0002113477317 | AA52: 0.0005898935524 | AB52: 0.0003899027331 | AC52: 0.001233423467 | AD52: 0.000479347839 | AE52: 0.003159853291 | AF52: 0.005362900311 | AG52: 0.01516728823 | AH52: 0.001476706888 | AI52: 0.0004365041159 | AJ52: 0.0007743479527 | AK52: 0.0046927035 | AL52: 0.008472841648 | AM52: 0.001894555918 | AN52: 38.25128252 | AO52: 266.0651638 | AP52: 447.1819431 | AQ52: 65.79114915 | AR52: 3128.739991 | AS52: 2799.850154 | AT52: 2081.281115 | AU52: 1583.751564 | AV52: 19851.68491 | AX52: 14095.45481 | AY52: 13453814.74 | AZ52: 55781563.62 | BA52: 41851573.29 | BB52: -922849016.1
A53: 45 | B53: 1.833712348 | C53: 9.291263934e-05 | D53: 0.0008422746569 | E53: 0.001333995815 | F53: 0.002242099532 | G53: 0.0003531785361 | H53: 0.000107276457 | I53: 0.0006433460663 | J53: 0.0003223436041 | K53: 0.0004930675632 | L53: 0.002696494539 | M53: 0.003990379743 | N53: 0.01635523859 | O53: 0.002099533905 | P53: 0.0004994496369 | Q53: 0.0008172936593 | R53: 0.00510166126 | S53: 0.00879958928 | T53: 0.002190201878 | U53: 0.0004500509548 | V53: 0.0007079191937 | W53: 0.0003347143106 | X53: 0.001761315098 | Y53: 0.0004941528441 | Z53: 0.0001844018926 | AA53: 0.000469407205 | AB53: 0.0004339606474 | AC53: 0.001287688099 | AD53: 0.0004081688096 | AE53: 0.003301792748 | AF53: 0.005377833566 | AG53: 0.01895267322 | AH53: 0.00170298637 | AI53: 0.0005215967683 | AJ53: 0.000779439461 | AK53: 0.005437228037 | AL53: 0.009952184029 | AM53: 0.002420626732 | AN53: 32.36304921 | AO53: 230.3672758 | AP53: 490.2693281 | AQ53: 82.1937134 | AR53: 2742.91456 | AS53: 3297.166569 | AT53: 1832.406904 | AU53: 1958.663097 | AV53: 22317.73385 | AX53: 13423.03462 | AY53: 13492950.23 | AZ53: 55633565.17 | BA53: 50613440.49 | BB53: -749204974.3
A54: 46 | B54: 1.84397631 | C54: 9.859472512e-05 | D54: 0.0006056187269 | E54: 0.001142572247 | F54: 0.002203894139 | G54: 0.0003198732038 | H54: 0.0001084111275 | I54: 0.0005798343593 | J54: 0.0003180477608 | K54: 0.0004886001641 | L54: 0.002847317557 | M54: 0.004641453993 | N54: 0.01781608331 | O54: 0.001969611715 | P54: 0.0004615672764 | Q54: 0.0007974569464 | R54: 0.004557148609 | S54: 0.008533629065 | T54: 0.002082332857 | U54: 0.0003547643961 | V54: 0.0007199014088 | W54: 0.000326628837 | X54: 0.001586898945 | Y54: 0.0004689455327 | Z54: 0.0001690951969 | AA54: 0.0003643247535 | AB54: 0.0003218022301 | AC54: 0.001213504541 | AD54: 0.0004839595381 | AE54: 0.003466670763 | AF54: 0.0053326151 | AG54: 0.01695433149 | AH54: 0.001935098657 | AI54: 0.0004921238338 | AJ54: 0.0007481670032 | AK54: 0.003900520151 | AL54: 0.009212073565 | AM54: 0.002077684154 | AN54: 34.1386213 | AO54: 207.4135822 | AP54: 414.9941266 | AQ54: 66.80293657 | AR54: 2892.904737 | AS54: 3157.304717 | AT54: 1864.467964 | AU54: 1807.259326 | AV54: 20230.15992 | AX54: 12281.71832 | AY54: 12154260.6 | AZ54: 50565072.96 | BA54: 44030058.84 | BB54: -668684205.4
A55: 47 | B55: 1.886351831 | C55: 0.0001016929716 | D55: 0.0006970515814 | E55: 0.001093327761 | F55: 0.002450580391 | G55: 0.0003037510862 | H55: 9.160162773e-05 | I55: 0.0005865600283 | J55: 0.0002815112543 | K55: 0.0005060948613 | L55: 0.003291683554 | M55: 0.00551128904 | N55: 0.02086043046 | O55: 0.001793560427 | P55: 0.0004843621439 | Q55: 0.0007554319326 | R55: 0.004552367811 | S55: 0.00848434958 | T55: 0.00183780055 | U55: 0.0004262487695 | V55: 0.000684394499 | W55: 0.0003103362425 | X55: 0.001589359343 | Y55: 0.0005124980646 | Z55: 0.0001922060313 | AA55: 0.0005049697529 | AB55: 0.000388685504 | AC55: 0.001574735682 | AD55: 0.0004178887195 | AE55: 0.003527617603 | AF55: 0.006074961545 | AG55: 0.01698232027 | AH55: 0.00152064764 | AI55: 0.0004849783289 | AJ55: 0.0007067704598 | AK55: 0.004498552021 | AL55: 0.008409211922 | AM55: 0.002414355992 | AN55: 38.0560974 | AO55: 205.8283741 | AP55: 387.3850728 | AQ55: 75.10132622 | AR55: 2691.916596 | AS55: 3031.908314 | AT55: 1965.890633 | AU55: 2082.606763 | AV55: 20298.42124 | AX55: 14986.40416 | AY55: 14450246.87 | AZ55: 59323438.59 | BA55: 64814845.66 | BB55: -651928574.6
A56: 48 | B56: 1.869570825 | C56: 9.636643132e-05 | D56: 0.000735476431 | E56: 0.001238868783 | F56: 0.002214443691 | G56: 0.0003235002525 | H56: 0.0001014415557 | I56: 0.000659162608 | J56: 0.0002583374175 | K56: 0.0005443526106 | L56: 0.002884709952 | M56: 0.004205162828 | N56: 0.01603444605 | O56: 0.001745717962 | P56: 0.0004689498403 | Q56: 0.0006971798375 | R56: 0.004392953981 | S56: 0.01075519648 | T56: 0.001926201014 | U56: 0.0003557747092 | V56: 0.0006781022526 | W56: 0.0002608051001 | X56: 0.001512880134 | Y56: 0.0005069346076 | Z56: 0.0001994594909 | AA56: 0.0003890522027 | AB56: 0.0003884270342 | AC56: 0.001357199723 | AD56: 0.0004901509723 | AE56: 0.00281115744 | AF56: 0.00608281417 | AG56: 0.01771918761 | AH56: 0.00184003864 | AI56: 0.0005242859108 | AJ56: 0.0006232465394 | AK56: 0.003473203121 | AL56: 0.009267303991 | AM56: 0.002261755035 | AN56: 37.91771781 | AO56: 253.2116983 | AP56: 369.5535103 | AQ56: 62.3401977 | AR56: 2930.439317 | AS56: 3548.84169 | AT56: 2200.807176 | AU56: 1876.260767 | AV56: 19550.15642 | AX56: 8864.937517 | AY56: 8978790.555 | AZ56: 37128188.77 | BA56: 46083407.9 | BB56: -894612363.3
A57: 49 | B57: 1.875936117 | C57: 9.591209083e-05 | D57: 0.0006091950102 | E57: 0.001048660316 | F57: 0.002468486819 | G57: 0.0003079137502 | H57: 9.676660379e-05 | I57: 0.0006828764309 | J57: 0.000270663009 | K57: 0.0004565224501 | L57: 0.003728398262 | M57: 0.004936245646 | N57: 0.01818872823 | O57: 0.001845606447 | P57: 0.0004825047609 | Q57: 0.0008248131572 | R57: 0.004830526407 | S57: 0.009422603491 | T57: 0.001550762045 | U57: 0.0004315867048 | V57: 0.0006615438287 | W57: 0.0002708453172 | X57: 0.001669238158 | Y57: 0.0004717250542 | Z57: 0.0002014094848 | AA57: 0.0006018624861 | AB57: 0.0003917874681 | AC57: 0.001382057079 | AD57: 0.0004662061889 | AE57: 0.003441959008 | AF57: 0.005020202837 | AG57: 0.01764784521 | AH57: 0.001970040884 | AI57: 0.0005995439375 | AJ57: 0.0007202761927 | AK57: 0.004539705983 | AL57: 0.009951820943 | AM57: 0.001740847729 | AN57: 39.82741916 | AO57: 260.0969085 | AP57: 438.4894475 | AQ57: 75.95337219 | AR57: 2762.505595 | AS57: 3237.752564 | AT57: 1717.717729 | AU57: 1647.607536 | AV57: 19328.01572 | AX57: 14613.23413 | AY57: 14010950.4 | AZ57: 58024316.91 | BA57: 52341222.47 | BB57: -886091172.9
A58: 50 | B58: 1.831795627 | C58: 0.0001082414259 | D58: 0.0006149424073 | E58: 0.001118603461 | F58: 0.00231364408 | G58: 0.0002603773093 | H58: 9.887437786e-05 | I58: 0.0006327517038 | J58: 0.0002824367173 | K58: 0.0004469430789 | L58: 0.002811866501 | M58: 0.005168695493 | N58: 0.01826649055 | O58: 0.001846907413 | P58: 0.0005416022903 | Q58: 0.0006264609565 | R58: 0.003774167732 | S58: 0.009642314812 | T58: 0.002085719781 | U58: 0.000397006699 | V58: 0.0006048913468 | W58: 0.0002638760213 | X58: 0.001655267086 | Y58: 0.0005361520459 | Z58: 0.0002167583256 | AA58: 0.0004868419436 | AB58: 0.0004629011713 | AC58: 0.001375861831 | AD58: 0.000541045582 | AE58: 0.002815243306 | AF58: 0.00508438116 | AG58: 0.01553893116 | AH58: 0.001784862095 | AI58: 0.0004273305951 | AJ58: 0.0008338407938 | AK58: 0.003727032349 | AL58: 0.01002739259 | AM58: 0.00218714879 | AN58: 37.18066551 | AO58: 238.2825002 | AP58: 451.8555547 | AQ58: 80.45320265 | AR58: 3162.805797 | AS58: 3115.127722 | AT58: 1817.399529 | AU58: 1679.696198 | AV58: 16914.20376 | AX58: 14734.12798 | AY58: 14286971.96 | AZ58: 58901436.27 | BA58: 62596409.01 | BB58: -784643873.5
A59: 51 | B59: 1.861595171 | C59: 0.0001087701271 | D59: 0.0006255095551 | E59: 0.001213194076 | F59: 0.002191133501 | G59: 0.0003109850778 | H59: 9.463490484e-05 | I59: 0.0006581906775 | J59: 0.000328938518 | K59: 0.0004645640225 | L59: 0.003360096586 | M59: 0.004256039349 | N59: 0.01862695449 | O59: 0.002201702961 | P59: 0.000451846456 | Q59: 0.0007930812696 | R59: 0.005028565001 | S59: 0.008822188292 | T59: 0.002223262056 | U59: 0.0004017590064 | V59: 0.0006041114551 | W59: 0.0003109782451 | X59: 0.001796385809 | Y59: 0.0004639920202 | Z59: 0.0002026835021 | AA59: 0.0004306374322 | AB59: 0.0003932258417 | AC59: 0.001465541811 | AD59: 0.000467072888 | AE59: 0.003204767298 | AF59: 0.004951548227 | AG59: 0.02027372665 | AH59: 0.001789902687 | AI59: 0.0004695680393 | AJ59: 0.0007658557975 | AK59: 0.003650324117 | AL59: 0.007554771035 | AM59: 0.002242600012 | AN59: 34.86105272 | AO59: 257.0592506 | AP59: 438.6231253 | AQ59: 66.74969509 | AR59: 2588.667842 | AS59: 2847.468195 | AT59: 1955.735503 | AU59: 2157.749408 | AV59: 17592.26567 | AX59: 11252.35403 | AY59: 11321024.18 | AZ59: 47231618.17 | BA59: 45277616.47 | BB59: -895719778.4
A60: 52 | B60: 1.848191422 | C60: 0.0001201771604 | D60: 0.000734075144 | E60: 0.001125565339 | F60: 0.00231032362 | G60: 0.0002924861559 | H60: 0.000100601878 | I60: 0.0006906101885 | J60: 0.0003427704035 | K60: 0.000505907299 | L60: 0.003482858807 | M60: 0.004954942641 | N60: 0.01830069439 | O60: 0.001779467456 | P60: 0.0005246146039 | Q60: 0.000760429184 | R60: 0.004360680097 | S60: 0.01037129195 | T60: 0.002486026952 | U60: 0.0004238744398 | V60: 0.0007101900718 | W60: 0.0002958564826 | X60: 0.001689499983 | Y60: 0.0005515083537 | Z60: 0.0001942105138 | AA60: 0.0004142696643 | AB60: 0.0003813400085 | AC60: 0.001329663604 | AD60: 0.0004448047321 | AE60: 0.0027833408 | AF60: 0.005940589071 | AG60: 0.01647215608 | AH60: 0.001950326728 | AI60: 0.0005334933325 | AJ60: 0.0006716598317 | AK60: 0.004346510502 | AL60: 0.01084393182 | AM60: 0.002168900336 | AN60: 37.82192424 | AO60: 245.6125776 | AP60: 368.7494936 | AQ60: 80.46232174 | AR60: 2794.748965 | AS60: 3423.151714 | AT60: 2212.765605 | AU60: 1555.048905 | AV60: 19194.47271 | AX60: 14085.95438 | AY60: 13937909.58 | AZ60: 57604900.89 | BA60: 50389272.25 | BB60: -850380028.5
A61: 53 | B61: 1.769303851 | C61: 9.359825306e-05 | D61: 0.0006687299054 | E61: 0.001221973104 | F61: 0.002358835026 | G61: 0.0002901402167 | H61: 0.0001055832677 | I61: 0.0006888541273 | J61: 0.0003107241201 | K61: 0.0003901422526 | L61: 0.003374658027 | M61: 0.006147939258 | N61: 0.01968397437 | O61: 0.002015204254 | P61: 0.0004756651902 | Q61: 0.0007380683545 | R61: 0.004870918836 | S61: 0.008831705225 | T61: 0.002435334472 | U61: 0.0004159186823 | V61: 0.0007107868712 | W61: 0.0002781647504 | X61: 0.001697358807 | Y61: 0.0005120246437 | Z61: 0.0001506656459 | AA61: 0.0005737868919 | AB61: 0.0003877101283 | AC61: 0.001266116493 | AD61: 0.0005816518549 | AE61: 0.003729036582 | AF61: 0.006057665859 | AG61: 0.01628340141 | AH61: 0.002017036524 | AI61: 0.0005516791708 | AJ61: 0.0007779012191 | AK61: 0.003729930352 | AL61: 0.00885293254 | AM61: 0.001973114531 | AN61: 35.57097228 | AO61: 235.68092 | AP61: 477.2182628 | AQ61: 71.19640748 | AR61: 3341.108769 | AS61: 3217.985644 | AT61: 2051.523578 | AU61: 2087.645148 | AV61: 21218.01686 | AX61: 12363.5004 | AY61: 12095100.89 | AZ61: 50468322.25 | BA61: 45253659.32 | BB61: -773934091.8
A62: 54 | B62: 1.849187163 | C62: 9.729204526e-05 | D62: 0.00071606861 | E62: 0.001015351859 | F62: 0.002438023959 | G62: 0.0002920515686 | H62: 9.62473499e-05 | I62: 0.0006514136087 | J62: 0.0003038303626 | K62: 0.0004861639702 | L62: 0.002748857632 | M62: 0.005563183247 | N62: 0.01624664839 | O62: 0.001768464336 | P62: 0.000460232725 | Q62: 0.00064128959 | R62: 0.004940153323 | S62: 0.01044795992 | T62: 0.002298919788 | U62: 0.0004448883838 | V62: 0.0006894106335 | W62: 0.0003403922963 | X62: 0.001392960955 | Y62: 0.0005034724839 | Z62: 0.0001744742167 | AA62: 0.0004828161727 | AB62: 0.000303232474 | AC62: 0.001426138786 | AD62: 0.0004330894401 | AE62: 0.003144481222 | AF62: 0.006363955919 | AG62: 0.0165774575 | AH62: 0.001700529355 | AI62: 0.0004997072259 | AJ62: 0.0009023407842 | AK62: 0.004475719323 | AL62: 0.009473061146 | AM62: 0.002083279411 | AN62: 34.10582128 | AO62: 233.9695593 | AP62: 428.2835609 | AQ62: 76.84453441 | AR62: 2774.663863 | AS62: 3262.681753 | AT62: 1884.657236 | AU62: 1927.114844 | AV62: 17793.06317 | AX62: 11149.3995 | AY62: 10602804.12 | AZ62: 43578656.95 | BA62: 44628690.8 | BB62: -786779129.2
A63: 55 | B63: 1.802937136 | C63: 0.0001149965601 | D63: 0.0006769279646 | E63: 0.001133005478 | F63: 0.002277349065 | G63: 0.0003474966782 | H63: 0.0001223242435 | I63: 0.0005493983003 | J63: 0.0003313901737 | K63: 0.0005032754593 | L63: 0.002409000916 | M63: 0.004746912475 | N63: 0.01910030587 | O63: 0.002101601724 | P63: 0.0005073896867 | Q63: 0.0008707067294 | R63: 0.003776617411 | S63: 0.007098347534 | T63: 0.002115682635 | U63: 0.0004040243775 | V63: 0.0006568732567 | W63: 0.0002340231838 | X63: 0.001646102256 | Y63: 0.0004503592491 | Z63: 0.0001706012359 | AA63: 0.0004986896233 | AB63: 0.0003659224497 | AC63: 0.001541376921 | AD63: 0.0005431604747 | AE63: 0.003135951331 | AF63: 0.005010099127 | AG63: 0.01751284484 | AH63: 0.001961844849 | AI63: 0.0005127902656 | AJ63: 0.000827095149 | AK63: 0.00488734441 | AL63: 0.008762179539 | AM63: 0.001974820441 | AN63: 41.24460913 | AO63: 250.4881389 | AP63: 410.8425387 | AQ63: 85.81923085 | AR63: 3436.290415 | AS63: 3185.232552 | AT63: 2005.609331 | AU63: 1575.605484 | AV63: 18606.07198 | AX63: 15309.67387 | AY63: 15155345.58 | AZ63: 62840214.56 | BA63: 43397254.12 | BB63: -841961402.4
A64: 56 | B64: 1.877692978 | C64: 9.644466175e-05 | D64: 0.0006351274919 | E64: 0.001015718368 | F64: 0.002213052957 | G64: 0.0003161147871 | H64: 0.0001055350867 | I64: 0.0006373097153 | J64: 0.0002588650886 | K64: 0.0004867228782 | L64: 0.002749757099 | M64: 0.004905577003 | N64: 0.01753966838 | O64: 0.002188060366 | P64: 0.0004786896911 | Q64: 0.0006750760316 | R64: 0.004432736744 | S64: 0.008361811372 | T64: 0.002318479128 | U64: 0.0003403191983 | V64: 0.0006867712023 | W64: 0.0003461338455 | X64: 0.001766232241 | Y64: 0.000455808002 | Z64: 0.0001744318591 | AA64: 0.0005123238814 | AB64: 0.0004305511191 | AC64: 0.00123775913 | AD64: 0.0004140591493 | AE64: 0.002603053105 | AF64: 0.005284137796 | AG64: 0.01436228604 | AH64: 0.002161478095 | AI64: 0.0005062767824 | AJ64: 0.0008462785153 | AK64: 0.004227590172 | AL64: 0.008208257342 | AM64: 0.002506193494 | AN64: 41.56121588 | AO64: 236.6562047 | AP64: 356.9384763 | AQ64: 83.31535648 | AR64: 3542.237957 | AS64: 3219.474877 | AT64: 2054.979428 | AU64: 1713.771492 | AV64: 18890.66597 | AX64: 14332.63813 | AY64: 13637419.78 | AZ64: 56170658.74 | BA64: 58366768.06 | BB64: -795141560.7
A65: 57 | B65: 1.789218361 | C65: 8.833038745e-05 | D65: 0.0006763543087 | E65: 0.001118844489 | F65: 0.002402849116 | G65: 0.0002782939647 | H65: 9.245538448e-05 | I65: 0.0005386192073 | J65: 0.000311865155 | K65: 0.0005114479079 | L65: 0.003054410394 | M65: 0.004877390125 | N65: 0.01929079269 | O65: 0.001741554993 | P65: 0.0004579520674 | Q65: 0.0006961118896 | R65: 0.004590821416 | S65: 0.01030870252 | T65: 0.002184671585 | U65: 0.000424211036 | V65: 0.0007234881061 | W65: 0.0003093751236 | X65: 0.00151177396 | Y65: 0.0004113871231 | Z65: 0.0002161873719 | AA65: 0.0005194137073 | AB65: 0.0003868557314 | AC65: 0.001085519744 | AD65: 0.0004153901579 | AE65: 0.003351468215 | AF65: 0.005350313708 | AG65: 0.01554858042 | AH65: 0.001818970902 | AI65: 0.0005047421506 | AJ65: 0.000684261527 | AK65: 0.004551747713 | AL65: 0.007851483607 | AM65: 0.002228014598 | AN65: 30.67720519 | AO65: 218.1860349 | AP65: 337.8445197 | AQ65: 69.19062271 | AR65: 3416.467461 | AS65: 3083.625141 | AT65: 2334.385575 | AU65: 1664.419551 | AV65: 22112.69421 | AX65: 10213.44062 | AY65: 9601963.364 | AZ65: 39540674.23 | BA65: 42313665 | BB65: -765079786.8
A66: 58 | B66: 1.867061776 | C66: 0.0001181829431 | D66: 0.000734608849 | E66: 0.001062817769 | F66: 0.002433444006 | G66: 0.0002992069706 | H66: 0.00010124481 | I66: 0.00063637442 | J66: 0.0002896280211 | K66: 0.0006162079136 | L66: 0.003526538852 | M66: 0.004995060787 | N66: 0.02167658365 | O66: 0.001665525552 | P66: 0.0005266301866 | Q66: 0.0006435105828 | R66: 0.004460791161 | S66: 0.008625476615 | T66: 0.001897254843 | U66: 0.00037301636 | V66: 0.0008068682713 | W66: 0.0003464265239 | X66: 0.001495738122 | Y66: 0.0004657223864 | Z66: 0.000203603262 | AA66: 0.0003885770475 | AB66: 0.0004339117687 | AC66: 0.001335359283 | AD66: 0.0004818205311 | AE66: 0.003265698194 | AF66: 0.005705294218 | AG66: 0.01757760379 | AH66: 0.001828866344 | AI66: 0.0005184234601 | AJ66: 0.0008497119922 | AK66: 0.003969625469 | AL66: 0.009424944877 | AM66: 0.002180125054 | AN66: 34.97920807 | AO66: 247.2782401 | AP66: 330.1171586 | AQ66: 71.111559 | AR66: 3312.624064 | AS66: 2981.772628 | AT66: 2149.805914 | AU66: 2047.879098 | AV66: 18874.84811 | AX66: 14289.79575 | AY66: 13840707.95 | AZ66: 57143376.57 | BA66: 53937491.82 | BB66: -889149529.7
A67: 59 | B67: 1.886138459 | C67: 0.0001093931541 | D67: 0.0007350342729 | E67: 0.000886579897 | F67: 0.001939796512 | G67: 0.0003568144937 | H67: 9.355182105e-05 | I67: 0.0006946877912 | J67: 0.0002466998904 | K67: 0.000446681127 | L67: 0.003292150495 | M67: 0.005120321992 | N67: 0.01785001711 | O67: 0.001772950533 | P67: 0.0005071732112 | Q67: 0.0007662660143 | R67: 0.00391629232 | S67: 0.009415038494 | T67: 0.002139986723 | U67: 0.0004354836975 | V67: 0.0006799290323 | W67: 0.0003058281183 | X67: 0.001694625811 | Y67: 0.0005553327525 | Z67: 0.0002027749065 | AA67: 0.0004420062325 | AB67: 0.0004178951818 | AC67: 0.00112860646 | AD67: 0.0005894165438 | AE67: 0.002890816697 | AF67: 0.004860781954 | AG67: 0.01730494881 | AH67: 0.001791768451 | AI67: 0.0004569067194 | AJ67: 0.0007530902169 | AK67: 0.004472093645 | AL67: 0.008287702779 | AM67: 0.002113824027 | AN67: 32.66711298 | AO67: 228.7983481 | AP67: 416.5509022 | AQ67: 70.6064657 | AR67: 3373.152512 | AS67: 2888.240998 | AT67: 2426.453947 | AU67: 2137.127825 | AV67: 22094.06343 | AX67: 14972.55128 | AY67: 14397656.96 | AZ67: 59052936.07 | BA67: 54005671.55 | BB67: -774480984.7
A68: 60 | B68: 1.929257115 | C68: 0.0001093024518 | D68: 0.0007799921456 | E68: 0.0009081798274 | F68: 0.002389043707 | G68: 0.0002594763782 | H68: 8.83890327e-05 | I68: 0.0006241389203 | J68: 0.0003054490949 | K68: 0.0005188292045 | L68: 0.003001544969 | M68: 0.005706710716 | N68: 0.01632266158 | O68: 0.001994260213 | P68: 0.0004987016756 | Q68: 0.0007883910031 | R68: 0.004746387987 | S68: 0.0105412472 | T68: 0.002128298112 | U68: 0.0004655683552 | V68: 0.0007057717848 | W68: 0.0003010814234 | X68: 0.001557239861 | Y68: 0.0004839221252 | Z68: 0.0002133855686 | AA68: 0.0005191955765 | AB68: 0.0003856111584 | AC68: 0.001521361359 | AD68: 0.0005592343114 | AE68: 0.003223532618 | AF68: 0.007235662155 | AG68: 0.01418114396 | AH68: 0.002017624807 | AI68: 0.0004933742162 | AJ68: 0.0006647318727 | AK68: 0.004532929379 | AL68: 0.009019078547 | AM68: 0.002082151012 | AN68: 36.71007462 | AO68: 234.3562831 | AP68: 394.929734 | AQ68: 58.78586938 | AR68: 2935.089518 | AS68: 3065.539833 | AT68: 2096.97413 | AU68: 2089.167957 | AV68: 18950.39183 | AX68: 12805.19992 | AY68: 12231351.2 | AZ68: 49953999.49 | BA68: 52488530.92 | BB68: -798791822.4
A69: 61 | B69: 1.798585921 | C69: 0.0001114432008 | D69: 0.0006492332797 | E69: 0.00125916348 | F69: 0.002034595272 | G69: 0.0003392108632 | H69: 8.756935427e-05 | I69: 0.0006217129846 | J69: 0.0003366629488 | K69: 0.0005223544591 | L69: 0.003363015709 | M69: 0.005480817465 | N69: 0.01835833674 | O69: 0.001801855546 | P69: 0.0004774575796 | Q69: 0.0007300859644 | R69: 0.004420683161 | S69: 0.008738961827 | T69: 0.002027014798 | U69: 0.0004102953701 | V69: 0.0007610907387 | W69: 0.0003756684734 | X69: 0.001675077368 | Y69: 0.0005700077726 | Z69: 0.0001840891531 | AA69: 0.0004669305296 | AB69: 0.0003607507169 | AC69: 0.001398605185 | AD69: 0.0005669934792 | AE69: 0.003375880055 | AF69: 0.005530360193 | AG69: 0.01742395813 | AH69: 0.002129816321 | AI69: 0.00054085864 | AJ69: 0.0007040282869 | AK69: 0.0049802022 | AL69: 0.008182556273 | AM69: 0.001917198638 | AN69: 37.48858464 | AO69: 251.2496582 | AP69: 436.7520453 | AQ69: 76.25487933 | AR69: 3485.303158 | AS69: 3435.951191 | AT69: 1992.749755 | AU69: 2058.211828 | AV69: 15937.48456 | AX69: 15119.65315 | AY69: 14678132.87 | AZ69: 60874518.67 | BA69: 50908352 | BB69: -854822965.1
A70: 62 | B70: 1.844623286 | C70: 8.994443622e-05 | D70: 0.0007339590202 | E70: 0.001007563239 | F70: 0.002514879813 | G70: 0.0002652590692 | H70: 9.290765685e-05 | I70: 0.0006238944378 | J70: 0.0003149270653 | K70: 0.0004974359751 | L70: 0.003584386564 | M70: 0.00485829097 | N70: 0.01533188722 | O70: 0.001966050359 | P70: 0.0004758836171 | Q70: 0.0007362934868 | R70: 0.005172877293 | S70: 0.008614447942 | T70: 0.002004393029 | U70: 0.0003888966756 | V70: 0.0007304833008 | W70: 0.0002971965986 | X70: 0.001481350945 | Y70: 0.0004881903789 | Z70: 0.0001891304951 | AA70: 0.0005143782937 | AB70: 0.0003934840901 | AC70: 0.001428422848 | AD70: 0.0005091750862 | AE70: 0.003312448983 | AF70: 0.004321392765 | AG70: 0.01730346027 | AH70: 0.001987877565 | AI70: 0.0005271008673 | AJ70: 0.0007938709165 | AK70: 0.004635839903 | AL70: 0.01152594509 | AM70: 0.002434385343 | AN70: 30.85734822 | AO70: 239.7695027 | AP70: 507.8903127 | AQ70: 62.6749729 | AR70: 2512.023786 | AS70: 3154.469317 | AT70: 2032.717233 | AU70: 2023.877245 | AV70: 20341.45517 | AX70: 15507.67899 | AY70: 14904672.31 | AZ70: 61223318.19 | BA70: 65997705.93 | BB70: -802714355.1
A71: 63 | B71: 1.875294216 | C71: 8.571861511e-05 | D71: 0.0006387540433 | E71: 0.001085674379 | F71: 0.002177529696 | G71: 0.0002738683071 | H71: 0.0001096070943 | I71: 0.0006400639212 | J71: 0.0002954561332 | K71: 0.0005418098828 | L71: 0.003570605222 | M71: 0.005943824478 | N71: 0.01925341759 | O71: 0.001917701661 | P71: 0.0005624360496 | Q71: 0.000717164912 | R71: 0.005096433909 | S71: 0.009490463258 | T71: 0.002021867152 | U71: 0.000398859709 | V71: 0.0006169230348 | W71: 0.0002509257602 | X71: 0.001488755307 | Y71: 0.0004483469953 | Z71: 0.0001971506025 | AA71: 0.0004599387362 | AB71: 0.000434828254 | AC71: 0.001277146343 | AD71: 0.0005581442933 | AE71: 0.002670492033 | AF71: 0.00499726005 | AG71: 0.01932331379 | AH71: 0.001571621497 | AI71: 0.0005268004633 | AJ71: 0.0006350087146 | AK71: 0.004423924404 | AL71: 0.009399982961 | AM71: 0.002368652564 | AN71: 34.63829882 | AO71: 202.3606154 | AP71: 373.1419334 | AQ71: 75.36289467 | AR71: 3409.221699 | AS71: 2856.502845 | AT71: 2110.816926 | AU71: 1889.875717 | AV71: 22632.69413 | AX71: 14158.08278 | AY71: 13746598.08 | AZ71: 56594853.05 | BA71: 58561628.43 | BB71: -654411774.8
A72: 64 | B72: 1.865037657 | C72: 0.0001011624254 | D72: 0.0006804198941 | E72: 0.001047299003 | F72: 0.002057281028 | G72: 0.0003097505087 | H72: 0.0001098766433 | I72: 0.0006218744498 | J72: 0.0003296299683 | K72: 0.0005434037397 | L72: 0.002921619042 | M72: 0.005021327012 | N72: 0.02102681622 | O72: 0.001806919791 | P72: 0.0005679667681 | Q72: 0.0007294722982 | R72: 0.004409987427 | S72: 0.007825650186 | T72: 0.001896822125 | U72: 0.0003986185021 | V72: 0.0005552430464 | W72: 0.0002603093139 | X72: 0.001508600108 | Y72: 0.0005115438502 | Z72: 0.0002316092844 | AA72: 0.0004522706847 | AB72: 0.0004719680013 | AC72: 0.001272375144 | AD72: 0.000475161203 | AE72: 0.00300865385 | AF72: 0.006251602285 | AG72: 0.01601042878 | AH72: 0.001760678331 | AI72: 0.0005337481893 | AJ72: 0.0009187315444 | AK72: 0.004410615384 | AL72: 0.008066808201 | AM72: 0.00202259688 | AN72: 36.90044247 | AO72: 241.7553726 | AP72: 366.417938 | AQ72: 72.2851343 | AR72: 2589.197113 | AS72: 3001.718032 | AT72: 1994.84793 | AU72: 2070.615174 | AV72: 16567.64114 | AX72: 14831.92171 | AY72: 14586617.11 | AZ72: 60133132.94 | BA72: 52263086.8 | BB72: -839910880.5
A73: 65 | B73: 1.816298415 | C73: 0.0001082361371 | D73: 0.0007614641197 | E73: 0.001063643473 | F73: 0.002698236202 | G73: 0.0003787124983 | H73: 9.304542641e-05 | I73: 0.0005362079197 | J73: 0.0003495030861 | K73: 0.0005992513788 | L73: 0.003292795871 | M73: 0.004718526718 | N73: 0.01791562241 | O73: 0.00261435219 | P73: 0.0005283698729 | Q73: 0.0009249394461 | R73: 0.004353975768 | S73: 0.008803162755 | T73: 0.002070191158 | U73: 0.0003957836078 | V73: 0.0007256711074 | W73: 0.0002907845738 | X73: 0.001626020079 | Y73: 0.0004754902139 | Z73: 0.0001677364528 | AA73: 0.0004888450437 | AB73: 0.0004431275328 | AC73: 0.001340746417 | AD73: 0.0005430538718 | AE73: 0.003713416096 | AF73: 0.005717087178 | AG73: 0.01717593473 | AH73: 0.001811904963 | AI73: 0.000456253968 | AJ73: 0.0007666290539 | AK73: 0.004503684928 | AL73: 0.008812958323 | AM73: 0.002376854441 | AN73: 35.38381693 | AO73: 264.6605433 | AP73: 493.6299169 | AQ73: 80.44867741 | AR73: 2976.062923 | AS73: 3088.767549 | AT73: 2364.35017 | AU73: 1821.142374 | AV73: 19958.90358 | AX73: 11253.52903 | AY73: 10712724.4 | AZ73: 43907651.82 | BA73: 45784722.33 | BB73: -902784078.5
A74: 66 | B74: 1.812717883 | C74: 0.0001013534722 | D74: 0.000650852949 | E74: 0.001090183321 | F74: 0.00251720947 | G74: 0.0003405067129 | H74: 9.759652321e-05 | I74: 0.0005907451287 | J74: 0.0002758880059 | K74: 0.0004804487829 | L74: 0.002981947781 | M74: 0.005121914795 | N74: 0.0148177793 | O74: 0.002174962007 | P74: 0.0003671373281 | Q74: 0.0007580145296 | R74: 0.005551536636 | S74: 0.009219338751 | T74: 0.001952309252 | U74: 0.0003874093692 | V74: 0.0006821222399 | W74: 0.0003303309605 | X74: 0.001418335136 | Y74: 0.0004506491901 | Z74: 0.0002143402093 | AA74: 0.0006058687448 | AB74: 0.0004389655932 | AC74: 0.001184521701 | AD74: 0.0005627501161 | AE74: 0.003276487434 | AF74: 0.005474773811 | AG74: 0.01819554719 | AH74: 0.001777321631 | AI74: 0.0005459030688 | AJ74: 0.0007185952407 | AK74: 0.004259628315 | AL74: 0.009363540529 | AM74: 0.002333557561 | AN74: 36.0986692 | AO74: 248.1362737 | AP74: 411.0505163 | AQ74: 59.83954909 | AR74: 3550.74702 | AS74: 2960.941588 | AT74: 1837.839416 | AU74: 1804.239755 | AV74: 20792.47913 | AX74: 10376.51003 | AY74: 9698540.773 | AZ74: 39906881.89 | BA74: 48695910.34 | BB74: -863173682.4
A75: 67 | B75: 1.836844586 | C75: 0.0001015501357 | D75: 0.0006883006118 | E75: 0.001092934564 | F75: 0.00223070684 | G75: 0.000337443805 | H75: 8.97002242e-05 | I75: 0.0006376878973 | J75: 0.0003143964426 | K75: 0.0004936215221 | L75: 0.002682366861 | M75: 0.005016660179 | N75: 0.01779170169 | O75: 0.001963063168 | P75: 0.0005145612246 | Q75: 0.0007328375693 | R75: 0.005019718863 | S75: 0.009840261198 | T75: 0.002346741513 | U75: 0.0003610807738 | V75: 0.0007085008609 | W75: 0.0003274964614 | X75: 0.001784593676 | Y75: 0.0005723449007 | Z75: 0.0002055005849 | AA75: 0.0004483648172 | AB75: 0.0004742272709 | AC75: 0.001161347258 | AD75: 0.0004822089307 | AE75: 0.003059375209 | AF75: 0.004891141733 | AG75: 0.01919485859 | AH75: 0.001862930294 | AI75: 0.0004796056255 | AJ75: 0.0007583660987 | AK75: 0.004346442033 | AL75: 0.009562432254 | AM75: 0.002092345775 | AN75: 39.4044096 | AO75: 213.45116 | AP75: 374.0531247 | AQ75: 78.29589096 | AR75: 3732.048907 | AS75: 2743.276514 | AT75: 2059.267531 | AU75: 1836.201612 | AV75: 21529.1183 | AX75: 13346.36766 | AY75: 13046408.63 | AZ75: 53918765.46 | BA75: 48776103.93 | BB75: -687990983.8
A76: 68 | B76: 1.801060224 | C76: 9.435554347e-05 | D76: 0.0006867833032 | E76: 0.0009195171035 | F76: 0.00254282222 | G76: 0.0002988530022 | H76: 9.645590396e-05 | I76: 0.000587945348 | J76: 0.0003106989145 | K76: 0.00053882253 | L76: 0.003655528148 | M76: 0.005446222699 | N76: 0.01831692604 | O76: 0.001831476552 | P76: 0.0005029591587 | Q76: 0.0008000598961 | R76: 0.005418028984 | S76: 0.01153889976 | T76: 0.001878248397 | U76: 0.0003461790957 | V76: 0.0007650497139 | W76: 0.0003370987005 | X76: 0.001575708491 | Y76: 0.0005323301938 | Z76: 0.0002133131656 | AA76: 0.0005539283163 | AB76: 0.0003713865129 | AC76: 0.001257636618 | AD76: 0.0005587258522 | AE76: 0.003119570719 | AF76: 0.005372983346 | AG76: 0.0174075621 | AH76: 0.001596046766 | AI76: 0.0004959255446 | AJ76: 0.0007599188979 | AK76: 0.005831948287 | AL76: 0.00866705597 | AM76: 0.002221408438 | AN76: 35.92522419 | AO76: 239.762104 | AP76: 451.8097947 | AQ76: 82.95914901 | AR76: 3139.296193 | AS76: 3250.689919 | AT76: 1759.692672 | AU76: 2051.263471 | AV76: 19199.80075 | AX76: 12974.98357 | AY76: 11640907.65 | AZ76: 47342506.83 | BA76: 58276340.38 | BB76: -796152749.8
A77: 69 | B77: 1.854609998 | C77: 0.0001179204493 | D77: 0.0005688228579 | E77: 0.001256196951 | F77: 0.002463944492 | G77: 0.0002846260525 | H77: 0.0001070356719 | I77: 0.0005478855267 | J77: 0.0002922477268 | K77: 0.0004429146597 | L77: 0.00319763592 | M77: 0.005316477711 | N77: 0.01803271784 | O77: 0.001753322169 | P77: 0.0004270445503 | Q77: 0.0007283327763 | R77: 0.004328232139 | S77: 0.008029254865 | T77: 0.002166833027 | U77: 0.0004707789272 | V77: 0.0007772522405 | W77: 0.00025889984 | X77: 0.001471278152 | Y77: 0.0004068204733 | Z77: 0.0001894531892 | AA77: 0.000529616707 | AB77: 0.0003884728869 | AC77: 0.001338800323 | AD77: 0.0004666269943 | AE77: 0.003855182736 | AF77: 0.005301989037 | AG77: 0.01544134111 | AH77: 0.001967500826 | AI77: 0.0005070350128 | AJ77: 0.0008174132101 | AK77: 0.004351432353 | AL77: 0.008026350934 | AM77: 0.002353254455 | AN77: 38.43894587 | AO77: 219.4766651 | AP77: 450.5652805 | AQ77: 69.38956671 | AR77: 2925.961906 | AS77: 3397.914577 | AT77: 1971.06189 | AU77: 2114.611758 | AV77: 18505.32686 | AX77: 12103.9195 | AY77: 11400024.48 | AZ77: 47349861.23 | BA77: 49669946.28 | BB77: -694317506.6
A78: 70 | B78: 1.798517262 | C78: 9.55171463e-05 | D78: 0.0006524026421 | E78: 0.001274443974 | F78: 0.002135355643 | G78: 0.0003028012566 | H78: 0.0001084869432 | I78: 0.0005743744988 | J78: 0.0002882346643 | K78: 0.0004702252665 | L78: 0.003274242388 | M78: 0.005394047629 | N78: 0.01601928609 | O78: 0.001670570495 | P78: 0.0004652819535 | Q78: 0.0006245449405 | R78: 0.004441257169 | S78: 0.008655752789 | T78: 0.002031844253 | U78: 0.0003583213047 | V78: 0.0007472032699 | W78: 0.0002981284058 | X78: 0.001418329686 | Y78: 0.0004972055042 | Z78: 0.0001780236645 | AA78: 0.0004437239478 | AB78: 0.0004343444756 | AC78: 0.001090798103 | AD78: 0.0006469866681 | AE78: 0.003331830701 | AF78: 0.006473264798 | AG78: 0.02001477997 | AH78: 0.001855973283 | AI78: 0.0004648261397 | AJ78: 0.0007036606316 | AK78: 0.004295959821 | AL78: 0.008721844075 | AM78: 0.001821840059 | AN78: 45.07143324 | AO78: 238.5189245 | AP78: 370.6375322 | AQ78: 83.97118523 | AR78: 3014.9359 | AS78: 3157.82552 | AT78: 2177.197252 | AU78: 2048.851605 | AV78: 21151.36466 | AX78: 10940.0651 | AY78: 10542838.66 | AZ78: 43822569.17 | BA78: 40476068.83 | BB78: -786058734.7
A79: 71 | B79: 1.872790487 | C79: 8.839446052e-05 | D79: 0.0008265321015 | E79: 0.0010235383 | F79: 0.002306233235 | G79: 0.0003114387009 | H79: 0.0001118514828 | I79: 0.0005622307758 | J79: 0.0002922776868 | K79: 0.0004846689746 | L79: 0.003132765635 | M79: 0.006367568088 | N79: 0.01474508266 | O79: 0.001798761849 | P79: 0.0003794400973 | Q79: 0.0007447054036 | R79: 0.003968684862 | S79: 0.008260098914 | T79: 0.002530618213 | U79: 0.0004695179392 | V79: 0.0006567972776 | W79: 0.0003307887094 | X79: 0.001810276551 | Y79: 0.0005075368994 | Z79: 0.0002017750995 | AA79: 0.0004595017943 | AB79: 0.0004093611054 | AC79: 0.001258744048 | AD79: 0.0005392819429 | AE79: 0.003028995902 | AF79: 0.005827230677 | AG79: 0.01946421534 | AH79: 0.001932596652 | AI79: 0.0004661301555 | AJ79: 0.0007887576227 | AK79: 0.00475253151 | AL79: 0.00835509445 | AM79: 0.002289637538 | AN79: 33.97587905 | AO79: 249.0697515 | AP79: 458.298352 | AQ79: 72.47729704 | AR79: 2788.081285 | AS79: 3358.113019 | AT79: 2018.35289 | AU79: 1903.93348 | AV79: 15965.15462 | AX79: 13723.22908 | AY79: 13265438.86 | AZ79: 54177524.81 | BA79: 49556136.18 | BB79: -849808027.5
A80: 72 | B80: 1.878650425 | C80: 0.000106463541 | D80: 0.000615921422 | E80: 0.000958287311 | F80: 0.002699898789 | G80: 0.0002988165049 | H80: 8.260509669e-05 | I80: 0.0006226627477 | J80: 0.0003698137814 | K80: 0.0005038129758 | L80: 0.003240471162 | M80: 0.006096909008 | N80: 0.01716788581 | O80: 0.002021106428 | P80: 0.0005415208395 | Q80: 0.0007664879028 | R80: 0.004304589701 | S80: 0.008370277941 | T80: 0.002365791996 | U80: 0.0004006804045 | V80: 0.0007337566132 | W80: 0.0002952531889 | X80: 0.001389932788 | Y80: 0.0005551245612 | Z80: 0.0002063331393 | AA80: 0.0003971112076 | AB80: 0.0003767483631 | AC80: 0.001527394007 | AD80: 0.0004426748506 | AE80: 0.003043080173 | AF80: 0.00470550027 | AG80: 0.01863715504 | AH80: 0.001529210229 | AI80: 0.000545515411 | AJ80: 0.0007238043392 | AK80: 0.005281604765 | AL80: 0.009249316959 | AM80: 0.002495701375 | AN80: 36.34561803 | AO80: 240.2324863 | AP80: 390.4255311 | AQ80: 67.08138253 | AR80: 3693.851524 | AS80: 3025.055006 | AT80: 2315.145073 | AU80: 1967.221772 | AV80: 19400.77925 | AX80: 14338.58961 | AY80: 13240071.6 | AZ80: 53871352.36 | BA80: 60224840.84 | BB80: -827390603.6
A81: 73 | B81: 1.849862253 | C81: 7.881225477e-05 | D81: 0.0006561599865 | E81: 0.001141430419 | F81: 0.002159439344 | G81: 0.0003229945798 | H81: 0.0001014906057 | I81: 0.0006556581597 | J81: 0.0002736916142 | K81: 0.0004585798567 | L81: 0.002983537209 | M81: 0.006204940676 | N81: 0.02031946865 | O81: 0.001720844903 | P81: 0.0005214820744 | Q81: 0.0005160898036 | R81: 0.005011189865 | S81: 0.00886847988 | T81: 0.002386203788 | U81: 0.0003432740812 | V81: 0.0006390861045 | W81: 0.0003209950973 | X81: 0.001717227948 | Y81: 0.0004895344056 | Z81: 0.000181930401 | AA81: 0.0005235166481 | AB81: 0.0004444306154 | AC81: 0.001320670374 | AD81: 0.0003840568038 | AE81: 0.002484410087 | AF81: 0.005296186156 | AG81: 0.01728864943 | AH81: 0.001873190827 | AI81: 0.0004637984057 | AJ81: 0.0007237259836 | AK81: 0.00406003605 | AL81: 0.008944160931 | AM81: 0.002472249225 | AN81: 36.57587237 | AO81: 255.4502105 | AP81: 488.7192303 | AQ81: 74.43918774 | AR81: 2734.461108 | AS81: 2697.394282 | AT81: 2018.921874 | AU81: 2004.05175 | AV81: 19422.41908 | AX81: 14965.26798 | AY81: 14646900.4 | AZ81: 60662697.86 | BA81: 55799274.8 | BB81: -857732228.1
A82: 74 | B82: 1.779484536 | C82: 8.429286593e-05 | D82: 0.0007054004756 | E82: 0.001051118454 | F82: 0.002348205185 | G82: 0.0003138234276 | H82: 0.0001022436309 | I82: 0.0006140165307 | J82: 0.000256539802 | K82: 0.0004887053036 | L82: 0.002445487385 | M82: 0.005878764014 | N82: 0.01706966559 | O82: 0.00217737955 | P82: 0.0005802707791 | Q82: 0.0007741758657 | R82: 0.004718231832 | S82: 0.009043492596 | T82: 0.001930044253 | U82: 0.0003528754397 | V82: 0.0007437298833 | W82: 0.0003289324936 | X82: 0.001596980035 | Y82: 0.0004360214502 | Z82: 0.0001834141452 | AA82: 0.0005100158781 | AB82: 0.0003785594132 | AC82: 0.001370742872 | AD82: 0.0004380107602 | AE82: 0.003045047892 | AF82: 0.0043076164 | AG82: 0.01662217174 | AH82: 0.002012888261 | AI82: 0.0005572214986 | AJ82: 0.000757667656 | AK82: 0.004138934234 | AL82: 0.008618254797 | AM82: 0.002180881184 | AN82: 40.70938679 | AO82: 242.2902101 | AP82: 445.8774753 | AQ82: 69.48831257 | AR82: 3507.867541 | AS82: 2538.415304 | AT82: 1853.302241 | AU82: 2127.820521 | AV82: 17955.1561 | AX82: 12468.19472 | AY82: 11951490.43 | AZ82: 49182565.34 | BA82: 51285423.77 | BB82: -798779725.7
A83: 75 | B83: 1.831707113 | C83: 0.0001013232811 | D83: 0.0007812998971 | E83: 0.001119379901 | F83: 0.002267695108 | G83: 0.0003556690259 | H83: 8.820230462e-05 | I83: 0.0005489397898 | J83: 0.0003015716466 | K83: 0.0005802549279 | L83: 0.003138000831 | M83: 0.004613416075 | N83: 0.01863347821 | O83: 0.001657706074 | P83: 0.0005354879278 | Q83: 0.0006105355624 | R83: 0.005066746908 | S83: 0.007147280401 | T83: 0.001923935148 | U83: 0.0003634281018 | V83: 0.0006482969356 | W83: 0.0002852600626 | X83: 0.001676329701 | Y83: 0.0005333413578 | Z83: 0.0002107044364 | AA83: 0.0004192182139 | AB83: 0.0003726765182 | AC83: 0.001401354278 | AD83: 0.0004765596759 | AE83: 0.003028106753 | AF83: 0.005780740357 | AG83: 0.01717430787 | AH83: 0.001797841189 | AI83: 0.0004035439584 | AJ83: 0.0006040773811 | AK83: 0.0044739319 | AL83: 0.009658684125 | AM83: 0.002302019369 | AN83: 38.93919905 | AO83: 255.50871 | AP83: 285.7701383 | AQ83: 66.75831048 | AR83: 3196.054641 | AS83: 3252.244303 | AT83: 1934.344404 | AU83: 1791.310294 | AV83: 18809.19341 | AX83: 14760.58304 | AY83: 14907472.46 | AZ83: 61585649.01 | BA83: 54041401.9 | BB83: -933896911
A84: 76 | B84: 1.88881901 | C84: 8.806184797e-05 | D84: 0.0006897696753 | E84: 0.0009544627829 | F84: 0.001937031519 | G84: 0.0003246353072 | H84: 0.000103796299 | I84: 0.0005846711465 | J84: 0.0002745490589 | K84: 0.0004063122564 | L84: 0.00266696057 | M84: 0.005693271429 | N84: 0.0170684109 | O84: 0.001941007271 | P84: 0.0006097209518 | Q84: 0.0008578464866 | R84: 0.004899294226 | S84: 0.008966374187 | T84: 0.002036266819 | U84: 0.0004306942106 | V84: 0.0006904955683 | W84: 0.0003036755753 | X84: 0.001535859529 | Y84: 0.0005122059049 | Z84: 0.0001842084049 | AA84: 0.0005774385461 | AB84: 0.0003600252436 | AC84: 0.001209497505 | AD84: 0.0004541612634 | AE84: 0.00315887742 | AF84: 0.004652692377 | AG84: 0.01733320757 | AH84: 0.00185377867 | AI84: 0.0005530273122 | AJ84: 0.0007561913293 | AK84: 0.004122048954 | AL84: 0.009551503054 | AM84: 0.002030644945 | AN84: 35.29792376 | AO84: 247.9283674 | AP84: 387.4048738 | AQ84: 71.12982884 | AR84: 3046.584716 | AS84: 3037.502016 | AT84: 2098.795614 | AU84: 1953.094194 | AV84: 17987.5574 | AX84: 15518.88337 | AY84: 15165088.45 | AZ84: 62695861.86 | BA84: 54735694.23 | BB84: -867678711.5
A85: 77 | B85: 1.850525823 | C85: 0.0001040836239 | D85: 0.0006339465742 | E85: 0.001075767223 | F85: 0.002248860849 | G85: 0.0002826362258 | H85: 0.0001115652879 | I85: 0.0006694229471 | J85: 0.0003067659267 | K85: 0.0005240285297 | L85: 0.002970441913 | M85: 0.006251598672 | N85: 0.01876814441 | O85: 0.001753374762 | P85: 0.0005233517062 | Q85: 0.0007767869658 | R85: 0.004752584644 | S85: 0.008274283104 | T85: 0.001887089884 | U85: 0.0003811053629 | V85: 0.0006971174049 | W85: 0.0003054778992 | X85: 0.001599523367 | Y85: 0.0004556128056 | Z85: 0.0002189623706 | AA85: 0.0004831391468 | AB85: 0.0003947430859 | AC85: 0.001318357775 | AD85: 0.0004437102032 | AE85: 0.003288955317 | AF85: 0.005567853238 | AG85: 0.01839627569 | AH85: 0.00214951424 | AI85: 0.0004701020013 | AJ85: 0.0007971967066 | AK85: 0.003826231467 | AL85: 0.007862931163 | AM85: 0.002419506461 | AN85: 37.72327311 | AO85: 239.7688905 | AP85: 462.3841561 | AQ85: 58.88051168 | AR85: 3289.879514 | AS85: 3358.160901 | AT85: 1974.339435 | AU85: 1953.012941 | AV85: 17652.44564 | AX85: 13087.68677 | AY85: 12532139.66 | AZ85: 51648278.08 | BA85: 57607920.17 | BB85: -795508897.7
A86: 78 | B86: 1.824049346 | C86: 8.075527429e-05 | D86: 0.0007626079577 | E86: 0.001023281862 | F86: 0.002318374358 | G86: 0.0003073555576 | H86: 9.416392427e-05 | I86: 0.0006293692508 | J86: 0.0003103730573 | K86: 0.0005769444048 | L86: 0.003480535571 | M86: 0.005562574269 | N86: 0.01859226999 | O86: 0.001704357141 | P86: 0.0004486368084 | Q86: 0.0007729203357 | R86: 0.004049787895 | S86: 0.008061763536 | T86: 0.001846649588 | U86: 0.0003566247441 | V86: 0.0006326139 | W86: 0.0002789006605 | X86: 0.001653156373 | Y86: 0.0005446282994 | Z86: 0.0002350347901 | AA86: 0.0004883785958 | AB86: 0.0003228127416 | AC86: 0.001174888954 | AD86: 0.0004618215667 | AE86: 0.002960765945 | AF86: 0.00526636497 | AG86: 0.01690589306 | AH86: 0.00156202978 | AI86: 0.0005424570786 | AJ86: 0.0008081276113 | AK86: 0.004582687871 | AL86: 0.009730559602 | AM86: 0.002083774929 | AN86: 38.53052912 | AO86: 221.0631268 | AP86: 365.5566308 | AQ86: 75.58709414 | AR86: 2781.654569 | AS86: 3088.987339 | AT86: 1891.412703 | AU86: 1832.112021 | AV86: 20927.97224 | AX86: 15337.75795 | AY86: 14947453.88 | AZ86: 61374989.77 | BA86: 58096448.41 | BB86: -733134163.7
A87: 79 | B87: 1.908598114 | C87: 0.0001033927465 | D87: 0.000618849499 | E87: 0.001109328252 | F87: 0.002312625139 | G87: 0.0003310257022 | H87: 9.653449541e-05 | I87: 0.0007113613734 | J87: 0.0003072978846 | K87: 0.0005079948271 | L87: 0.003077238215 | M87: 0.005011808851 | N87: 0.01603021785 | O87: 0.002170789831 | P87: 0.0005374979068 | Q87: 0.0007250786886 | R87: 0.003969466143 | S87: 0.008647886137 | T87: 0.002503409973 | U87: 0.0004064588565 | V87: 0.0005994698129 | W87: 0.0003337673462 | X87: 0.001294802092 | Y87: 0.00040241523 | Z87: 0.0002074109166 | AA87: 0.000583689355 | AB87: 0.0004268123725 | AC87: 0.001378422624 | AD87: 0.000509259617 | AE87: 0.003463974452 | AF87: 0.004420858998 | AG87: 0.01741072745 | AH87: 0.001868098522 | AI87: 0.0005328818814 | AJ87: 0.0006933696942 | AK87: 0.005100898701 | AL87: 0.007390653471 | AM87: 0.001916985116 | AN87: 38.9556631 | AO87: 222.5443192 | AP87: 399.6415373 | AQ87: 78.73886146 | AR87: 2350.621003 | AS87: 3501.88567 | AT87: 2502.603423 | AU87: 1922.902685 | AV87: 18495.08111 | AX87: 10281.06693 | AY87: 9519866.401 | AZ87: 39236134.39 | BA87: 29266653.53 | BB87: -721962584.7
A88: 80 | B88: 1.859107841 | C88: 9.936687229e-05 | D88: 0.0007144068955 | E88: 0.001096155512 | F88: 0.002249075959 | G88: 0.0003008731323 | H88: 0.0001050655267 | I88: 0.0006241851141 | J88: 0.0003007894245 | K88: 0.0004399005286 | L88: 0.002913095663 | M88: 0.005217335693 | N88: 0.0174867635 | O88: 0.001898532723 | P88: 0.0005495992703 | Q88: 0.0007371540188 | R88: 0.004291395904 | S88: 0.007355900098 | T88: 0.001938041175 | U88: 0.0004271081348 | V88: 0.0007202348808 | W88: 0.0003036057224 | X88: 0.001764407101 | Y88: 0.0005601909776 | Z88: 0.000166190321 | AA88: 0.0005489888219 | AB88: 0.0004127518857 | AC88: 0.001190840772 | AD88: 0.0004804932347 | AE88: 0.003108849344 | AF88: 0.005648224219 | AG88: 0.01520341739 | AH88: 0.00180243037 | AI88: 0.0005398811877 | AJ88: 0.000758001519 | AK88: 0.004349283353 | AL88: 0.008765218486 | AM88: 0.002163285656 | AN88: 33.95492554 | AO88: 255.7589239 | AP88: 395.7362371 | AQ88: 84.10060896 | AR88: 4037.471794 | AS88: 3620.80282 | AT88: 1700.010006 | AU88: 1756.71388 | AV88: 18109.71899 | AX88: 15161.5568 | AY88: 14645599.78 | AZ88: 60304086.88 | BA88: 61988535.67 | BB88: -901842134
A89: 81 | B89: 1.838752085 | C89: 0.0001333348781 | D89: 0.0007688251615 | E89: 0.001093172953 | F89: 0.00243512208 | G89: 0.0002972608096 | H89: 0.0001014628499 | I89: 0.0005129815523 | J89: 0.0002973211905 | K89: 0.0004720093204 | L89: 0.002671458732 | M89: 0.005619402875 | N89: 0.01668476419 | O89: 0.002325703785 | P89: 0.0004831115983 | Q89: 0.000750693735 | R89: 0.004568876286 | S89: 0.009681920512 | T89: 0.001870091062 | U89: 0.0003978260994 | V89: 0.0006144692084 | W89: 0.0003777292402 | X89: 0.001473853157 | Y89: 0.000438023338 | Z89: 0.000237202089 | AA89: 0.0003704918501 | AB89: 0.0003570638672 | AC89: 0.001198597688 | AD89: 0.0004918995239 | AE89: 0.003386546344 | AF89: 0.005621938982 | AG89: 0.01509427018 | AH89: 0.002085849976 | AI89: 0.0005959995663 | AJ89: 0.000764974346 | AK89: 0.00528143064 | AL89: 0.01071323199 | AM89: 0.002032639066 | AN89: 32.35692837 | AO89: 185.7403746 | AP89: 391.043056 | AQ89: 68.65780291 | AR89: 2864.785778 | AS89: 2709.67317 | AT89: 2975.193892 | AU89: 1803.164789 | AV89: 18039.5641 | AX89: 13249.79469 | AY89: 12919844.14 | AZ89: 52666763.25 | BA89: 49883502.43 | BB89: -579822272.7
A90: 82 | B90: 1.818661454 | C90: 8.05325019e-05 | D90: 0.0006437468536 | E90: 0.001264749639 | F90: 0.002305033188 | G90: 0.0002661107371 | H90: 9.611236886e-05 | I90: 0.0006402905629 | J90: 0.0003537153549 | K90: 0.0004737999089 | L90: 0.002711904245 | M90: 0.005550915826 | N90: 0.02000706225 | O90: 0.001742696478 | P90: 0.0004898476984 | Q90: 0.0008108791963 | R90: 0.004627543036 | S90: 0.008848387447 | T90: 0.002269298494 | U90: 0.0003756643137 | V90: 0.0007848395037 | W90: 0.0002889716161 | X90: 0.001444246257 | Y90: 0.0004969791692 | Z90: 0.0001958189401 | AA90: 0.0005518240593 | AB90: 0.0004252721975 | AC90: 0.001382384023 | AD90: 0.0005569535957 | AE90: 0.003228315853 | AF90: 0.005576856303 | AG90: 0.01820969103 | AH90: 0.002022330775 | AI90: 0.0004441877812 | AJ90: 0.0006797791544 | AK90: 0.004662713037 | AL90: 0.008663987516 | AM90: 0.001734983138 | AN90: 37.66602274 | AO90: 233.457735 | AP90: 437.2828146 | AQ90: 71.83047593 | AR90: 3291.607494 | AS90: 2922.568462 | AT90: 1837.238901 | AU90: 2105.627344 | AV90: 17611.23885 | AX90: 12699.88387 | AY90: 12308825.93 | AZ90: 51243438.08 | BA90: 40473446.31 | BB90: -769657456.2
A91: 83 | B91: 1.900051711 | C91: 0.0001175359491 | D91: 0.0006915894843 | E91: 0.001069142228 | F91: 0.002621174574 | G91: 0.000278638651 | H91: 0.0001023493946 | I91: 0.0006295639107 | J91: 0.000305082751 | K91: 0.000490330636 | L91: 0.003200427167 | M91: 0.004329889041 | N91: 0.01634312764 | O91: 0.001711125608 | P91: 0.0004754101627 | Q91: 0.0006608237088 | R91: 0.004523174539 | S91: 0.01031496208 | T91: 0.002271767819 | U91: 0.0004359496569 | V91: 0.0007195212813 | W91: 0.0003141765041 | X91: 0.001887162899 | Y91: 0.0005433651842 | Z91: 0.0001903637081 | AA91: 0.0004653054611 | AB91: 0.0004100461583 | AC91: 0.001481729732 | AD91: 0.0004613139241 | AE91: 0.003767674774 | AF91: 0.005692463621 | AG91: 0.01818419818 | AH91: 0.00219894824 | AI91: 0.0005228991186 | AJ91: 0.0007825871322 | AK91: 0.004438408596 | AL91: 0.008368397772 | AM91: 0.002449479624 | AN91: 35.05517573 | AO91: 190.6738661 | AP91: 385.1152061 | AQ91: 68.28129158 | AR91: 2923.74577 | AS91: 2591.10371 | AT91: 1787.797947 | AU91: 1834.138733 | AV91: 17430.8605 | AX91: 11643.61274 | AY91: 10954557.32 | AZ91: 44869427.49 | BA91: 57155727.05 | BB91: -594667468.6
A92: 84 | B92: 1.850577377 | C92: 0.0001038826427 | D92: 0.0007610768704 | E92: 0.0009470076019 | F92: 0.002192176482 | G92: 0.0003335491775 | H92: 9.464687173e-05 | I92: 0.0005939205461 | J92: 0.0003593956166 | K92: 0.0003754141869 | L92: 0.003574170723 | M92: 0.005529034198 | N92: 0.01766946221 | O92: 0.001858738814 | P92: 0.0005512794069 | Q92: 0.0006715387454 | R92: 0.004860201034 | S92: 0.00840687569 | T92: 0.002249438044 | U92: 0.0003913120831 | V92: 0.0005882963775 | W92: 0.0002624659595 | X92: 0.001369351669 | Y92: 0.00063915238 | Z92: 0.0002366878328 | AA92: 0.0004570445411 | AB92: 0.0003397675435 | AC92: 0.001361522894 | AD92: 0.0005707051446 | AE92: 0.002637884487 | AF92: 0.005072129737 | AG92: 0.01724086375 | AH92: 0.001721408398 | AI92: 0.0004729188201 | AJ92: 0.000774028083 | AK92: 0.00457380769 | AL92: 0.009330402013 | AM92: 0.00262195891 | AN92: 35.41588293 | AO92: 244.6271823 | AP92: 391.4056331 | AQ92: 73.37364361 | AR92: 3075.341184 | AS92: 3064.090988 | AT92: 1730.193537 | AU92: 1951.401987 | AV92: 18358.77288 | AX92: 14537.58247 | AY92: 14084408.27 | AZ92: 57551786.53 | BA92: 65043297.42 | BB92: -849432547.8
A93: 85 | B93: 1.853530268 | C93: 9.757361593e-05 | D93: 0.0006127874861 | E93: 0.001224524969 | F93: 0.002387128069 | G93: 0.0002786890452 | H93: 9.656712627e-05 | I93: 0.0006372391491 | J93: 0.0003215770518 | K93: 0.0004889012823 | L93: 0.003427738443 | M93: 0.005471630756 | N93: 0.01717736903 | O93: 0.001893802201 | P93: 0.0004978753717 | Q93: 0.000813917502 | R93: 0.004586165719 | S93: 0.008944422633 | T93: 0.001924915848 | U93: 0.0004036683818 | V93: 0.0006614414586 | W93: 0.0002338039143 | X93: 0.001716886243 | Y93: 0.0005326617902 | Z93: 0.0002112492167 | AA93: 0.0004014319294 | AB93: 0.0003682618696 | AC93: 0.001279258544 | AD93: 0.0004964131167 | AE93: 0.003394375998 | AF93: 0.004899978471 | AG93: 0.01643822324 | AH93: 0.002041493697 | AI93: 0.0004402199281 | AJ93: 0.0008211981648 | AK93: 0.004548991636 | AL93: 0.009747635291 | AM93: 0.001872230416 | AN93: 44.75576452 | AO93: 256.7431782 | AP93: 368.2279476 | AQ93: 64.29892848 | AR93: 3210.928864 | AS93: 3316.650059 | AT93: 2067.749225 | AU93: 1609.481342 | AV93: 19775.49371 | AX93: 13123.51933 | AY93: 12822325.78 | AZ93: 53090433.08 | BA93: 51385098.55 | BB93: -884628482.8
A94: 86 | B94: 1.824237752 | C94: 0.0001053309913 | D94: 0.0006867262412 | E94: 0.001060288102 | F94: 0.002068061556 | G94: 0.0003315881968 | H94: 0.0001141880054 | I94: 0.0007964415258 | J94: 0.0002826983928 | K94: 0.0004244741765 | L94: 0.002873432771 | M94: 0.005838509485 | N94: 0.01834710876 | O94: 0.001488830426 | P94: 0.0005110279805 | Q94: 0.0007090154698 | R94: 0.004815286016 | S94: 0.009765834259 | T94: 0.002064851738 | U94: 0.0004212886635 | V94: 0.0007099012703 | W94: 0.0002873275602 | X94: 0.001526081902 | Y94: 0.000544906898 | Z94: 0.0002005734626 | AA94: 0.0004501168841 | AB94: 0.0003769163371 | AC94: 0.001333738636 | AD94: 0.0005572112658 | AE94: 0.00302202821 | AF94: 0.00662664241 | AG94: 0.01890005201 | AH94: 0.001736752832 | AI94: 0.0005678179357 | AJ94: 0.0007890634658 | AK94: 0.004884569601 | AL94: 0.009416664321 | AM94: 0.002225300588 | AN94: 36.85675922 | AO94: 247.3316881 | AP94: 406.3994665 | AQ94: 64.84526193 | AR94: 2968.781119 | AS94: 2595.292126 | AT94: 2068.861575 | AU94: 1994.268066 | AV94: 19217.90779 | AX94: 14800.85874 | AY94: 14298256.25 | AZ94: 58861207.27 | BA94: 55518750.64 | BB94: -855488142.7
A95: 87 | B95: 1.757388893 | C95: 0.0001164107656 | D95: 0.0008039928488 | E95: 0.001057867521 | F95: 0.002407765414 | G95: 0.0002784800677 | H95: 9.009602438e-05 | I95: 0.000559922714 | J95: 0.0003281447265 | K95: 0.0005089442564 | L95: 0.00297001249 | M95: 0.004813462482 | N95: 0.01893171977 | O95: 0.001868526166 | P95: 0.0005261495104 | Q95: 0.0008003716662 | R95: 0.004521812751 | S95: 0.009849815012 | T95: 0.002209563161 | U95: 0.000381141434 | V95: 0.0006205506774 | W95: 0.0002975413418 | X95: 0.001590429345 | Y95: 0.0004582405166 | Z95: 0.0002330320847 | AA95: 0.0005348277754 | AB95: 0.0003527442217 | AC95: 0.001427796364 | AD95: 0.0004749006876 | AE95: 0.00261741363 | AF95: 0.006231137074 | AG95: 0.01692573918 | AH95: 0.001851916865 | AI95: 0.0004765984866 | AJ95: 0.0005827080149 | AK95: 0.004446702383 | AL95: 0.008483884084 | AM95: 0.002187427994 | AN95: 33.58526235 | AO95: 215.0037185 | AP95: 397.1367891 | AQ95: 79.41997879 | AR95: 2468.400224 | AS95: 3232.116141 | AT95: 1906.27026 | AU95: 1915.655087 | AV95: 16435.69505 | AX95: 11179.15303 | AY95: 11016731.85 | AZ95: 45224300.63 | BA95: 44186016.99 | BB95: -710066588.7
A96: 88 | B96: 1.84157061 | C96: 0.0001253037431 | D96: 0.0007348795101 | E96: 0.0008664110932 | F96: 0.002194437024 | G96: 0.0002870081459 | H96: 0.0001027460143 | I96: 0.0006171445746 | J96: 0.000333447377 | K96: 0.0005242366002 | L96: 0.002703797635 | M96: 0.005832434465 | N96: 0.0158777325 | O96: 0.00164491765 | P96: 0.0004945778944 | Q96: 0.0008468689231 | R96: 0.0040107219 | S96: 0.01117851531 | T96: 0.00206375684 | U96: 0.0003269458886 | V96: 0.0007575557336 | W96: 0.0003694805816 | X96: 0.001800865779 | Y96: 0.0005528275924 | Z96: 0.0001938004876 | AA96: 0.0006218840322 | AB96: 0.0003213887166 | AC96: 0.001219946728 | AD96: 0.0005900280933 | AE96: 0.003338170848 | AF96: 0.005698148404 | AG96: 0.01608782278 | AH96: 0.002054197666 | AI96: 0.0005428677586 | AJ96: 0.0008125900771 | AK96: 0.004638765203 | AL96: 0.008120663606 | AM96: 0.002192453719 | AN96: 38.10509168 | AO96: 212.0781791 | AP96: 479.4524567 | AQ96: 70.25633759 | AR96: 2958.203569 | AS96: 2832.817941 | AT96: 2007.467379 | AU96: 2225.348816 | AV96: 19313.77995 | AX96: 13400.40199 | AY96: 12304607.31 | AZ96: 50272438.61 | BA96: 55724604.37 | BB96: -648170317.4
A97: 89 | B97: 1.822518316 | C97: 9.705042905e-05 | D97: 0.0005848983939 | E97: 0.001117411494 | F97: 0.002721643263 | G97: 0.0002984170402 | H97: 9.735019586e-05 | I97: 0.000580708913 | J97: 0.0002871030251 | K97: 0.0004472040907 | L97: 0.003481576238 | M97: 0.006329660945 | N97: 0.01620184673 | O97: 0.001800488441 | P97: 0.0005651164502 | Q97: 0.0006153544381 | R97: 0.004102646979 | S97: 0.009769669448 | T97: 0.001958428117 | U97: 0.0003871175712 | V97: 0.0006663048721 | W97: 0.0002742511935 | X97: 0.001636843449 | Y97: 0.0004732968618 | Z97: 0.0001857035556 | AA97: 0.0005364516697 | AB97: 0.00040165052 | AC97: 0.001344003316 | AD97: 0.0004235688656 | AE97: 0.00295401799 | AF97: 0.00630743346 | AG97: 0.0155194162 | AH97: 0.002214050133 | AI97: 0.0004766987315 | AJ97: 0.0007664259005 | AK97: 0.004891259298 | AL97: 0.00774359846 | AM97: 0.002237483418 | AN97: 41.30035374 | AO97: 245.9018859 | AP97: 413.6954306 | AQ97: 75.48979351 | AR97: 2915.408407 | AS97: 3206.631796 | AT97: 1623.389734 | AU97: 2147.022606 | AV97: 17272.83467 | AX97: 10632.60159 | AY97: 9424177.917 | AZ97: 38460059.87 | BA97: 50221070.62 | BB97: -823018143.8
A98: 90 | B98: 1.876377121 | C98: 9.33893666e-05 | D98: 0.0006796746141 | E98: 0.001015879348 | F98: 0.002228280879 | G98: 0.0002607602916 | H98: 0.0001159234227 | I98: 0.0005679401919 | J98: 0.000311741217 | K98: 0.0005013298991 | L98: 0.002898207225 | M98: 0.005419138169 | N98: 0.01832731891 | O98: 0.00181491943 | P98: 0.0004931808979 | Q98: 0.0007360643545 | R98: 0.00399374873 | S98: 0.008102038929 | T98: 0.001795028331 | U98: 0.0004433278502 | V98: 0.0007833592889 | W98: 0.0003198227132 | X98: 0.001740400087 | Y98: 0.0005845634822 | Z98: 0.0001756872525 | AA98: 0.0005152041488 | AB98: 0.0004366992267 | AC98: 0.001218910738 | AD98: 0.0005121778988 | AE98: 0.003291189003 | AF98: 0.006566031702 | AG98: 0.01949310092 | AH98: 0.001985653038 | AI98: 0.0005241580344 | AJ98: 0.0008255273337 | AK98: 0.004147134985 | AL98: 0.009060904847 | AM98: 0.00185774152 | AN98: 34.66946619 | AO98: 221.7110075 | AP98: 424.1714983 | AQ98: 87.31052177 | AR98: 2725.852338 | AS98: 3239.034207 | AT98: 2131.95675 | AU98: 1976.841229 | AV98: 19492.27482 | AX98: 16720.15318 | AY98: 16022459.44 | AZ98: 65989723.92 | BA98: 65388650.05 | BB98: -721502907.3
A99: 91 | B99: 1.848600709 | C99: 0.0001036199641 | D99: 0.0007072855896 | E99: 0.0009844937678 | F99: 0.00250855471 | G99: 0.0002696342087 | H99: 0.0001070106745 | I99: 0.0006754321609 | J99: 0.0002676683583 | K99: 0.0004957780548 | L99: 0.003100729632 | M99: 0.005156451336 | N99: 0.01779084763 | O99: 0.001751728037 | P99: 0.0004407148868 | Q99: 0.0008277787072 | R99: 0.004704382332 | S99: 0.00922115946 | T99: 0.001979265017 | U99: 0.000409085687 | V99: 0.0007116922621 | W99: 0.0002629239216 | X99: 0.001573351032 | Y99: 0.0006083720485 | Z99: 0.0001770253999 | AA99: 0.0004191643589 | AB99: 0.0003468002471 | AC99: 0.001255906907 | AD99: 0.0005614892865 | AE99: 0.003054605292 | AF99: 0.005573137885 | AG99: 0.01560287736 | AH99: 0.001613938224 | AI99: 0.0004782563159 | AJ99: 0.0008575868317 | AK99: 0.005003208106 | AL99: 0.008544433009 | AM99: 0.002081923291 | AN99: 34.64059314 | AO99: 270.9255292 | AP99: 408.4535478 | AQ99: 70.18614401 | AR99: 3795.820928 | AS99: 3994.304942 | AT99: 1735.946674 | AU99: 1999.270544 | AV99: 18105.13002 | AX99: 12241.00477 | AY99: 11416269.62 | AZ99: 46404894.11 | BA99: 61015874.54 | BB99: -974215764.4
A100: 92 | B100: 1.875387841 | C100: 0.000123997529 | D100: 0.000743338221 | E100: 0.001266462906 | F100: 0.002149814518 | G100: 0.0002861094883 | H100: 0.0001121456459 | I100: 0.0006064898152 | J100: 0.0003049560249 | K100: 0.0005071883941 | L100: 0.003502199697 | M100: 0.00559441744 | N100: 0.0170927346 | O100: 0.001699520497 | P100: 0.0005737249686 | Q100: 0.0006758926012 | R100: 0.003329269337 | S100: 0.00855054205 | T100: 0.002237899472 | U100: 0.0004441360163 | V100: 0.0007041269972 | W100: 0.0003316485351 | X100: 0.001592801181 | Y100: 0.0005479102314 | Z100: 0.0002104081036 | AA100: 0.0005719136668 | AB100: 0.0004849243057 | AC100: 0.001249400759 | AD100: 0.000519093124 | AE100: 0.003477343994 | AF100: 0.005147733738 | AG100: 0.01475790048 | AH100: 0.001885125463 | AI100: 0.0005164910986 | AJ100: 0.0007894669334 | AK100: 0.004889821989 | AL100: 0.006663607292 | AM100: 0.00248833984 | AN100: 39.79068004 | AO100: 207.8017779 | AP100: 427.1681758 | AQ100: 72.77669118 | AR100: 2939.760359 | AS100: 3172.415091 | AT100: 1720.947327 | AU100: 1748.232148 | AV100: 16238.28675 | AX100: 12963.4151 | AY100: 12039968.57 | AZ100: 49167364.65 | BA100: 60683646.58 | BB100: -640025355.4
A101: 93 | B101: 1.86757795 | C101: 9.462494627e-05 | D101: 0.0008103243867 | E101: 0.0009135941548 | F101: 0.002187386562 | G101: 0.0002962120026 | H101: 0.0001036438955 | I101: 0.0006909510432 | J101: 0.0003238869911 | K101: 0.0004554877805 | L101: 0.002967061757 | M101: 0.004951053858 | N101: 0.01561639493 | O101: 0.001878516369 | P101: 0.0005310268639 | Q101: 0.0008170135472 | R101: 0.004995393357 | S101: 0.009703843632 | T101: 0.001956635644 | U101: 0.0003897693089 | V101: 0.0006928466875 | W101: 0.0003322995238 | X101: 0.001449878644 | Y101: 0.0004516049852 | Z101: 0.0002105838135 | AA101: 0.0005261568419 | AB101: 0.0004507840091 | AC101: 0.001212737866 | AD101: 0.0004597557008 | AE101: 0.003065858297 | AF101: 0.005330443331 | AG101: 0.01941161848 | AH101: 0.001983834895 | AI101: 0.0005152175838 | AJ101: 0.0008584052138 | AK101: 0.003864265912 | AL101: 0.008388615698 | AM101: 0.002583475651 | AN101: 40.99316457 | AO101: 222.3284008 | AP101: 406.0233135 | AQ101: 69.70515045 | AR101: 2623.970087 | AS101: 3150.126486 | AT101: 2060.21746 | AU101: 1752.431139 | AV101: 20923.34892 | AX101: 10929.53553 | AY101: 10366973.33 | AZ101: 42258593.17 | BA101: 53807539.98 | BB101: -715412209.4
A102: 94 | B102: 1.859175844 | C102: 9.886644749e-05 | D102: 0.0007065370038 | E102: 0.001024539641 | F102: 0.001820901613 | G102: 0.0003211338399 | H102: 8.921211535e-05 | I102: 0.0005862068742 | J102: 0.0002649435808 | K102: 0.0004589577106 | L102: 0.002896738361 | M102: 0.00604086355 | N102: 0.01698570002 | O102: 0.002183254256 | P102: 0.0005485743365 | Q102: 0.0008716858222 | R102: 0.004200573106 | S102: 0.008245646167 | T102: 0.002052094667 | U102: 0.0003555435737 | V102: 0.0007459633844 | W102: 0.0003089780942 | X102: 0.001643645733 | Y102: 0.0004349499019 | Z102: 0.0001996059951 | AA102: 0.0004666424655 | AB102: 0.0003542069826 | AC102: 0.001229839495 | AD102: 0.0004994184329 | AE102: 0.003281754511 | AF102: 0.005742770971 | AG102: 0.01770503291 | AH102: 0.001806155572 | AI102: 0.0005348529795 | AJ102: 0.0007314384537 | AK102: 0.004444787246 | AL102: 0.009337005611 | AM102: 0.002188901279 | AN102: 29.7118376 | AO102: 195.7781704 | AP102: 362.0569975 | AQ102: 72.24042953 | AR102: 3086.363499 | AS102: 3097.848565 | AT102: 1892.391751 | AU102: 1897.992135 | AV102: 21158.10561 | AX102: 17053.32132 | AY102: 16711161.17 | AZ102: 69014909.63 | BA102: 57324251.3 | BB102: -648266978.3
A103: 95 | B103: 1.865823385 | C103: 9.82673787e-05 | D103: 0.0006794737102 | E103: 0.0009182371057 | F103: 0.002685739192 | G103: 0.0003015762208 | H103: 0.0001077899285 | I103: 0.0007181295094 | J103: 0.0002832358763 | K103: 0.000545272515 | L103: 0.003404869986 | M103: 0.004841251262 | N103: 0.01579516047 | O103: 0.001822585926 | P103: 0.0004517791088 | Q103: 0.0006415799009 | R103: 0.004520608012 | S103: 0.009175573883 | T103: 0.001961523477 | U103: 0.0003478719894 | V103: 0.0005837556599 | W103: 0.0003958930807 | X103: 0.001455564472 | Y103: 0.00043083757 | Z103: 0.0002042384459 | AA103: 0.0005417525174 | AB103: 0.0003968387383 | AC103: 0.001260632211 | AD103: 0.0004921937363 | AE103: 0.003257376131 | AF103: 0.004495239096 | AG103: 0.01721949736 | AH103: 0.001626069622 | AI103: 0.0006127379951 | AJ103: 0.0007872553415 | AK103: 0.005018346477 | AL103: 0.008277288037 | AM103: 0.002129246185 | AN103: 39.79704368 | AO103: 268.6353505 | AP103: 421.1661304 | AQ103: 62.15741031 | AR103: 2975.082795 | AS103: 2843.852161 | AT103: 2362.308355 | AU103: 1595.320184 | AV103: 21964.63391 | AX103: 10243.07825 | AY103: 9166621.782 | AZ103: 37108508.44 | BA103: 43572748.32 | BB103: -941192072.3
A104: 96 | B104: 1.875652975 | C104: 0.0001087967796 | D104: 0.0007696604475 | E104: 0.001218966264 | F104: 0.002297477865 | G104: 0.0002780450049 | H104: 8.517031719e-05 | I104: 0.0005868624684 | J104: 0.0003094079865 | K104: 0.0005400928486 | L104: 0.003720108591 | M104: 0.005723407138 | N104: 0.01485652155 | O104: 0.001821260147 | P104: 0.0004749874841 | Q104: 0.0007928813014 | R104: 0.005409828548 | S104: 0.009243796811 | T104: 0.002238445164 | U104: 0.0003741247504 | V104: 0.0007122692921 | W104: 0.0003038386681 | X104: 0.001577215907 | Y104: 0.0005638327491 | Z104: 0.0002018409076 | AA104: 0.0004716869265 | AB104: 0.0004212264171 | AC104: 0.001301101856 | AD104: 0.0004628717915 | AE104: 0.003205632803 | AF104: 0.005407732867 | AG104: 0.01612825897 | AH104: 0.001895553483 | AI104: 0.0005107384758 | AJ104: 0.0007275479352 | AK104: 0.005142877498 | AL104: 0.008047293922 | AM104: 0.002190993437 | AN104: 33.50601131 | AO104: 250.9206615 | AP104: 429.2036121 | AQ104: 79.96352898 | AR104: 3209.979646 | AS104: 3213.9753 | AT104: 2015.765278 | AU104: 1561.129869 | AV104: 18734.18985 | AX104: 10745.53747 | AY104: 10208995.37 | AZ104: 41790641.34 | BA104: 51764931.58 | BB104: -868536585.1
A105: 97 | B105: 1.827772864 | C105: 0.0001023568184 | D105: 0.0007066558521 | E105: 0.00105808953 | F105: 0.002847931974 | G105: 0.0003140756021 | H105: 0.0001089051923 | I105: 0.0005493367047 | J105: 0.0002976604243 | K105: 0.000521572311 | L105: 0.00307187862 | M105: 0.005405615158 | N105: 0.01604525508 | O105: 0.00218964727 | P105: 0.0005628773824 | Q105: 0.0008196315384 | R105: 0.004135077907 | S105: 0.007687098661 | T105: 0.001852884938 | U105: 0.0003648376427 | V105: 0.0006655547751 | W105: 0.0003366145019 | X105: 0.001935939327 | Y105: 0.0005403604732 | Z105: 0.0001524952743 | AA105: 0.0004940039184 | AB105: 0.0004212424502 | AC105: 0.001065404165 | AD105: 0.000468215497 | AE105: 0.003683011465 | AF105: 0.005384564823 | AG105: 0.01820889424 | AH105: 0.001635153224 | AI105: 0.0004551378992 | AJ105: 0.0007618203932 | AK105: 0.004344942014 | AL105: 0.008876678275 | AM105: 0.002188622345 | AN105: 29.92710794 | AO105: 235.2392078 | AP105: 380.6967638 | AQ105: 72.85515171 | AR105: 3117.005864 | AS105: 2830.897463 | AT105: 1545.196504 | AU105: 1856.632444 | AV105: 15856.50474 | AX105: 11517.03926 | AY105: 10739788.36 | AZ105: 43721802.32 | BA105: 55262533.38 | BB105: -830773048.7
A106: 98 | B106: 1.897487615 | C106: 0.0001003217924 | D106: 0.0007355144811 | E106: 0.001162549234 | F106: 0.002352680984 | G106: 0.0003011252644 | H106: 0.0001088741746 | I106: 0.0005646526421 | J106: 0.0002803001544 | K106: 0.0006200112295 | L106: 0.002883335266 | M106: 0.006332743658 | N106: 0.01769203574 | O106: 0.001794372922 | P106: 0.0004797755434 | Q106: 0.000799550695 | R106: 0.004179484589 | S106: 0.008549504586 | T106: 0.001991613306 | U106: 0.0003967014881 | V106: 0.0005994682197 | W106: 0.0003016867425 | X106: 0.00123809777 | Y106: 0.0005319742665 | Z106: 0.0002111743602 | AA106: 0.0005186822241 | AB106: 0.0004070376598 | AC106: 0.001321836783 | AD106: 0.0005246856348 | AE106: 0.003192329068 | AF106: 0.005065076538 | AG106: 0.01580813494 | AH106: 0.001916387916 | AI106: 0.0004897404518 | AJ106: 0.0005898902713 | AK106: 0.004351590427 | AL106: 0.0103115973 | AM106: 0.001989768814 | AN106: 32.09258878 | AO106: 218.0449089 | AP106: 374.1152851 | AQ106: 68.43402027 | AR106: 3071.759921 | AS106: 3575.446793 | AT106: 1778.730109 | AU106: 2279.030537 | AV106: 23411.13765 | AX106: 13089.23059 | AY106: 12841333.25 | AZ106: 52646393.68 | BA106: 51171702.17 | BB106: -742649667.1
A107: 99 | B107: 1.793475247 | C107: 0.0001057464126 | D107: 0.0005954363456 | E107: 0.001079717321 | F107: 0.002568799905 | G107: 0.0002673437403 | H107: 0.0001151719417 | I107: 0.0006623380415 | J107: 0.000276732595 | K107: 0.000422580871 | L107: 0.003156191293 | M107: 0.005429964787 | N107: 0.01453710248 | O107: 0.00168437062 | P107: 0.000582398547 | Q107: 0.0008073390679 | R107: 0.005064691528 | S107: 0.009842497605 | T107: 0.002183873921 | U107: 0.0004281146752 | V107: 0.000627793565 | W107: 0.0003379675539 | X107: 0.001557934823 | Y107: 0.0004877246731 | Z107: 0.0002297551864 | AA107: 0.0004887704222 | AB107: 0.0004335378077 | AC107: 0.001243663098 | AD107: 0.0005591898046 | AE107: 0.002661195274 | AF107: 0.00529348282 | AG107: 0.01967999435 | AH107: 0.001670625176 | AI107: 0.0004851121244 | AJ107: 0.0007077507892 | AK107: 0.004706011014 | AL107: 0.01028745701 | AM107: 0.002518815082 | AN107: 32.752046 | AO107: 218.914596 | AP107: 363.6799623 | AQ107: 72.60055958 | AR107: 3272.809489 | AS107: 3315.357452 | AT107: 1982.719766 | AU107: 1882.036512 | AV107: 17910.95793 | AX107: 12356.69856 | AY107: 11526760.16 | AZ107: 47056726.38 | BA107: 59748067.11 | BB107: -748331272.9
A108: 100 | B108: 1.848076831 | C108: 9.936983469e-05 | D108: 0.0006708790569 | E108: 0.001158755389 | F108: 0.002537418706 | G108: 0.0002744044851 | H108: 0.0001030849332 | I108: 0.0005842014793 | J108: 0.0003076050548 | K108: 0.0004932872137 | L108: 0.00288433457 | M108: 0.005275083342 | N108: 0.01772668562 | O108: 0.00189231967 | P108: 0.0005705300264 | Q108: 0.0007476829702 | R108: 0.004233585684 | S108: 0.009758434161 | T108: 0.002356199174 | U108: 0.0003627696203 | V108: 0.0005569120862 | W108: 0.0003061196595 | X108: 0.001407834933 | Y108: 0.0005377329965 | Z108: 0.0001937793672 | AA108: 0.0004375039025 | AB108: 0.00039257417 | AC108: 0.001490954533 | AD108: 0.0005170441076 | AE108: 0.002895424019 | AF108: 0.005802724083 | AG108: 0.01967149005 | AH108: 0.001938329365 | AI108: 0.0005801914073 | AJ108: 0.0007078911033 | AK108: 0.003931480115 | AL108: 0.009311876062 | AM108: 0.001959704272 | AN108: 36.36788596 | AO108: 230.3589001 | AP108: 385.7140903 | AQ108: 76.37290844 | AR108: 2997.335868 | AS108: 2748.491583 | AT108: 1831.32432 | AU108: 1805.047705 | AV108: 19077.20996 | AX108: 10095.90115 | AY108: 9912765.102 | AZ108: 40769675.35 | BA108: 42686846.65 | BB108: -777675801
A109: 101 | B109: 1.865388925 | C109: 0.000101054292 | D109: 0.0006982474247 | E109: 0.001048690202 | F109: 0.002138913616 | G109: 0.0002972788027 | H109: 0.0001094252912 | I109: 0.0006068193669 | J109: 0.0002639633166 | K109: 0.0005527909692 | L109: 0.00344220045 | M109: 0.003613906431 | N109: 0.01820157307 | O109: 0.001837517267 | P109: 0.0004516823282 | Q109: 0.0007173027197 | R109: 0.003816819436 | S109: 0.007736704874 | T109: 0.001822504485 | U109: 0.0003641742 | V109: 0.0008000512808 | W109: 0.0002828521541 | X109: 0.001531232799 | Y109: 0.0004882255005 | Z109: 0.0002245641107 | AA109: 0.000522296268 | AB109: 0.0003661534073 | AC109: 0.001446613695 | AD109: 0.0004849264172 | AE109: 0.003276528411 | AF109: 0.004808258003 | AG109: 0.0178889078 | AH109: 0.002221086808 | AI109: 0.0004817352636 | AJ109: 0.0007553116954 | AK109: 0.004871305129 | AL109: 0.008169179825 | AM109: 0.002048392483 | AN109: 35.56847851 | AO109: 209.8616964 | AP109: 434.300874 | AQ109: 74.92623255 | AR109: 3172.838816 | AS109: 3253.83931 | AT109: 2233.538831 | AU109: 1933.389498 | AV109: 20081.85509 | AX109: 15713.0331 | AY109: 15023435.89 | AZ109: 62001548.8 | BA109: 59467105.31 | BB109: -662891296.9
A110: 102 | B110: 1.888425175 | C110: 9.854818187e-05 | D110: 0.000723516133 | E110: 0.001051456186 | F110: 0.002283985086 | G110: 0.0003490194886 | H110: 0.000107219723 | I110: 0.0006710869004 | J110: 0.0003067705263 | K110: 0.0004430421752 | L110: 0.003045394539 | M110: 0.005254081322 | N110: 0.01579023749 | O110: 0.002314000943 | P110: 0.0004813047529 | Q110: 0.0007369365224 | R110: 0.00403416047 | S110: 0.008921018444 | T110: 0.00205215186 | U110: 0.0004143503512 | V110: 0.0007820895805 | W110: 0.0003322759424 | X110: 0.001779949851 | Y110: 0.0004120799631 | Z110: 0.0002098259983 | AA110: 0.0006716379948 | AB110: 0.0003416985362 | AC110: 0.001372290608 | AD110: 0.000467151894 | AE110: 0.003143550777 | AF110: 0.004706191021 | AG110: 0.01739814491 | AH110: 0.00169108192 | AI110: 0.0005734333839 | AJ110: 0.0008542984687 | AK110: 0.003732298312 | AL110: 0.007771806334 | AM110: 0.001870362938 | AN110: 36.87666402 | AO110: 260.0062918 | AP110: 375.1413131 | AQ110: 66.30849976 | AR110: 2995.919533 | AS110: 3557.719568 | AT110: 1968.144363 | AU110: 2067.570728 | AV110: 21592.43587 | AX110: 12009.6201 | AY110: 11470191.16 | AZ110: 47830260.81 | BA110: 37289338.59 | BB110: -926915561.9
A111: 103 | B111: 1.80946386 | C111: 9.067094794e-05 | D111: 0.0007584169654 | E111: 0.001035697558 | F111: 0.002055177773 | G111: 0.0002694054255 | H111: 0.0001070635726 | I111: 0.0006551789531 | J111: 0.0002701385339 | K111: 0.0004444253399 | L111: 0.002742146162 | M111: 0.004730267186 | N111: 0.01619477314 | O111: 0.001776563446 | P111: 0.0004894754305 | Q111: 0.0005914742041 | R111: 0.004223956219 | S111: 0.009616445482 | T111: 0.002195322224 | U111: 0.0004232350154 | V111: 0.0006290267641 | W111: 0.0003081911529 | X111: 0.001451096162 | Y111: 0.0004796176886 | Z111: 0.000198192627 | AA111: 0.0004739184594 | AB111: 0.0004219412088 | AC111: 0.001171347469 | AD111: 0.0005039444023 | AE111: 0.003373684122 | AF111: 0.005346697089 | AG111: 0.01846766372 | AH111: 0.001522073651 | AI111: 0.0004553109133 | AJ111: 0.0007639347772 | AK111: 0.004339478967 | AL111: 0.009478458614 | AM111: 0.002227126594 | AN111: 37.55875355 | AO111: 240.207812 | AP111: 398.1017537 | AQ111: 74.76330775 | AR111: 3156.541721 | AS111: 3397.704373 | AT111: 2089.32883 | AU111: 1802.072023 | AV111: 18473.5008 | AX111: 13048.71382 | AY111: 12685663.93 | AZ111: 51995743.11 | BA111: 53814450.06 | BB111: -817136445.9
A112: 104 | B112: 1.861203127 | C112: 9.681698901e-05 | D112: 0.000649233581 | E112: 0.00107880329 | F112: 0.002343622929 | G112: 0.0002701947186 | H112: 0.0001112612379 | I112: 0.0004343940096 | J112: 0.0003680254896 | K112: 0.0004841514896 | L112: 0.002922980865 | M112: 0.004927634411 | N112: 0.01834860946 | O112: 0.001874826574 | P112: 0.0005381971293 | Q112: 0.0005770823592 | R112: 0.004261651726 | S112: 0.007638944094 | T112: 0.002223410605 | U112: 0.0004468932117 | V112: 0.0007431785723 | W112: 0.0003076813013 | X112: 0.001546820372 | Y112: 0.000540036625 | Z112: 0.0001834972161 | AA112: 0.0005156798758 | AB112: 0.0003598241669 | AC112: 0.001433125231 | AD112: 0.0004749712808 | AE112: 0.00301572924 | AF112: 0.005327024144 | AG112: 0.01721592476 | AH112: 0.002034521074 | AI112: 0.0004410373691 | AJ112: 0.0008108950718 | AK112: 0.004232064599 | AL112: 0.008079520605 | AM112: 0.002052110742 | AN112: 33.24098175 | AO112: 237.1652326 | AP112: 385.7016556 | AQ112: 71.28928496 | AR112: 3236.160211 | AS112: 3579.953004 | AT112: 1642.273843 | AU112: 1856.511823 | AV112: 19944.36355 | AX112: 14250.01076 | AY112: 13692261.48 | AZ112: 56678635.83 | BA112: 53410070.55 | BB112: -825057576.5
A113: 105 | B113: 1.85226699 | C113: 9.409243004e-05 | D113: 0.000665520745 | E113: 0.0009258960032 | F113: 0.002348083705 | G113: 0.0003409975661 | H113: 9.666432117e-05 | I113: 0.0005750841008 | J113: 0.000284795267 | K113: 0.0004677343135 | L113: 0.003461676672 | M113: 0.005676072683 | N113: 0.01658670911 | O113: 0.001777069315 | P113: 0.0005719954618 | Q113: 0.0007922140147 | R113: 0.004775889166 | S113: 0.008973652861 | T113: 0.0018403849 | U113: 0.0003870245673 | V113: 0.0006141783328 | W113: 0.0003097603162 | X113: 0.001761362095 | Y113: 0.000567990087 | Z113: 0.0002011414246 | AA113: 0.0005214978575 | AB113: 0.0003932869306 | AC113: 0.001158439026 | AD113: 0.0005159801699 | AE113: 0.003345984194 | AF113: 0.005452794035 | AG113: 0.01420214244 | AH113: 0.001697394632 | AI113: 0.0005189318839 | AJ113: 0.0007204243324 | AK113: 0.004100313886 | AL113: 0.009621887189 | AM113: 0.002331788083 | AN113: 35.04508405 | AO113: 238.798938 | AP113: 387.1315627 | AQ113: 79.27080794 | AR113: 2833.579404 | AS113: 3015.60946 | AT113: 1719.296147 | AU113: 1674.270842 | AV113: 18793.86876 | AX113: 14601.55549 | AY113: 13975154.21 | AZ113: 57329811.27 | BA113: 62251199.69 | BB113: -821592374.9
A114: 106 | B114: 1.78936617 | C114: 9.352008035e-05 | D114: 0.0006669258302 | E114: 0.001240575448 | F114: 0.001903568036 | G114: 0.0003055206263 | H114: 8.199873691e-05 | I114: 0.0006593776957 | J114: 0.0003250647695 | K114: 0.0004685067453 | L114: 0.002773266521 | M114: 0.005604610554 | N114: 0.01805620465 | O114: 0.00152779879 | P114: 0.0004261887113 | Q114: 0.0008124767645 | R114: 0.004178836548 | S114: 0.008583077422 | T114: 0.00223170676 | U114: 0.0003715340885 | V114: 0.0005064445847 | W114: 0.0002698620086 | X114: 0.001487199938 | Y114: 0.0004735534786 | Z114: 0.0001757476842 | AA114: 0.0005320947574 | AB114: 0.0003315597189 | AC114: 0.001470951582 | AD114: 0.0005354413759 | AE114: 0.003071888465 | AF114: 0.006553229581 | AG114: 0.0177872574 | AH114: 0.001800781533 | AI114: 0.0004868641371 | AJ114: 0.0006794100072 | AK114: 0.004444226243 | AL114: 0.008767021007 | AM114: 0.002242283303 | AN114: 36.89015423 | AO114: 217.8958426 | AP114: 349.704419 | AQ114: 76.13610417 | AR114: 3344.452106 | AS114: 2850.96338 | AT114: 2261.27104 | AU114: 2132.18064 | AV114: 16411.12674 | AX114: 13827.60747 | AY114: 13913447.85 | AZ114: 57680516.87 | BA114: 46764536.29 | BB114: -731016376.3
A115: 107 | B115: 1.772667715 | C115: 0.0001014598747 | D115: 0.00081858897 | E115: 0.001125908696 | F115: 0.002819922105 | G115: 0.0002665987937 | H115: 0.0001151975075 | I115: 0.0006595341151 | J115: 0.0003005595611 | K115: 0.000570724353 | L115: 0.003214702871 | M115: 0.005771704174 | N115: 0.01672936103 | O115: 0.002163562326 | P115: 0.0005501213816 | Q115: 0.0006709112535 | R115: 0.004974064747 | S115: 0.008838059051 | T115: 0.001841809744 | U115: 0.0003696298284 | V115: 0.0006127472372 | W115: 0.0003453071727 | X115: 0.001483335192 | Y115: 0.0004232345822 | Z115: 0.0001846655023 | AA115: 0.000486774146 | AB115: 0.0004955109819 | AC115: 0.001071464611 | AD115: 0.0004855715807 | AE115: 0.003000363311 | AF115: 0.005027431721 | AG115: 0.01691393687 | AH115: 0.00177083126 | AI115: 0.0005160022337 | AJ115: 0.0008004325532 | AK115: 0.004911230605 | AL115: 0.007888801238 | AM115: 0.00200386437 | AN115: 32.70324706 | AO115: 269.9944722 | AP115: 418.0167507 | AQ115: 78.27933197 | AR115: 3284.251793 | AS115: 2660.713715 | AT115: 1719.943089 | AU115: 1724.810726 | AV115: 18293.17054 | AX115: 7163.142808 | AY115: 6426968.693 | AZ115: 25671006.82 | BA115: 39265368.32 | BB115: -971500092.2
A116: 108 | B116: 1.822030416 | C116: 9.815841382e-05 | D116: 0.0007216825761 | E116: 0.0009135188703 | F116: 0.001984754434 | G116: 0.0003024842617 | H116: 9.800030716e-05 | I116: 0.0006505138994 | J116: 0.0002588712136 | K116: 0.0005617761594 | L116: 0.003151869572 | M116: 0.00518332271 | N116: 0.0158402447 | O116: 0.002202258388 | P116: 0.0004733583216 | Q116: 0.0008894663357 | R116: 0.004394297211 | S116: 0.00847166858 | T116: 0.002412174339 | U116: 0.0003444342745 | V116: 0.0007215689623 | W116: 0.0003264048301 | X116: 0.001469790633 | Y116: 0.0005273062179 | Z116: 0.000209738174 | AA116: 0.000463983057 | AB116: 0.0004070637318 | AC116: 0.001296282112 | AD116: 0.000532352753 | AE116: 0.00251376273 | AF116: 0.004649520343 | AG116: 0.01799012572 | AH116: 0.00197032395 | AI116: 0.0004800040465 | AJ116: 0.0007788102109 | AK116: 0.004171300696 | AL116: 0.009062216595 | AM116: 0.002543846592 | AN116: 41.53458734 | AO116: 243.2015738 | AP116: 382.8024617 | AQ116: 62.62524217 | AR116: 2534.912104 | AS116: 3266.370119 | AT116: 1906.237027 | AU116: 1645.311008 | AV116: 16994.83401 | AX116: 15363.22856 | AY116: 14728651.28 | AZ116: 60336792.49 | BA116: 65818365.2 | BB116: -827619030.5
A117: 109 | B117: 1.836843596 | C117: 0.0001035877717 | D117: 0.0007737114339 | E117: 0.001231570912 | F117: 0.00263990384 | G117: 0.000327746597 | H117: 9.801618637e-05 | I117: 0.0005930302044 | J117: 0.0002932151528 | K117: 0.000432034426 | L117: 0.002982931893 | M117: 0.005554208071 | N117: 0.01969029394 | O117: 0.002164632201 | P117: 0.0005146285729 | Q117: 0.0006949537284 | R117: 0.004372531529 | S117: 0.008995778965 | T117: 0.001747306837 | U117: 0.000450224347 | V117: 0.0006452972853 | W117: 0.0002719159643 | X117: 0.001527551261 | Y117: 0.0004918808997 | Z117: 0.0001876533687 | AA117: 0.0005057916068 | AB117: 0.0004376862889 | AC117: 0.001342923683 | AD117: 0.0004611536312 | AE117: 0.002898299681 | AF117: 0.005356387453 | AG117: 0.01720413902 | AH117: 0.001408173392 | AI117: 0.000532314336 | AJ117: 0.0007572585502 | AK117: 0.004162528657 | AL117: 0.007984138241 | AM117: 0.001641631243 | AN117: 36.10042614 | AO117: 230.6984355 | AP117: 389.6546283 | AQ117: 86.18889157 | AR117: 2610.253295 | AS117: 3004.751898 | AT117: 1755.85526 | AU117: 1663.028347 | AV117: 18425.04037 | AX117: 9073.937559 | AY117: 8883203.543 | AZ117: 36611900 | BA117: 35949799.24 | BB117: -774280277
A118: 110 | B118: 1.866183614 | C118: 9.420580944e-05 | D118: 0.0008079983925 | E118: 0.001160750905 | F118: 0.002271959729 | G118: 0.0003315623347 | H118: 0.0001005063992 | I118: 0.0005787123729 | J118: 0.0003236573445 | K118: 0.0005332624311 | L118: 0.002921893723 | M118: 0.005057929023 | N118: 0.01781046581 | O118: 0.001692195664 | P118: 0.0005675916024 | Q118: 0.0007683023691 | R118: 0.004489665317 | S118: 0.008869703178 | T118: 0.002479822657 | U118: 0.0004179776669 | V118: 0.0007528111911 | W118: 0.0003287810759 | X118: 0.001697274719 | Y118: 0.00049070809 | Z118: 0.0001945400122 | AA118: 0.0004327257842 | AB118: 0.0004407257286 | AC118: 0.001366644501 | AD118: 0.000548129283 | AE118: 0.003631533638 | AF118: 0.004749000442 | AG118: 0.01792472214 | AH118: 0.001829445963 | AI118: 0.0005348844491 | AJ118: 0.0007452333056 | AK118: 0.003669773543 | AL118: 0.009641432157 | AM118: 0.002267470174 | AN118: 35.96805535 | AO118: 223.6649445 | AP118: 358.9172201 | AQ118: 65.04066441 | AR118: 3456.96168 | AS118: 3444.129026 | AT118: 2348.242381 | AU118: 1785.388029 | AV118: 20483.50934 | AX118: 12925.30844 | AY118: 13074449.83 | AZ118: 54263687.12 | BA118: 42514202.12 | BB118: -762757193.9
A119: 111 | B119: 1.885741673 | C119: 9.657908109e-05 | D119: 0.0007824718177 | E119: 0.001169728507 | F119: 0.002111834986 | G119: 0.0003164679332 | H119: 0.0001008781299 | I119: 0.0005739701829 | J119: 0.0002675778599 | K119: 0.0005364108728 | L119: 0.003155783064 | M119: 0.004728134672 | N119: 0.01831380092 | O119: 0.002127827396 | P119: 0.00046749359 | Q119: 0.0007479882416 | R119: 0.005042559325 | S119: 0.008818958612 | T119: 0.002352739275 | U119: 0.0004367387077 | V119: 0.000666525212 | W119: 0.0002682791942 | X119: 0.001730032712 | Y119: 0.0005435195412 | Z119: 0.0002043494367 | AA119: 0.0005636508481 | AB119: 0.0004398607496 | AC119: 0.001441614417 | AD119: 0.0005209838629 | AE119: 0.003306885065 | AF119: 0.005709778383 | AG119: 0.01879144829 | AH119: 0.001868688074 | AI119: 0.0004684476714 | AJ119: 0.0007612283006 | AK119: 0.004860056135 | AL119: 0.007433771601 | AM119: 0.001765362693 | AN119: 42.24915554 | AO119: 206.3543665 | AP119: 385.5487123 | AQ119: 63.43024858 | AR119: 3154.492296 | AS119: 2551.953982 | AT119: 2024.103895 | AU119: 1799.115455 | AV119: 19108.94851 | AX119: 12936.00923 | AY119: 12802122.91 | AZ119: 53040754.64 | BA119: 44541376.84 | BB119: -644289618.8
A120: 112 | B120: 1.921440877 | C120: 0.0001059398656 | D120: 0.0007615523985 | E120: 0.001045774619 | F120: 0.002176325936 | G120: 0.0003290424896 | H120: 9.837798769e-05 | I120: 0.0004980691891 | J120: 0.0002578346202 | K120: 0.000515081789 | L120: 0.003722201435 | M120: 0.006079261365 | N120: 0.01663440567 | O120: 0.00175067482 | P120: 0.0005454390199 | Q120: 0.0008853868873 | R120: 0.003685168983 | S120: 0.008986246045 | T120: 0.002113201312 | U120: 0.0003845269169 | V120: 0.0006185200902 | W120: 0.0002793146003 | X120: 0.001157875761 | Y120: 0.0005658692508 | Z120: 0.0002132508884 | AA120: 0.000504841619 | AB120: 0.0004106757414 | AC120: 0.001179571311 | AD120: 0.0004840995284 | AE120: 0.003091862734 | AF120: 0.005103004 | AG120: 0.0196754488 | AH120: 0.00174496983 | AI120: 0.0004438891829 | AJ120: 0.0007391910015 | AK120: 0.004100008449 | AL120: 0.009649182329 | AM120: 0.002423731299 | AN120: 37.54535429 | AO120: 275.3171554 | AP120: 412.1235029 | AQ120: 60.47323982 | AR120: 2503.265511 | AS120: 2866.084921 | AT120: 2413.816441 | AU120: 1859.361092 | AV120: 18760.41828 | AX120: 13050.94432 | AY120: 12458749.51 | AZ120: 50789637.45 | BA120: 59376764.58 | BB120: -985341812.2
A121: 113 | B121: 1.841128812 | C121: 0.0001181674308 | D121: 0.0006224064933 | E121: 0.001289100987 | F121: 0.002263207693 | G121: 0.0002977583402 | H121: 8.730552077e-05 | I121: 0.0005035099538 | J121: 0.0003136260801 | K121: 0.0005969264516 | L121: 0.003033561971 | M121: 0.005193803708 | N121: 0.01648574458 | O121: 0.001847592798 | P121: 0.0005970285896 | Q121: 0.0008557310643 | R121: 0.00424615793 | S121: 0.009947592511 | T121: 0.001991935061 | U121: 0.0003940749314 | V121: 0.0005382767046 | W121: 0.0003002325967 | X121: 0.001834394103 | Y121: 0.0004144156193 | Z121: 0.0001769906471 | AA121: 0.0004870827504 | AB121: 0.0004805843866 | AC121: 0.001173396099 | AD121: 0.0004670069146 | AE121: 0.003192579135 | AF121: 0.00481548249 | AG121: 0.01728582845 | AH121: 0.001882995421 | AI121: 0.000432703297 | AJ121: 0.0007372992779 | AK121: 0.005085473793 | AL121: 0.008249030264 | AM121: 0.002482040659 | AN121: 34.04299361 | AO121: 203.2067464 | AP121: 371.1245338 | AQ121: 56.90401678 | AR121: 2702.926578 | AS121: 3654.657815 | AT121: 1965.708393 | AU121: 1749.838848 | AV121: 26064.85468 | AX121: 11948.1406 | AY121: 11469248 | AZ121: 47093743.78 | BA121: 50656667.37 | BB121: -671096587.2
A122: 114 | B122: 1.813531252 | C122: 0.0001040063672 | D122: 0.0006801983559 | E122: 0.001061847725 | F122: 0.002557031948 | G122: 0.0002658008116 | H122: 0.0001177236076 | I122: 0.0006547173565 | J122: 0.0003202047741 | K122: 0.0005344420515 | L122: 0.003449321698 | M122: 0.00619925568 | N122: 0.01634766093 | O122: 0.001750878772 | P122: 0.0005216081928 | Q122: 0.0008084084473 | R122: 0.004957586854 | S122: 0.009325632816 | T122: 0.001988335445 | U122: 0.0003339766551 | V122: 0.0006884992307 | W122: 0.0003384337818 | X122: 0.001500993483 | Y122: 0.0005687993718 | Z122: 0.0001891485664 | AA122: 0.0005070719114 | AB122: 0.0004112990306 | AC122: 0.001387083512 | AD122: 0.0004151432357 | AE122: 0.003190863422 | AF122: 0.00556616805 | AG122: 0.01876433709 | AH122: 0.00168778251 | AI122: 0.0004475039669 | AJ122: 0.0008185900942 | AK122: 0.004494890722 | AL122: 0.009779005263 | AM122: 0.001970832075 | AN122: 38.56186042 | AO122: 243.8483893 | AP122: 344.3182254 | AQ122: 73.25639642 | AR122: 3615.665835 | AS122: 3238.032149 | AT122: 1789.537806 | AU122: 1983.723321 | AV122: 20554.2192 | AX122: 12488.74992 | AY122: 11693178.94 | AZ122: 47951683.88 | BA122: 54294738.67 | BB122: -852926008.6
A123: 115 | B123: 1.840431514 | C123: 9.90098535e-05 | D123: 0.0007098286506 | E123: 0.0009449147862 | F123: 0.002450728294 | G123: 0.0002874958164 | H123: 0.0001044090741 | I123: 0.0006963617247 | J123: 0.0003336411092 | K123: 0.0005609142626 | L123: 0.003235837718 | M123: 0.005147115915 | N123: 0.01608795383 | O123: 0.001990057796 | P123: 0.000446397416 | Q123: 0.0007078837511 | R123: 0.004117226794 | S123: 0.008832425068 | T123: 0.001894972019 | U123: 0.0003911254456 | V123: 0.0007198422508 | W123: 0.000335554296 | X123: 0.001609108905 | Y123: 0.00057047887 | Z123: 0.0002261476827 | AA123: 0.0005635451828 | AB123: 0.0004410773233 | AC123: 0.001406676069 | AD123: 0.0005583103292 | AE123: 0.003015948225 | AF123: 0.005717203175 | AG123: 0.0188144878 | AH123: 0.001827390192 | AI123: 0.0005032174342 | AJ123: 0.0009022550285 | AK123: 0.004524708444 | AL123: 0.008460282482 | AM123: 0.001929375654 | AN123: 37.42885858 | AO123: 248.7926606 | AP123: 422.259417 | AQ123: 69.68445865 | AR123: 3329.398456 | AS123: 2832.001832 | AT123: 1890.296603 | AU123: 2404.534612 | AV123: 17803.8109 | AX123: 13821.84793 | AY123: 12819172.24 | AZ123: 52463394.07 | BA123: 56958996.28 | BB123: -851266317.2
A124: 116 | B124: 1.830748071 | C124: 0.0001105210779 | D124: 0.0007755861058 | E124: 0.001224509224 | F124: 0.002474987707 | G124: 0.0003083118771 | H124: 9.518326204e-05 | I124: 0.0005331062593 | J124: 0.0003266356434 | K124: 0.0004799128018 | L124: 0.003062429544 | M124: 0.004972577419 | N124: 0.01632765168 | O124: 0.001871206058 | P124: 0.0005121523781 | Q124: 0.000634387042 | R124: 0.003858065465 | S124: 0.008500714134 | T124: 0.00213896945 | U124: 0.0004008750876 | V124: 0.0007952008622 | W124: 0.0002433607133 | X124: 0.001539774131 | Y124: 0.0004721586898 | Z124: 0.0002038703876 | AA124: 0.0004984410156 | AB124: 0.0004991809366 | AC124: 0.001494264757 | AD124: 0.00059683412 | AE124: 0.003244082411 | AF124: 0.005097888056 | AG124: 0.01741836582 | AH124: 0.001841291714 | AI124: 0.0004544088777 | AJ124: 0.0007078401242 | AK124: 0.003885173759 | AL124: 0.00894266286 | AM124: 0.002182283625 | AN124: 36.38652153 | AO124: 209.529772 | AP124: 423.9661662 | AQ124: 66.66439614 | AR124: 3814.32074 | AS124: 3287.612227 | AT124: 2164.922267 | AU124: 1951.777843 | AV124: 19838.34697 | AX124: 11562.01843 | AY124: 11272204.58 | AZ124: 46659257.72 | BA124: 44797076.6 | BB124: -666725682.7
A125: 117 | B125: 1.835681109 | C125: 0.0001040837079 | D125: 0.0006364609781 | E125: 0.001152892699 | F125: 0.002110722754 | G125: 0.000302750425 | H125: 0.0001037853821 | I125: 0.0006264116402 | J125: 0.0003418765159 | K125: 0.0004581861583 | L125: 0.002868465012 | M125: 0.005376712004 | N125: 0.01794923851 | O125: 0.002243501994 | P125: 0.0004389226849 | Q125: 0.0007541350233 | R125: 0.004588415494 | S125: 0.007748586933 | T125: 0.001877792317 | U125: 0.0004024785701 | V125: 0.0008496626811 | W125: 0.0002937749415 | X125: 0.00138842277 | Y125: 0.000504031796 | Z125: 0.0001751832507 | AA125: 0.000400085806 | AB125: 0.0004819583256 | AC125: 0.001084598462 | AD125: 0.0005692147857 | AE125: 0.00285314383 | AF125: 0.005644775507 | AG125: 0.01941397321 | AH125: 0.00185374657 | AI125: 0.0005837685511 | AJ125: 0.0007973559918 | AK125: 0.00475364382 | AL125: 0.00753788746 | AM125: 0.002192775886 | AN125: 36.95515023 | AO125: 271.7511543 | AP125: 378.0145935 | AQ125: 79.38023899 | AR125: 2586.590517 | AS125: 2851.098551 | AT125: 1813.313929 | AU125: 2163.287213 | AV125: 20700.70157 | AX125: 13058.14584 | AY125: 12244528.32 | AZ125: 50326268.19 | BA125: 56200957.86 | BB125: -977117248.4
A126: 118 | B126: 1.846415213 | C126: 0.000107906716 | D126: 0.0006985589322 | E126: 0.0008696408227 | F126: 0.002119455791 | G126: 0.000236016968 | H126: 0.000101977413 | I126: 0.0005717027397 | J126: 0.0002469393943 | K126: 0.0004681562724 | L126: 0.003024140849 | M126: 0.004937023875 | N126: 0.02055254707 | O126: 0.001992348877 | P126: 0.0005272073853 | Q126: 0.0006846427855 | R126: 0.005105016243 | S126: 0.009208635186 | T126: 0.002297754912 | U126: 0.000365047721 | V126: 0.0007915880413 | W126: 0.0003288105366 | X126: 0.001696820152 | Y126: 0.0004878942217 | Z126: 0.0001794399136 | AA126: 0.000557034196 | AB126: 0.0004063173901 | AC126: 0.001413273871 | AD126: 0.0005871625428 | AE126: 0.003011037139 | AF126: 0.004464767685 | AG126: 0.01810661621 | AH126: 0.00165093361 | AI126: 0.0004921000886 | AJ126: 0.0007089547017 | AK126: 0.004637474691 | AL126: 0.01011656182 | AM126: 0.001828161514 | AN126: 39.16807262 | AO126: 230.7502362 | AP126: 316.295079 | AQ126: 76.52938479 | AR126: 3239.86491 | AS126: 3327.568535 | AT126: 2027.308536 | AU126: 1705.737699 | AV126: 22803.51561 | AX126: 18780.75451 | AY126: 18200719.22 | AZ126: 75271110.78 | BA126: 62246818.39 | BB126: -796203998.2
A127: 119 | B127: 1.860291885 | C127: 9.503567323e-05 | D127: 0.0007083323656 | E127: 0.001190481017 | F127: 0.001975874809 | G127: 0.0002950637104 | H127: 9.130778869e-05 | I127: 0.000580198413 | J127: 0.0002901931502 | K127: 0.0004645772146 | L127: 0.003006524446 | M127: 0.005785820396 | N127: 0.01854504835 | O127: 0.002100059502 | P127: 0.0005256901116 | Q127: 0.0007724114615 | R127: 0.003454793789 | S127: 0.009064967301 | T127: 0.001637883022 | U127: 0.000358173642 | V127: 0.0006477438921 | W127: 0.0003413236141 | X127: 0.001639562505 | Y127: 0.0004531804078 | Z127: 0.0001963507067 | AA127: 0.0003871887385 | AB127: 0.0004146226011 | AC127: 0.001361029292 | AD127: 0.0005599441137 | AE127: 0.002966565191 | AF127: 0.005632212041 | AG127: 0.01532911547 | AH127: 0.001789391659 | AI127: 0.0004499814552 | AJ127: 0.0008110297989 | AK127: 0.005515399599 | AL127: 0.008590878335 | AM127: 0.001886165464 | AN127: 36.39451131 | AO127: 261.4217591 | AP127: 400.1660079 | AQ127: 74.71646054 | AR127: 3124.811173 | AS127: 3304.79635 | AT127: 1921.420626 | AU127: 1701.316985 | AV127: 17538.32724 | AX127: 16362.86231 | AY127: 15859098.44 | AZ127: 65073358.6 | BA127: 56157187.29 | BB127: -922270656.3
A128: 120 | B128: 1.871448632 | C128: 0.0001038278233 | D128: 0.0006764489523 | E128: 0.001034460299 | F128: 0.00195058594 | G128: 0.0003263986449 | H128: 0.0001049296338 | I128: 0.0006264188324 | J128: 0.0002890009303 | K128: 0.0004819561571 | L128: 0.003234169067 | M128: 0.004623798264 | N128: 0.01737908587 | O128: 0.00172775395 | P128: 0.0004435375823 | Q128: 0.0006617178601 | R128: 0.004159584935 | S128: 0.009149299716 | T128: 0.001895170055 | U128: 0.0004058350291 | V128: 0.0007152390076 | W128: 0.0002981152378 | X128: 0.001871929327 | Y128: 0.0004900583779 | Z128: 0.0001888909072 | AA128: 0.0004348676586 | AB128: 0.0003829748679 | AC128: 0.001172591944 | AD128: 0.0005221909415 | AE128: 0.00271087022 | AF128: 0.005827885592 | AG128: 0.01664712001 | AH128: 0.001786954861 | AI128: 0.0004918612287 | AJ128: 0.0007695041503 | AK128: 0.004050616409 | AL128: 0.00768590561 | AM128: 0.001921402101 | AN128: 40.00095565 | AO128: 265.4697784 | AP128: 361.2902109 | AQ128: 70.88817808 | AR128: 2863.820542 | AS128: 2983.921034 | AT128: 1750.938326 | AU128: 2139.122514 | AV128: 19991.3989 | AX128: 13578.15917 | AY128: 13261617.1 | AZ128: 55005474.98 | BA128: 46710471.63 | BB128: -944675297.5
A129: 121 | B129: 1.886436781 | C129: 0.000102927497 | D129: 0.0007254253964 | E129: 0.001015065775 | F129: 0.002638466186 | G129: 0.0003352876348 | H129: 0.0001023057173 | I129: 0.0006545772892 | J129: 0.0003050702944 | K129: 0.0005420189836 | L129: 0.002897434929 | M129: 0.004998967081 | N129: 0.01685344162 | O129: 0.001985273907 | P129: 0.0004707581105 | Q129: 0.0007296773326 | R129: 0.004449911306 | S129: 0.008686031985 | T129: 0.002091410453 | U129: 0.0004261031217 | V129: 0.0008093030324 | W129: 0.0002880440959 | X129: 0.001651336785 | Y129: 0.0005402611943 | Z129: 0.00021351775 | AA129: 0.0005862532216 | AB129: 0.0003848190448 | AC129: 0.001076646371 | AD129: 0.0005317751161 | AE129: 0.003266653596 | AF129: 0.004891472502 | AG129: 0.01896501633 | AH129: 0.001835772913 | AI129: 0.000454394456 | AJ129: 0.0007389983378 | AK129: 0.004529099298 | AL129: 0.007769744679 | AM129: 0.002254511472 | AN129: 38.87057287 | AO129: 280.8279708 | AP129: 407.3686242 | AQ129: 83.04700661 | AR129: 3344.380551 | AS129: 2807.81336 | AT129: 2083.084531 | AU129: 1540.694482 | AV129: 16256.50506 | AX129: 10311.84798 | AY129: 9358894.587 | AZ129: 38225615.49 | BA129: 49405518.02 | BB129: -998607829.2
A130: 122 | B130: 1.884453777 | C130: 8.507426938e-05 | D130: 0.0005699398706 | E130: 0.0009905212719 | F130: 0.002232925499 | G130: 0.0003283815451 | H130: 0.0001064251142 | I130: 0.0006952734389 | J130: 0.0003823632618 | K130: 0.0004950244675 | L130: 0.003057678514 | M130: 0.005869462241 | N130: 0.0159155911 | O130: 0.001944229965 | P130: 0.000649932786 | Q130: 0.0009369538889 | R130: 0.004052532034 | S130: 0.00871683568 | T130: 0.002022001628 | U130: 0.0005589919473 | V130: 0.0006296483457 | W130: 0.0003014646028 | X130: 0.001636565716 | Y130: 0.0004645932517 | Z130: 0.0001618738561 | AA130: 0.000525698895 | AB130: 0.000403851168 | AC130: 0.001439891222 | AD130: 0.0004958630315 | AE130: 0.003225632267 | AF130: 0.004566502859 | AG130: 0.01590342241 | AH130: 0.002140684284 | AI130: 0.0004668937989 | AJ130: 0.0008437947012 | AK130: 0.00438734058 | AL130: 0.009320445113 | AM130: 0.00246468254 | AN130: 37.09636629 | AO130: 211.2270982 | AP130: 498.379286 | AQ130: 65.2340673 | AR130: 3396.9532 | AS130: 3143.606232 | AT130: 1856.135201 | AU130: 2162.986201 | AV130: 17385.78083 | AX130: 15972.14729 | AY130: 15263651.44 | AZ130: 62873226.54 | BA130: 57186168.55 | BB130: -642251685.7
